Workbook

Sheet Acceuil

Sheet Pythons
A2: BASE DE CALCULS Regius | Y2: Une fois définie le poids des proies par rapport au poids des animaux, définir la périodicité pour ajuster.
A3: Poids | H3: Périodes | M3: Proies | P3: Calcul
A4: Jusqu'à: | D4: 80 | F4: g | G4: 100 | H4: 4 | J4: jours | M4: =SUM(D4/G4*P4) -> 9.6 | O4: g | P4: 12 | S4: % | T4: du poids | Y4: Période validée | AI4: Proie validée
A5: Jusqu'à: | D5: 100 | F5: g | G5: 100 | H5: 4 | J5: jours | M5: 12 | O5: g | P5: 12 | S5: % | T5: du poids | Y5: Période validée | AI5: Proie validée
A6: Jusqu'à: | D6: 150 | F6: g | G6: 100 | H6: 4 | J6: jours | M6: 18 | O6: g | P6: 12 | S6: % | T6: du poids | Y6: Période validée | AI6: Proie validée
A7: Jusqu'à: | D7: 200 | F7: g | G7: 100 | H7: 4 | J7: jours | M7: 24 | O7: g | P7: 12 | S7: % | T7: du poids | Y7: Période validée | AI7: Proie validée
A8: Jusqu'à: | D8: 250 | F8: g | G8: 100 | H8: 4 | J8: jours | M8: 30 | O8: g | P8: 12 | S8: % | T8: du poids | Y8: Période validée | AI8: Proie validée
A9: Jusqu'à: | D9: 300 | F9: g | G9: 100 | H9: 5 | J9: jours | M9: 36 | O9: g | P9: 12 | S9: % | T9: du poids | Y9: Période validée | AI9: Proie validée
A10: Jusqu'à: | D10: 350 | F10: g | G10: 100 | H10: 5 | J10: jours | M10: 42 | O10: g | P10: 12 | S10: % | T10: du poids | Y10: Période validée
A11: Jusqu'à: | D11: 400 | F11: g | G11: 100 | H11: 6 | J11: jours | M11: =SUM(D11/G11*P11) -> 48 | O11: g | P11: 12 | S11: % | T11: du poids | Y11: Période validée
A12: Jusqu'à: | D12: 450 | F12: g | G12: 100 | H12: 6 | J12: jours | M12: =SUM(D12/G12*P12) -> 54 | O12: g | P12: 12 | S12: % | T12: du poids | Y12: Période validée
A13: Jusqu'à: | D13: 500 | F13: g | G13: 100 | H13: 7 | J13: jours | M13: 60 | O13: g | P13: 12 | S13: % | T13: du poids | Y13: Période validée
A14: Jusqu'à: | D14: 550 | F14: g | G14: 100 | H14: 7 | J14: jours | M14: 66 | O14: g | P14: 12 | S14: % | T14: du poids | Y14: Période validée
A15: Jusqu'à: | D15: 600 | F15: g | G15: 100 | H15: 7 | J15: jours | M15: 72 | O15: g | P15: 12 | S15: % | T15: du poids | Y15: Période validée
A16: Jusqu'à: | D16: 650 | F16: g | G16: 100 | H16: 7 | J16: jours | M16: 78 | O16: g | P16: 12 | S16: % | T16: du poids | Y16: Période validée
A17: Jusqu'à: | D17: 700 | F17: g | G17: 100 | H17: 8 | J17: jours | M17: 84 | O17: g | P17: 12 | S17: % | T17: du poids | Y17: Période validée
A18: Jusqu'à: | D18: 750 | F18: g | G18: 100 | H18: 8 | J18: jours | M18: 90 | O18: g | P18: 12 | S18: % | T18: du poids | Y18: Période validée
A19: Jusqu'à: | D19: 800 | F19: g | G19: 100 | H19: 9 | J19: jours | M19: 96 | O19: g | P19: 12 | S19: % | T19: du poids | Y19: Période validée
A20: Jusqu'à: | D20: 900 | F20: g | G20: 100 | H20: 9 | J20: jours | M20: 108 | O20: g | P20: 12 | S20: % | T20: du poids | Y20: Période validée
A21: Jusqu'à: | D21: 1000 | F21: g | G21: 100 | H21: 9 | J21: jours | M21: 120 | O21: g | P21: 12 | S21: % | T21: du poids | Y21: Période validée
A22: Jusqu'à: | D22: 1100 | F22: g | G22: 100 | H22: 9 | J22: jours | M22: 132 | O22: g | P22: 12 | S22: % | T22: du poids | Y22: Période validée
A23: Jusqu'à: | D23: 1200 | F23: g | G23: 100 | H23: 10 | J23: jours | M23: 144 | O23: g | P23: 12 | S23: % | T23: du poids | Y23: Période validée
A24: Jusqu'à: | D24: 1300 | F24: g | G24: 100 | H24: 10 | J24: jours | M24: 156 | O24: g | P24: 12 | S24: % | T24: du poids | Y24: Période validée
A25: Jusqu'à: | D25: 1400 | F25: g | G25: 100 | H25: 10 | J25: jours | M25: 168 | O25: g | P25: 12 | S25: % | T25: du poids | Y25: Période validée
A26: Jusqu'à: | D26: 1500 | F26: g | G26: 100 | H26: 10 | J26: jours | M26: 180 | O26: g | P26: 12 | S26: % | T26: du poids | Y26: Période validée
A27: Jusqu'à: | D27: 1600 | F27: g | G27: 100 | H27: 10 | J27: jours | M27: 192 | O27: g | P27: 12 | S27: % | T27: du poids | Y27: Période validée
A28: Jusqu'à: | D28: 1700 | F28: g | G28: 100 | H28: 10 | J28: jours | M28: 204 | O28: g | P28: 12 | S28: % | T28: du poids | Y28: Période validée
A29: Jusqu'à: | D29: 1800 | F29: g | G29: 100 | H29: 10 | J29: jours | M29: 216 | O29: g | P29: 12 | S29: % | T29: du poids | Y29: Période validée
A30: Jusqu'à: | D30: 1900 | F30: g | G30: 100 | H30: 10 | J30: jours | M30: 228 | O30: g | P30: 12 | S30: % | T30: du poids | Y30: Période validée
A31: Jusqu'à: | D31: 2000 | F31: g | G31: 100 | H31: 12 | J31: jours | M31: 240 | O31: g | P31: 12 | S31: % | T31: du poids | Y31: Période validée
A32: Jusqu'à: | D32: 2100 | F32: g | G32: 100 | H32: 12 | J32: jours | M32: 252 | O32: g | P32: 12 | S32: % | T32: du poids | Y32: Période validée
A33: Jusqu'à: | D33: 2200 | F33: g | G33: 100 | H33: 12 | J33: jours | M33: 242 | O33: g | P33: 11 | S33: % | T33: du poids | Y33: Période validée
A34: Jusqu'à: | D34: 2300 | F34: g | G34: 100 | H34: 12 | J34: jours | M34: 230 | O34: g | P34: 10 | S34: % | T34: du poids | Y34: Période validée
A35: Jusqu'à: | D35: 2400 | F35: g | G35: 100 | H35: 12 | J35: jours | M35: 240 | O35: g | P35: 10 | S35: % | T35: du poids | Y35: Période validée
A36: Jusqu'à: | D36: 2500 | F36: g | G36: 100 | H36: 14 | J36: jours | M36: 250 | O36: g | P36: 10 | S36: % | T36: du poids | Y36: Période validée
A37: Jusqu'à: | D37: 2600 | F37: g | G37: 100 | H37: 14 | J37: jours | M37: 260 | O37: g | P37: 10 | S37: % | T37: du poids | Y37: Période validée
A38: Jusqu'à: | D38: 2700 | F38: g | G38: 100 | H38: 14 | J38: jours | M38: 270 | O38: g | P38: 10 | S38: % | T38: du poids | Y38: Période validée
A39: Jusqu'à: | D39: 2800 | F39: g | G39: 100 | H39: 14 | J39: jours | M39: 280 | O39: g | P39: 10 | S39: % | T39: du poids | Y39: Période validée
A40: Jusqu'à: | D40: 2900 | F40: g | G40: 100 | H40: 14 | J40: jours | M40: 290 | O40: g | P40: 10 | S40: % | T40: du poids | Y40: Période validée
A41: Jusqu'à: | D41: 3000 | F41: g | G41: 100 | H41: 20 | J41: jours | M41: 300 | O41: g | P41: 10 | S41: % | T41: du poids | Y41: Période validée
A42: Jusqu'à: | D42: 3200 | F42: g | G42: 100 | H42: 20 | J42: jours | M42: =SUM(D42/G42*P42) -> 288 | O42: g | P42: 9 | S42: % | T42: du poids | Y42: Période validée
A43: Jusqu'à: | D43: 3400 | F43: g | G43: 100 | H43: 20 | J43: jours | M43: 272 | O43: g | P43: 8 | S43: % | T43: du poids | Y43: Période validée
A44: Jusqu'à: | D44: 3600 | F44: g | G44: 100 | H44: 20 | J44: jours | M44: 288 | O44: g | P44: 8 | S44: % | T44: du poids
A45: Jusqu'à: | D45: 3800 | F45: g | G45: 100 | H45: 22 | J45: jours | M45: 304 | O45: g | P45: 8 | S45: % | T45: du poids
A46: Jusqu'à: | D46: 4000 | F46: g | G46: 100 | H46: 24 | J46: jours | M46: 320 | O46: g | P46: 8 | S46: % | T46: du poids
A48: Kamsar | M48: Python Regius | AF48: Place | AJ48: Sexe: | AK48: Mâle | AO48: Né le: | AP48: NC 2014 | AU48: Phase: | AV48: Piedbald
A51: REPAS | M51: DONNEES | AF51: OBSERVATIONS et NOTES
A52: Intervals | C52: Date | F52: Quantités | M52: Digestion | Q52: Mue | S52: Pesée (en g) | Y52: Taille (en cm)
F53: Prévue | H53: Réelle | J53: Dif. | M53: constatée | O53: Soit | Q53: / 5 | S53: Poids | V53: Dif. | Y53: Mesure | AB53: Dif. | BE53: 4 | BQ53: 5 | CC53: 6 | CO53: 7 | DA53: 8 | DM53: 9 | DY53: 10 | EK53: 11 | EW53: 12 | FI53: 13 | FU53: 14 | GG53: 15 | GS53: 16 | HE53: 17 | HQ53: 18 | IC53: 19 | IO53: 20 | JA53: 21 | JM53: 22 | JY53: 23 | KK53: 24 | KW53: 25 | LI53: 26 | LU53: 27 | MG53: 28 | MS53: 29 | NE53: 30 | NQ53: 31 | OC53: 32 | OO53: 33 | PA53: 34 | PM53: 35 | PY53: 36 | QK53: 37 | QW53: 38 | RI53: 39 | RU53: 40 | SG53: 41 | SS53: 42 | TE53: 43 | TQ53: 44 | UC53: 45 | UO53: 46
A54: Arrivée chez nous le 02/03/2016 | S54: 740 | U54: g | X54: g | AA54: cm | AD54: cm | AF54: Devrait manger le 09/03 | BB54: Jusqu'à | BC54: =SUM(D4) -> 80 | BD54: g | BE54: =SUM(H4) -> 4 | BF54: jours | BG54: proies | BH54: =SUM(M4) -> 9.6 | BI54: g | BJ54: =SUM(P4) -> 12 | BK54: % | BL54: du poids | BN54: Jusqu'à | BO54: =SUM(D5) -> 100 | BP54: g | BQ54: =SUM(H5) -> 4 | BR54: jours | BS54: proies | BT54: =SUM(M5) -> 12 | BU54: g | BV54: =SUM(P5) -> 12 | BW54: % | BX54: du poids | BZ54: Jusqu'à | CA54: =SUM(D6) -> 150 | CB54: g | CC54: =SUM(H6) -> 4 | CD54: jours | CE54: proies | CF54: =SUM(M6) -> 18 | CG54: g | CH54: =SUM(P6) -> 12 | CI54: % | CJ54: du poids | CL54: Jusqu'à | CM54: =SUM(D7) -> 200 | CN54: g | CO54: =SUM(H7) -> 4 | CP54: jours | CQ54: proies | CR54: =SUM(M7) -> 24 | CS54: g | CT54: =SUM(P7) -> 12 | CU54: % | CV54: du poids | CX54: Jusqu'à | CY54: =SUM(D8) -> 250 | CZ54: 500 | DA54: =SUM(H8) -> 4 | DB54: jours | DC54: proies | DD54: =SUM(M8) -> 30 | DE54: g | DF54: =SUM(P8) -> 12 | DG54: % | DH54: du poids | DJ54: Jusqu'à | DK54: =SUM(D9) -> 300 | DL54: g | DM54: =SUM(H9) -> 5 | DN54: jours | DO54: proies | DP54: =SUM(M9) -> 36 | DQ54: g | DR54: =SUM(P9) -> 12 | DS54: % | DT54: du poids | DV54: Jusqu'à | DW54: =SUM(D10) -> 350 | DX54: g | DY54: =SUM(H10) -> 5 | DZ54: jours | EA54: proies | EB54: =SUM(M10) -> 42 | EC54: g | ED54: =SUM(P10) -> 12 | EE54: % | EF54: du poids | EH54: Jusqu'à | EI54: =SUM(D11) -> 400 | EJ54: g | EK54: =SUM(H11) -> 6 | EL54: jours | EM54: proies | EN54: =SUM(M11) -> 48 | EO54: g | EP54: =SUM(P11) -> 12 | EQ54: % | ER54: du poids | ET54: Jusqu'à | EU54: =SUM(D12) -> 450 | EV54: g | EW54: =SUM(H12) -> 6 | EX54: jours | EY54: proies | EZ54: =SUM(M12) -> 54 | FA54: g | FB54: =SUM(P12) -> 12 | FC54: % | FD54: du poids | FF54: Jusqu'à | FG54: =SUM(D13) -> 500 | FH54: g | FI54: =SUM(H13) -> 7 | FJ54: jours | FK54: proies | FL54: =SUM(M13) -> 60 | FM54: g | FN54: =SUM(P13) -> 12 | FO54: % | FP54: du poids | FR54: Jusqu'à | FS54: =SUM(D14) -> 550 | FT54: g | FU54: =SUM(H14) -> 7 | FV54: jours | FW54: proies | FX54: =SUM(M14) -> 66 | FY54: g | FZ54: =SUM(P14) -> 12 | GA54: % | GB54: du poids | GD54: Jusqu'à | GE54: =SUM(D15) -> 600 | GF54: g | GG54: =SUM(H15) -> 7 | GH54: jours | GI54: proies | GJ54: =SUM(M15) -> 72 | GK54: g | GL54: =SUM(P15) -> 12 | GM54: % | GN54: du poids | GP54: Jusqu'à | GQ54: =SUM(D16) -> 650 | GR54: g | GS54: =SUM(H16) -> 7 | GT54: jours | GU54: proies | GV54: =SUM(M16) -> 78 | GW54: g | GX54: =SUM(P16) -> 12 | GY54: % | GZ54: du poids | HB54: Jusqu'à | HC54: =SUM(D17) -> 700 | HD54: g | HE54: =SUM(H17) -> 8 | HF54: jours | HG54: proies | HH54: =SUM(M17) -> 84 | HI54: g | HJ54: =SUM(P17) -> 12 | HK54: % | HL54: du poids | HN54: Jusqu'à | HO54: =SUM(D18) -> 750 | HP54: g | HQ54: =SUM(H18) -> 8 | HR54: jours | HS54: proies | HT54: =SUM(M18) -> 90 | HU54: g | HV54: =SUM(P18) -> 12 | HW54: % | HX54: du poids | HZ54: Jusqu'à | IA54: =SUM(D19) -> 800 | IB54: g | IC54: =SUM(H19) -> 9 | ID54: jours | IE54: proies | IF54: =SUM(M19) -> 96 | IG54: g | IH54: =SUM(P19) -> 12 | II54: % | IJ54: du poids | IL54: Jusqu'à | IM54: =SUM(D20) -> 900 | IN54: g | IO54: =SUM(H20) -> 9 | IP54: jours | IQ54: proies | IR54: =SUM(M20) -> 108 | IS54: g | IT54: =SUM(P20) -> 12 | IU54: % | IV54: du poids | IX54: Jusqu'à | IY54: =SUM(D21) -> 1000 | IZ54: g | JA54: =SUM(H21) -> 9 | JB54: jours | JC54: proies | JD54: =SUM(M21) -> 120 | JE54: g | JF54: =SUM(P21) -> 12 | JG54: % | JH54: du poids | JJ54: Jusqu'à | JK54: =SUM(D22) -> 1100 | JL54: g | JM54: =SUM(H22) -> 9 | JN54: jours | JO54: proies | JP54: =SUM(M22) -> 132 | JQ54: g | JR54: =SUM(P22) -> 12 | JS54: % | JT54: du poids | JV54: Jusqu'à | JW54: =SUM(D23) -> 1200 | JX54: g | JY54: =SUM(H23) -> 10 | JZ54: jours | KA54: proies | KB54: =SUM(M23) -> 144 | KC54: g | KD54: =SUM(P23) -> 12 | KE54: % | KF54: du poids | KH54: Jusqu'à | KI54: =SUM(D24) -> 1300 | KJ54: g | KK54: =SUM(H24) -> 10 | KL54: jours | KM54: proies | KN54: =SUM(M24) -> 156 | KO54: g | KP54: =SUM(P24) -> 12 | KQ54: % | KR54: du poids | KT54: Jusqu'à | KU54: =SUM(D25) -> 1400 | KV54: g | KW54: =SUM(H25) -> 10 | KX54: jours | KY54: proies | KZ54: =SUM(M25) -> 168 | LA54: g | LB54: =SUM(P25) -> 12 | LC54: % | LD54: du poids | LF54: Jusqu'à | LG54: =SUM(D26) -> 1500 | LH54: g | LI54: =SUM(H26) -> 10 | LJ54: jours | LK54: proies | LL54: =SUM(M26) -> 180 | LM54: g | LN54: =SUM(P26) -> 12 | LO54: % | LP54: du poids | LR54: Jusqu'à | LS54: =SUM(D27) -> 1600 | LT54: g | LU54: =SUM(H27) -> 10 | LV54: jours | LW54: proies | LX54: =SUM(M27) -> 192 | LY54: g | LZ54: =SUM(P27) -> 12 | MA54: % | MB54: du poids | MD54: Jusqu'à | ME54: =SUM(D28) -> 1700 | MF54: g | MG54: =SUM(H28) -> 10 | MH54: jours | MI54: proies | MJ54: =SUM(M28) -> 204 | MK54: g | ML54: =SUM(P28) -> 12 | MM54: % | MN54: du poids | MP54: Jusqu'à | MQ54: =SUM(D29) -> 1800 | MR54: g | MS54: =SUM(H29) -> 10 | MT54: jours | MU54: proies | MV54: =SUM(M29) -> 216 | MW54: g | MX54: =SUM(P29) -> 12 | MY54: % | MZ54: du poids | NB54: Jusqu'à | NC54: =SUM(D30) -> 1900 | ND54: g | NE54: =SUM(H30) -> 10 | NF54: jours | NG54: proies | NH54: =SUM(M30) -> 228 | NI54: g | NJ54: =SUM(P30) -> 12 | NK54: % | NL54: du poids | NN54: Jusqu'à | NO54: =SUM(D31) -> 2000 | NP54: g | NQ54: =SUM(H31) -> 12 | NR54: jours | NS54: proies | NT54: =SUM(M31) -> 240 | NU54: g | NV54: =SUM(P31) -> 12 | NW54: % | NX54: du poids | NZ54: Jusqu'à | OA54: =SUM(D32) -> 2100 | OB54: g | OC54: =SUM(H32) -> 12 | OD54: jours | OE54: proies | OF54: =SUM(M32) -> 252 | OG54: g | OH54: =SUM(P32) -> 12 | OI54: % | OJ54: du poids | OL54: Jusqu'à | OM54: =SUM(D33) -> 2200 | ON54: g | OO54: =SUM(H33) -> 12 | OP54: jours | OQ54: proies | OR54: =SUM(M33) -> 242 | OS54: g | OT54: =SUM(P32) -> 12 | OU54: % | OV54: du poids | OX54: Jusqu'à | OY54: =SUM(D34) -> 2300 | OZ54: g | PA54: =SUM(H34) -> 12 | PB54: jours | PC54: proies | PD54: =SUM(M34) -> 230 | PE54: g | PF54: =SUM(P34) -> 10 | PG54: % | PH54: du poids | PJ54: Jusqu'à | PK54: =SUM(D35) -> 2400 | PL54: g | PM54: =SUM(H35) -> 12 | PN54: jours | PO54: proies | PP54: =SUM(M35) -> 240 | PQ54: g | PR54: =SUM(P35) -> 10 | PS54: % | PT54: du poids | PV54: Jusqu'à | PW54: =SUM(D36) -> 2500 | PX54: g | PY54: =SUM(H36) -> 14 | PZ54: jours | QA54: proies | QB54: =SUM(M36) -> 250 | QC54: g | QD54: =SUM(P36) -> 10 | QE54: % | QF54: du poids | QH54: Jusqu'à | QI54: =SUM(D37) -> 2600 | QJ54: g | QK54: =SUM(H37) -> 14 | QL54: jours | QM54: proies | QN54: =SUM(M37) -> 260 | QO54: g | QP54: =SUM(P37) -> 10 | QQ54: % | QR54: du poids | QT54: Jusqu'à | QU54: =SUM(D38) -> 2700 | QV54: g | QW54: =SUM(H38) -> 14 | QX54: jours | QY54: proies | QZ54: =SUM(M38) -> 270 | RA54: g | RB54: =SUM(P38) -> 10 | RC54: % | RD54: du poids | RF54: Jusqu'à | RG54: =SUM(D39) -> 2800 | RH54: g | RI54: =SUM(H39) -> 14 | RJ54: jours | RK54: proies | RL54: =SUM(M39) -> 280 | RM54: g | RN54: =SUM(P39) -> 10 | RO54: % | RP54: du poids | RR54: Jusqu'à | RS54: =SUM(D40) -> 2900 | RT54: g | RU54: =SUM(H40) -> 14 | RV54: jours | RW54: proies | RX54: =SUM(M40) -> 290 | RY54: g | RZ54: =SUM(P40) -> 10 | SA54: % | SB54: du poids | SD54: Jusqu'à | SE54: =SUM(D41) -> 3000 | SF54: g | SG54: =SUM(H41) -> 20 | SH54: jours | SI54: proies | SJ54: =SUM(M41) -> 300 | SK54: g | SL54: =SUM(P41) -> 10 | SM54: % | SN54: du poids | SP54: Jusqu'à | SQ54: =SUM(D42) -> 3200 | SR54: g | SS54: =SUM(H42) -> 20 | ST54: jours | SU54: proies | SV54: =SUM(M42) -> 288 | SW54: g | SX54: =SUM(P42) -> 9 | SY54: % | SZ54: du poids | TB54: Jusqu'à | TC54: =SUM(D43) -> 3400 | TD54: g | TE54: =SUM(H43) -> 20 | TF54: jours | TG54: proies | TH54: =SUM(M43) -> 272 | TI54: g | TJ54: =SUM(P43) -> 8 | TK54: % | TL54: du poids | TN54: Jusqu'à | TO54: =SUM(D44) -> 3600 | TP54: g | TQ54: =SUM(H44) -> 20 | TR54: jours | TS54: proies | TT54: =SUM(M45) -> 304 | TU54: g | TV54: =SUM(P45) -> 8 | TW54: % | TX54: du poids | TZ54: Jusqu'à | UA54: =SUM(D45) -> 3800 | UB54: g | UC54: =SUM(H45) -> 22 | UD54: jours | UE54: proies | UF54: =SUM(M45) -> 304 | UG54: g | UH54: =SUM(P45) -> 8 | UI54: % | UJ54: du poids | UL54: Jusqu'à | UM54: =SUM(D46) -> 4000 | UN54: g | UO54: =SUM(H46) -> 24 | UP54: jours | UQ54: proies | UR54: =SUM(M46) -> 320 | US54: g | UT54: =SUM(P46) -> 8 | UU54: % | UV54: du poids
A55: =IF(S54="","",IF(S54<=80,BE55,IF(S54<=100,BQ55,IF(S54<=150,CC55,IF(S54<=200,CO55,IF(S54<=250,DA55,IF(S54<=300,DM55,IF(S54<=350,DY55,IF(S54<=400,EK55,IF(S54<=450,EW55,IF(S54<=500,FI55,IF(S54<=550,FU55,IF(S54<=600,GG55,IF(S54<=650,GG55,IF(S54<=700,HE55,IF(S54<=750,HQ55,IF(S54<=800,IC55,IF(S54<=900,IO55,IF(S54<=1000,JA55,IF(S54<=1100,JM55,IF(S54<=1200,JY55,IF(S54<=1300,KK55,IF(S54<=1400,KW55,IF(S54<=1500,LI55,IF(S54<=1600,LU55,IF(S54<=1700,MG55,IF(S54<=1800,MS55,IF(S54<=1900,NE55,IF(S54<=2000,NQ55,IF(S54<=2100,OC55,IF(S54<=2200,OO55,IF(S54<=2300,PA55,IF(S54<=2400,PM55,IF(S54<=2500,PY55,IF(S54<=2600,QK55,IF(S54<=2700,QW55,IF(S54<=2800,RI55,IF(S54<=2900,RU55,IF(S54<=3000,SG55,IF(S54<=3500,SS55,IF(S54<=4000,TE55,""))))))))))))))))))))))))))))))))))))))))) -> 8 | B55: jours | C55: 2016-03-09 | F55: =IF(S55="","",IF(S55<=BC54,BH55,IF(S55<=BO54,BT55,IF(S55<=CA54,CF55,IF(S55<=CM54,CR55,IF(S55<=CY54,DD55,IF(S55<=DK54,DP55,IF(S55<=DW54,EB55,IF(S55<=EI54,EN55,IF(S55<=EU54,EZ55,IF(S55<=FG54,FL55,IF(S55<=FS54,FX55,IF(S55<=GE54,GJ55,IF(S55<=GQ54,GV55,IF(S55<=HC54,HH55,IF(S55<=HO54,HT55,IF(S55<=IA54,IF55,IF(S55<=IM54,IR55,IF(S55<=IY54,JD55,IF(S55<=JK54,JP55,IF(S55<=JW54,KB55,IF(S55<=KI54,KN55,IF(S55<=KU54,KZ55,IF(S55<=LG54,LL55,IF(S55<=LS54,LX55,IF(S55<=ME54,MJ55,IF(S55<=MQ54,MV55,IF(S55<=NC54,NH55,IF(S55<=NO54,NT55,IF(S55<=OA54,OF55,IF(S55<=OM54,OR55,IF(S55<=OY54,PD55,IF(S55<=PK54,PP55,IF(S55<=PW54,QB55,IF(S55<=QI54,QN55,IF(S55<=QU54,QZ55,IF(S55<=RG54,RL55,IF(S55<=RS54,RX55,IF(S55<=SE54,SJ55,IF(S55<=SQ54,SV55,IF(S55<=TC54,TH55,IF(S55<=TO54,TT55,IF(S55<=UA54,UF55,IF(S55<=UM54,UR55,"")))))))))))))))))))))))))))))))))))))))))))) -> 90 | G55: g | H55: 80 | I55: g | J55: =SUM(H55-F55) -> -10 | K55: g | O55: =SUM(M55-C55) -> -42438 | P55: j | S55: 740 | U55: g | V55: =SUM(S55-S54) -> 0 | X55: g | AA55: cm | AB55: =SUM(Y55-Y54) -> 0 | AD55: cm | AF55: Refusé, temps d'adaptation ? | BB55: =(BB54) -> Jusqu'à | BC55: =SUM(BC54) -> 80 | BD55: g | BE55: =SUM(BE54) -> 4 | BF55: jours | BG55: proies | BH55: =SUM(BH54) -> 9.6 | BI55: g | BJ55: =SUM(BJ54) -> 12 | BK55: % | BL55: du poids | BN55: =(BN54) -> Jusqu'à | BO55: =SUM(BO54) -> 100 | BP55: g | BQ55: =SUM(BQ54) -> 4 | BR55: jours | BS55: proies | BT55: =SUM(BT54) -> 12 | BU55: g | BV55: =SUM(BV54) -> 12 | BW55: % | BX55: du poids | BZ55: =(BZ54) -> Jusqu'à | CA55: =SUM(CA54) -> 150 | CB55: g | CC55: =SUM(CC54) -> 4 | CD55: jours | CE55: proies | CF55: =SUM(CF54) -> 18 | CG55: g | CH55: =SUM(CH54) -> 12 | CI55: % | CJ55: du poids | CL55: =(CL54) -> Jusqu'à | CM55: =SUM(CM54) -> 200 | CN55: g | CO55: =SUM(CO54) -> 4 | CP55: jours | CQ55: proies | CR55: =SUM(CR54) -> 24 | CS55: g | CT55: =SUM(CT54) -> 12 | CU55: % | CV55: du poids | CX55: =(CX54) -> Jusqu'à | CY55: =SUM(CY54) -> 250 | CZ55: 500 | DA55: =SUM(DA54) -> 4 | DB55: jours | DC55: proies | DD55: =SUM(DD54) -> 30 | DE55: g | DF55: =SUM(DF54) -> 12 | DG55: % | DH55: du poids | DJ55: =(DJ54) -> Jusqu'à | DK55: =SUM(DK54) -> 300 | DL55: g | DM55: =SUM(DM54) -> 5 | DN55: jours | DO55: proies | DP55: =SUM(DP54) -> 36 | DQ55: g | DR55: =SUM(DR54) -> 12 | DS55: % | DT55: du poids | DV55: =(DV54) -> Jusqu'à | DW55: =SUM(DW54) -> 350 | DX55: g | DY55: =SUM(DY54) -> 5 | DZ55: jours | EA55: proies | EB55: =SUM(EB54) -> 42 | EC55: g | ED55: =SUM(ED54) -> 12 | EE55: % | EF55: du poids | EH55: =(EH54) -> Jusqu'à | EI55: =SUM(EI54) -> 400 | EJ55: g | EK55: =SUM(EK54) -> 6 | EL55: jours | EM55: proies | EN55: =SUM(EN54) -> 48 | EO55: g | EP55: =SUM(EP54) -> 12 | EQ55: % | ER55: du poids | ET55: =(ET54) -> Jusqu'à | EU55: =SUM(EU54) -> 450 | EV55: g | EW55: =SUM(EW54) -> 6 | EX55: jours | EY55: proies | EZ55: =SUM(EZ54) -> 54 | FA55: g | FB55: =SUM(FB54) -> 12 | FC55: % | FD55: du poids | FF55: =(FF54) -> Jusqu'à | FG55: =SUM(FG54) -> 500 | FH55: g | FI55: =SUM(FI54) -> 7 | FJ55: jours | FK55: proies | FL55: =SUM(FL54) -> 60 | FM55: g | FN55: =SUM(FN54) -> 12 | FO55: % | FP55: du poids | FR55: =(FR54) -> Jusqu'à | FS55: =SUM(FS54) -> 550 | FT55: g | FU55: =SUM(FU54) -> 7 | FV55: jours | FW55: proies | FX55: =SUM(FX54) -> 66 | FY55: g | FZ55: =SUM(FZ54) -> 12 | GA55: % | GB55: du poids | GD55: =(GD54) -> Jusqu'à | GE55: =SUM(GE54) -> 600 | GF55: g | GG55: =SUM(GG54) -> 7 | GH55: jours | GI55: proies | GJ55: =SUM(GJ54) -> 72 | GK55: g | GL55: =SUM(GL54) -> 12 | GM55: % | GN55: du poids | GP55: =(GP54) -> Jusqu'à | GQ55: =SUM(GQ54) -> 650 | GR55: g | GS55: =SUM(GS54) -> 7 | GT55: jours | GU55: proies | GV55: =SUM(GV54) -> 78 | GW55: g | GX55: =SUM(GX54) -> 12 | GY55: % | GZ55: du poids | HB55: =(HB54) -> Jusqu'à | HC55: =SUM(HC54) -> 700 | HD55: g | HE55: =SUM(HE54) -> 8 | HF55: jours | HG55: proies | HH55: =SUM(HH54) -> 84 | HI55: g | HJ55: =SUM(HJ54) -> 12 | HK55: % | HL55: du poids | HN55: =(HN54) -> Jusqu'à | HO55: =SUM(HO54) -> 750 | HP55: g | HQ55: =SUM(HQ54) -> 8 | HR55: jours | HS55: proies | HT55: =SUM(HT54) -> 90 | HU55: g | HV55: =SUM(HV54) -> 12 | HW55: % | HX55: du poids | HZ55: =(HZ54) -> Jusqu'à | IA55: =SUM(IA54) -> 800 | IB55: g | IC55: =SUM(IC54) -> 9 | ID55: jours | IE55: proies | IF55: =SUM(IF54) -> 96 | IG55: g | IH55: =SUM(IH54) -> 12 | II55: % | IJ55: du poids | IL55: =(IL54) -> Jusqu'à | IM55: =SUM(IM54) -> 900 | IN55: g | IO55: =SUM(IO54) -> 9 | IP55: jours | IQ55: proies | IR55: =SUM(IR54) -> 108 | IS55: g | IT55: =SUM(IT54) -> 12 | IU55: % | IV55: du poids | IX55: =(IX54) -> Jusqu'à | IY55: =SUM(IY54) -> 1000 | IZ55: g | JA55: =SUM(JA54) -> 9 | JB55: jours | JC55: proies | JD55: =SUM(JD54) -> 120 | JE55: g | JF55: =SUM(JF54) -> 12 | JG55: % | JH55: du poids | JJ55: =(JJ54) -> Jusqu'à | JK55: =SUM(JK54) -> 1100 | JL55: g | JM55: =SUM(JM54) -> 9 | JN55: jours | JO55: proies | JP55: =SUM(JP54) -> 132 | JQ55: g | JR55: =SUM(JR54) -> 12 | JS55: % | JT55: du poids | JV55: =(JV54) -> Jusqu'à | JW55: =SUM(JW54) -> 1200 | JX55: g | JY55: =SUM(JY54) -> 10 | JZ55: jours | KA55: proies | KB55: =SUM(KB54) -> 144 | KC55: g | KD55: =SUM(KD54) -> 12 | KE55: % | KF55: du poids | KH55: =(KH54) -> Jusqu'à | KI55: =SUM(KI54) -> 1300 | KJ55: g | KK55: =SUM(KK54) -> 10 | KL55: jours | KM55: proies | KN55: =SUM(KN54) -> 156 | KO55: g | KP55: =SUM(KP54) -> 12 | KQ55: % | KR55: du poids | KT55: =(KT54) -> Jusqu'à | KU55: =SUM(KU54) -> 1400 | KV55: g | KW55: =SUM(KW54) -> 10 | KX55: jours | KY55: proies | KZ55: =SUM(KZ54) -> 168 | LA55: g | LB55: =SUM(LB54) -> 12 | LC55: % | LD55: du poids | LF55: =(LF54) -> Jusqu'à | LG55: =SUM(LG54) -> 1500 | LH55: g | LI55: =SUM(LI54) -> 10 | LJ55: jours | LK55: proies | LL55: =SUM(LL54) -> 180 | LM55: g | LN55: =SUM(LN54) -> 12 | LO55: % | LP55: du poids | LR55: =(LR54) -> Jusqu'à | LS55: =SUM(LS54) -> 1600 | LT55: g | LU55: =SUM(LU54) -> 10 | LV55: jours | LW55: proies | LX55: =SUM(LX54) -> 192 | LY55: g | LZ55: =SUM(LZ54) -> 12 | MA55: % | MB55: du poids | MD55: =(MD54) -> Jusqu'à | ME55: =SUM(ME54) -> 1700 | MF55: g | MG55: =SUM(MG54) -> 10 | MH55: jours | MI55: proies | MJ55: =SUM(MJ54) -> 204 | MK55: g | ML55: =SUM(ML54) -> 12 | MM55: % | MN55: du poids | MP55: =(MP54) -> Jusqu'à | MQ55: =SUM(MQ54) -> 1800 | MR55: g | MS55: =SUM(MS54) -> 10 | MT55: jours | MU55: proies | MV55: =SUM(MV54) -> 216 | MW55: g | MX55: =SUM(MX54) -> 12 | MY55: % | MZ55: du poids | NB55: =(NB54) -> Jusqu'à | NC55: =SUM(NC54) -> 1900 | ND55: g | NE55: =SUM(NE54) -> 10 | NF55: jours | NG55: proies | NH55: =SUM(NH54) -> 228 | NI55: g | NJ55: =SUM(NJ54) -> 12 | NK55: % | NL55: du poids | NN55: =(NN54) -> Jusqu'à | NO55: =SUM(NO54) -> 2000 | NP55: g | NQ55: =SUM(NQ54) -> 12 | NR55: jours | NS55: proies | NT55: =SUM(NT54) -> 240 | NU55: g | NV55: =SUM(NV54) -> 12 | NW55: % | NX55: du poids | NZ55: =(NZ54) -> Jusqu'à | OA55: =SUM(OA54) -> 2100 | OB55: g | OC55: =SUM(OC54) -> 12 | OD55: jours | OE55: proies | OF55: =SUM(OF54) -> 252 | OG55: g | OH55: =SUM(OH54) -> 12 | OI55: % | OJ55: du poids | OL55: =(OL54) -> Jusqu'à | OM55: =SUM(OM54) -> 2200 | ON55: g | OO55: =SUM(OO54) -> 12 | OP55: jours | OQ55: proies | OR55: =SUM(OR54) -> 242 | OS55: g | OT55: =SUM(OT54) -> 12 | OU55: % | OV55: du poids | OX55: =(OX54) -> Jusqu'à | OY55: =SUM(OY54) -> 2300 | OZ55: g | PA55: =SUM(PA54) -> 12 | PB55: jours | PC55: proies | PD55: =SUM(PD54) -> 230 | PE55: g | PF55: =SUM(PF54) -> 10 | PG55: % | PH55: du poids | PJ55: =(PJ54) -> Jusqu'à | PK55: =SUM(PK54) -> 2400 | PL55: g | PM55: =SUM(PM54) -> 12 | PN55: jours | PO55: proies | PP55: =SUM(PP54) -> 240 | PQ55: g | PR55: =SUM(PR54) -> 10 | PS55: % | PT55: du poids | PV55: =(PV54) -> Jusqu'à | PW55: =SUM(PW54) -> 2500 | PX55: g | PY55: =SUM(PY54) -> 14 | PZ55: jours | QA55: proies | QB55: =SUM(QB54) -> 250 | QC55: g | QD55: =SUM(QD54) -> 10 | QE55: % | QF55: du poids | QH55: =(QH54) -> Jusqu'à | QI55: =SUM(QI54) -> 2600 | QJ55: g | QK55: =SUM(QK54) -> 14 | QL55: jours | QM55: proies | QN55: =SUM(QN54) -> 260 | QO55: g | QP55: =SUM(QP54) -> 10 | QQ55: % | QR55: du poids | QT55: =(QT54) -> Jusqu'à | QU55: =SUM(QU54) -> 2700 | QV55: g | QW55: =SUM(QW54) -> 14 | QX55: jours | QY55: proies | QZ55: =SUM(QZ54) -> 270 | RA55: g | RB55: =SUM(RB54) -> 10 | RC55: % | RD55: du poids | RF55: =(RF54) -> Jusqu'à | RG55: =SUM(RG54) -> 2800 | RH55: g | RI55: =SUM(RI54) -> 14 | RJ55: jours | RK55: proies | RL55: =SUM(RL54) -> 280 | RM55: g | RN55: =SUM(RN54) -> 10 | RO55: % | RP55: du poids | RR55: =(RR54) -> Jusqu'à | RS55: =SUM(RS54) -> 2900 | RT55: g | RU55: =SUM(RU54) -> 14 | RV55: jours | RW55: proies | RX55: =SUM(RX54) -> 290 | RY55: g | RZ55: =SUM(RZ54) -> 10 | SA55: % | SB55: du poids | SD55: =(SD54) -> Jusqu'à | SE55: =SUM(SE54) -> 3000 | SF55: g | SG55: =SUM(SG54) -> 20 | SH55: jours | SI55: proies | SJ55: =SUM(SJ54) -> 300 | SK55: g | SL55: =SUM(SL54) -> 10 | SM55: % | SN55: du poids | SP55: =(SP54) -> Jusqu'à | SQ55: =SUM(SQ54) -> 3200 | SR55: g | SS55: =SUM(SS54) -> 20 | ST55: jours | SU55: proies | SV55: =SUM(SV54) -> 288 | SW55: g | SX55: =SUM(SX54) -> 9 | SY55: % | SZ55: du poids | TB55: =(TB54) -> Jusqu'à | TC55: =SUM(TC54) -> 3400 | TD55: g | TE55: =SUM(TE54) -> 20 | TF55: jours | TG55: proies | TH55: =SUM(TH54) -> 272 | TI55: g | TJ55: =SUM(TJ54) -> 8 | TK55: % | TL55: du poids | TN55: =(TN54) -> Jusqu'à | TO55: =SUM(TO54) -> 3600 | TP55: g | TQ55: =SUM(TQ54) -> 20 | TR55: jours | TS55: proies | TT55: =SUM(TT54) -> 304 | TU55: g | TV55: =SUM(TV54) -> 8 | TW55: % | TX55: du poids | TZ55: =(TZ54) -> Jusqu'à | UA55: =SUM(UA54) -> 3800 | UB55: g | UC55: =SUM(UC54) -> 22 | UD55: jours | UE55: proies | UF55: =SUM(UF54) -> 304 | UG55: g | UH55: =SUM(UH54) -> 8 | UI55: % | UJ55: du poids | UL55: =(UL54) -> Jusqu'à | UM55: =SUM(UM54) -> 4000 | UN55: g | UO55: =SUM(UO54) -> 24 | UP55: jours | UQ55: proies | UR55: =SUM(UR54) -> 320 | US55: g | UT55: =SUM(UT54) -> 8 | UU55: % | UV55: du poids
A56: =IF(S55="","",IF(S55<=80,BE56,IF(S55<=100,BQ56,IF(S55<=150,CC56,IF(S55<=200,CO56,IF(S55<=250,DA56,IF(S55<=300,DM56,IF(S55<=350,DY56,IF(S55<=400,EK56,IF(S55<=450,EW56,IF(S55<=500,FI56,IF(S55<=550,FU56,IF(S55<=600,GG56,IF(S55<=650,GG56,IF(S55<=700,HE56,IF(S55<=750,HQ56,IF(S55<=800,IC56,IF(S55<=900,IO56,IF(S55<=1000,JA56,IF(S55<=1100,JM56,IF(S55<=1200,JY56,IF(S55<=1300,KK56,IF(S55<=1400,KW56,IF(S55<=1500,LI56,IF(S55<=1600,LU56,IF(S55<=1700,MG56,IF(S55<=1800,MS56,IF(S55<=1900,NE56,IF(S55<=2000,NQ56,IF(S55<=2100,OC56,IF(S55<=2200,OO56,IF(S55<=2300,PA56,IF(S55<=2400,PM56,IF(S55<=2500,PY56,IF(S55<=2600,QK56,IF(S55<=2700,QW56,IF(S55<=2800,RI56,IF(S55<=2900,RU56,IF(S55<=3000,SG56,IF(S55<=3500,SS56,IF(S55<=4000,TE56,""))))))))))))))))))))))))))))))))))))))))) -> 8 | B56: jours | C56: 2016-04-03 | F56: =IF(S56="","",IF(S56<=BC55,BH56,IF(S56<=BO55,BT56,IF(S56<=CA55,CF56,IF(S56<=CM55,CR56,IF(S56<=CY55,DD56,IF(S56<=DK55,DP56,IF(S56<=DW55,EB56,IF(S56<=EI55,EN56,IF(S56<=EU55,EZ56,IF(S56<=FG55,FL56,IF(S56<=FS55,FX56,IF(S56<=GE55,GJ56,IF(S56<=GQ55,GV56,IF(S56<=HC55,HH56,IF(S56<=HO55,HT56,IF(S56<=IA55,IF56,IF(S56<=IM55,IR56,IF(S56<=IY55,JD56,IF(S56<=JK55,JP56,IF(S56<=JW55,KB56,IF(S56<=KI55,KN56,IF(S56<=KU55,KZ56,IF(S56<=LG55,LL56,IF(S56<=LS55,LX56,IF(S56<=ME55,MJ56,IF(S56<=MQ55,MV56,IF(S56<=NC55,NH56,IF(S56<=NO55,NT56,IF(S56<=OA55,OF56,IF(S56<=OM55,OR56,IF(S56<=OY55,PD56,IF(S56<=PK55,PP56,IF(S56<=PW55,QB56,IF(S56<=QI55,QN56,IF(S56<=QU55,QZ56,IF(S56<=RG55,RL56,IF(S56<=RS55,RX56,IF(S56<=SE55,SJ56,IF(S56<=SQ55,SV56,IF(S56<=TC55,TH56,IF(S56<=TO55,TT56,IF(S56<=UA55,UF56,IF(S56<=UM55,UR56,"")))))))))))))))))))))))))))))))))))))))))))) -> 90 | G56: g | H56: 0 | I56: g | J56: =SUM(H56-F56) -> -90 | K56: g | O56: =SUM(M56-C56) -> -42463 | P56: j | S56: 750 | U56: g | V56: =SUM(S56-S55) -> 10 | X56: g | AA56: cm | AB56: =SUM(Y56-Y55) -> 0 | AD56: cm | AF56: Refusé | BB56: =(BB55) -> Jusqu'à | BC56: =SUM(BC55) -> 80 | BD56: g | BE56: =SUM(BE55) -> 4 | BF56: jours | BG56: proies | BH56: =SUM(BH55) -> 9.6 | BI56: g | BJ56: =SUM(BJ55) -> 12 | BK56: % | BL56: du poids | BN56: =(BN55) -> Jusqu'à | BO56: =SUM(BO55) -> 100 | BP56: g | BQ56: =SUM(BQ55) -> 4 | BR56: jours | BS56: proies | BT56: =SUM(BT55) -> 12 | BU56: g | BV56: =SUM(BV55) -> 12 | BW56: % | BX56: du poids | BZ56: =(BZ55) -> Jusqu'à | CA56: =SUM(CA55) -> 150 | CB56: g | CC56: =SUM(CC55) -> 4 | CD56: jours | CE56: proies | CF56: =SUM(CF55) -> 18 | CG56: g | CH56: =SUM(CH55) -> 12 | CI56: % | CJ56: du poids | CL56: =(CL55) -> Jusqu'à | CM56: =SUM(CM55) -> 200 | CN56: g | CO56: =SUM(CO55) -> 4 | CP56: jours | CQ56: proies | CR56: =SUM(CR55) -> 24 | CS56: g | CT56: =SUM(CT55) -> 12 | CU56: % | CV56: du poids | CX56: =(CX55) -> Jusqu'à | CY56: =SUM(CY55) -> 250 | CZ56: 501 | DA56: =SUM(DA55) -> 4 | DB56: jours | DC56: proies | DD56: =SUM(DD55) -> 30 | DE56: g | DF56: =SUM(DF55) -> 12 | DG56: % | DH56: du poids | DJ56: =(DJ55) -> Jusqu'à | DK56: =SUM(DK55) -> 300 | DL56: g | DM56: =SUM(DM55) -> 5 | DN56: jours | DO56: proies | DP56: =SUM(DP55) -> 36 | DQ56: g | DR56: =SUM(DR55) -> 12 | DS56: % | DT56: du poids | DV56: =(DV55) -> Jusqu'à | DW56: =SUM(DW55) -> 350 | DX56: g | DY56: =SUM(DY55) -> 5 | DZ56: jours | EA56: proies | EB56: =SUM(EB55) -> 42 | EC56: g | ED56: =SUM(ED55) -> 12 | EE56: % | EF56: du poids | EH56: =(EH55) -> Jusqu'à | EI56: =SUM(EI55) -> 400 | EJ56: g | EK56: =SUM(EK55) -> 6 | EL56: jours | EM56: proies | EN56: =SUM(EN55) -> 48 | EO56: g | EP56: =SUM(EP55) -> 12 | EQ56: % | ER56: du poids | ET56: =(ET55) -> Jusqu'à | EU56: =SUM(EU55) -> 450 | EV56: g | EW56: =SUM(EW55) -> 6 | EX56: jours | EY56: proies | EZ56: =SUM(EZ55) -> 54 | FA56: g | FB56: =SUM(FB55) -> 12 | FC56: % | FD56: du poids | FF56: =(FF55) -> Jusqu'à | FG56: =SUM(FG55) -> 500 | FH56: g | FI56: =SUM(FI55) -> 7 | FJ56: jours | FK56: proies | FL56: =SUM(FL55) -> 60 | FM56: g | FN56: =SUM(FN55) -> 12 | FO56: % | FP56: du poids | FR56: =(FR55) -> Jusqu'à | FS56: 550 | FT56: g | FU56: =SUM(FU55) -> 7 | FV56: jours | FW56: proies | FX56: =SUM(FX55) -> 66 | FY56: g | FZ56: =SUM(FZ55) -> 12 | GA56: % | GB56: du poids | GD56: =(GD55) -> Jusqu'à | GE56: =SUM(GE55) -> 600 | GF56: g | GG56: =SUM(GG55) -> 7 | GH56: jours | GI56: proies | GJ56: =SUM(GJ55) -> 72 | GK56: g | GL56: =SUM(GL55) -> 12 | GM56: % | GN56: du poids | GP56: =(GP55) -> Jusqu'à | GQ56: =SUM(GQ55) -> 650 | GR56: g | GS56: =SUM(GS55) -> 7 | GT56: jours | GU56: proies | GV56: =SUM(GV55) -> 78 | GW56: g | GX56: =SUM(GX55) -> 12 | GY56: % | GZ56: du poids | HB56: =(HB55) -> Jusqu'à | HC56: =SUM(HC55) -> 700 | HD56: g | HE56: =SUM(HE55) -> 8 | HF56: jours | HG56: proies | HH56: =SUM(HH55) -> 84 | HI56: g | HJ56: =SUM(HJ55) -> 12 | HK56: % | HL56: du poids | HN56: =(HN55) -> Jusqu'à | HO56: =SUM(HO55) -> 750 | HP56: g | HQ56: =SUM(HQ55) -> 8 | HR56: jours | HS56: proies | HT56: =SUM(HT55) -> 90 | HU56: g | HV56: =SUM(HV55) -> 12 | HW56: % | HX56: du poids | HZ56: =(HZ55) -> Jusqu'à | IA56: =SUM(IA55) -> 800 | IB56: g | IC56: =SUM(IC55) -> 9 | ID56: jours | IE56: proies | IF56: =SUM(IF55) -> 96 | IG56: g | IH56: =SUM(IH55) -> 12 | II56: % | IJ56: du poids | IL56: =(IL55) -> Jusqu'à | IM56: =SUM(IM55) -> 900 | IN56: g | IO56: =SUM(IO55) -> 9 | IP56: jours | IQ56: proies | IR56: =SUM(IR55) -> 108 | IS56: g | IT56: =SUM(IT55) -> 12 | IU56: % | IV56: du poids | IX56: =(IX55) -> Jusqu'à | IY56: =SUM(IY55) -> 1000 | IZ56: g | JA56: =SUM(JA55) -> 9 | JB56: jours | JC56: proies | JD56: =SUM(JD55) -> 120 | JE56: g | JF56: =SUM(JF55) -> 12 | JG56: % | JH56: du poids | JJ56: =(JJ55) -> Jusqu'à | JK56: =SUM(JK55) -> 1100 | JL56: g | JM56: =SUM(JM55) -> 9 | JN56: jours | JO56: proies | JP56: =SUM(JP55) -> 132 | JQ56: g | JR56: =SUM(JR55) -> 12 | JS56: % | JT56: du poids | JV56: =(JV55) -> Jusqu'à | JW56: =SUM(JW55) -> 1200 | JX56: g | JY56: =SUM(JY55) -> 10 | JZ56: jours | KA56: proies | KB56: =SUM(KB55) -> 144 | KC56: g | KD56: =SUM(KD55) -> 12 | KE56: % | KF56: du poids | KH56: =(KH55) -> Jusqu'à | KI56: =SUM(KI55) -> 1300 | KJ56: g | KK56: =SUM(KK55) -> 10 | KL56: jours | KM56: proies | KN56: =SUM(KN55) -> 156 | KO56: g | KP56: =SUM(KP55) -> 12 | KQ56: % | KR56: du poids | KT56: =(KT55) -> Jusqu'à | KU56: =SUM(KU55) -> 1400 | KV56: g | KW56: =SUM(KW55) -> 10 | KX56: jours | KY56: proies | KZ56: =SUM(KZ55) -> 168 | LA56: g | LB56: =SUM(LB55) -> 12 | LC56: % | LD56: du poids | LF56: =(LF55) -> Jusqu'à | LG56: =SUM(LG55) -> 1500 | LH56: g | LI56: =SUM(LI55) -> 10 | LJ56: jours | LK56: proies | LL56: =SUM(LL55) -> 180 | LM56: g | LN56: =SUM(LN55) -> 12 | LO56: % | LP56: du poids | LR56: =(LR55) -> Jusqu'à | LS56: =SUM(LS55) -> 1600 | LT56: g | LU56: =SUM(LU55) -> 10 | LV56: jours | LW56: proies | LX56: =SUM(LX55) -> 192 | LY56: g | LZ56: =SUM(LZ55) -> 12 | MA56: % | MB56: du poids | MD56: =(MD55) -> Jusqu'à | ME56: =SUM(ME55) -> 1700 | MF56: g | MG56: =SUM(MG55) -> 10 | MH56: jours | MI56: proies | MJ56: =SUM(MJ55) -> 204 | MK56: g | ML56: =SUM(ML55) -> 12 | MM56: % | MN56: du poids | MP56: =(MP55) -> Jusqu'à | MQ56: =SUM(MQ55) -> 1800 | MR56: g | MS56: =SUM(MS55) -> 10 | MT56: jours | MU56: proies | MV56: =SUM(MV55) -> 216 | MW56: g | MX56: =SUM(MX55) -> 12 | MY56: % | MZ56: du poids | NB56: =(NB55) -> Jusqu'à | NC56: =SUM(NC55) -> 1900 | ND56: g | NE56: =SUM(NE55) -> 10 | NF56: jours | NG56: proies | NH56: =SUM(NH55) -> 228 | NI56: g | NJ56: =SUM(NJ55) -> 12 | NK56: % | NL56: du poids | NN56: =(NN55) -> Jusqu'à | NO56: =SUM(NO55) -> 2000 | NP56: g | NQ56: =SUM(NQ55) -> 12 | NR56: jours | NS56: proies | NT56: =SUM(NT55) -> 240 | NU56: g | NV56: =SUM(NV55) -> 12 | NW56: % | NX56: du poids | NZ56: =(NZ55) -> Jusqu'à | OA56: =SUM(OA55) -> 2100 | OB56: g | OC56: =SUM(OC55) -> 12 | OD56: jours | OE56: proies | OF56: =SUM(OF55) -> 252 | OG56: g | OH56: =SUM(OH55) -> 12 | OI56: % | OJ56: du poids | OL56: =(OL55) -> Jusqu'à | OM56: =SUM(OM55) -> 2200 | ON56: g | OO56: =SUM(OO55) -> 12 | OP56: jours | OQ56: proies | OR56: =SUM(OR55) -> 242 | OS56: g | OT56: =SUM(OT55) -> 12 | OU56: % | OV56: du poids | OX56: =(OX55) -> Jusqu'à | OY56: =SUM(OY55) -> 2300 | OZ56: g | PA56: =SUM(PA55) -> 12 | PB56: jours | PC56: proies | PD56: =SUM(PD55) -> 230 | PE56: g | PF56: =SUM(PF55) -> 10 | PG56: % | PH56: du poids | PJ56: =(PJ55) -> Jusqu'à | PK56: =SUM(PK55) -> 2400 | PL56: g | PM56: =SUM(PM55) -> 12 | PN56: jours | PO56: proies | PP56: =SUM(PP55) -> 240 | PQ56: g | PR56: =SUM(PR55) -> 10 | PS56: % | PT56: du poids | PV56: =(PV55) -> Jusqu'à | PW56: =SUM(PW55) -> 2500 | PX56: g | PY56: =SUM(PY55) -> 14 | PZ56: jours | QA56: proies | QB56: =SUM(QB55) -> 250 | QC56: g | QD56: =SUM(QD55) -> 10 | QE56: % | QF56: du poids | QH56: =(QH55) -> Jusqu'à | QI56: =SUM(QI55) -> 2600 | QJ56: g | QK56: =SUM(QK55) -> 14 | QL56: jours | QM56: proies | QN56: =SUM(QN55) -> 260 | QO56: g | QP56: 10 | QQ56: % | QR56: du poids | QT56: =(QT55) -> Jusqu'à | QU56: =SUM(QU55) -> 2700 | QV56: g | QW56: =SUM(QW55) -> 14 | QX56: jours | QY56: proies | QZ56: =SUM(QZ55) -> 270 | RA56: g | RB56: =SUM(RB55) -> 10 | RC56: % | RD56: du poids | RF56: =(RF55) -> Jusqu'à | RG56: =SUM(RG55) -> 2800 | RH56: g | RI56: =SUM(RI55) -> 14 | RJ56: jours | RK56: proies | RL56: =SUM(RL55) -> 280 | RM56: g | RN56: =SUM(RN55) -> 10 | RO56: % | RP56: du poids | RR56: =(RR55) -> Jusqu'à | RS56: =SUM(RS55) -> 2900 | RT56: g | RU56: =SUM(RU55) -> 14 | RV56: jours | RW56: proies | RX56: =SUM(RX55) -> 290 | RY56: g | RZ56: =SUM(RZ55) -> 10 | SA56: % | SB56: du poids | SD56: =(SD55) -> Jusqu'à | SE56: =SUM(SE55) -> 3000 | SF56: g | SG56: =SUM(SG55) -> 20 | SH56: jours | SI56: proies | SJ56: =SUM(SJ55) -> 300 | SK56: g | SL56: =SUM(SL55) -> 10 | SM56: % | SN56: du poids | SP56: =(SP55) -> Jusqu'à | SQ56: =SUM(SQ55) -> 3200 | SR56: g | SS56: =SUM(SS55) -> 20 | ST56: jours | SU56: proies | SV56: =SUM(SV55) -> 288 | SW56: g | SX56: =SUM(SX55) -> 9 | SY56: % | SZ56: du poids | TB56: =(TB55) -> Jusqu'à | TC56: =SUM(TC55) -> 3400 | TD56: g | TE56: =SUM(TE55) -> 20 | TF56: jours | TG56: proies | TH56: =SUM(TH55) -> 272 | TI56: g | TJ56: =SUM(TJ55) -> 8 | TK56: % | TL56: du poids | TN56: =(TN55) -> Jusqu'à | TO56: =SUM(TO55) -> 3600 | TP56: g | TQ56: =SUM(TQ55) -> 20 | TR56: jours | TS56: proies | TT56: =SUM(TT55) -> 304 | TU56: g | TV56: =SUM(TV55) -> 8 | TW56: % | TX56: du poids | TZ56: =(TZ55) -> Jusqu'à | UA56: =SUM(UA55) -> 3800 | UB56: g | UC56: =SUM(UC55) -> 22 | UD56: jours | UE56: proies | UF56: =SUM(UF55) -> 304 | UG56: g | UH56: =SUM(UH55) -> 8 | UI56: % | UJ56: du poids | UL56: =(UL55) -> Jusqu'à | UM56: =SUM(UM55) -> 4000 | UN56: g | UO56: =SUM(UO55) -> 24 | UP56: jours | UQ56: proies | UR56: =SUM(UR55) -> 320 | US56: g | UT56: =SUM(UT55) -> 8 | UU56: % | UV56: du poids
A57: 8 | B57: jours | C57: =SUM(C56+A57) -> 2016-04-11 | G57: g | I57: g | K57: g | O57: -42471 | P57: j | U57: g | V57: -750 | X57: g | AA57: cm | AB57: 0 | AD57: cm | BB57: Jusqu'à | BC57: 80 | BD57: g | BE57: 4 | BF57: jours | BG57: proies | BH57: 9.6 | BI57: g | BJ57: 12 | BK57: % | BL57: du poids | BN57: Jusqu'à | BO57: 100 | BP57: g | BQ57: 4 | BR57: jours | BS57: proies | BT57: 12 | BU57: g | BV57: 12 | BW57: % | BX57: du poids | BZ57: Jusqu'à | CA57: 150 | CB57: g | CC57: 4 | CD57: jours | CE57: proies | CF57: 18 | CG57: g | CH57: 12 | CI57: % | CJ57: du poids | CL57: Jusqu'à | CM57: 200 | CN57: g | CO57: 4 | CP57: jours | CQ57: proies | CR57: 24 | CS57: g | CT57: 12 | CU57: % | CV57: du poids | CX57: Jusqu'à | CY57: 250 | CZ57: 502 | DA57: 4 | DB57: jours | DC57: proies | DD57: 30 | DE57: g | DF57: 12 | DG57: % | DH57: du poids | DJ57: Jusqu'à | DK57: 300 | DL57: g | DM57: 5 | DN57: jours | DO57: proies | DP57: 36 | DQ57: g | DR57: 12 | DS57: % | DT57: du poids | DV57: Jusqu'à | DW57: 350 | DX57: g | DY57: 5 | DZ57: jours | EA57: proies | EB57: 42 | EC57: g | ED57: 12 | EE57: % | EF57: du poids | EH57: Jusqu'à | EI57: 400 | EJ57: g | EK57: 6 | EL57: jours | EM57: proies | EN57: 48 | EO57: g | EP57: 12 | EQ57: % | ER57: du poids | ET57: Jusqu'à | EU57: 450 | EV57: g | EW57: 6 | EX57: jours | EY57: proies | EZ57: 54 | FA57: g | FB57: 12 | FC57: % | FD57: du poids | FF57: Jusqu'à | FG57: 500 | FH57: g | FI57: 7 | FJ57: jours | FK57: proies | FL57: 60 | FM57: g | FN57: 12 | FO57: % | FP57: du poids | FR57: Jusqu'à | FS57: 550 | FT57: g | FU57: 7 | FV57: jours | FW57: proies | FX57: 66 | FY57: g | FZ57: 12 | GA57: % | GB57: du poids | GD57: Jusqu'à | GE57: 600 | GF57: g | GG57: 7 | GH57: jours | GI57: proies | GJ57: 72 | GK57: g | GL57: 12 | GM57: % | GN57: du poids | GP57: Jusqu'à | GQ57: 650 | GR57: g | GS57: 7 | GT57: jours | GU57: proies | GV57: 78 | GW57: g | GX57: 12 | GY57: % | GZ57: du poids | HB57: Jusqu'à | HC57: 700 | HD57: g | HE57: 8 | HF57: jours | HG57: proies | HH57: 84 | HI57: g | HJ57: 12 | HK57: % | HL57: du poids | HN57: Jusqu'à | HO57: 750 | HP57: g | HQ57: 8 | HR57: jours | HS57: proies | HT57: 90 | HU57: g | HV57: 12 | HW57: % | HX57: du poids | HZ57: Jusqu'à | IA57: 800 | IB57: g | IC57: 9 | ID57: jours | IE57: proies | IF57: 96 | IG57: g | IH57: 12 | II57: % | IJ57: du poids | IL57: Jusqu'à | IM57: 900 | IN57: g | IO57: 9 | IP57: jours | IQ57: proies | IR57: 108 | IS57: g | IT57: 12 | IU57: % | IV57: du poids | IX57: Jusqu'à | IY57: 1000 | IZ57: g | JA57: 9 | JB57: jours | JC57: proies | JD57: 120 | JE57: g | JF57: 12 | JG57: % | JH57: du poids | JJ57: Jusqu'à | JK57: 1100 | JL57: g | JM57: 9 | JN57: jours | JO57: proies | JP57: 132 | JQ57: g | JR57: 12 | JS57: % | JT57: du poids | JV57: Jusqu'à | JW57: 1200 | JX57: g | JY57: 10 | JZ57: jours | KA57: proies | KB57: 144 | KC57: g | KD57: 12 | KE57: % | KF57: du poids | KH57: Jusqu'à | KI57: 1300 | KJ57: g | KK57: 10 | KL57: jours | KM57: proies | KN57: 156 | KO57: g | KP57: 12 | KQ57: % | KR57: du poids | KT57: Jusqu'à | KU57: 1400 | KV57: g | KW57: 10 | KX57: jours | KY57: proies | KZ57: 168 | LA57: g | LB57: 12 | LC57: % | LD57: du poids | LF57: Jusqu'à | LG57: 1500 | LH57: g | LI57: 10 | LJ57: jours | LK57: proies | LL57: 180 | LM57: g | LN57: 12 | LO57: % | LP57: du poids | LR57: Jusqu'à | LS57: 1600 | LT57: g | LU57: 10 | LV57: jours | LW57: proies | LX57: 192 | LY57: g | LZ57: 12 | MA57: % | MB57: du poids | MD57: Jusqu'à | ME57: 1700 | MF57: g | MG57: 10 | MH57: jours | MI57: proies | MJ57: 204 | MK57: g | ML57: 12 | MM57: % | MN57: du poids | MP57: Jusqu'à | MQ57: 1800 | MR57: g | MS57: 10 | MT57: jours | MU57: proies | MV57: 216 | MW57: g | MX57: 12 | MY57: % | MZ57: du poids | NB57: Jusqu'à | NC57: 1900 | ND57: g | NE57: 10 | NF57: jours | NG57: proies | NH57: 228 | NI57: g | NJ57: 12 | NK57: % | NL57: du poids | NN57: Jusqu'à | NO57: 2000 | NP57: g | NQ57: 12 | NR57: jours | NS57: proies | NT57: 240 | NU57: g | NV57: 12 | NW57: % | NX57: du poids | NZ57: Jusqu'à | OA57: 2100 | OB57: g | OC57: 12 | OD57: jours | OE57: proies | OF57: 252 | OG57: g | OH57: 12 | OI57: % | OJ57: du poids | OL57: Jusqu'à | OM57: 2200 | ON57: g | OO57: 12 | OP57: jours | OQ57: proies | OR57: 242 | OS57: g | OT57: 12 | OU57: % | OV57: du poids | OX57: Jusqu'à | OY57: 2300 | OZ57: g | PA57: 12 | PB57: jours | PC57: proies | PD57: 230 | PE57: g | PF57: 10 | PG57: % | PH57: du poids | PJ57: Jusqu'à | PK57: 2400 | PL57: g | PM57: 12 | PN57: jours | PO57: proies | PP57: 240 | PQ57: g | PR57: 10 | PS57: % | PT57: du poids | PV57: Jusqu'à | PW57: 2500 | PX57: g | PY57: 14 | PZ57: jours | QA57: proies | QB57: 250 | QC57: g | QD57: 10 | QE57: % | QF57: du poids | QH57: Jusqu'à | QI57: 2600 | QJ57: g | QK57: 14 | QL57: jours | QM57: proies | QN57: 260 | QO57: g | QP57: 10 | QQ57: % | QR57: du poids | QT57: Jusqu'à | QU57: 2700 | QV57: g | QW57: 14 | QX57: jours | QY57: proies | QZ57: 270 | RA57: g | RB57: 10 | RC57: % | RD57: du poids | RF57: Jusqu'à | RG57: 2800 | RH57: g | RI57: 14 | RJ57: jours | RK57: proies | RL57: 280 | RM57: g | RN57: 10 | RO57: % | RP57: du poids | RR57: Jusqu'à | RS57: 2900 | RT57: g | RU57: 14 | RV57: jours | RW57: proies | RX57: 290 | RY57: g | RZ57: 10 | SA57: % | SB57: du poids | SD57: Jusqu'à | SE57: 3000 | SF57: g | SG57: 20 | SH57: jours | SI57: proies | SJ57: 300 | SK57: g | SL57: 10 | SM57: % | SN57: du poids | SP57: Jusqu'à | SQ57: 3200 | SR57: g | SS57: 20 | ST57: jours | SU57: proies | SV57: 288 | SW57: g | SX57: 9 | SY57: % | SZ57: du poids | TB57: Jusqu'à | TC57: 3400 | TD57: g | TE57: 20 | TF57: jours | TG57: proies | TH57: 272 | TI57: g | TJ57: 8 | TK57: % | TL57: du poids | TN57: Jusqu'à | TO57: 3600 | TP57: g | TQ57: 20 | TR57: jours | TS57: proies | TT57: 304 | TU57: g | TV57: 8 | TW57: % | TX57: du poids | TZ57: Jusqu'à | UA57: 3800 | UB57: g | UC57: 22 | UD57: jours | UE57: proies | UF57: 304 | UG57: g | UH57: 8 | UI57: % | UJ57: du poids | UL57: Jusqu'à | UM57: 4000 | UN57: g | UO57: 24 | UP57: jours | UQ57: proies | UR57: 320 | US57: g | UT57: 8 | UU57: % | UV57: du poids
B58: jours | C58: =SUM(C57+A58) ->  | G58: g | I58: g | J58: =SUM(H58-F58) ->  | K58: g | P58: j | U58: g | V58: 0 | X58: g | AA58: cm | AB58: 0 | AD58: cm | BB58: Jusqu'à | BC58: 80 | BD58: g | BE58: 4 | BF58: jours | BG58: proies | BH58: 9.6 | BI58: g | BJ58: 12 | BK58: % | BL58: du poids | BN58: Jusqu'à | BO58: 100 | BP58: g | BQ58: 4 | BR58: jours | BS58: proies | BT58: 12 | BU58: g | BV58: 12 | BW58: % | BX58: du poids | BZ58: Jusqu'à | CA58: 150 | CB58: g | CC58: 4 | CD58: jours | CE58: proies | CF58: 18 | CG58: g | CH58: 12 | CI58: % | CJ58: du poids | CL58: Jusqu'à | CM58: 200 | CN58: g | CO58: 4 | CP58: jours | CQ58: proies | CR58: 24 | CS58: g | CT58: 12 | CU58: % | CV58: du poids | CX58: Jusqu'à | CY58: 250 | CZ58: 503 | DA58: 4 | DB58: jours | DC58: proies | DD58: 30 | DE58: g | DF58: 12 | DG58: % | DH58: du poids | DJ58: Jusqu'à | DK58: 300 | DL58: g | DM58: 5 | DN58: jours | DO58: proies | DP58: 36 | DQ58: g | DR58: 12 | DS58: % | DT58: du poids | DV58: Jusqu'à | DW58: 350 | DX58: g | DY58: 5 | DZ58: jours | EA58: proies | EB58: 42 | EC58: g | ED58: 12 | EE58: % | EF58: du poids | EH58: Jusqu'à | EI58: 400 | EJ58: g | EK58: 6 | EL58: jours | EM58: proies | EN58: 48 | EO58: g | EP58: 12 | EQ58: % | ER58: du poids | ET58: Jusqu'à | EU58: 450 | EV58: g | EW58: 6 | EX58: jours | EY58: proies | EZ58: 54 | FA58: g | FB58: 12 | FC58: % | FD58: du poids | FF58: Jusqu'à | FG58: 500 | FH58: g | FI58: 7 | FJ58: jours | FK58: proies | FL58: 60 | FM58: g | FN58: 12 | FO58: % | FP58: du poids | FR58: Jusqu'à | FS58: 550 | FT58: g | FU58: 7 | FV58: jours | FW58: proies | FX58: 66 | FY58: g | FZ58: 12 | GA58: % | GB58: du poids | GD58: Jusqu'à | GE58: 600 | GF58: g | GG58: 7 | GH58: jours | GI58: proies | GJ58: 72 | GK58: g | GL58: 12 | GM58: % | GN58: du poids | GP58: Jusqu'à | GQ58: 650 | GR58: g | GS58: 7 | GT58: jours | GU58: proies | GV58: 78 | GW58: g | GX58: 12 | GY58: % | GZ58: du poids | HB58: Jusqu'à | HC58: 700 | HD58: g | HE58: 8 | HF58: jours | HG58: proies | HH58: 84 | HI58: g | HJ58: 12 | HK58: % | HL58: du poids | HN58: Jusqu'à | HO58: 750 | HP58: g | HQ58: 8 | HR58: jours | HS58: proies | HT58: 90 | HU58: g | HV58: 12 | HW58: % | HX58: du poids | HZ58: Jusqu'à | IA58: 800 | IB58: g | IC58: 9 | ID58: jours | IE58: proies | IF58: 96 | IG58: g | IH58: 12 | II58: % | IJ58: du poids | IL58: Jusqu'à | IM58: 900 | IN58: g | IO58: 9 | IP58: jours | IQ58: proies | IR58: 108 | IS58: g | IT58: 12 | IU58: % | IV58: du poids | IX58: Jusqu'à | IY58: 1000 | IZ58: g | JA58: 9 | JB58: jours | JC58: proies | JD58: 120 | JE58: g | JF58: 12 | JG58: % | JH58: du poids | JJ58: Jusqu'à | JK58: 1100 | JL58: g | JM58: 9 | JN58: jours | JO58: proies | JP58: 132 | JQ58: g | JR58: 12 | JS58: % | JT58: du poids | JV58: Jusqu'à | JW58: 1200 | JX58: g | JY58: 10 | JZ58: jours | KA58: proies | KB58: 144 | KC58: g | KD58: 12 | KE58: % | KF58: du poids | KH58: Jusqu'à | KI58: 1300 | KJ58: g | KK58: 10 | KL58: jours | KM58: proies | KN58: 156 | KO58: g | KP58: 12 | KQ58: % | KR58: du poids | KT58: Jusqu'à | KU58: 1400 | KV58: g | KW58: 10 | KX58: jours | KY58: proies | KZ58: 168 | LA58: g | LB58: 12 | LC58: % | LD58: du poids | LF58: Jusqu'à | LG58: 1500 | LH58: g | LI58: 10 | LJ58: jours | LK58: proies | LL58: 180 | LM58: g | LN58: 12 | LO58: % | LP58: du poids | LR58: Jusqu'à | LS58: 1600 | LT58: g | LU58: 10 | LV58: jours | LW58: proies | LX58: 192 | LY58: g | LZ58: 12 | MA58: % | MB58: du poids | MD58: Jusqu'à | ME58: 1700 | MF58: g | MG58: 10 | MH58: jours | MI58: proies | MJ58: 204 | MK58: g | ML58: 12 | MM58: % | MN58: du poids | MP58: Jusqu'à | MQ58: 1800 | MR58: g | MS58: 10 | MT58: jours | MU58: proies | MV58: 216 | MW58: g | MX58: 12 | MY58: % | MZ58: du poids | NB58: Jusqu'à | NC58: 1900 | ND58: g | NE58: 10 | NF58: jours | NG58: proies | NH58: 228 | NI58: g | NJ58: 12 | NK58: % | NL58: du poids | NN58: Jusqu'à | NO58: 2000 | NP58: g | NQ58: 12 | NR58: jours | NS58: proies | NT58: 240 | NU58: g | NV58: 12 | NW58: % | NX58: du poids | NZ58: Jusqu'à | OA58: 2100 | OB58: g | OC58: 12 | OD58: jours | OE58: proies | OF58: 252 | OG58: g | OH58: 12 | OI58: % | OJ58: du poids | OL58: Jusqu'à | OM58: 2200 | ON58: g | OO58: 12 | OP58: jours | OQ58: proies | OR58: 242 | OS58: g | OT58: 12 | OU58: % | OV58: du poids | OX58: Jusqu'à | OY58: 2300 | OZ58: g | PA58: 12 | PB58: jours | PC58: proies | PD58: 230 | PE58: g | PF58: 10 | PG58: % | PH58: du poids | PJ58: Jusqu'à | PK58: 2400 | PL58: g | PM58: 12 | PN58: jours | PO58: proies | PP58: 240 | PQ58: g | PR58: 10 | PS58: % | PT58: du poids | PV58: Jusqu'à | PW58: 2500 | PX58: g | PY58: 14 | PZ58: jours | QA58: proies | QB58: 250 | QC58: g | QD58: 10 | QE58: % | QF58: du poids | QH58: Jusqu'à | QI58: 2600 | QJ58: g | QK58: 14 | QL58: jours | QM58: proies | QN58: 260 | QO58: g | QP58: 10 | QQ58: % | QR58: du poids | QT58: Jusqu'à | QU58: 2700 | QV58: g | QW58: 14 | QX58: jours | QY58: proies | QZ58: 270 | RA58: g | RB58: 10 | RC58: % | RD58: du poids | RF58: Jusqu'à | RG58: 2800 | RH58: g | RI58: 14 | RJ58: jours | RK58: proies | RL58: 280 | RM58: g | RN58: 10 | RO58: % | RP58: du poids | RR58: Jusqu'à | RS58: 2900 | RT58: g | RU58: 14 | RV58: jours | RW58: proies | RX58: 290 | RY58: g | RZ58: 10 | SA58: % | SB58: du poids | SD58: Jusqu'à | SE58: 3000 | SF58: g | SG58: 20 | SH58: jours | SI58: proies | SJ58: 300 | SK58: g | SL58: 10 | SM58: % | SN58: du poids | SP58: Jusqu'à | SQ58: 3200 | SR58: g | SS58: 20 | ST58: jours | SU58: proies | SV58: 288 | SW58: g | SX58: 9 | SY58: % | SZ58: du poids | TB58: Jusqu'à | TC58: 3400 | TD58: g | TE58: 20 | TF58: jours | TG58: proies | TH58: 272 | TI58: g | TJ58: 8 | TK58: % | TL58: du poids | TN58: Jusqu'à | TO58: 3600 | TP58: g | TQ58: 20 | TR58: jours | TS58: proies | TT58: 304 | TU58: g | TV58: 8 | TW58: % | TX58: du poids | TZ58: Jusqu'à | UA58: 3800 | UB58: g | UC58: 22 | UD58: jours | UE58: proies | UF58: 304 | UG58: g | UH58: 8 | UI58: % | UJ58: du poids | UL58: Jusqu'à | UM58: 4000 | UN58: g | UO58: 24 | UP58: jours | UQ58: proies | UR58: 320 | US58: g | UT58: 8 | UU58: % | UV58: du poids
B59: jours | C59: =SUM(C58+A59) ->  | G59: g | I59: g | K59: g | P59: j | U59: g | V59: 0 | X59: g | AA59: cm | AB59: 0 | AD59: cm | BB59: Jusqu'à | BC59: 80 | BD59: g | BE59: 4 | BF59: jours | BG59: proies | BH59: 9.6 | BI59: g | BJ59: 12 | BK59: % | BL59: du poids | BN59: Jusqu'à | BO59: 100 | BP59: g | BQ59: 4 | BR59: jours | BS59: proies | BT59: 12 | BU59: g | BV59: 12 | BW59: % | BX59: du poids | BZ59: Jusqu'à | CA59: 150 | CB59: g | CC59: 4 | CD59: jours | CE59: proies | CF59: 18 | CG59: g | CH59: 12 | CI59: % | CJ59: du poids | CL59: Jusqu'à | CM59: 200 | CN59: g | CO59: 4 | CP59: jours | CQ59: proies | CR59: 24 | CS59: g | CT59: 12 | CU59: % | CV59: du poids | CX59: Jusqu'à | CY59: 250 | CZ59: 504 | DA59: 4 | DB59: jours | DC59: proies | DD59: 30 | DE59: g | DF59: 12 | DG59: % | DH59: du poids | DJ59: Jusqu'à | DK59: 300 | DL59: g | DM59: 5 | DN59: jours | DO59: proies | DP59: 36 | DQ59: g | DR59: 12 | DS59: % | DT59: du poids | DV59: Jusqu'à | DW59: 350 | DX59: g | DY59: 5 | DZ59: jours | EA59: proies | EB59: 42 | EC59: g | ED59: 12 | EE59: % | EF59: du poids | EH59: Jusqu'à | EI59: 400 | EJ59: g | EK59: 6 | EL59: jours | EM59: proies | EN59: 48 | EO59: g | EP59: 12 | EQ59: % | ER59: du poids | ET59: Jusqu'à | EU59: 450 | EV59: g | EW59: 6 | EX59: jours | EY59: proies | EZ59: 54 | FA59: g | FB59: 12 | FC59: % | FD59: du poids | FF59: Jusqu'à | FG59: 500 | FH59: g | FI59: 7 | FJ59: jours | FK59: proies | FL59: 60 | FM59: g | FN59: 12 | FO59: % | FP59: du poids | FR59: Jusqu'à | FS59: 550 | FT59: g | FU59: 7 | FV59: jours | FW59: proies | FX59: 66 | FY59: g | FZ59: 12 | GA59: % | GB59: du poids | GD59: Jusqu'à | GE59: 600 | GF59: g | GG59: 7 | GH59: jours | GI59: proies | GJ59: 72 | GK59: g | GL59: 12 | GM59: % | GN59: du poids | GP59: Jusqu'à | GQ59: 650 | GR59: g | GS59: 7 | GT59: jours | GU59: proies | GV59: 78 | GW59: g | GX59: 12 | GY59: % | GZ59: du poids | HB59: Jusqu'à | HC59: 700 | HD59: g | HE59: 8 | HF59: jours | HG59: proies | HH59: 84 | HI59: g | HJ59: 12 | HK59: % | HL59: du poids | HN59: Jusqu'à | HO59: 750 | HP59: g | HQ59: 8 | HR59: jours | HS59: proies | HT59: 90 | HU59: g | HV59: 12 | HW59: % | HX59: du poids | HZ59: Jusqu'à | IA59: 800 | IB59: g | IC59: 9 | ID59: jours | IE59: proies | IF59: 96 | IG59: g | IH59: 12 | II59: % | IJ59: du poids | IL59: Jusqu'à | IM59: 900 | IN59: g | IO59: 9 | IP59: jours | IQ59: proies | IR59: 108 | IS59: g | IT59: 12 | IU59: % | IV59: du poids | IX59: Jusqu'à | IY59: 1000 | IZ59: g | JA59: 9 | JB59: jours | JC59: proies | JD59: 120 | JE59: g | JF59: 12 | JG59: % | JH59: du poids | JJ59: Jusqu'à | JK59: 1100 | JL59: g | JM59: 9 | JN59: jours | JO59: proies | JP59: 132 | JQ59: g | JR59: 12 | JS59: % | JT59: du poids | JV59: Jusqu'à | JW59: 1200 | JX59: g | JY59: 10 | JZ59: jours | KA59: proies | KB59: 144 | KC59: g | KD59: 12 | KE59: % | KF59: du poids | KH59: Jusqu'à | KI59: 1300 | KJ59: g | KK59: 10 | KL59: jours | KM59: proies | KN59: 156 | KO59: g | KP59: 12 | KQ59: % | KR59: du poids | KT59: Jusqu'à | KU59: 1400 | KV59: g | KW59: 10 | KX59: jours | KY59: proies | KZ59: 168 | LA59: g | LB59: 12 | LC59: % | LD59: du poids | LF59: Jusqu'à | LG59: 1500 | LH59: g | LI59: 10 | LJ59: jours | LK59: proies | LL59: 180 | LM59: g | LN59: 12 | LO59: % | LP59: du poids | LR59: Jusqu'à | LS59: 1600 | LT59: g | LU59: 10 | LV59: jours | LW59: proies | LX59: 192 | LY59: g | LZ59: 12 | MA59: % | MB59: du poids | MD59: Jusqu'à | ME59: 1700 | MF59: g | MG59: 10 | MH59: jours | MI59: proies | MJ59: 204 | MK59: g | ML59: 12 | MM59: % | MN59: du poids | MP59: Jusqu'à | MQ59: 1800 | MR59: g | MS59: 10 | MT59: jours | MU59: proies | MV59: 216 | MW59: g | MX59: 12 | MY59: % | MZ59: du poids | NB59: Jusqu'à | NC59: 1900 | ND59: g | NE59: 10 | NF59: jours | NG59: proies | NH59: 228 | NI59: g | NJ59: 12 | NK59: % | NL59: du poids | NN59: Jusqu'à | NO59: 2000 | NP59: g | NQ59: 12 | NR59: jours | NS59: proies | NT59: 240 | NU59: g | NV59: 12 | NW59: % | NX59: du poids | NZ59: Jusqu'à | OA59: 2100 | OB59: g | OC59: 12 | OD59: jours | OE59: proies | OF59: 252 | OG59: g | OH59: 12 | OI59: % | OJ59: du poids | OL59: Jusqu'à | OM59: 2200 | ON59: g | OO59: 12 | OP59: jours | OQ59: proies | OR59: 242 | OS59: g | OT59: 12 | OU59: % | OV59: du poids | OX59: Jusqu'à | OY59: 2300 | OZ59: g | PA59: 12 | PB59: jours | PC59: proies | PD59: 230 | PE59: g | PF59: 10 | PG59: % | PH59: du poids | PJ59: Jusqu'à | PK59: 2400 | PL59: g | PM59: 12 | PN59: jours | PO59: proies | PP59: 240 | PQ59: g | PR59: 10 | PS59: % | PT59: du poids | PV59: Jusqu'à | PW59: 2500 | PX59: g | PY59: 14 | PZ59: jours | QA59: proies | QB59: 250 | QC59: g | QD59: 10 | QE59: % | QF59: du poids | QH59: Jusqu'à | QI59: 2600 | QJ59: g | QK59: 14 | QL59: jours | QM59: proies | QN59: 260 | QO59: g | QP59: 10 | QQ59: % | QR59: du poids | QT59: Jusqu'à | QU59: 2700 | QV59: g | QW59: 14 | QX59: jours | QY59: proies | QZ59: 270 | RA59: g | RB59: 10 | RC59: % | RD59: du poids | RF59: Jusqu'à | RG59: 2800 | RH59: g | RI59: 14 | RJ59: jours | RK59: proies | RL59: 280 | RM59: g | RN59: 10 | RO59: % | RP59: du poids | RR59: Jusqu'à | RS59: 2900 | RT59: g | RU59: 14 | RV59: jours | RW59: proies | RX59: 290 | RY59: g | RZ59: 10 | SA59: % | SB59: du poids | SD59: Jusqu'à | SE59: 3000 | SF59: g | SG59: 20 | SH59: jours | SI59: proies | SJ59: 300 | SK59: g | SL59: 10 | SM59: % | SN59: du poids | SP59: Jusqu'à | SQ59: 3200 | SR59: g | SS59: 20 | ST59: jours | SU59: proies | SV59: 288 | SW59: g | SX59: 9 | SY59: % | SZ59: du poids | TB59: Jusqu'à | TC59: 3400 | TD59: g | TE59: 20 | TF59: jours | TG59: proies | TH59: 272 | TI59: g | TJ59: 8 | TK59: % | TL59: du poids | TN59: Jusqu'à | TO59: 3600 | TP59: g | TQ59: 20 | TR59: jours | TS59: proies | TT59: 304 | TU59: g | TV59: 8 | TW59: % | TX59: du poids | TZ59: Jusqu'à | UA59: 3800 | UB59: g | UC59: 22 | UD59: jours | UE59: proies | UF59: 304 | UG59: g | UH59: 8 | UI59: % | UJ59: du poids | UL59: Jusqu'à | UM59: 4000 | UN59: g | UO59: 24 | UP59: jours | UQ59: proies | UR59: 320 | US59: g | UT59: 8 | UU59: % | UV59: du poids
B60: jours | C60: =SUM(C59+A60) ->  | G60: g | I60: g | K60: g | P60: j | U60: g | V60: 0 | X60: g | AA60: cm | AB60: 0 | AD60: cm | BB60: Jusqu'à | BC60: 80 | BD60: g | BE60: 4 | BF60: jours | BG60: proies | BH60: 9.6 | BI60: g | BJ60: 12 | BK60: % | BL60: du poids | BN60: Jusqu'à | BO60: 100 | BP60: g | BQ60: 4 | BR60: jours | BS60: proies | BT60: 12 | BU60: g | BV60: 12 | BW60: % | BX60: du poids | BZ60: Jusqu'à | CA60: 150 | CB60: g | CC60: 4 | CD60: jours | CE60: proies | CF60: 18 | CG60: g | CH60: 12 | CI60: % | CJ60: du poids | CL60: Jusqu'à | CM60: 200 | CN60: g | CO60: 4 | CP60: jours | CQ60: proies | CR60: 24 | CS60: g | CT60: 12 | CU60: % | CV60: du poids | CX60: Jusqu'à | CY60: 250 | CZ60: 505 | DA60: 4 | DB60: jours | DC60: proies | DD60: 30 | DE60: g | DF60: 12 | DG60: % | DH60: du poids | DJ60: Jusqu'à | DK60: 300 | DL60: g | DM60: 5 | DN60: jours | DO60: proies | DP60: 36 | DQ60: g | DR60: 12 | DS60: % | DT60: du poids | DV60: Jusqu'à | DW60: 350 | DX60: g | DY60: 5 | DZ60: jours | EA60: proies | EB60: 42 | EC60: g | ED60: 12 | EE60: % | EF60: du poids | EH60: Jusqu'à | EI60: 400 | EJ60: g | EK60: 6 | EL60: jours | EM60: proies | EN60: 48 | EO60: g | EP60: 12 | EQ60: % | ER60: du poids | ET60: Jusqu'à | EU60: 450 | EV60: g | EW60: 6 | EX60: jours | EY60: proies | EZ60: 54 | FA60: g | FB60: 12 | FC60: % | FD60: du poids | FF60: Jusqu'à | FG60: 500 | FH60: g | FI60: 7 | FJ60: jours | FK60: proies | FL60: 60 | FM60: g | FN60: 12 | FO60: % | FP60: du poids | FR60: Jusqu'à | FS60: 550 | FT60: g | FU60: 7 | FV60: jours | FW60: proies | FX60: 66 | FY60: g | FZ60: 12 | GA60: % | GB60: du poids | GD60: Jusqu'à | GE60: 600 | GF60: g | GG60: 7 | GH60: jours | GI60: proies | GJ60: 72 | GK60: g | GL60: 12 | GM60: % | GN60: du poids | GP60: Jusqu'à | GQ60: 650 | GR60: g | GS60: 7 | GT60: jours | GU60: proies | GV60: 78 | GW60: g | GX60: 12 | GY60: % | GZ60: du poids | HB60: Jusqu'à | HC60: 700 | HD60: g | HE60: 8 | HF60: jours | HG60: proies | HH60: 84 | HI60: g | HJ60: 12 | HK60: % | HL60: du poids | HN60: Jusqu'à | HO60: 750 | HP60: g | HQ60: 8 | HR60: jours | HS60: proies | HT60: 90 | HU60: g | HV60: 12 | HW60: % | HX60: du poids | HZ60: Jusqu'à | IA60: 800 | IB60: g | IC60: 9 | ID60: jours | IE60: proies | IF60: 96 | IG60: g | IH60: 12 | II60: % | IJ60: du poids | IL60: Jusqu'à | IM60: 900 | IN60: g | IO60: 9 | IP60: jours | IQ60: proies | IR60: 108 | IS60: g | IT60: 12 | IU60: % | IV60: du poids | IX60: Jusqu'à | IY60: 1000 | IZ60: g | JA60: 9 | JB60: jours | JC60: proies | JD60: 120 | JE60: g | JF60: 12 | JG60: % | JH60: du poids | JJ60: Jusqu'à | JK60: 1100 | JL60: g | JM60: 9 | JN60: jours | JO60: proies | JP60: 132 | JQ60: g | JR60: 12 | JS60: % | JT60: du poids | JV60: Jusqu'à | JW60: 1200 | JX60: g | JY60: 10 | JZ60: jours | KA60: proies | KB60: 144 | KC60: g | KD60: 12 | KE60: % | KF60: du poids | KH60: Jusqu'à | KI60: 1300 | KJ60: g | KK60: 10 | KL60: jours | KM60: proies | KN60: 156 | KO60: g | KP60: 12 | KQ60: % | KR60: du poids | KT60: Jusqu'à | KU60: 1400 | KV60: g | KW60: 10 | KX60: jours | KY60: proies | KZ60: 168 | LA60: g | LB60: 12 | LC60: % | LD60: du poids | LF60: Jusqu'à | LG60: 1500 | LH60: g | LI60: 10 | LJ60: jours | LK60: proies | LL60: 180 | LM60: g | LN60: 12 | LO60: % | LP60: du poids | LR60: Jusqu'à | LS60: 1600 | LT60: g | LU60: 10 | LV60: jours | LW60: proies | LX60: 192 | LY60: g | LZ60: 12 | MA60: % | MB60: du poids | MD60: Jusqu'à | ME60: 1700 | MF60: g | MG60: 10 | MH60: jours | MI60: proies | MJ60: 204 | MK60: g | ML60: 12 | MM60: % | MN60: du poids | MP60: Jusqu'à | MQ60: 1800 | MR60: g | MS60: 10 | MT60: jours | MU60: proies | MV60: 216 | MW60: g | MX60: 12 | MY60: % | MZ60: du poids | NB60: Jusqu'à | NC60: 1900 | ND60: g | NE60: 10 | NF60: jours | NG60: proies | NH60: 228 | NI60: g | NJ60: 12 | NK60: % | NL60: du poids | NN60: Jusqu'à | NO60: 2000 | NP60: g | NQ60: 12 | NR60: jours | NS60: proies | NT60: 240 | NU60: g | NV60: 12 | NW60: % | NX60: du poids | NZ60: Jusqu'à | OA60: 2100 | OB60: g | OC60: 12 | OD60: jours | OE60: proies | OF60: 252 | OG60: g | OH60: 12 | OI60: % | OJ60: du poids | OL60: Jusqu'à | OM60: 2200 | ON60: g | OO60: 12 | OP60: jours | OQ60: proies | OR60: 242 | OS60: g | OT60: 12 | OU60: % | OV60: du poids | OX60: Jusqu'à | OY60: 2300 | OZ60: g | PA60: 12 | PB60: jours | PC60: proies | PD60: 230 | PE60: g | PF60: 10 | PG60: % | PH60: du poids | PJ60: Jusqu'à | PK60: 2400 | PL60: g | PM60: 12 | PN60: jours | PO60: proies | PP60: 240 | PQ60: g | PR60: 10 | PS60: % | PT60: du poids | PV60: Jusqu'à | PW60: 2500 | PX60: g | PY60: 14 | PZ60: jours | QA60: proies | QB60: 250 | QC60: g | QD60: 10 | QE60: % | QF60: du poids | QH60: Jusqu'à | QI60: 2600 | QJ60: g | QK60: 14 | QL60: jours | QM60: proies | QN60: 260 | QO60: g | QP60: 10 | QQ60: % | QR60: du poids | QT60: Jusqu'à | QU60: 2700 | QV60: g | QW60: 14 | QX60: jours | QY60: proies | QZ60: 270 | RA60: g | RB60: 10 | RC60: % | RD60: du poids | RF60: Jusqu'à | RG60: 2800 | RH60: g | RI60: 14 | RJ60: jours | RK60: proies | RL60: 280 | RM60: g | RN60: 10 | RO60: % | RP60: du poids | RR60: Jusqu'à | RS60: 2900 | RT60: g | RU60: 14 | RV60: jours | RW60: proies | RX60: 290 | RY60: g | RZ60: 10 | SA60: % | SB60: du poids | SD60: Jusqu'à | SE60: 3000 | SF60: g | SG60: 20 | SH60: jours | SI60: proies | SJ60: 300 | SK60: g | SL60: 10 | SM60: % | SN60: du poids | SP60: Jusqu'à | SQ60: 3200 | SR60: g | SS60: 20 | ST60: jours | SU60: proies | SV60: 288 | SW60: g | SX60: 9 | SY60: % | SZ60: du poids | TB60: Jusqu'à | TC60: 3400 | TD60: g | TE60: 20 | TF60: jours | TG60: proies | TH60: 272 | TI60: g | TJ60: 8 | TK60: % | TL60: du poids | TN60: Jusqu'à | TO60: 3600 | TP60: g | TQ60: 20 | TR60: jours | TS60: proies | TT60: 304 | TU60: g | TV60: 8 | TW60: % | TX60: du poids | TZ60: Jusqu'à | UA60: 3800 | UB60: g | UC60: 22 | UD60: jours | UE60: proies | UF60: 304 | UG60: g | UH60: 8 | UI60: % | UJ60: du poids | UL60: Jusqu'à | UM60: 4000 | UN60: g | UO60: 24 | UP60: jours | UQ60: proies | UR60: 320 | US60: g | UT60: 8 | UU60: % | UV60: du poids
B61: jours | G61: g | I61: g | K61: g | P61: j | U61: g | V61: 0 | X61: g | AA61: cm | AB61: 0 | AD61: cm | BB61: Jusqu'à | BC61: 80 | BD61: g | BE61: 4 | BF61: jours | BG61: proies | BH61: 9.6 | BI61: g | BJ61: 12 | BK61: % | BL61: du poids | BN61: Jusqu'à | BO61: 100 | BP61: g | BQ61: 4 | BR61: jours | BS61: proies | BT61: 12 | BU61: g | BV61: 12 | BW61: % | BX61: du poids | BZ61: Jusqu'à | CA61: 150 | CB61: g | CC61: 4 | CD61: jours | CE61: proies | CF61: 18 | CG61: g | CH61: 12 | CI61: % | CJ61: du poids | CL61: Jusqu'à | CM61: 200 | CN61: g | CO61: 4 | CP61: jours | CQ61: proies | CR61: 24 | CS61: g | CT61: 12 | CU61: % | CV61: du poids | CX61: Jusqu'à | CY61: 250 | CZ61: 506 | DA61: 4 | DB61: jours | DC61: proies | DD61: 30 | DE61: g | DF61: 12 | DG61: % | DH61: du poids | DJ61: Jusqu'à | DK61: 300 | DL61: g | DM61: 5 | DN61: jours | DO61: proies | DP61: 36 | DQ61: g | DR61: 12 | DS61: % | DT61: du poids | DV61: Jusqu'à | DW61: 350 | DX61: g | DY61: 5 | DZ61: jours | EA61: proies | EB61: 42 | EC61: g | ED61: 12 | EE61: % | EF61: du poids | EH61: Jusqu'à | EI61: 400 | EJ61: g | EK61: 6 | EL61: jours | EM61: proies | EN61: 48 | EO61: g | EP61: 12 | EQ61: % | ER61: du poids | ET61: Jusqu'à | EU61: 450 | EV61: g | EW61: 6 | EX61: jours | EY61: proies | EZ61: 54 | FA61: g | FB61: 12 | FC61: % | FD61: du poids | FF61: Jusqu'à | FG61: 500 | FH61: g | FI61: 7 | FJ61: jours | FK61: proies | FL61: 60 | FM61: g | FN61: 12 | FO61: % | FP61: du poids | FR61: Jusqu'à | FS61: 550 | FT61: g | FU61: 7 | FV61: jours | FW61: proies | FX61: 66 | FY61: g | FZ61: 12 | GA61: % | GB61: du poids | GD61: Jusqu'à | GE61: 600 | GF61: g | GG61: 7 | GH61: jours | GI61: proies | GJ61: 72 | GK61: g | GL61: 12 | GM61: % | GN61: du poids | GP61: Jusqu'à | GQ61: 650 | GR61: g | GS61: 7 | GT61: jours | GU61: proies | GV61: 78 | GW61: g | GX61: 12 | GY61: % | GZ61: du poids | HB61: Jusqu'à | HC61: 700 | HD61: g | HE61: 8 | HF61: jours | HG61: proies | HH61: 84 | HI61: g | HJ61: 12 | HK61: % | HL61: du poids | HN61: Jusqu'à | HO61: 750 | HP61: g | HQ61: 8 | HR61: jours | HS61: proies | HT61: 90 | HU61: g | HV61: 12 | HW61: % | HX61: du poids | HZ61: Jusqu'à | IA61: 800 | IB61: g | IC61: 9 | ID61: jours | IE61: proies | IF61: 96 | IG61: g | IH61: 12 | II61: % | IJ61: du poids | IL61: Jusqu'à | IM61: 900 | IN61: g | IO61: 9 | IP61: jours | IQ61: proies | IR61: 108 | IS61: g | IT61: 12 | IU61: % | IV61: du poids | IX61: Jusqu'à | IY61: 1000 | IZ61: g | JA61: 9 | JB61: jours | JC61: proies | JD61: 120 | JE61: g | JF61: 12 | JG61: % | JH61: du poids | JJ61: Jusqu'à | JK61: 1100 | JL61: g | JM61: 9 | JN61: jours | JO61: proies | JP61: 132 | JQ61: g | JR61: 12 | JS61: % | JT61: du poids | JV61: Jusqu'à | JW61: 1200 | JX61: g | JY61: 10 | JZ61: jours | KA61: proies | KB61: 144 | KC61: g | KD61: 12 | KE61: % | KF61: du poids | KH61: Jusqu'à | KI61: 1300 | KJ61: g | KK61: 10 | KL61: jours | KM61: proies | KN61: 156 | KO61: g | KP61: 12 | KQ61: % | KR61: du poids | KT61: Jusqu'à | KU61: 1400 | KV61: g | KW61: 10 | KX61: jours | KY61: proies | KZ61: 168 | LA61: g | LB61: 12 | LC61: % | LD61: du poids | LF61: Jusqu'à | LG61: 1500 | LH61: g | LI61: 10 | LJ61: jours | LK61: proies | LL61: 180 | LM61: g | LN61: 12 | LO61: % | LP61: du poids | LR61: Jusqu'à | LS61: 1600 | LT61: g | LU61: 10 | LV61: jours | LW61: proies | LX61: 192 | LY61: g | LZ61: 12 | MA61: % | MB61: du poids | MD61: Jusqu'à | ME61: 1700 | MF61: g | MG61: 10 | MH61: jours | MI61: proies | MJ61: 204 | MK61: g | ML61: 12 | MM61: % | MN61: du poids | MP61: Jusqu'à | MQ61: 1800 | MR61: g | MS61: 10 | MT61: jours | MU61: proies | MV61: 216 | MW61: g | MX61: 12 | MY61: % | MZ61: du poids | NB61: Jusqu'à | NC61: 1900 | ND61: g | NE61: 10 | NF61: jours | NG61: proies | NH61: 228 | NI61: g | NJ61: 12 | NK61: % | NL61: du poids | NN61: Jusqu'à | NO61: 2000 | NP61: g | NQ61: 12 | NR61: jours | NS61: proies | NT61: 240 | NU61: g | NV61: 12 | NW61: % | NX61: du poids | NZ61: Jusqu'à | OA61: 2100 | OB61: g | OC61: 12 | OD61: jours | OE61: proies | OF61: 252 | OG61: g | OH61: 12 | OI61: % | OJ61: du poids | OL61: Jusqu'à | OM61: 2200 | ON61: g | OO61: 12 | OP61: jours | OQ61: proies | OR61: 242 | OS61: g | OT61: 12 | OU61: % | OV61: du poids | OX61: Jusqu'à | OY61: 2300 | OZ61: g | PA61: 12 | PB61: jours | PC61: proies | PD61: 230 | PE61: g | PF61: 10 | PG61: % | PH61: du poids | PJ61: Jusqu'à | PK61: 2400 | PL61: g | PM61: 12 | PN61: jours | PO61: proies | PP61: 240 | PQ61: g | PR61: 10 | PS61: % | PT61: du poids | PV61: Jusqu'à | PW61: 2500 | PX61: g | PY61: 14 | PZ61: jours | QA61: proies | QB61: 250 | QC61: g | QD61: 10 | QE61: % | QF61: du poids | QH61: Jusqu'à | QI61: 2600 | QJ61: g | QK61: 14 | QL61: jours | QM61: proies | QN61: 260 | QO61: g | QP61: 10 | QQ61: % | QR61: du poids | QT61: Jusqu'à | QU61: 2700 | QV61: g | QW61: 14 | QX61: jours | QY61: proies | QZ61: 270 | RA61: g | RB61: 10 | RC61: % | RD61: du poids | RF61: Jusqu'à | RG61: 2800 | RH61: g | RI61: 14 | RJ61: jours | RK61: proies | RL61: 280 | RM61: g | RN61: 10 | RO61: % | RP61: du poids | RR61: Jusqu'à | RS61: 2900 | RT61: g | RU61: 14 | RV61: jours | RW61: proies | RX61: 290 | RY61: g | RZ61: 10 | SA61: % | SB61: du poids | SD61: Jusqu'à | SE61: 3000 | SF61: g | SG61: 20 | SH61: jours | SI61: proies | SJ61: 300 | SK61: g | SL61: 10 | SM61: % | SN61: du poids | SP61: Jusqu'à | SQ61: 3200 | SR61: g | SS61: 20 | ST61: jours | SU61: proies | SV61: 288 | SW61: g | SX61: 9 | SY61: % | SZ61: du poids | TB61: Jusqu'à | TC61: 3400 | TD61: g | TE61: 20 | TF61: jours | TG61: proies | TH61: 272 | TI61: g | TJ61: 8 | TK61: % | TL61: du poids | TN61: Jusqu'à | TO61: 3600 | TP61: g | TQ61: 20 | TR61: jours | TS61: proies | TT61: 304 | TU61: g | TV61: 8 | TW61: % | TX61: du poids | TZ61: Jusqu'à | UA61: 3800 | UB61: g | UC61: 22 | UD61: jours | UE61: proies | UF61: 304 | UG61: g | UH61: 8 | UI61: % | UJ61: du poids | UL61: Jusqu'à | UM61: 4000 | UN61: g | UO61: 24 | UP61: jours | UQ61: proies | UR61: 320 | US61: g | UT61: 8 | UU61: % | UV61: du poids
B62: jours | G62: g | I62: g | K62: g | P62: j | U62: g | V62: 0 | X62: g | AA62: cm | AB62: 0 | AD62: cm | BB62: Jusqu'à | BC62: 80 | BD62: g | BE62: 4 | BF62: jours | BG62: proies | BH62: 9.6 | BI62: g | BJ62: 12 | BK62: % | BL62: du poids | BN62: Jusqu'à | BO62: 100 | BP62: g | BQ62: 4 | BR62: jours | BS62: proies | BT62: 12 | BU62: g | BV62: 12 | BW62: % | BX62: du poids | BZ62: Jusqu'à | CA62: 150 | CB62: g | CC62: 4 | CD62: jours | CE62: proies | CF62: 18 | CG62: g | CH62: 12 | CI62: % | CJ62: du poids | CL62: Jusqu'à | CM62: 200 | CN62: g | CO62: 4 | CP62: jours | CQ62: proies | CR62: 24 | CS62: g | CT62: 12 | CU62: % | CV62: du poids | CX62: Jusqu'à | CY62: 250 | CZ62: 507 | DA62: 4 | DB62: jours | DC62: proies | DD62: 30 | DE62: g | DF62: 12 | DG62: % | DH62: du poids | DJ62: Jusqu'à | DK62: 300 | DL62: g | DM62: 5 | DN62: jours | DO62: proies | DP62: 36 | DQ62: g | DR62: 12 | DS62: % | DT62: du poids | DV62: Jusqu'à | DW62: 350 | DX62: g | DY62: 5 | DZ62: jours | EA62: proies | EB62: 42 | EC62: g | ED62: 12 | EE62: % | EF62: du poids | EH62: Jusqu'à | EI62: 400 | EJ62: g | EK62: 6 | EL62: jours | EM62: proies | EN62: 48 | EO62: g | EP62: 12 | EQ62: % | ER62: du poids | ET62: Jusqu'à | EU62: 450 | EV62: g | EW62: 6 | EX62: jours | EY62: proies | EZ62: 54 | FA62: g | FB62: 12 | FC62: % | FD62: du poids | FF62: Jusqu'à | FG62: 500 | FH62: g | FI62: 7 | FJ62: jours | FK62: proies | FL62: 60 | FM62: g | FN62: 12 | FO62: % | FP62: du poids | FR62: Jusqu'à | FS62: 550 | FT62: g | FU62: 7 | FV62: jours | FW62: proies | FX62: 66 | FY62: g | FZ62: 12 | GA62: % | GB62: du poids | GD62: Jusqu'à | GE62: 600 | GF62: g | GG62: 7 | GH62: jours | GI62: proies | GJ62: 72 | GK62: g | GL62: 12 | GM62: % | GN62: du poids | GP62: Jusqu'à | GQ62: 650 | GR62: g | GS62: 7 | GT62: jours | GU62: proies | GV62: 78 | GW62: g | GX62: 12 | GY62: % | GZ62: du poids | HB62: Jusqu'à | HC62: 700 | HD62: g | HE62: 8 | HF62: jours | HG62: proies | HH62: 84 | HI62: g | HJ62: 12 | HK62: % | HL62: du poids | HN62: Jusqu'à | HO62: 750 | HP62: g | HQ62: 8 | HR62: jours | HS62: proies | HT62: 90 | HU62: g | HV62: 12 | HW62: % | HX62: du poids | HZ62: Jusqu'à | IA62: 800 | IB62: g | IC62: 9 | ID62: jours | IE62: proies | IF62: 96 | IG62: g | IH62: 12 | II62: % | IJ62: du poids | IL62: Jusqu'à | IM62: 900 | IN62: g | IO62: 9 | IP62: jours | IQ62: proies | IR62: 108 | IS62: g | IT62: 12 | IU62: % | IV62: du poids | IX62: Jusqu'à | IY62: 1000 | IZ62: g | JA62: 9 | JB62: jours | JC62: proies | JD62: 120 | JE62: g | JF62: 12 | JG62: % | JH62: du poids | JJ62: Jusqu'à | JK62: 1100 | JL62: g | JM62: 9 | JN62: jours | JO62: proies | JP62: 132 | JQ62: g | JR62: 12 | JS62: % | JT62: du poids | JV62: Jusqu'à | JW62: 1200 | JX62: g | JY62: 10 | JZ62: jours | KA62: proies | KB62: 144 | KC62: g | KD62: 12 | KE62: % | KF62: du poids | KH62: Jusqu'à | KI62: 1300 | KJ62: g | KK62: 10 | KL62: jours | KM62: proies | KN62: 156 | KO62: g | KP62: 12 | KQ62: % | KR62: du poids | KT62: Jusqu'à | KU62: 1400 | KV62: g | KW62: 10 | KX62: jours | KY62: proies | KZ62: 168 | LA62: g | LB62: 12 | LC62: % | LD62: du poids | LF62: Jusqu'à | LG62: 1500 | LH62: g | LI62: 10 | LJ62: jours | LK62: proies | LL62: 180 | LM62: g | LN62: 12 | LO62: % | LP62: du poids | LR62: Jusqu'à | LS62: 1600 | LT62: g | LU62: 10 | LV62: jours | LW62: proies | LX62: 192 | LY62: g | LZ62: 12 | MA62: % | MB62: du poids | MD62: Jusqu'à | ME62: 1700 | MF62: g | MG62: 10 | MH62: jours | MI62: proies | MJ62: 204 | MK62: g | ML62: 12 | MM62: % | MN62: du poids | MP62: Jusqu'à | MQ62: 1800 | MR62: g | MS62: 10 | MT62: jours | MU62: proies | MV62: 216 | MW62: g | MX62: 12 | MY62: % | MZ62: du poids | NB62: Jusqu'à | NC62: 1900 | ND62: g | NE62: 10 | NF62: jours | NG62: proies | NH62: 228 | NI62: g | NJ62: 12 | NK62: % | NL62: du poids | NN62: Jusqu'à | NO62: 2000 | NP62: g | NQ62: 12 | NR62: jours | NS62: proies | NT62: 240 | NU62: g | NV62: 12 | NW62: % | NX62: du poids | NZ62: Jusqu'à | OA62: 2100 | OB62: g | OC62: 12 | OD62: jours | OE62: proies | OF62: 252 | OG62: g | OH62: 12 | OI62: % | OJ62: du poids | OL62: Jusqu'à | OM62: 2200 | ON62: g | OO62: 12 | OP62: jours | OQ62: proies | OR62: 242 | OS62: g | OT62: 12 | OU62: % | OV62: du poids | OX62: Jusqu'à | OY62: 2300 | OZ62: g | PA62: 12 | PB62: jours | PC62: proies | PD62: 230 | PE62: g | PF62: 10 | PG62: % | PH62: du poids | PJ62: Jusqu'à | PK62: 2400 | PL62: g | PM62: 12 | PN62: jours | PO62: proies | PP62: 240 | PQ62: g | PR62: 10 | PS62: % | PT62: du poids | PV62: Jusqu'à | PW62: 2500 | PX62: g | PY62: 14 | PZ62: jours | QA62: proies | QB62: 250 | QC62: g | QD62: 10 | QE62: % | QF62: du poids | QH62: Jusqu'à | QI62: 2600 | QJ62: g | QK62: 14 | QL62: jours | QM62: proies | QN62: 260 | QO62: g | QP62: 10 | QQ62: % | QR62: du poids | QT62: Jusqu'à | QU62: 2700 | QV62: g | QW62: 14 | QX62: jours | QY62: proies | QZ62: 270 | RA62: g | RB62: 10 | RC62: % | RD62: du poids | RF62: Jusqu'à | RG62: 2800 | RH62: g | RI62: 14 | RJ62: jours | RK62: proies | RL62: 280 | RM62: g | RN62: 10 | RO62: % | RP62: du poids | RR62: Jusqu'à | RS62: 2900 | RT62: g | RU62: 14 | RV62: jours | RW62: proies | RX62: 290 | RY62: g | RZ62: 10 | SA62: % | SB62: du poids | SD62: Jusqu'à | SE62: 3000 | SF62: g | SG62: 20 | SH62: jours | SI62: proies | SJ62: 300 | SK62: g | SL62: 10 | SM62: % | SN62: du poids | SP62: Jusqu'à | SQ62: 3200 | SR62: g | SS62: 20 | ST62: jours | SU62: proies | SV62: 288 | SW62: g | SX62: 9 | SY62: % | SZ62: du poids | TB62: Jusqu'à | TC62: 3400 | TD62: g | TE62: 20 | TF62: jours | TG62: proies | TH62: 272 | TI62: g | TJ62: 8 | TK62: % | TL62: du poids | TN62: Jusqu'à | TO62: 3600 | TP62: g | TQ62: 20 | TR62: jours | TS62: proies | TT62: 304 | TU62: g | TV62: 8 | TW62: % | TX62: du poids | TZ62: Jusqu'à | UA62: 3800 | UB62: g | UC62: 22 | UD62: jours | UE62: proies | UF62: 304 | UG62: g | UH62: 8 | UI62: % | UJ62: du poids | UL62: Jusqu'à | UM62: 4000 | UN62: g | UO62: 24 | UP62: jours | UQ62: proies | UR62: 320 | US62: g | UT62: 8 | UU62: % | UV62: du poids
... 68 more rows

Sheet Viridis
A2: BASE DE CALCULS Viridis | Y2: Une fois définie le poids des proies par rapport au poids des animaux, définir la périodicité pour ajuster.
A3: Poids | H3: Périodes | M3: Proies | P3: Calcul
A4: Jusqu'à: | D4: 80 | F4: g | G4: 100 | H4: 4 | J4: jours | M4: =SUM(D4/G4*P4) -> 9.6 | O4: g | P4: 12 | S4: % | T4: du poids
A5: Jusqu'à: | D5: 100 | F5: g | G5: 100 | H5: 6 | J5: jours | M5: 12 | O5: g | P5: 12 | S5: % | T5: du poids
A6: Jusqu'à: | D6: 150 | F6: g | G6: 100 | H6: 6 | J6: jours | M6: 18 | O6: g | P6: 12 | S6: % | T6: du poids
A7: Jusqu'à: | D7: 200 | F7: g | G7: 100 | H7: 6 | J7: jours | M7: 24 | O7: g | P7: 12 | S7: % | T7: du poids
A8: Jusqu'à: | D8: 250 | F8: g | G8: 100 | H8: 6 | J8: jours | M8: 30 | O8: g | P8: 12 | S8: % | T8: du poids
A9: Jusqu'à: | D9: 300 | F9: g | G9: 100 | H9: 7 | J9: jours | M9: 36 | O9: g | P9: 12 | S9: % | T9: du poids | Y9: Période validée | AI9: Proie validée
A10: Jusqu'à: | D10: 350 | F10: g | G10: 100 | H10: 7 | J10: jours | M10: 42 | O10: g | P10: 12 | S10: % | T10: du poids | Y10: Période validée | AI10: Proie validée
A11: Jusqu'à: | D11: 400 | F11: g | G11: 100 | H11: 8 | J11: jours | M11: 48 | O11: g | P11: 12 | S11: % | T11: du poids
A12: Jusqu'à: | D12: 450 | F12: g | G12: 100 | H12: 8 | J12: jours | M12: 54 | O12: g | P12: 12 | S12: % | T12: du poids
A13: Jusqu'à: | D13: 500 | F13: g | G13: 100 | H13: 8 | J13: jours | M13: 60 | O13: g | P13: 12 | S13: % | T13: du poids
A14: Jusqu'à: | D14: 550 | F14: g | G14: 100 | H14: 8 | J14: jours | M14: 66 | O14: g | P14: 12 | S14: % | T14: du poids
A15: Jusqu'à: | D15: 600 | F15: g | G15: 100 | H15: 8 | J15: jours | M15: 72 | O15: g | P15: 12 | S15: % | T15: du poids
A16: Jusqu'à: | D16: 650 | F16: g | G16: 100 | H16: 9 | J16: jours | M16: 78 | O16: g | P16: 12 | S16: % | T16: du poids
A17: Jusqu'à: | D17: 700 | F17: g | G17: 100 | H17: 9 | J17: jours | M17: 84 | O17: g | P17: 12 | S17: % | T17: du poids
A18: Jusqu'à: | D18: 750 | F18: g | G18: 100 | H18: 9 | J18: jours | M18: 90 | O18: g | P18: 12 | S18: % | T18: du poids
A19: Jusqu'à: | D19: 800 | F19: g | G19: 100 | H19: 9 | J19: jours | M19: 96 | O19: g | P19: 12 | S19: % | T19: du poids
A20: Jusqu'à: | D20: 900 | F20: g | G20: 100 | H20: 9 | J20: jours | M20: 108 | O20: g | P20: 12 | S20: % | T20: du poids
A21: Jusqu'à: | D21: 1000 | F21: g | G21: 100 | H21: 9 | J21: jours | M21: 120 | O21: g | P21: 12 | S21: % | T21: du poids
A22: Jusqu'à: | D22: 1100 | F22: g | G22: 100 | H22: 9 | J22: jours | M22: 132 | O22: g | P22: 12 | S22: % | T22: du poids
A23: Jusqu'à: | D23: 1200 | F23: g | G23: 100 | H23: 9 | J23: jours | M23: 144 | O23: g | P23: 12 | S23: % | T23: du poids
A24: Jusqu'à: | D24: 1300 | F24: g | G24: 100 | H24: 9 | J24: jours | M24: 156 | O24: g | P24: 12 | S24: % | T24: du poids
A25: Jusqu'à: | D25: 1400 | F25: g | G25: 100 | H25: 9 | J25: jours | M25: 168 | O25: g | P25: 12 | S25: % | T25: du poids
A26: Jusqu'à: | D26: 1500 | F26: g | G26: 100 | H26: 9 | J26: jours | M26: 180 | O26: g | P26: 12 | S26: % | T26: du poids
A27: Jusqu'à: | D27: 1600 | F27: g | G27: 100 | H27: 9 | J27: jours | M27: 192 | O27: g | P27: 12 | S27: % | T27: du poids
A28: Jusqu'à: | D28: 1700 | F28: g | G28: 100 | H28: 9 | J28: jours | M28: 204 | O28: g | P28: 12 | S28: % | T28: du poids
A29: Jusqu'à: | D29: 1800 | F29: g | G29: 100 | H29: 9 | J29: jours | M29: 216 | O29: g | P29: 12 | S29: % | T29: du poids
A30: Jusqu'à: | D30: 1900 | F30: g | G30: 100 | H30: 9 | J30: jours | M30: 228 | O30: g | P30: 12 | S30: % | T30: du poids
A31: Jusqu'à: | D31: 2000 | F31: g | G31: 100 | H31: 9 | J31: jours | M31: 240 | O31: g | P31: 12 | S31: % | T31: du poids
A32: Jusqu'à: | D32: 2100 | F32: g | G32: 100 | H32: 9 | J32: jours | M32: 252 | O32: g | P32: 12 | S32: % | T32: du poids
A33: Jusqu'à: | D33: 2200 | F33: g | G33: 100 | H33: 9 | J33: jours | M33: 242 | O33: g | P33: 11 | S33: % | T33: du poids
A34: Jusqu'à: | D34: 2300 | F34: g | G34: 100 | H34: 9 | J34: jours | M34: 230 | O34: g | P34: 10 | S34: % | T34: du poids
A35: Jusqu'à: | D35: 2400 | F35: g | G35: 100 | H35: 9 | J35: jours | M35: 240 | O35: g | P35: 10 | S35: % | T35: du poids
A36: Jusqu'à: | D36: 2500 | F36: g | G36: 100 | H36: 9 | J36: jours | M36: 250 | O36: g | P36: 10 | S36: % | T36: du poids
A37: Jusqu'à: | D37: 2600 | F37: g | G37: 100 | H37: 9 | J37: jours | M37: 260 | O37: g | P37: 10 | S37: % | T37: du poids
A38: Jusqu'à: | D38: 2700 | F38: g | G38: 100 | H38: 9 | J38: jours | M38: 270 | O38: g | P38: 10 | S38: % | T38: du poids
A39: Jusqu'à: | D39: 2800 | F39: g | G39: 100 | H39: 9 | J39: jours | M39: 280 | O39: g | P39: 10 | S39: % | T39: du poids
A40: Jusqu'à: | D40: 2900 | F40: g | G40: 100 | H40: 9 | J40: jours | M40: 290 | O40: g | P40: 10 | S40: % | T40: du poids
A41: Jusqu'à: | D41: 3000 | F41: g | G41: 100 | H41: 9 | J41: jours | M41: 300 | O41: g | P41: 10 | S41: % | T41: du poids
A43: Mackay | M43: Python morélia viridis | AF43: Place | AG43: A | AJ43: Sexe: | AK43: Mâle | AO43: Né le: | AP43: NC 2013 | AU43: Phase: | AV43: Localité:
AV44: Aru
A46: REPAS | M46: DONNEES | AF46: OBSERVATIONS et NOTES
A47: Intervals | C47: Date | F47: Quantités | M47: Digestion | Q47: Mue | S47: Pesée (en g) | Y47: Taille (en cm)
F48: Prévue | H48: Réelle | J48: Dif. | M48: constatée | O48: Soit | Q48: / 5 | S48: Poids | V48: Dif. | Y48: Mesure | AB48: Dif. | BC48: 4 | BO48: 5 | CA48: 6 | CM48: 7 | CY48: 8 | DK48: 9 | DW48: 10 | EI48: 11 | EU48: 12 | FG48: 13 | FS48: 14 | GE48: 15 | GQ48: 16 | HC48: 17 | HO48: 18 | IA48: 19 | IM48: 20 | IY48: 21 | JK48: 22 | JW48: 23 | KI48: 24 | KU48: 25 | LG48: 26 | LS48: 27 | ME48: 28 | MQ48: 29 | NC48: 30 | NO48: 31 | OA48: 32 | OM48: 33 | OY48: 34 | PK48: 35 | PW48: 36 | QI48: 37 | QU48: 38 | RG48: 39 | RS48: 40 | SE48: 41
A49: Arrivée chez nous le 21 mars 2015 | S49: 479 | U49: g | X49: g | AA49: cm | AD49: cm | BB49: Jusqu'à | BC49: =SUM(D4) -> 80 | BD49: g | BE49: =SUM(H4) -> 4 | BF49: jours | BG49: proies | BH49: =SUM(M4) -> 9.6 | BI49: g | BJ49: =SUM(P4) -> 12 | BK49: % | BL49: du poids | BN49: Jusqu'à | BO49: =SUM(D5) -> 100 | BP49: g | BQ49: =SUM(H5) -> 6 | BR49: jours | BS49: proies | BT49: =SUM(M5) -> 12 | BU49: g | BV49: =SUM(P5) -> 12 | BW49: % | BX49: du poids | BZ49: Jusqu'à | CA49: =SUM(D6) -> 150 | CB49: g | CC49: =SUM(H6) -> 6 | CD49: jours | CE49: proies | CF49: =SUM(M6) -> 18 | CG49: g | CH49: =SUM(P6) -> 12 | CI49: % | CJ49: du poids | CL49: Jusqu'à | CM49: =SUM(D7) -> 200 | CN49: g | CO49: =SUM(H7) -> 6 | CP49: jours | CQ49: proies | CR49: =SUM(M7) -> 24 | CS49: g | CT49: =SUM(P7) -> 12 | CU49: % | CV49: du poids | CX49: Jusqu'à | CY49: =SUM(D8) -> 250 | CZ49: g | DA49: =SUM(H8) -> 6 | DB49: jours | DC49: proies | DD49: =SUM(M8) -> 30 | DE49: g | DF49: =SUM(P8) -> 12 | DG49: % | DH49: du poids | DJ49: Jusqu'à | DK49: =SUM(D9) -> 300 | DL49: g | DM49: =SUM(H9) -> 7 | DN49: jours | DO49: proies | DP49: =SUM(M9) -> 36 | DQ49: g | DR49: =SUM(P9) -> 12 | DS49: % | DT49: du poids | DV49: Jusqu'à | DW49: =SUM(D10) -> 350 | DX49: g | DY49: =SUM(H10) -> 7 | DZ49: jours | EA49: proies | EB49: =SUM(M10) -> 42 | EC49: g | ED49: =SUM(P10) -> 12 | EE49: % | EF49: du poids | EH49: Jusqu'à | EI49: =SUM(D11) -> 400 | EJ49: g | EK49: =SUM(H11) -> 8 | EL49: jours | EM49: proies | EN49: =SUM(M11) -> 48 | EO49: g | EP49: =SUM(P11) -> 12 | EQ49: % | ER49: du poids | ET49: Jusqu'à | EU49: =SUM(D12) -> 450 | EV49: g | EW49: =SUM(H12) -> 8 | EX49: jours | EY49: proies | EZ49: =SUM(M12) -> 54 | FA49: g | FB49: =SUM(P12) -> 12 | FC49: % | FD49: du poids | FF49: Jusqu'à | FG49: =SUM(D13) -> 500 | FH49: g | FI49: =SUM(H13) -> 8 | FJ49: jours | FK49: proies | FL49: =SUM(M13) -> 60 | FM49: g | FN49: =SUM(P13) -> 12 | FO49: % | FP49: du poids | FR49: Jusqu'à | FS49: =SUM(D14) -> 550 | FT49: g | FU49: =SUM(H14) -> 8 | FV49: jours | FW49: proies | FX49: =SUM(M14) -> 66 | FY49: g | FZ49: =SUM(P14) -> 12 | GA49: % | GB49: du poids | GD49: Jusqu'à | GE49: =SUM(D15) -> 600 | GF49: g | GG49: =SUM(H15) -> 8 | GH49: jours | GI49: proies | GJ49: =SUM(M15) -> 72 | GK49: g | GL49: =SUM(P15) -> 12 | GM49: % | GN49: du poids | GP49: Jusqu'à | GQ49: =SUM(D16) -> 650 | GR49: g | GS49: =SUM(H16) -> 9 | GT49: jours | GU49: proies | GV49: =SUM(M16) -> 78 | GW49: g | GX49: =SUM(P16) -> 12 | GY49: % | GZ49: du poids | HB49: Jusqu'à | HC49: =SUM(D17) -> 700 | HD49: g | HE49: =SUM(H17) -> 9 | HF49: jours | HG49: proies | HH49: =SUM(M17) -> 84 | HI49: g | HJ49: =SUM(P17) -> 12 | HK49: % | HL49: du poids | HN49: Jusqu'à | HO49: =SUM(D18) -> 750 | HP49: g | HQ49: =SUM(H18) -> 9 | HR49: jours | HS49: proies | HT49: =SUM(M18) -> 90 | HU49: g | HV49: =SUM(P18) -> 12 | HW49: % | HX49: du poids | HZ49: Jusqu'à | IA49: =SUM(D19) -> 800 | IB49: g | IC49: =SUM(H19) -> 9 | ID49: jours | IE49: proies | IF49: =SUM(M19) -> 96 | IG49: g | IH49: =SUM(P19) -> 12 | II49: % | IJ49: du poids | IL49: Jusqu'à | IM49: =SUM(D20) -> 900 | IN49: g | IO49: =SUM(H20) -> 9 | IP49: jours | IQ49: proies | IR49: =SUM(M20) -> 108 | IS49: g | IT49: =SUM(P20) -> 12 | IU49: % | IV49: du poids | IX49: Jusqu'à | IY49: =SUM(D21) -> 1000 | IZ49: g | JA49: =SUM(H21) -> 9 | JB49: jours | JC49: proies | JD49: =SUM(M21) -> 120 | JE49: g | JF49: =SUM(P21) -> 12 | JG49: % | JH49: du poids | JJ49: Jusqu'à | JK49: =SUM(D22) -> 1100 | JL49: g | JM49: =SUM(H22) -> 9 | JN49: jours | JO49: proies | JP49: =SUM(M22) -> 132 | JQ49: g | JR49: =SUM(P22) -> 12 | JS49: % | JT49: du poids | JV49: Jusqu'à | JW49: =SUM(D23) -> 1200 | JX49: g | JY49: =SUM(H23) -> 9 | JZ49: jours | KA49: proies | KB49: =SUM(M23) -> 144 | KC49: g | KD49: =SUM(P23) -> 12 | KE49: % | KF49: du poids | KH49: Jusqu'à | KI49: =SUM(D24) -> 1300 | KJ49: g | KK49: =SUM(H24) -> 9 | KL49: jours | KM49: proies | KN49: =SUM(M24) -> 156 | KO49: g | KP49: =SUM(P24) -> 12 | KQ49: % | KR49: du poids | KT49: Jusqu'à | KU49: =SUM(D25) -> 1400 | KV49: g | KW49: =SUM(H25) -> 9 | KX49: jours | KY49: proies | KZ49: =SUM(M25) -> 168 | LA49: g | LB49: =SUM(P25) -> 12 | LC49: % | LD49: du poids | LF49: Jusqu'à | LG49: =SUM(D26) -> 1500 | LH49: g | LI49: =SUM(H26) -> 9 | LJ49: jours | LK49: proies | LL49: =SUM(M26) -> 180 | LM49: g | LN49: =SUM(P26) -> 12 | LO49: % | LP49: du poids | LR49: Jusqu'à | LS49: =SUM(D27) -> 1600 | LT49: g | LU49: =SUM(H27) -> 9 | LV49: jours | LW49: proies | LX49: =SUM(M27) -> 192 | LY49: g | LZ49: =SUM(P27) -> 12 | MA49: % | MB49: du poids | MD49: Jusqu'à | ME49: =SUM(D28) -> 1700 | MF49: g | MG49: =SUM(H28) -> 9 | MH49: jours | MI49: proies | MJ49: =SUM(M28) -> 204 | MK49: g | ML49: =SUM(P28) -> 12 | MM49: % | MN49: du poids | MP49: Jusqu'à | MQ49: =SUM(D29) -> 1800 | MR49: g | MS49: =SUM(H29) -> 9 | MT49: jours | MU49: proies | MV49: =SUM(M29) -> 216 | MW49: g | MX49: =SUM(P29) -> 12 | MY49: % | MZ49: du poids | NB49: Jusqu'à | NC49: =SUM(D30) -> 1900 | ND49: g | NE49: =SUM(H30) -> 9 | NF49: jours | NG49: proies | NH49: =SUM(M30) -> 228 | NI49: g | NJ49: =SUM(P30) -> 12 | NK49: % | NL49: du poids | NN49: Jusqu'à | NO49: =SUM(D31) -> 2000 | NP49: g | NQ49: =SUM(H31) -> 9 | NR49: jours | NS49: proies | NT49: =SUM(M31) -> 240 | NU49: g | NV49: =SUM(P31) -> 12 | NW49: % | NX49: du poids | NZ49: Jusqu'à | OA49: =SUM(D32) -> 2100 | OB49: g | OC49: =SUM(H32) -> 9 | OD49: jours | OE49: proies | OF49: =SUM(M32) -> 252 | OG49: g | OH49: =SUM(P32) -> 12 | OI49: % | OJ49: du poids | OL49: Jusqu'à | OM49: =SUM(D33) -> 2200 | ON49: g | OO49: =SUM(H33) -> 9 | OP49: jours | OQ49: proies | OR49: =SUM(M33) -> 242 | OS49: g | OT49: =SUM(P33) -> 11 | OU49: % | OV49: du poids | OX49: Jusqu'à | OY49: =SUM(D34) -> 2300 | OZ49: g | PA49: =SUM(H34) -> 9 | PB49: jours | PC49: proies | PD49: =SUM(M34) -> 230 | PE49: g | PF49: =SUM(P34) -> 10 | PG49: % | PH49: du poids | PJ49: Jusqu'à | PK49: =SUM(D35) -> 2400 | PL49: g | PM49: =SUM(H35) -> 9 | PN49: jours | PO49: proies | PP49: =SUM(M35) -> 240 | PQ49: g | PR49: =SUM(P35) -> 10 | PS49: % | PT49: du poids | PV49: Jusqu'à | PW49: =SUM(D36) -> 2500 | PX49: g | PY49: =SUM(H36) -> 9 | PZ49: jours | QA49: proies | QB49: =SUM(M36) -> 250 | QC49: g | QD49: =SUM(P36) -> 10 | QE49: % | QF49: du poids | QH49: Jusqu'à | QI49: =SUM(D37) -> 2600 | QJ49: g | QK49: =SUM(H37) -> 9 | QL49: jours | QM49: proies | QN49: =SUM(M37) -> 260 | QO49: g | QP49: =SUM(P37) -> 10 | QQ49: % | QR49: du poids | QT49: Jusqu'à | QU49: =SUM(D38) -> 2700 | QV49: g | QW49: =SUM(H38) -> 9 | QX49: jours | QY49: proies | QZ49: =SUM(M38) -> 270 | RA49: g | RB49: =SUM(P38) -> 10 | RC49: % | RD49: du poids | RF49: Jusqu'à | RG49: =SUM(D39) -> 2800 | RH49: g | RI49: =SUM(H39) -> 9 | RJ49: jours | RK49: proies | RL49: =SUM(M39) -> 280 | RM49: g | RN49: =SUM(P39) -> 10 | RO49: % | RP49: du poids | RR49: Jusqu'à | RS49: =SUM(D40) -> 2900 | RT49: g | RU49: =SUM(H40) -> 9 | RV49: jours | RW49: proies | RX49: =SUM(M40) -> 290 | RY49: g | RZ49: =SUM(P40) -> 10 | SA49: % | SB49: du poids | SD49: Jusqu'à | SE49: =SUM(D41) -> 3000 | SF49: g | SG49: =SUM(H41) -> 9 | SH49: jours | SI49: proies | SJ49: =SUM(M41) -> 300 | SK49: g | SL49: =SUM(P41) -> 10 | SM49: % | SN49: du poids
A50: =IF(S49="","",IF(S49<=80,BE50,IF(S49<=100,BQ50,IF(S49<=150,CC50,IF(S49<=200,CO50,IF(S49<=250,DA50,IF(S49<=300,DM50,IF(S49<=350,DY50,IF(S49<=400,EK50,IF(S49<=450,EW50,IF(S49<=500,FI50,IF(S49<=550,FU50,IF(S49<=600,GG50,IF(S49<=650,GG50,IF(S49<=700,HE50,IF(S49<=750,HQ50,IF(S49<=800,IC50,IF(S49<=900,IO50,IF(S49<=1000,JA50,IF(S49<=1100,JM50,IF(S49<=1200,JY50,IF(S49<=1300,KK50,IF(S49<=1400,KW50,IF(S49<=1500,LI50,IF(S49<=1600,LU50,IF(S49<=1700,MG50,IF(S49<=1800,MS50,IF(S49<=1900,NE50,IF(S49<=2000,NQ50,IF(S49<=2100,OC50,IF(S49<=2200,OO50,IF(S49<=2300,PA50,IF(S49<=2400,PM50,IF(S49<=2500,PY50,IF(S49<=2600,QK50,IF(S49<=2700,QW50,IF(S49<=2800,RI50,IF(S49<=2900,RU50,IF(S49<=3000,SG50,""))))))))))))))))))))))))))))))))))))))) -> 8 | B50: jours | C50: 2015-12-21 | F50: =IF(S50="","",IF(S50<=BC49,BH50,IF(S50<=BO49,BT50,IF(S50<=CA49,CF50,IF(S50<=CM49,CR50,IF(S50<=CY49,DD50,IF(S50<=DK49,DP50,IF(S50<=DW49,EB50,IF(S50<=EI49,EN50,IF(S50<=EU49,EZ50,IF(S50<=FG49,FL50,IF(S50<=FS49,FX50,IF(S50<=GE49,GJ50,IF(S50<=GQ49,GV50,IF(S50<=HC49,HH50,IF(S50<=HO49,HT50,IF(S50<=IA49,IF50,IF(S50<=IM49,IR50,IF(S50<=IY49,JD50,IF(S50<=JK49,JP50,IF(S50<=JW49,KB50,IF(S50<=KI49,KN50,IF(S50<=KU49,KZ50,IF(S50<=LG49,LL50,IF(S50<=LS49,LX50,IF(S50<=ME49,MJ50,IF(S50<=MQ49,MV50,IF(S50<=NC49,NH50,IF(S50<=NO49,NT50,IF(S50<=OA49,OF50,IF(S50<=OM49,OR50,IF(S50<=OY49,PD50,IF(S50<=PK49,PP50,IF(S50<=PW49,QB50,IF(S50<=QI49,QN50,IF(S50<=QU49,QZ50,IF(S50<=RG49,RL50,IF(S50<=RS49,RX50,IF(S50<=SE49,SJ50,""))))))))))))))))))))))))))))))))))))))) -> 60 | G50: g | H50: 67 | I50: g | J50: =SUM(H50-F50) -> 7 | K50: g | O50: =SUM(M50-C50) -> -42359 | P50: j | S50: 479 | U50: g | V50: =SUM(S50-S49) -> 0 | X50: g | AA50: cm | AB50: =SUM(Y50-Y49) -> 0 | AD50: cm | AF50: Pas de pesée | BB50: =(BB49) -> Jusqu'à | BC50: =SUM(BC49) -> 80 | BD50: g | BE50: =SUM(BE49) -> 4 | BF50: jours | BG50: proies | BH50: =SUM(BH49) -> 9.6 | BI50: g | BJ50: =SUM(BJ49) -> 12 | BK50: % | BL50: du poids | BN50: =(BN49) -> Jusqu'à | BO50: =SUM(BO49) -> 100 | BP50: g | BQ50: =SUM(BQ49) -> 6 | BR50: jours | BS50: proies | BT50: =SUM(BT49) -> 12 | BU50: g | BV50: =SUM(BV49) -> 12 | BW50: % | BX50: du poids | BZ50: =(BZ49) -> Jusqu'à | CA50: =SUM(CA49) -> 150 | CB50: g | CC50: =SUM(CC49) -> 6 | CD50: jours | CE50: proies | CF50: =SUM(CF49) -> 18 | CG50: g | CH50: =SUM(CH49) -> 12 | CI50: % | CJ50: du poids | CL50: =(CL49) -> Jusqu'à | CM50: =SUM(CM49) -> 200 | CN50: g | CO50: =SUM(CO49) -> 6 | CP50: jours | CQ50: proies | CR50: =SUM(CR49) -> 24 | CS50: g | CT50: =SUM(CT49) -> 12 | CU50: % | CV50: du poids | CX50: =(CX49) -> Jusqu'à | CY50: =SUM(CY49) -> 250 | CZ50: 500 | DA50: =SUM(DA49) -> 6 | DB50: jours | DC50: proies | DD50: =SUM(DD49) -> 30 | DE50: g | DF50: =SUM(DF49) -> 12 | DG50: % | DH50: du poids | DJ50: =(DJ49) -> Jusqu'à | DK50: =SUM(DK49) -> 300 | DL50: g | DM50: =SUM(DM49) -> 7 | DN50: jours | DO50: proies | DP50: =SUM(DP49) -> 36 | DQ50: g | DR50: =SUM(DR49) -> 12 | DS50: % | DT50: du poids | DV50: =(DV49) -> Jusqu'à | DW50: =SUM(DW49) -> 350 | DX50: g | DY50: =SUM(DY49) -> 7 | DZ50: jours | EA50: proies | EB50: =SUM(EB49) -> 42 | EC50: g | ED50: =SUM(ED49) -> 12 | EE50: % | EF50: du poids | EH50: =(EH49) -> Jusqu'à | EI50: =SUM(EI49) -> 400 | EJ50: g | EK50: =SUM(EK49) -> 8 | EL50: jours | EM50: proies | EN50: =SUM(EN49) -> 48 | EO50: g | EP50: =SUM(EP49) -> 12 | EQ50: % | ER50: du poids | ET50: =(ET49) -> Jusqu'à | EU50: =SUM(EU49) -> 450 | EV50: g | EW50: =SUM(EW49) -> 8 | EX50: jours | EY50: proies | EZ50: =SUM(EZ49) -> 54 | FA50: g | FB50: =SUM(FB49) -> 12 | FC50: % | FD50: du poids | FF50: =(FF49) -> Jusqu'à | FG50: =SUM(FG49) -> 500 | FH50: g | FI50: =SUM(FI49) -> 8 | FJ50: jours | FK50: proies | FL50: =SUM(FL49) -> 60 | FM50: g | FN50: =SUM(FN49) -> 12 | FO50: % | FP50: du poids | FR50: =(FR49) -> Jusqu'à | FS50: =SUM(FS49) -> 550 | FT50: g | FU50: =SUM(FU49) -> 8 | FV50: jours | FW50: proies | FX50: =SUM(FX49) -> 66 | FY50: g | FZ50: =SUM(FZ49) -> 12 | GA50: % | GB50: du poids | GD50: =(GD49) -> Jusqu'à | GE50: =SUM(GE49) -> 600 | GF50: g | GG50: =SUM(GG49) -> 8 | GH50: jours | GI50: proies | GJ50: =SUM(GJ49) -> 72 | GK50: g | GL50: =SUM(GL49) -> 12 | GM50: % | GN50: du poids | GP50: =(GP49) -> Jusqu'à | GQ50: =SUM(GQ49) -> 650 | GR50: g | GS50: =SUM(GS49) -> 9 | GT50: jours | GU50: proies | GV50: =SUM(GV49) -> 78 | GW50: g | GX50: =SUM(GX49) -> 12 | GY50: % | GZ50: du poids | HB50: =(HB49) -> Jusqu'à | HC50: =SUM(HC49) -> 700 | HD50: g | HE50: =SUM(HE49) -> 9 | HF50: jours | HG50: proies | HH50: =SUM(HH49) -> 84 | HI50: g | HJ50: =SUM(HJ49) -> 12 | HK50: % | HL50: du poids | HN50: =(HN49) -> Jusqu'à | HO50: =SUM(HO49) -> 750 | HP50: g | HQ50: =SUM(HQ49) -> 9 | HR50: jours | HS50: proies | HT50: =SUM(HT49) -> 90 | HU50: g | HV50: =SUM(HV49) -> 12 | HW50: % | HX50: du poids | HZ50: =(HZ49) -> Jusqu'à | IA50: =SUM(IA49) -> 800 | IB50: g | IC50: =SUM(IC49) -> 9 | ID50: jours | IE50: proies | IF50: =SUM(IF49) -> 96 | IG50: g | IH50: =SUM(IH49) -> 12 | II50: % | IJ50: du poids | IL50: =(IL49) -> Jusqu'à | IM50: =SUM(IM49) -> 900 | IN50: g | IO50: =SUM(IO49) -> 9 | IP50: jours | IQ50: proies | IR50: =SUM(IR49) -> 108 | IS50: g | IT50: =SUM(IT49) -> 12 | IU50: % | IV50: du poids | IX50: =(IX49) -> Jusqu'à | IY50: =SUM(IY49) -> 1000 | IZ50: g | JA50: =SUM(JA49) -> 9 | JB50: jours | JC50: proies | JD50: =SUM(JD49) -> 120 | JE50: g | JF50: =SUM(JF49) -> 12 | JG50: % | JH50: du poids | JJ50: =(JJ49) -> Jusqu'à | JK50: =SUM(JK49) -> 1100 | JL50: g | JM50: =SUM(JM49) -> 9 | JN50: jours | JO50: proies | JP50: =SUM(JP49) -> 132 | JQ50: g | JR50: =SUM(JR49) -> 12 | JS50: % | JT50: du poids | JV50: =(JV49) -> Jusqu'à | JW50: =SUM(JW49) -> 1200 | JX50: g | JY50: =SUM(JY49) -> 9 | JZ50: jours | KA50: proies | KB50: =SUM(KB49) -> 144 | KC50: g | KD50: =SUM(KD49) -> 12 | KE50: % | KF50: du poids | KH50: =(KH49) -> Jusqu'à | KI50: =SUM(KI49) -> 1300 | KJ50: g | KK50: =SUM(KK49) -> 9 | KL50: jours | KM50: proies | KN50: =SUM(KN49) -> 156 | KO50: g | KP50: =SUM(KP49) -> 12 | KQ50: % | KR50: du poids | KT50: =(KT49) -> Jusqu'à | KU50: =SUM(KU49) -> 1400 | KV50: g | KW50: =SUM(KW49) -> 9 | KX50: jours | KY50: proies | KZ50: =SUM(KZ49) -> 168 | LA50: g | LB50: =SUM(LB49) -> 12 | LC50: % | LD50: du poids | LF50: =(LF49) -> Jusqu'à | LG50: =SUM(LG49) -> 1500 | LH50: g | LI50: =SUM(LI49) -> 9 | LJ50: jours | LK50: proies | LL50: =SUM(LL49) -> 180 | LM50: g | LN50: =SUM(LN49) -> 12 | LO50: % | LP50: du poids | LR50: =(LR49) -> Jusqu'à | LS50: =SUM(LS49) -> 1600 | LT50: g | LU50: =SUM(LU49) -> 9 | LV50: jours | LW50: proies | LX50: =SUM(LX49) -> 192 | LY50: g | LZ50: =SUM(LZ49) -> 12 | MA50: % | MB50: du poids | MD50: =(MD49) -> Jusqu'à | ME50: =SUM(ME49) -> 1700 | MF50: g | MG50: =SUM(MG49) -> 9 | MH50: jours | MI50: proies | MJ50: =SUM(MJ49) -> 204 | MK50: g | ML50: =SUM(ML49) -> 12 | MM50: % | MN50: du poids | MP50: =(MP49) -> Jusqu'à | MQ50: =SUM(MQ49) -> 1800 | MR50: g | MS50: =SUM(MS49) -> 9 | MT50: jours | MU50: proies | MV50: =SUM(MV49) -> 216 | MW50: g | MX50: =SUM(MX49) -> 12 | MY50: % | MZ50: du poids | NB50: =(NB49) -> Jusqu'à | NC50: =SUM(NC49) -> 1900 | ND50: g | NE50: =SUM(NE49) -> 9 | NF50: jours | NG50: proies | NH50: =SUM(NH49) -> 228 | NI50: g | NJ50: =SUM(NJ49) -> 12 | NK50: % | NL50: du poids | NN50: =(NN49) -> Jusqu'à | NO50: =SUM(NO49) -> 2000 | NP50: g | NQ50: =SUM(NQ49) -> 9 | NR50: jours | NS50: proies | NT50: =SUM(NT49) -> 240 | NU50: g | NV50: =SUM(NV49) -> 12 | NW50: % | NX50: du poids | NZ50: =(NZ49) -> Jusqu'à | OA50: =SUM(OA49) -> 2100 | OB50: g | OC50: =SUM(OC49) -> 9 | OD50: jours | OE50: proies | OF50: =SUM(OF49) -> 252 | OG50: g | OH50: =SUM(OH49) -> 12 | OI50: % | OJ50: du poids | OL50: =(OL49) -> Jusqu'à | OM50: =SUM(OM49) -> 2200 | ON50: g | OO50: =SUM(OO49) -> 9 | OP50: jours | OQ50: proies | OR50: =SUM(OR49) -> 242 | OS50: g | OT50: =SUM(OT49) -> 11 | OU50: % | OV50: du poids | OX50: =(OX49) -> Jusqu'à | OY50: =SUM(OY49) -> 2300 | OZ50: g | PA50: =SUM(PA49) -> 9 | PB50: jours | PC50: proies | PD50: =SUM(PD49) -> 230 | PE50: g | PF50: =SUM(PF49) -> 10 | PG50: % | PH50: du poids | PJ50: =(PJ49) -> Jusqu'à | PK50: =SUM(PK49) -> 2400 | PL50: g | PM50: =SUM(PM49) -> 9 | PN50: jours | PO50: proies | PP50: =SUM(PP49) -> 240 | PQ50: g | PR50: =SUM(PR49) -> 10 | PS50: % | PT50: du poids | PV50: =(PV49) -> Jusqu'à | PW50: =SUM(PW49) -> 2500 | PX50: g | PY50: =SUM(PY49) -> 9 | PZ50: jours | QA50: proies | QB50: =SUM(QB49) -> 250 | QC50: g | QD50: =SUM(QD49) -> 10 | QE50: % | QF50: du poids | QH50: =(QH49) -> Jusqu'à | QI50: =SUM(QI49) -> 2600 | QJ50: g | QK50: =SUM(QK49) -> 9 | QL50: jours | QM50: proies | QN50: =SUM(QN49) -> 260 | QO50: g | QP50: =SUM(QP49) -> 10 | QQ50: % | QR50: du poids | QT50: =(QT49) -> Jusqu'à | QU50: =SUM(QU49) -> 2700 | QV50: g | QW50: =SUM(QW49) -> 9 | QX50: jours | QY50: proies | QZ50: =SUM(QZ49) -> 270 | RA50: g | RB50: =SUM(RB49) -> 10 | RC50: % | RD50: du poids | RF50: =(RF49) -> Jusqu'à | RG50: =SUM(RG49) -> 2800 | RH50: g | RI50: =SUM(RI49) -> 9 | RJ50: jours | RK50: proies | RL50: =SUM(RL49) -> 280 | RM50: g | RN50: =SUM(RN49) -> 10 | RO50: % | RP50: du poids | RR50: =(RR49) -> Jusqu'à | RS50: =SUM(RS49) -> 2900 | RT50: g | RU50: =SUM(RU49) -> 9 | RV50: jours | RW50: proies | RX50: =SUM(RX49) -> 290 | RY50: g | RZ50: =SUM(RZ49) -> 10 | SA50: % | SB50: du poids | SD50: =(SD49) -> Jusqu'à | SE50: =SUM(SE49) -> 3000 | SF50: g | SG50: =SUM(SG49) -> 9 | SH50: jours | SI50: proies | SJ50: =SUM(SJ49) -> 300 | SK50: g | SL50: =SUM(SL49) -> 10 | SM50: % | SN50: du poids
A51: =IF(S50="","",IF(S50<=80,BE51,IF(S50<=100,BQ51,IF(S50<=150,CC51,IF(S50<=200,CO51,IF(S50<=250,DA51,IF(S50<=300,DM51,IF(S50<=350,DY51,IF(S50<=400,EK51,IF(S50<=450,EW51,IF(S50<=500,FI51,IF(S50<=550,FU51,IF(S50<=600,GG51,IF(S50<=650,GG51,IF(S50<=700,HE51,IF(S50<=750,HQ51,IF(S50<=800,IC51,IF(S50<=900,IO51,IF(S50<=1000,JA51,IF(S50<=1100,JM51,IF(S50<=1200,JY51,IF(S50<=1300,KK51,IF(S50<=1400,KW51,IF(S50<=1500,LI51,IF(S50<=1600,LU51,IF(S50<=1700,MG51,IF(S50<=1800,MS51,IF(S50<=1900,NE51,IF(S50<=2000,NQ51,IF(S50<=2100,OC51,IF(S50<=2200,OO51,IF(S50<=2300,PA51,IF(S50<=2400,PM51,IF(S50<=2500,PY51,IF(S50<=2600,QK51,IF(S50<=2700,QW51,IF(S50<=2800,RI51,IF(S50<=2900,RU51,IF(S50<=3000,SG51,""))))))))))))))))))))))))))))))))))))))) -> 8 | B51: jours | C51: 2016-01-09 | F51: =IF(S51="","",IF(S51<=BC50,BH51,IF(S51<=BO50,BT51,IF(S51<=CA50,CF51,IF(S51<=CM50,CR51,IF(S51<=CY50,DD51,IF(S51<=DK50,DP51,IF(S51<=DW50,EB51,IF(S51<=EI50,EN51,IF(S51<=EU50,EZ51,IF(S51<=FG50,FL51,IF(S51<=FS50,FX51,IF(S51<=GE50,GJ51,IF(S51<=GQ50,GV51,IF(S51<=HC50,HH51,IF(S51<=HO50,HT51,IF(S51<=IA50,IF51,IF(S51<=IM50,IR51,IF(S51<=IY50,JD51,IF(S51<=JK50,JP51,IF(S51<=JW50,KB51,IF(S51<=KI50,KN51,IF(S51<=KU50,KZ51,IF(S51<=LG50,LL51,IF(S51<=LS50,LX51,IF(S51<=ME50,MJ51,IF(S51<=MQ50,MV51,IF(S51<=NC50,NH51,IF(S51<=NO50,NT51,IF(S51<=OA50,OF51,IF(S51<=OM50,OR51,IF(S51<=OY50,PD51,IF(S51<=PK50,PP51,IF(S51<=PW50,QB51,IF(S51<=QI50,QN51,IF(S51<=QU50,QZ51,IF(S51<=RG50,RL51,IF(S51<=RS50,RX51,IF(S51<=SE50,SJ51,""))))))))))))))))))))))))))))))))))))))) -> 66 | G51: g | H51: 0 | I51: g | J51: =SUM(H51-F51) -> -66 | K51: g | O51: =SUM(M51-C51) -> -42378 | P51: j | Q51: 5 | S51: 501 | U51: g | V51: =SUM(S51-S50) -> 22 | X51: g | AA51: cm | AB51: =SUM(Y51-Y50) -> 0 | AD51: cm | AF51: Rat de 79g refusé | BB51: =(BB50) -> Jusqu'à | BC51: =SUM(BC50) -> 80 | BD51: g | BE51: =SUM(BE50) -> 4 | BF51: jours | BG51: proies | BH51: =SUM(BH50) -> 9.6 | BI51: g | BJ51: =SUM(BJ50) -> 12 | BK51: % | BL51: du poids | BN51: =(BN50) -> Jusqu'à | BO51: =SUM(BO50) -> 100 | BP51: g | BQ51: =SUM(BQ50) -> 6 | BR51: jours | BS51: proies | BT51: =SUM(BT50) -> 12 | BU51: g | BV51: =SUM(BV50) -> 12 | BW51: % | BX51: du poids | BZ51: =(BZ50) -> Jusqu'à | CA51: =SUM(CA50) -> 150 | CB51: g | CC51: =SUM(CC50) -> 6 | CD51: jours | CE51: proies | CF51: =SUM(CF50) -> 18 | CG51: g | CH51: =SUM(CH50) -> 12 | CI51: % | CJ51: du poids | CL51: =(CL50) -> Jusqu'à | CM51: =SUM(CM50) -> 200 | CN51: g | CO51: =SUM(CO50) -> 6 | CP51: jours | CQ51: proies | CR51: =SUM(CR50) -> 24 | CS51: g | CT51: =SUM(CT50) -> 12 | CU51: % | CV51: du poids | CX51: =(CX50) -> Jusqu'à | CY51: =SUM(CY50) -> 250 | CZ51: 501 | DA51: =SUM(DA50) -> 6 | DB51: jours | DC51: proies | DD51: =SUM(DD50) -> 30 | DE51: g | DF51: =SUM(DF50) -> 12 | DG51: % | DH51: du poids | DJ51: =(DJ50) -> Jusqu'à | DK51: =SUM(DK50) -> 300 | DL51: g | DM51: =SUM(DM50) -> 7 | DN51: jours | DO51: proies | DP51: =SUM(DP50) -> 36 | DQ51: g | DR51: =SUM(DR50) -> 12 | DS51: % | DT51: du poids | DV51: =(DV50) -> Jusqu'à | DW51: =SUM(DW50) -> 350 | DX51: g | DY51: =SUM(DY50) -> 7 | DZ51: jours | EA51: proies | EB51: =SUM(EB50) -> 42 | EC51: g | ED51: =SUM(ED50) -> 12 | EE51: % | EF51: du poids | EH51: =(EH50) -> Jusqu'à | EI51: =SUM(EI50) -> 400 | EJ51: g | EK51: =SUM(EK50) -> 8 | EL51: jours | EM51: proies | EN51: =SUM(EN50) -> 48 | EO51: g | EP51: =SUM(EP50) -> 12 | EQ51: % | ER51: du poids | ET51: =(ET50) -> Jusqu'à | EU51: =SUM(EU50) -> 450 | EV51: g | EW51: =SUM(EW50) -> 8 | EX51: jours | EY51: proies | EZ51: =SUM(EZ50) -> 54 | FA51: g | FB51: =SUM(FB50) -> 12 | FC51: % | FD51: du poids | FF51: =(FF50) -> Jusqu'à | FG51: =SUM(FG50) -> 500 | FH51: g | FI51: =SUM(FI50) -> 8 | FJ51: jours | FK51: proies | FL51: =SUM(FL50) -> 60 | FM51: g | FN51: =SUM(FN50) -> 12 | FO51: % | FP51: du poids | FR51: =(FR50) -> Jusqu'à | FS51: 550 | FT51: g | FU51: =SUM(FU50) -> 8 | FV51: jours | FW51: proies | FX51: =SUM(FX50) -> 66 | FY51: g | FZ51: =SUM(FZ50) -> 12 | GA51: % | GB51: du poids | GD51: =(GD50) -> Jusqu'à | GE51: =SUM(GE50) -> 600 | GF51: g | GG51: =SUM(GG50) -> 8 | GH51: jours | GI51: proies | GJ51: =SUM(GJ50) -> 72 | GK51: g | GL51: =SUM(GL50) -> 12 | GM51: % | GN51: du poids | GP51: =(GP50) -> Jusqu'à | GQ51: =SUM(GQ50) -> 650 | GR51: g | GS51: =SUM(GS50) -> 9 | GT51: jours | GU51: proies | GV51: =SUM(GV50) -> 78 | GW51: g | GX51: =SUM(GX50) -> 12 | GY51: % | GZ51: du poids | HB51: =(HB50) -> Jusqu'à | HC51: =SUM(HC50) -> 700 | HD51: g | HE51: =SUM(HE50) -> 9 | HF51: jours | HG51: proies | HH51: =SUM(HH50) -> 84 | HI51: g | HJ51: =SUM(HJ50) -> 12 | HK51: % | HL51: du poids | HN51: =(HN50) -> Jusqu'à | HO51: =SUM(HO50) -> 750 | HP51: g | HQ51: =SUM(HQ50) -> 9 | HR51: jours | HS51: proies | HT51: =SUM(HT50) -> 90 | HU51: g | HV51: =SUM(HV50) -> 12 | HW51: % | HX51: du poids | HZ51: =(HZ50) -> Jusqu'à | IA51: =SUM(IA50) -> 800 | IB51: g | IC51: =SUM(IC50) -> 9 | ID51: jours | IE51: proies | IF51: =SUM(IF50) -> 96 | IG51: g | IH51: 12 | II51: % | IJ51: du poids | IL51: =(IL50) -> Jusqu'à | IM51: =SUM(IM50) -> 900 | IN51: g | IO51: =SUM(IO50) -> 9 | IP51: jours | IQ51: proies | IR51: =SUM(IR50) -> 108 | IS51: g | IT51: =SUM(IT50) -> 12 | IU51: % | IV51: du poids | IX51: =(IX50) -> Jusqu'à | IY51: =SUM(IY50) -> 1000 | IZ51: g | JA51: =SUM(JA50) -> 9 | JB51: jours | JC51: proies | JD51: =SUM(JD50) -> 120 | JE51: g | JF51: =SUM(JF50) -> 12 | JG51: % | JH51: du poids | JJ51: =(JJ50) -> Jusqu'à | JK51: =SUM(JK50) -> 1100 | JL51: g | JM51: =SUM(JM50) -> 9 | JN51: jours | JO51: proies | JP51: =SUM(JP50) -> 132 | JQ51: g | JR51: =SUM(JR50) -> 12 | JS51: % | JT51: du poids | JV51: =(JV50) -> Jusqu'à | JW51: =SUM(JW50) -> 1200 | JX51: g | JY51: =SUM(JY50) -> 9 | JZ51: jours | KA51: proies | KB51: =SUM(KB50) -> 144 | KC51: g | KD51: =SUM(KD50) -> 12 | KE51: % | KF51: du poids | KH51: =(KH50) -> Jusqu'à | KI51: =SUM(KI50) -> 1300 | KJ51: g | KK51: =SUM(KK50) -> 9 | KL51: jours | KM51: proies | KN51: =SUM(KN50) -> 156 | KO51: g | KP51: =SUM(KP50) -> 12 | KQ51: % | KR51: du poids | KT51: =(KT50) -> Jusqu'à | KU51: =SUM(KU50) -> 1400 | KV51: g | KW51: =SUM(KW50) -> 9 | KX51: jours | KY51: proies | KZ51: =SUM(KZ50) -> 168 | LA51: g | LB51: =SUM(LB50) -> 12 | LC51: % | LD51: du poids | LF51: =(LF50) -> Jusqu'à | LG51: =SUM(LG50) -> 1500 | LH51: g | LI51: =SUM(LI50) -> 9 | LJ51: jours | LK51: proies | LL51: =SUM(LL50) -> 180 | LM51: g | LN51: =SUM(LN50) -> 12 | LO51: % | LP51: du poids | LR51: =(LR50) -> Jusqu'à | LS51: =SUM(LS50) -> 1600 | LT51: g | LU51: =SUM(LU50) -> 9 | LV51: jours | LW51: proies | LX51: =SUM(LX50) -> 192 | LY51: g | LZ51: =SUM(LZ50) -> 12 | MA51: % | MB51: du poids | MD51: =(MD50) -> Jusqu'à | ME51: =SUM(ME50) -> 1700 | MF51: g | MG51: =SUM(MG50) -> 9 | MH51: jours | MI51: proies | MJ51: =SUM(MJ50) -> 204 | MK51: g | ML51: =SUM(ML50) -> 12 | MM51: % | MN51: du poids | MP51: =(MP50) -> Jusqu'à | MQ51: =SUM(MQ50) -> 1800 | MR51: g | MS51: =SUM(MS50) -> 9 | MT51: jours | MU51: proies | MV51: =SUM(MV50) -> 216 | MW51: g | MX51: =SUM(MX50) -> 12 | MY51: % | MZ51: du poids | NB51: =(NB50) -> Jusqu'à | NC51: =SUM(NC50) -> 1900 | ND51: g | NE51: =SUM(NE50) -> 9 | NF51: jours | NG51: proies | NH51: =SUM(NH50) -> 228 | NI51: g | NJ51: =SUM(NJ50) -> 12 | NK51: % | NL51: du poids | NN51: =(NN50) -> Jusqu'à | NO51: =SUM(NO50) -> 2000 | NP51: g | NQ51: =SUM(NQ50) -> 9 | NR51: jours | NS51: proies | NT51: =SUM(NT50) -> 240 | NU51: g | NV51: =SUM(NV50) -> 12 | NW51: % | NX51: du poids | NZ51: =(NZ50) -> Jusqu'à | OA51: =SUM(OA50) -> 2100 | OB51: g | OC51: =SUM(OC50) -> 9 | OD51: jours | OE51: proies | OF51: =SUM(OF50) -> 252 | OG51: g | OH51: =SUM(OH50) -> 12 | OI51: % | OJ51: du poids | OL51: =(OL50) -> Jusqu'à | OM51: =SUM(OM50) -> 2200 | ON51: g | OO51: =SUM(OO50) -> 9 | OP51: jours | OQ51: proies | OR51: =SUM(OR50) -> 242 | OS51: g | OT51: =SUM(OT50) -> 11 | OU51: % | OV51: du poids | OX51: =(OX50) -> Jusqu'à | OY51: =SUM(OY50) -> 2300 | OZ51: g | PA51: =SUM(PA50) -> 9 | PB51: jours | PC51: proies | PD51: =SUM(PD50) -> 230 | PE51: g | PF51: =SUM(PF50) -> 10 | PG51: % | PH51: du poids | PJ51: =(PJ50) -> Jusqu'à | PK51: =SUM(PK50) -> 2400 | PL51: g | PM51: =SUM(PM50) -> 9 | PN51: jours | PO51: proies | PP51: =SUM(PP50) -> 240 | PQ51: g | PR51: =SUM(PR50) -> 10 | PS51: % | PT51: du poids | PV51: =(PV50) -> Jusqu'à | PW51: =SUM(PW50) -> 2500 | PX51: g | PY51: =SUM(PY50) -> 9 | PZ51: jours | QA51: proies | QB51: =SUM(QB50) -> 250 | QC51: g | QD51: =SUM(QD50) -> 10 | QE51: % | QF51: du poids | QH51: =(QH50) -> Jusqu'à | QI51: =SUM(QI50) -> 2600 | QJ51: g | QK51: =SUM(QK50) -> 9 | QL51: jours | QM51: proies | QN51: =SUM(QN50) -> 260 | QO51: g | QP51: =SUM(QP50) -> 10 | QQ51: % | QR51: du poids | QT51: =(QT50) -> Jusqu'à | QU51: =SUM(QU50) -> 2700 | QV51: g | QW51: =SUM(QW50) -> 9 | QX51: jours | QY51: proies | QZ51: =SUM(QZ50) -> 270 | RA51: g | RB51: =SUM(RB50) -> 10 | RC51: % | RD51: du poids | RF51: =(RF50) -> Jusqu'à | RG51: =SUM(RG50) -> 2800 | RH51: g | RI51: =SUM(RI50) -> 9 | RJ51: jours | RK51: proies | RL51: =SUM(RL50) -> 280 | RM51: g | RN51: =SUM(RN50) -> 10 | RO51: % | RP51: du poids | RR51: =(RR50) -> Jusqu'à | RS51: =SUM(RS50) -> 2900 | RT51: g | RU51: =SUM(RU50) -> 9 | RV51: jours | RW51: proies | RX51: =SUM(RX50) -> 290 | RY51: g | RZ51: =SUM(RZ50) -> 10 | SA51: % | SB51: du poids | SD51: =(SD50) -> Jusqu'à | SE51: =SUM(SE50) -> 3000 | SF51: g | SG51: =SUM(SG50) -> 9 | SH51: jours | SI51: proies | SJ51: =SUM(SJ50) -> 300 | SK51: g | SL51: =SUM(SL50) -> 10 | SM51: % | SN51: du poids
A52: 8 | B52: jours | C52: =SUM(C51+A52) -> 2016-01-17 | F52: =IF(S52="","",IF(S52<=BC51,BH52,IF(S52<=BO51,BT52,IF(S52<=CA51,CF52,IF(S52<=CM51,CR52,IF(S52<=CY51,DD52,IF(S52<=DK51,DP52,IF(S52<=DW51,EB52,IF(S52<=EI51,EN52,IF(S52<=EU51,EZ52,IF(S52<=FG51,FL52,IF(S52<=FS51,FX52,IF(S52<=GE51,GJ52,IF(S52<=GQ51,GV52,IF(S52<=HC51,HH52,IF(S52<=HO51,HT52,IF(S52<=IA51,IF52,IF(S52<=IM51,IR52,IF(S52<=IY51,JD52,IF(S52<=JK51,JP52,IF(S52<=JW51,KB52,IF(S52<=KI51,KN52,IF(S52<=KU51,KZ52,IF(S52<=LG51,LL52,IF(S52<=LS51,LX52,IF(S52<=ME51,MJ52,IF(S52<=MQ51,MV52,IF(S52<=NC51,NH52,IF(S52<=NO51,NT52,IF(S52<=OA51,OF52,IF(S52<=OM51,OR52,IF(S52<=OY51,PD52,IF(S52<=PK51,PP52,IF(S52<=PW51,QB52,IF(S52<=QI51,QN52,IF(S52<=QU51,QZ52,IF(S52<=RG51,RL52,IF(S52<=RS51,RX52,IF(S52<=SE51,SJ52,""))))))))))))))))))))))))))))))))))))))) -> 66 | G52: g | H52: 73 | I52: g | J52: 7 | K52: g | O52: -42386 | P52: j | S52: 501 | U52: g | V52: 0 | X52: g | AA52: cm | AB52: 0 | AD52: cm | AF52: Pas de pesée | BB52: Jusqu'à | BC52: 80 | BD52: g | BE52: 4 | BF52: jours | BG52: proies | BH52: 9.6 | BI52: g | BJ52: 12 | BK52: % | BL52: du poids | BN52: Jusqu'à | BO52: 100 | BP52: g | BQ52: 6 | BR52: jours | BS52: proies | BT52: 12 | BU52: g | BV52: 12 | BW52: % | BX52: du poids | BZ52: Jusqu'à | CA52: 150 | CB52: g | CC52: 6 | CD52: jours | CE52: proies | CF52: 18 | CG52: g | CH52: 12 | CI52: % | CJ52: du poids | CL52: Jusqu'à | CM52: 200 | CN52: g | CO52: 6 | CP52: jours | CQ52: proies | CR52: 24 | CS52: g | CT52: 12 | CU52: % | CV52: du poids | CX52: Jusqu'à | CY52: 250 | CZ52: 502 | DA52: 6 | DB52: jours | DC52: proies | DD52: 30 | DE52: g | DF52: 12 | DG52: % | DH52: du poids | DJ52: Jusqu'à | DK52: 300 | DL52: g | DM52: 7 | DN52: jours | DO52: proies | DP52: 36 | DQ52: g | DR52: 12 | DS52: % | DT52: du poids | DV52: Jusqu'à | DW52: 350 | DX52: g | DY52: 7 | DZ52: jours | EA52: proies | EB52: 42 | EC52: g | ED52: 12 | EE52: % | EF52: du poids | EH52: Jusqu'à | EI52: 400 | EJ52: g | EK52: 8 | EL52: jours | EM52: proies | EN52: 48 | EO52: g | EP52: 12 | EQ52: % | ER52: du poids | ET52: Jusqu'à | EU52: 450 | EV52: g | EW52: 8 | EX52: jours | EY52: proies | EZ52: 54 | FA52: g | FB52: 12 | FC52: % | FD52: du poids | FF52: Jusqu'à | FG52: 500 | FH52: g | FI52: 8 | FJ52: jours | FK52: proies | FL52: 60 | FM52: g | FN52: 12 | FO52: % | FP52: du poids | FR52: Jusqu'à | FS52: 550 | FT52: g | FU52: 8 | FV52: jours | FW52: proies | FX52: 66 | FY52: g | FZ52: 12 | GA52: % | GB52: du poids | GD52: Jusqu'à | GE52: 600 | GF52: g | GG52: 8 | GH52: jours | GI52: proies | GJ52: 72 | GK52: g | GL52: 12 | GM52: % | GN52: du poids | GP52: Jusqu'à | GQ52: 650 | GR52: g | GS52: 9 | GT52: jours | GU52: proies | GV52: 78 | GW52: g | GX52: 12 | GY52: % | GZ52: du poids | HB52: Jusqu'à | HC52: 700 | HD52: g | HE52: 9 | HF52: jours | HG52: proies | HH52: 84 | HI52: g | HJ52: 12 | HK52: % | HL52: du poids | HN52: Jusqu'à | HO52: 750 | HP52: g | HQ52: 9 | HR52: jours | HS52: proies | HT52: 90 | HU52: g | HV52: 12 | HW52: % | HX52: du poids | HZ52: Jusqu'à | IA52: 800 | IB52: g | IC52: 9 | ID52: jours | IE52: proies | IF52: 96 | IG52: g | IH52: 12 | II52: % | IJ52: du poids | IL52: Jusqu'à | IM52: 900 | IN52: g | IO52: 9 | IP52: jours | IQ52: proies | IR52: 108 | IS52: g | IT52: 12 | IU52: % | IV52: du poids | IX52: Jusqu'à | IY52: 1000 | IZ52: g | JA52: 9 | JB52: jours | JC52: proies | JD52: 120 | JE52: g | JF52: 12 | JG52: % | JH52: du poids | JJ52: Jusqu'à | JK52: 1100 | JL52: g | JM52: 9 | JN52: jours | JO52: proies | JP52: 132 | JQ52: g | JR52: 12 | JS52: % | JT52: du poids | JV52: Jusqu'à | JW52: 1200 | JX52: g | JY52: 9 | JZ52: jours | KA52: proies | KB52: 144 | KC52: g | KD52: 12 | KE52: % | KF52: du poids | KH52: Jusqu'à | KI52: 1300 | KJ52: g | KK52: 9 | KL52: jours | KM52: proies | KN52: 156 | KO52: g | KP52: 12 | KQ52: % | KR52: du poids | KT52: Jusqu'à | KU52: 1400 | KV52: g | KW52: 9 | KX52: jours | KY52: proies | KZ52: 168 | LA52: g | LB52: 12 | LC52: % | LD52: du poids | LF52: Jusqu'à | LG52: 1500 | LH52: g | LI52: 9 | LJ52: jours | LK52: proies | LL52: 180 | LM52: g | LN52: 12 | LO52: % | LP52: du poids | LR52: Jusqu'à | LS52: 1600 | LT52: g | LU52: 9 | LV52: jours | LW52: proies | LX52: 192 | LY52: g | LZ52: 12 | MA52: % | MB52: du poids | MD52: Jusqu'à | ME52: 1700 | MF52: g | MG52: 9 | MH52: jours | MI52: proies | MJ52: 204 | MK52: g | ML52: 12 | MM52: % | MN52: du poids | MP52: Jusqu'à | MQ52: 1800 | MR52: g | MS52: 9 | MT52: jours | MU52: proies | MV52: 216 | MW52: g | MX52: 12 | MY52: % | MZ52: du poids | NB52: Jusqu'à | NC52: 1900 | ND52: g | NE52: 9 | NF52: jours | NG52: proies | NH52: 228 | NI52: g | NJ52: 12 | NK52: % | NL52: du poids | NN52: Jusqu'à | NO52: 2000 | NP52: g | NQ52: 9 | NR52: jours | NS52: proies | NT52: 240 | NU52: g | NV52: 12 | NW52: % | NX52: du poids | NZ52: Jusqu'à | OA52: 2100 | OB52: g | OC52: 9 | OD52: jours | OE52: proies | OF52: 252 | OG52: g | OH52: 12 | OI52: % | OJ52: du poids | OL52: Jusqu'à | OM52: 2200 | ON52: g | OO52: 9 | OP52: jours | OQ52: proies | OR52: 242 | OS52: g | OT52: 11 | OU52: % | OV52: du poids | OX52: Jusqu'à | OY52: 2300 | OZ52: g | PA52: 9 | PB52: jours | PC52: proies | PD52: 230 | PE52: g | PF52: 10 | PG52: % | PH52: du poids | PJ52: Jusqu'à | PK52: 2400 | PL52: g | PM52: 9 | PN52: jours | PO52: proies | PP52: 240 | PQ52: g | PR52: 10 | PS52: % | PT52: du poids | PV52: Jusqu'à | PW52: 2500 | PX52: g | PY52: 9 | PZ52: jours | QA52: proies | QB52: 250 | QC52: g | QD52: 10 | QE52: % | QF52: du poids | QH52: Jusqu'à | QI52: 2600 | QJ52: g | QK52: 9 | QL52: jours | QM52: proies | QN52: 260 | QO52: g | QP52: 10 | QQ52: % | QR52: du poids | QT52: Jusqu'à | QU52: 2700 | QV52: g | QW52: 9 | QX52: jours | QY52: proies | QZ52: 270 | RA52: g | RB52: 10 | RC52: % | RD52: du poids | RF52: Jusqu'à | RG52: 2800 | RH52: g | RI52: 9 | RJ52: jours | RK52: proies | RL52: 280 | RM52: g | RN52: 10 | RO52: % | RP52: du poids | RR52: Jusqu'à | RS52: 2900 | RT52: g | RU52: 9 | RV52: jours | RW52: proies | RX52: 290 | RY52: g | RZ52: 10 | SA52: % | SB52: du poids | SD52: Jusqu'à | SE52: 3000 | SF52: g | SG52: 9 | SH52: jours | SI52: proies | SJ52: 300 | SK52: g | SL52: 10 | SM52: % | SN52: du poids
A53: 8 | B53: jours | C53: =SUM(C52+A53) -> 2016-01-25 | F53: =IF(S53="","",IF(S53<=BC52,BH53,IF(S53<=BO52,BT53,IF(S53<=CA52,CF53,IF(S53<=CM52,CR53,IF(S53<=CY52,DD53,IF(S53<=DK52,DP53,IF(S53<=DW52,EB53,IF(S53<=EI52,EN53,IF(S53<=EU52,EZ53,IF(S53<=FG52,FL53,IF(S53<=FS52,FX53,IF(S53<=GE52,GJ53,IF(S53<=GQ52,GV53,IF(S53<=HC52,HH53,IF(S53<=HO52,HT53,IF(S53<=IA52,IF53,IF(S53<=IM52,IR53,IF(S53<=IY52,JD53,IF(S53<=JK52,JP53,IF(S53<=JW52,KB53,IF(S53<=KI52,KN53,IF(S53<=KU52,KZ53,IF(S53<=LG52,LL53,IF(S53<=LS52,LX53,IF(S53<=ME52,MJ53,IF(S53<=MQ52,MV53,IF(S53<=NC52,NH53,IF(S53<=NO52,NT53,IF(S53<=OA52,OF53,IF(S53<=OM52,OR53,IF(S53<=OY52,PD53,IF(S53<=PK52,PP53,IF(S53<=PW52,QB53,IF(S53<=QI52,QN53,IF(S53<=QU52,QZ53,IF(S53<=RG52,RL53,IF(S53<=RS52,RX53,IF(S53<=SE52,SJ53,""))))))))))))))))))))))))))))))))))))))) ->  | G53: g | I53: g | K53: g | O53: -42394 | P53: j | U53: g | V53: -501 | X53: g | AA53: cm | AB53: 0 | AD53: cm | BB53: Jusqu'à | BC53: 80 | BD53: g | BE53: 4 | BF53: jours | BG53: proies | BH53: 9.6 | BI53: g | BJ53: 12 | BK53: % | BL53: du poids | BN53: Jusqu'à | BO53: 100 | BP53: g | BQ53: 6 | BR53: jours | BS53: proies | BT53: 12 | BU53: g | BV53: 12 | BW53: % | BX53: du poids | BZ53: Jusqu'à | CA53: 150 | CB53: g | CC53: 6 | CD53: jours | CE53: proies | CF53: 18 | CG53: g | CH53: 12 | CI53: % | CJ53: du poids | CL53: Jusqu'à | CM53: 200 | CN53: g | CO53: 6 | CP53: jours | CQ53: proies | CR53: 24 | CS53: g | CT53: 12 | CU53: % | CV53: du poids | CX53: Jusqu'à | CY53: 250 | CZ53: 503 | DA53: 6 | DB53: jours | DC53: proies | DD53: 30 | DE53: g | DF53: 12 | DG53: % | DH53: du poids | DJ53: Jusqu'à | DK53: 300 | DL53: g | DM53: 7 | DN53: jours | DO53: proies | DP53: 36 | DQ53: g | DR53: 12 | DS53: % | DT53: du poids | DV53: Jusqu'à | DW53: 350 | DX53: g | DY53: 7 | DZ53: jours | EA53: proies | EB53: 42 | EC53: g | ED53: 12 | EE53: % | EF53: du poids | EH53: Jusqu'à | EI53: 400 | EJ53: g | EK53: 8 | EL53: jours | EM53: proies | EN53: 48 | EO53: g | EP53: 12 | EQ53: % | ER53: du poids | ET53: Jusqu'à | EU53: 450 | EV53: g | EW53: 8 | EX53: jours | EY53: proies | EZ53: 54 | FA53: g | FB53: 12 | FC53: % | FD53: du poids | FF53: Jusqu'à | FG53: 500 | FH53: g | FI53: 8 | FJ53: jours | FK53: proies | FL53: 60 | FM53: g | FN53: 12 | FO53: % | FP53: du poids | FR53: Jusqu'à | FS53: 550 | FT53: g | FU53: 8 | FV53: jours | FW53: proies | FX53: 66 | FY53: g | FZ53: 12 | GA53: % | GB53: du poids | GD53: Jusqu'à | GE53: 600 | GF53: g | GG53: 8 | GH53: jours | GI53: proies | GJ53: 72 | GK53: g | GL53: 12 | GM53: % | GN53: du poids | GP53: Jusqu'à | GQ53: 650 | GR53: g | GS53: 9 | GT53: jours | GU53: proies | GV53: 78 | GW53: g | GX53: 12 | GY53: % | GZ53: du poids | HB53: Jusqu'à | HC53: 700 | HD53: g | HE53: 9 | HF53: jours | HG53: proies | HH53: 84 | HI53: g | HJ53: 12 | HK53: % | HL53: du poids | HN53: Jusqu'à | HO53: 750 | HP53: g | HQ53: 9 | HR53: jours | HS53: proies | HT53: 90 | HU53: g | HV53: 12 | HW53: % | HX53: du poids | HZ53: Jusqu'à | IA53: 800 | IB53: g | IC53: 9 | ID53: jours | IE53: proies | IF53: 96 | IG53: g | IH53: 12 | II53: % | IJ53: du poids | IL53: Jusqu'à | IM53: 900 | IN53: g | IO53: 9 | IP53: jours | IQ53: proies | IR53: 108 | IS53: g | IT53: 12 | IU53: % | IV53: du poids | IX53: Jusqu'à | IY53: 1000 | IZ53: g | JA53: 9 | JB53: jours | JC53: proies | JD53: 120 | JE53: g | JF53: 12 | JG53: % | JH53: du poids | JJ53: Jusqu'à | JK53: 1100 | JL53: g | JM53: 9 | JN53: jours | JO53: proies | JP53: 132 | JQ53: g | JR53: 12 | JS53: % | JT53: du poids | JV53: Jusqu'à | JW53: 1200 | JX53: g | JY53: 9 | JZ53: jours | KA53: proies | KB53: 144 | KC53: g | KD53: 12 | KE53: % | KF53: du poids | KH53: Jusqu'à | KI53: 1300 | KJ53: g | KK53: 9 | KL53: jours | KM53: proies | KN53: 156 | KO53: g | KP53: 12 | KQ53: % | KR53: du poids | KT53: Jusqu'à | KU53: 1400 | KV53: g | KW53: 9 | KX53: jours | KY53: proies | KZ53: 168 | LA53: g | LB53: 12 | LC53: % | LD53: du poids | LF53: Jusqu'à | LG53: 1500 | LH53: g | LI53: 9 | LJ53: jours | LK53: proies | LL53: 180 | LM53: g | LN53: 12 | LO53: % | LP53: du poids | LR53: Jusqu'à | LS53: 1600 | LT53: g | LU53: 9 | LV53: jours | LW53: proies | LX53: 192 | LY53: g | LZ53: 12 | MA53: % | MB53: du poids | MD53: Jusqu'à | ME53: 1700 | MF53: g | MG53: 9 | MH53: jours | MI53: proies | MJ53: 204 | MK53: g | ML53: 12 | MM53: % | MN53: du poids | MP53: Jusqu'à | MQ53: 1800 | MR53: g | MS53: 9 | MT53: jours | MU53: proies | MV53: 216 | MW53: g | MX53: 12 | MY53: % | MZ53: du poids | NB53: Jusqu'à | NC53: 1900 | ND53: g | NE53: 9 | NF53: jours | NG53: proies | NH53: 228 | NI53: g | NJ53: 12 | NK53: % | NL53: du poids | NN53: Jusqu'à | NO53: 2000 | NP53: g | NQ53: 9 | NR53: jours | NS53: proies | NT53: 240 | NU53: g | NV53: 12 | NW53: % | NX53: du poids | NZ53: Jusqu'à | OA53: 2100 | OB53: g | OC53: 9 | OD53: jours | OE53: proies | OF53: 252 | OG53: g | OH53: 12 | OI53: % | OJ53: du poids | OL53: Jusqu'à | OM53: 2200 | ON53: g | OO53: 9 | OP53: jours | OQ53: proies | OR53: 242 | OS53: g | OT53: 11 | OU53: % | OV53: du poids | OX53: Jusqu'à | OY53: 2300 | OZ53: g | PA53: 9 | PB53: jours | PC53: proies | PD53: 230 | PE53: g | PF53: 10 | PG53: % | PH53: du poids | PJ53: Jusqu'à | PK53: 2400 | PL53: g | PM53: 9 | PN53: jours | PO53: proies | PP53: 240 | PQ53: g | PR53: 10 | PS53: % | PT53: du poids | PV53: Jusqu'à | PW53: 2500 | PX53: g | PY53: 9 | PZ53: jours | QA53: proies | QB53: 250 | QC53: g | QD53: 10 | QE53: % | QF53: du poids | QH53: Jusqu'à | QI53: 2600 | QJ53: g | QK53: 9 | QL53: jours | QM53: proies | QN53: 260 | QO53: g | QP53: 10 | QQ53: % | QR53: du poids | QT53: Jusqu'à | QU53: 2700 | QV53: g | QW53: 9 | QX53: jours | QY53: proies | QZ53: 270 | RA53: g | RB53: 10 | RC53: % | RD53: du poids | RF53: Jusqu'à | RG53: 2800 | RH53: g | RI53: 9 | RJ53: jours | RK53: proies | RL53: 280 | RM53: g | RN53: 10 | RO53: % | RP53: du poids | RR53: Jusqu'à | RS53: 2900 | RT53: g | RU53: 9 | RV53: jours | RW53: proies | RX53: 290 | RY53: g | RZ53: 10 | SA53: % | SB53: du poids | SD53: Jusqu'à | SE53: 3000 | SF53: g | SG53: 9 | SH53: jours | SI53: proies | SJ53: 300 | SK53: g | SL53: 10 | SM53: % | SN53: du poids
B54: jours | C54: =SUM(C53+A54) ->  | F54: =IF(S54="","",IF(S54<=BC53,BH54,IF(S54<=BO53,BT54,IF(S54<=CA53,CF54,IF(S54<=CM53,CR54,IF(S54<=CY53,DD54,IF(S54<=DK53,DP54,IF(S54<=DW53,EB54,IF(S54<=EI53,EN54,IF(S54<=EU53,EZ54,IF(S54<=FG53,FL54,IF(S54<=FS53,FX54,IF(S54<=GE53,GJ54,IF(S54<=GQ53,GV54,IF(S54<=HC53,HH54,IF(S54<=HO53,HT54,IF(S54<=IA53,IF54,IF(S54<=IM53,IR54,IF(S54<=IY53,JD54,IF(S54<=JK53,JP54,IF(S54<=JW53,KB54,IF(S54<=KI53,KN54,IF(S54<=KU53,KZ54,IF(S54<=LG53,LL54,IF(S54<=LS53,LX54,IF(S54<=ME53,MJ54,IF(S54<=MQ53,MV54,IF(S54<=NC53,NH54,IF(S54<=NO53,NT54,IF(S54<=OA53,OF54,IF(S54<=OM53,OR54,IF(S54<=OY53,PD54,IF(S54<=PK53,PP54,IF(S54<=PW53,QB54,IF(S54<=QI53,QN54,IF(S54<=QU53,QZ54,IF(S54<=RG53,RL54,IF(S54<=RS53,RX54,IF(S54<=SE53,SJ54,""))))))))))))))))))))))))))))))))))))))) ->  | G54: g | I54: g | K54: g | P54: j | U54: g | V54: 0 | X54: g | AA54: cm | AB54: 0 | AD54: cm | BB54: Jusqu'à | BC54: 80 | BD54: g | BE54: 4 | BF54: jours | BG54: proies | BH54: 9.6 | BI54: g | BJ54: 12 | BK54: % | BL54: du poids | BN54: Jusqu'à | BO54: 100 | BP54: g | BQ54: 6 | BR54: jours | BS54: proies | BT54: 12 | BU54: g | BV54: 12 | BW54: % | BX54: du poids | BZ54: Jusqu'à | CA54: 150 | CB54: g | CC54: 6 | CD54: jours | CE54: proies | CF54: 18 | CG54: g | CH54: 12 | CI54: % | CJ54: du poids | CL54: Jusqu'à | CM54: 200 | CN54: g | CO54: 6 | CP54: jours | CQ54: proies | CR54: 24 | CS54: g | CT54: 12 | CU54: % | CV54: du poids | CX54: Jusqu'à | CY54: 250 | CZ54: 504 | DA54: 6 | DB54: jours | DC54: proies | DD54: 30 | DE54: g | DF54: 12 | DG54: % | DH54: du poids | DJ54: Jusqu'à | DK54: 300 | DL54: g | DM54: 7 | DN54: jours | DO54: proies | DP54: 36 | DQ54: g | DR54: 12 | DS54: % | DT54: du poids | DV54: Jusqu'à | DW54: 350 | DX54: g | DY54: 7 | DZ54: jours | EA54: proies | EB54: 42 | EC54: g | ED54: 12 | EE54: % | EF54: du poids | EH54: Jusqu'à | EI54: 400 | EJ54: g | EK54: 8 | EL54: jours | EM54: proies | EN54: 48 | EO54: g | EP54: 12 | EQ54: % | ER54: du poids | ET54: Jusqu'à | EU54: 450 | EV54: g | EW54: 8 | EX54: jours | EY54: proies | EZ54: 54 | FA54: g | FB54: 12 | FC54: % | FD54: du poids | FF54: Jusqu'à | FG54: 500 | FH54: g | FI54: 8 | FJ54: jours | FK54: proies | FL54: 60 | FM54: g | FN54: 12 | FO54: % | FP54: du poids | FR54: Jusqu'à | FS54: 550 | FT54: g | FU54: 8 | FV54: jours | FW54: proies | FX54: 66 | FY54: g | FZ54: 12 | GA54: % | GB54: du poids | GD54: Jusqu'à | GE54: 600 | GF54: g | GG54: 8 | GH54: jours | GI54: proies | GJ54: 72 | GK54: g | GL54: 12 | GM54: % | GN54: du poids | GP54: Jusqu'à | GQ54: 650 | GR54: g | GS54: 9 | GT54: jours | GU54: proies | GV54: 78 | GW54: g | GX54: 12 | GY54: % | GZ54: du poids | HB54: Jusqu'à | HC54: 700 | HD54: g | HE54: 9 | HF54: jours | HG54: proies | HH54: 84 | HI54: g | HJ54: 12 | HK54: % | HL54: du poids | HN54: Jusqu'à | HO54: 750 | HP54: g | HQ54: 9 | HR54: jours | HS54: proies | HT54: 90 | HU54: g | HV54: 12 | HW54: % | HX54: du poids | HZ54: Jusqu'à | IA54: 800 | IB54: g | IC54: 9 | ID54: jours | IE54: proies | IF54: 96 | IG54: g | IH54: 12 | II54: % | IJ54: du poids | IL54: Jusqu'à | IM54: 900 | IN54: g | IO54: 9 | IP54: jours | IQ54: proies | IR54: 108 | IS54: g | IT54: 12 | IU54: % | IV54: du poids | IX54: Jusqu'à | IY54: 1000 | IZ54: g | JA54: 9 | JB54: jours | JC54: proies | JD54: 120 | JE54: g | JF54: 12 | JG54: % | JH54: du poids | JJ54: Jusqu'à | JK54: 1100 | JL54: g | JM54: 9 | JN54: jours | JO54: proies | JP54: 132 | JQ54: g | JR54: 12 | JS54: % | JT54: du poids | JV54: Jusqu'à | JW54: 1200 | JX54: g | JY54: 9 | JZ54: jours | KA54: proies | KB54: 144 | KC54: g | KD54: 12 | KE54: % | KF54: du poids | KH54: Jusqu'à | KI54: 1300 | KJ54: g | KK54: 9 | KL54: jours | KM54: proies | KN54: 156 | KO54: g | KP54: 12 | KQ54: % | KR54: du poids | KT54: Jusqu'à | KU54: 1400 | KV54: g | KW54: 9 | KX54: jours | KY54: proies | KZ54: 168 | LA54: g | LB54: 12 | LC54: % | LD54: du poids | LF54: Jusqu'à | LG54: 1500 | LH54: g | LI54: 9 | LJ54: jours | LK54: proies | LL54: 180 | LM54: g | LN54: 12 | LO54: % | LP54: du poids | LR54: Jusqu'à | LS54: 1600 | LT54: g | LU54: 9 | LV54: jours | LW54: proies | LX54: 192 | LY54: g | LZ54: 12 | MA54: % | MB54: du poids | MD54: Jusqu'à | ME54: 1700 | MF54: g | MG54: 9 | MH54: jours | MI54: proies | MJ54: 204 | MK54: g | ML54: 12 | MM54: % | MN54: du poids | MP54: Jusqu'à | MQ54: 1800 | MR54: g | MS54: 9 | MT54: jours | MU54: proies | MV54: 216 | MW54: g | MX54: 12 | MY54: % | MZ54: du poids | NB54: Jusqu'à | NC54: 1900 | ND54: g | NE54: 9 | NF54: jours | NG54: proies | NH54: 228 | NI54: g | NJ54: 12 | NK54: % | NL54: du poids | NN54: Jusqu'à | NO54: 2000 | NP54: g | NQ54: 9 | NR54: jours | NS54: proies | NT54: 240 | NU54: g | NV54: 12 | NW54: % | NX54: du poids | NZ54: Jusqu'à | OA54: 2100 | OB54: g | OC54: 9 | OD54: jours | OE54: proies | OF54: 252 | OG54: g | OH54: 12 | OI54: % | OJ54: du poids | OL54: Jusqu'à | OM54: 2200 | ON54: g | OO54: 9 | OP54: jours | OQ54: proies | OR54: 242 | OS54: g | OT54: 11 | OU54: % | OV54: du poids | OX54: Jusqu'à | OY54: 2300 | OZ54: g | PA54: 9 | PB54: jours | PC54: proies | PD54: 230 | PE54: g | PF54: 10 | PG54: % | PH54: du poids | PJ54: Jusqu'à | PK54: 2400 | PL54: g | PM54: 9 | PN54: jours | PO54: proies | PP54: 240 | PQ54: g | PR54: 10 | PS54: % | PT54: du poids | PV54: Jusqu'à | PW54: 2500 | PX54: g | PY54: 9 | PZ54: jours | QA54: proies | QB54: 250 | QC54: g | QD54: 10 | QE54: % | QF54: du poids | QH54: Jusqu'à | QI54: 2600 | QJ54: g | QK54: 9 | QL54: jours | QM54: proies | QN54: 260 | QO54: g | QP54: 10 | QQ54: % | QR54: du poids | QT54: Jusqu'à | QU54: 2700 | QV54: g | QW54: 9 | QX54: jours | QY54: proies | QZ54: 270 | RA54: g | RB54: 10 | RC54: % | RD54: du poids | RF54: Jusqu'à | RG54: 2800 | RH54: g | RI54: 9 | RJ54: jours | RK54: proies | RL54: 280 | RM54: g | RN54: 10 | RO54: % | RP54: du poids | RR54: Jusqu'à | RS54: 2900 | RT54: g | RU54: 9 | RV54: jours | RW54: proies | RX54: 290 | RY54: g | RZ54: 10 | SA54: % | SB54: du poids | SD54: Jusqu'à | SE54: 3000 | SF54: g | SG54: 9 | SH54: jours | SI54: proies | SJ54: 300 | SK54: g | SL54: 10 | SM54: % | SN54: du poids
B55: jours | C55: =SUM(C54+A55) ->  | F55: =IF(S55="","",IF(S55<=BC54,BH55,IF(S55<=BO54,BT55,IF(S55<=CA54,CF55,IF(S55<=CM54,CR55,IF(S55<=CY54,DD55,IF(S55<=DK54,DP55,IF(S55<=DW54,EB55,IF(S55<=EI54,EN55,IF(S55<=EU54,EZ55,IF(S55<=FG54,FL55,IF(S55<=FS54,FX55,IF(S55<=GE54,GJ55,IF(S55<=GQ54,GV55,IF(S55<=HC54,HH55,IF(S55<=HO54,HT55,IF(S55<=IA54,IF55,IF(S55<=IM54,IR55,IF(S55<=IY54,JD55,IF(S55<=JK54,JP55,IF(S55<=JW54,KB55,IF(S55<=KI54,KN55,IF(S55<=KU54,KZ55,IF(S55<=LG54,LL55,IF(S55<=LS54,LX55,IF(S55<=ME54,MJ55,IF(S55<=MQ54,MV55,IF(S55<=NC54,NH55,IF(S55<=NO54,NT55,IF(S55<=OA54,OF55,IF(S55<=OM54,OR55,IF(S55<=OY54,PD55,IF(S55<=PK54,PP55,IF(S55<=PW54,QB55,IF(S55<=QI54,QN55,IF(S55<=QU54,QZ55,IF(S55<=RG54,RL55,IF(S55<=RS54,RX55,IF(S55<=SE54,SJ55,""))))))))))))))))))))))))))))))))))))))) ->  | G55: g | I55: g | K55: g | P55: j | U55: g | V55: 0 | X55: g | AA55: cm | AB55: 0 | AD55: cm | BB55: Jusqu'à | BC55: 80 | BD55: g | BE55: 4 | BF55: jours | BG55: proies | BH55: 9.6 | BI55: g | BJ55: 12 | BK55: % | BL55: du poids | BN55: Jusqu'à | BO55: 100 | BP55: g | BQ55: 6 | BR55: jours | BS55: proies | BT55: 12 | BU55: g | BV55: 12 | BW55: % | BX55: du poids | BZ55: Jusqu'à | CA55: 150 | CB55: g | CC55: 6 | CD55: jours | CE55: proies | CF55: 18 | CG55: g | CH55: 12 | CI55: % | CJ55: du poids | CL55: Jusqu'à | CM55: 200 | CN55: g | CO55: 6 | CP55: jours | CQ55: proies | CR55: 24 | CS55: g | CT55: 12 | CU55: % | CV55: du poids | CX55: Jusqu'à | CY55: 250 | CZ55: 505 | DA55: 6 | DB55: jours | DC55: proies | DD55: 30 | DE55: g | DF55: 12 | DG55: % | DH55: du poids | DJ55: Jusqu'à | DK55: 300 | DL55: g | DM55: 7 | DN55: jours | DO55: proies | DP55: 36 | DQ55: g | DR55: 12 | DS55: % | DT55: du poids | DV55: Jusqu'à | DW55: 350 | DX55: g | DY55: 7 | DZ55: jours | EA55: proies | EB55: 42 | EC55: g | ED55: 12 | EE55: % | EF55: du poids | EH55: Jusqu'à | EI55: 400 | EJ55: g | EK55: 8 | EL55: jours | EM55: proies | EN55: 48 | EO55: g | EP55: 12 | EQ55: % | ER55: du poids | ET55: Jusqu'à | EU55: 450 | EV55: g | EW55: 8 | EX55: jours | EY55: proies | EZ55: 54 | FA55: g | FB55: 12 | FC55: % | FD55: du poids | FF55: Jusqu'à | FG55: 500 | FH55: g | FI55: 8 | FJ55: jours | FK55: proies | FL55: 60 | FM55: g | FN55: 12 | FO55: % | FP55: du poids | FR55: Jusqu'à | FS55: 550 | FT55: g | FU55: 8 | FV55: jours | FW55: proies | FX55: 66 | FY55: g | FZ55: 12 | GA55: % | GB55: du poids | GD55: Jusqu'à | GE55: 600 | GF55: g | GG55: 8 | GH55: jours | GI55: proies | GJ55: 72 | GK55: g | GL55: 12 | GM55: % | GN55: du poids | GP55: Jusqu'à | GQ55: 650 | GR55: g | GS55: 9 | GT55: jours | GU55: proies | GV55: 78 | GW55: g | GX55: 12 | GY55: % | GZ55: du poids | HB55: Jusqu'à | HC55: 700 | HD55: g | HE55: 9 | HF55: jours | HG55: proies | HH55: 84 | HI55: g | HJ55: 12 | HK55: % | HL55: du poids | HN55: Jusqu'à | HO55: 750 | HP55: g | HQ55: 9 | HR55: jours | HS55: proies | HT55: 90 | HU55: g | HV55: 12 | HW55: % | HX55: du poids | HZ55: Jusqu'à | IA55: 800 | IB55: g | IC55: 9 | ID55: jours | IE55: proies | IF55: 96 | IG55: g | IH55: 12 | II55: % | IJ55: du poids | IL55: Jusqu'à | IM55: 900 | IN55: g | IO55: 9 | IP55: jours | IQ55: proies | IR55: 108 | IS55: g | IT55: 12 | IU55: % | IV55: du poids | IX55: Jusqu'à | IY55: 1000 | IZ55: g | JA55: 9 | JB55: jours | JC55: proies | JD55: 120 | JE55: g | JF55: 12 | JG55: % | JH55: du poids | JJ55: Jusqu'à | JK55: 1100 | JL55: g | JM55: 9 | JN55: jours | JO55: proies | JP55: 132 | JQ55: g | JR55: 12 | JS55: % | JT55: du poids | JV55: Jusqu'à | JW55: 1200 | JX55: g | JY55: 9 | JZ55: jours | KA55: proies | KB55: 144 | KC55: g | KD55: 12 | KE55: % | KF55: du poids | KH55: Jusqu'à | KI55: 1300 | KJ55: g | KK55: 9 | KL55: jours | KM55: proies | KN55: 156 | KO55: g | KP55: 12 | KQ55: % | KR55: du poids | KT55: Jusqu'à | KU55: 1400 | KV55: g | KW55: 9 | KX55: jours | KY55: proies | KZ55: 168 | LA55: g | LB55: 12 | LC55: % | LD55: du poids | LF55: Jusqu'à | LG55: 1500 | LH55: g | LI55: 9 | LJ55: jours | LK55: proies | LL55: 180 | LM55: g | LN55: 12 | LO55: % | LP55: du poids | LR55: Jusqu'à | LS55: 1600 | LT55: g | LU55: 9 | LV55: jours | LW55: proies | LX55: 192 | LY55: g | LZ55: 12 | MA55: % | MB55: du poids | MD55: Jusqu'à | ME55: 1700 | MF55: g | MG55: 9 | MH55: jours | MI55: proies | MJ55: 204 | MK55: g | ML55: 12 | MM55: % | MN55: du poids | MP55: Jusqu'à | MQ55: 1800 | MR55: g | MS55: 9 | MT55: jours | MU55: proies | MV55: 216 | MW55: g | MX55: 12 | MY55: % | MZ55: du poids | NB55: Jusqu'à | NC55: 1900 | ND55: g | NE55: 9 | NF55: jours | NG55: proies | NH55: 228 | NI55: g | NJ55: 12 | NK55: % | NL55: du poids | NN55: Jusqu'à | NO55: 2000 | NP55: g | NQ55: 9 | NR55: jours | NS55: proies | NT55: 240 | NU55: g | NV55: 12 | NW55: % | NX55: du poids | NZ55: Jusqu'à | OA55: 2100 | OB55: g | OC55: 9 | OD55: jours | OE55: proies | OF55: 252 | OG55: g | OH55: 12 | OI55: % | OJ55: du poids | OL55: Jusqu'à | OM55: 2200 | ON55: g | OO55: 9 | OP55: jours | OQ55: proies | OR55: 242 | OS55: g | OT55: 11 | OU55: % | OV55: du poids | OX55: Jusqu'à | OY55: 2300 | OZ55: g | PA55: 9 | PB55: jours | PC55: proies | PD55: 230 | PE55: g | PF55: 10 | PG55: % | PH55: du poids | PJ55: Jusqu'à | PK55: 2400 | PL55: g | PM55: 9 | PN55: jours | PO55: proies | PP55: 240 | PQ55: g | PR55: 10 | PS55: % | PT55: du poids | PV55: Jusqu'à | PW55: 2500 | PX55: g | PY55: 9 | PZ55: jours | QA55: proies | QB55: 250 | QC55: g | QD55: 10 | QE55: % | QF55: du poids | QH55: Jusqu'à | QI55: 2600 | QJ55: g | QK55: 9 | QL55: jours | QM55: proies | QN55: 260 | QO55: g | QP55: 10 | QQ55: % | QR55: du poids | QT55: Jusqu'à | QU55: 2700 | QV55: g | QW55: 9 | QX55: jours | QY55: proies | QZ55: 270 | RA55: g | RB55: 10 | RC55: % | RD55: du poids | RF55: Jusqu'à | RG55: 2800 | RH55: g | RI55: 9 | RJ55: jours | RK55: proies | RL55: 280 | RM55: g | RN55: 10 | RO55: % | RP55: du poids | RR55: Jusqu'à | RS55: 2900 | RT55: g | RU55: 9 | RV55: jours | RW55: proies | RX55: 290 | RY55: g | RZ55: 10 | SA55: % | SB55: du poids | SD55: Jusqu'à | SE55: 3000 | SF55: g | SG55: 9 | SH55: jours | SI55: proies | SJ55: 300 | SK55: g | SL55: 10 | SM55: % | SN55: du poids
B56: jours | C56: =SUM(C55+A56) ->  | G56: g | I56: g | K56: g | P56: j | U56: g | V56: 0 | X56: g | AA56: cm | AB56: 0 | AD56: cm | BB56: Jusqu'à | BC56: 80 | BD56: g | BE56: 4 | BF56: jours | BG56: proies | BH56: 9.6 | BI56: g | BJ56: 12 | BK56: % | BL56: du poids | BN56: Jusqu'à | BO56: 100 | BP56: g | BQ56: 6 | BR56: jours | BS56: proies | BT56: 12 | BU56: g | BV56: 12 | BW56: % | BX56: du poids | BZ56: Jusqu'à | CA56: 150 | CB56: g | CC56: 6 | CD56: jours | CE56: proies | CF56: 18 | CG56: g | CH56: 12 | CI56: % | CJ56: du poids | CL56: Jusqu'à | CM56: 200 | CN56: g | CO56: 6 | CP56: jours | CQ56: proies | CR56: 24 | CS56: g | CT56: 12 | CU56: % | CV56: du poids | CX56: Jusqu'à | CY56: 250 | CZ56: 506 | DA56: 6 | DB56: jours | DC56: proies | DD56: 30 | DE56: g | DF56: 12 | DG56: % | DH56: du poids | DJ56: Jusqu'à | DK56: 300 | DL56: g | DM56: 7 | DN56: jours | DO56: proies | DP56: 36 | DQ56: g | DR56: 12 | DS56: % | DT56: du poids | DV56: Jusqu'à | DW56: 350 | DX56: g | DY56: 7 | DZ56: jours | EA56: proies | EB56: 42 | EC56: g | ED56: 12 | EE56: % | EF56: du poids | EH56: Jusqu'à | EI56: 400 | EJ56: g | EK56: 8 | EL56: jours | EM56: proies | EN56: 48 | EO56: g | EP56: 12 | EQ56: % | ER56: du poids | ET56: Jusqu'à | EU56: 450 | EV56: g | EW56: 8 | EX56: jours | EY56: proies | EZ56: 54 | FA56: g | FB56: 12 | FC56: % | FD56: du poids | FF56: Jusqu'à | FG56: 500 | FH56: g | FI56: 8 | FJ56: jours | FK56: proies | FL56: 60 | FM56: g | FN56: 12 | FO56: % | FP56: du poids | FR56: Jusqu'à | FS56: 550 | FT56: g | FU56: 8 | FV56: jours | FW56: proies | FX56: 66 | FY56: g | FZ56: 12 | GA56: % | GB56: du poids | GD56: Jusqu'à | GE56: 600 | GF56: g | GG56: 8 | GH56: jours | GI56: proies | GJ56: 72 | GK56: g | GL56: 12 | GM56: % | GN56: du poids | GP56: Jusqu'à | GQ56: 650 | GR56: g | GS56: 9 | GT56: jours | GU56: proies | GV56: 78 | GW56: g | GX56: 12 | GY56: % | GZ56: du poids | HB56: Jusqu'à | HC56: 700 | HD56: g | HE56: 9 | HF56: jours | HG56: proies | HH56: 84 | HI56: g | HJ56: 12 | HK56: % | HL56: du poids | HN56: Jusqu'à | HO56: 750 | HP56: g | HQ56: 9 | HR56: jours | HS56: proies | HT56: 90 | HU56: g | HV56: 12 | HW56: % | HX56: du poids | HZ56: Jusqu'à | IA56: 800 | IB56: g | IC56: 9 | ID56: jours | IE56: proies | IF56: 96 | IG56: g | IH56: 12 | II56: % | IJ56: du poids | IL56: Jusqu'à | IM56: 900 | IN56: g | IO56: 9 | IP56: jours | IQ56: proies | IR56: 108 | IS56: g | IT56: 12 | IU56: % | IV56: du poids | IX56: Jusqu'à | IY56: 1000 | IZ56: g | JA56: 9 | JB56: jours | JC56: proies | JD56: 120 | JE56: g | JF56: 12 | JG56: % | JH56: du poids | JJ56: Jusqu'à | JK56: 1100 | JL56: g | JM56: 9 | JN56: jours | JO56: proies | JP56: 132 | JQ56: g | JR56: 12 | JS56: % | JT56: du poids | JV56: Jusqu'à | JW56: 1200 | JX56: g | JY56: 9 | JZ56: jours | KA56: proies | KB56: 144 | KC56: g | KD56: 12 | KE56: % | KF56: du poids | KH56: Jusqu'à | KI56: 1300 | KJ56: g | KK56: 9 | KL56: jours | KM56: proies | KN56: 156 | KO56: g | KP56: 12 | KQ56: % | KR56: du poids | KT56: Jusqu'à | KU56: 1400 | KV56: g | KW56: 9 | KX56: jours | KY56: proies | KZ56: 168 | LA56: g | LB56: 12 | LC56: % | LD56: du poids | LF56: Jusqu'à | LG56: 1500 | LH56: g | LI56: 9 | LJ56: jours | LK56: proies | LL56: 180 | LM56: g | LN56: 12 | LO56: % | LP56: du poids | LR56: Jusqu'à | LS56: 1600 | LT56: g | LU56: 9 | LV56: jours | LW56: proies | LX56: 192 | LY56: g | LZ56: 12 | MA56: % | MB56: du poids | MD56: Jusqu'à | ME56: 1700 | MF56: g | MG56: 9 | MH56: jours | MI56: proies | MJ56: 204 | MK56: g | ML56: 12 | MM56: % | MN56: du poids | MP56: Jusqu'à | MQ56: 1800 | MR56: g | MS56: 9 | MT56: jours | MU56: proies | MV56: 216 | MW56: g | MX56: 12 | MY56: % | MZ56: du poids | NB56: Jusqu'à | NC56: 1900 | ND56: g | NE56: 9 | NF56: jours | NG56: proies | NH56: 228 | NI56: g | NJ56: 12 | NK56: % | NL56: du poids | NN56: Jusqu'à | NO56: 2000 | NP56: g | NQ56: 9 | NR56: jours | NS56: proies | NT56: 240 | NU56: g | NV56: 12 | NW56: % | NX56: du poids | NZ56: Jusqu'à | OA56: 2100 | OB56: g | OC56: 9 | OD56: jours | OE56: proies | OF56: 252 | OG56: g | OH56: 12 | OI56: % | OJ56: du poids | OL56: Jusqu'à | OM56: 2200 | ON56: g | OO56: 9 | OP56: jours | OQ56: proies | OR56: 242 | OS56: g | OT56: 11 | OU56: % | OV56: du poids | OX56: Jusqu'à | OY56: 2300 | OZ56: g | PA56: 9 | PB56: jours | PC56: proies | PD56: 230 | PE56: g | PF56: 10 | PG56: % | PH56: du poids | PJ56: Jusqu'à | PK56: 2400 | PL56: g | PM56: 9 | PN56: jours | PO56: proies | PP56: 240 | PQ56: g | PR56: 10 | PS56: % | PT56: du poids | PV56: Jusqu'à | PW56: 2500 | PX56: g | PY56: 9 | PZ56: jours | QA56: proies | QB56: 250 | QC56: g | QD56: 10 | QE56: % | QF56: du poids | QH56: Jusqu'à | QI56: 2600 | QJ56: g | QK56: 9 | QL56: jours | QM56: proies | QN56: 260 | QO56: g | QP56: 10 | QQ56: % | QR56: du poids | QT56: Jusqu'à | QU56: 2700 | QV56: g | QW56: 9 | QX56: jours | QY56: proies | QZ56: 270 | RA56: g | RB56: 10 | RC56: % | RD56: du poids | RF56: Jusqu'à | RG56: 2800 | RH56: g | RI56: 9 | RJ56: jours | RK56: proies | RL56: 280 | RM56: g | RN56: 10 | RO56: % | RP56: du poids | RR56: Jusqu'à | RS56: 2900 | RT56: g | RU56: 9 | RV56: jours | RW56: proies | RX56: 290 | RY56: g | RZ56: 10 | SA56: % | SB56: du poids | SD56: Jusqu'à | SE56: 3000 | SF56: g | SG56: 9 | SH56: jours | SI56: proies | SJ56: 300 | SK56: g | SL56: 10 | SM56: % | SN56: du poids
B57: jours | G57: g | I57: g | K57: g | P57: j | U57: g | V57: 0 | X57: g | AA57: cm | AB57: 0 | AD57: cm | BB57: Jusqu'à | BC57: 80 | BD57: g | BE57: 4 | BF57: jours | BG57: proies | BH57: 9.6 | BI57: g | BJ57: 12 | BK57: % | BL57: du poids | BN57: Jusqu'à | BO57: 100 | BP57: g | BQ57: 6 | BR57: jours | BS57: proies | BT57: 12 | BU57: g | BV57: 12 | BW57: % | BX57: du poids | BZ57: Jusqu'à | CA57: 150 | CB57: g | CC57: 6 | CD57: jours | CE57: proies | CF57: 18 | CG57: g | CH57: 12 | CI57: % | CJ57: du poids | CL57: Jusqu'à | CM57: 200 | CN57: g | CO57: 6 | CP57: jours | CQ57: proies | CR57: 24 | CS57: g | CT57: 12 | CU57: % | CV57: du poids | CX57: Jusqu'à | CY57: 250 | CZ57: 507 | DA57: 6 | DB57: jours | DC57: proies | DD57: 30 | DE57: g | DF57: 12 | DG57: % | DH57: du poids | DJ57: Jusqu'à | DK57: 300 | DL57: g | DM57: 7 | DN57: jours | DO57: proies | DP57: 36 | DQ57: g | DR57: 12 | DS57: % | DT57: du poids | DV57: Jusqu'à | DW57: 350 | DX57: g | DY57: 7 | DZ57: jours | EA57: proies | EB57: 42 | EC57: g | ED57: 12 | EE57: % | EF57: du poids | EH57: Jusqu'à | EI57: 400 | EJ57: g | EK57: 8 | EL57: jours | EM57: proies | EN57: 48 | EO57: g | EP57: 12 | EQ57: % | ER57: du poids | ET57: Jusqu'à | EU57: 450 | EV57: g | EW57: 8 | EX57: jours | EY57: proies | EZ57: 54 | FA57: g | FB57: 12 | FC57: % | FD57: du poids | FF57: Jusqu'à | FG57: 500 | FH57: g | FI57: 8 | FJ57: jours | FK57: proies | FL57: 60 | FM57: g | FN57: 12 | FO57: % | FP57: du poids | FR57: Jusqu'à | FS57: 550 | FT57: g | FU57: 8 | FV57: jours | FW57: proies | FX57: 66 | FY57: g | FZ57: 12 | GA57: % | GB57: du poids | GD57: Jusqu'à | GE57: 600 | GF57: g | GG57: 8 | GH57: jours | GI57: proies | GJ57: 72 | GK57: g | GL57: 12 | GM57: % | GN57: du poids | GP57: Jusqu'à | GQ57: 650 | GR57: g | GS57: 9 | GT57: jours | GU57: proies | GV57: 78 | GW57: g | GX57: 12 | GY57: % | GZ57: du poids | HB57: Jusqu'à | HC57: 700 | HD57: g | HE57: 9 | HF57: jours | HG57: proies | HH57: 84 | HI57: g | HJ57: 12 | HK57: % | HL57: du poids | HN57: Jusqu'à | HO57: 750 | HP57: g | HQ57: 9 | HR57: jours | HS57: proies | HT57: 90 | HU57: g | HV57: 12 | HW57: % | HX57: du poids | HZ57: Jusqu'à | IA57: 800 | IB57: g | IC57: 9 | ID57: jours | IE57: proies | IF57: 96 | IG57: g | IH57: 12 | II57: % | IJ57: du poids | IL57: Jusqu'à | IM57: 900 | IN57: g | IO57: 9 | IP57: jours | IQ57: proies | IR57: 108 | IS57: g | IT57: 12 | IU57: % | IV57: du poids | IX57: Jusqu'à | IY57: 1000 | IZ57: g | JA57: 9 | JB57: jours | JC57: proies | JD57: 120 | JE57: g | JF57: 12 | JG57: % | JH57: du poids | JJ57: Jusqu'à | JK57: 1100 | JL57: g | JM57: 9 | JN57: jours | JO57: proies | JP57: 132 | JQ57: g | JR57: 12 | JS57: % | JT57: du poids | JV57: Jusqu'à | JW57: 1200 | JX57: g | JY57: 9 | JZ57: jours | KA57: proies | KB57: 144 | KC57: g | KD57: 12 | KE57: % | KF57: du poids | KH57: Jusqu'à | KI57: 1300 | KJ57: g | KK57: 9 | KL57: jours | KM57: proies | KN57: 156 | KO57: g | KP57: 12 | KQ57: % | KR57: du poids | KT57: Jusqu'à | KU57: 1400 | KV57: g | KW57: 9 | KX57: jours | KY57: proies | KZ57: 168 | LA57: g | LB57: 12 | LC57: % | LD57: du poids | LF57: Jusqu'à | LG57: 1500 | LH57: g | LI57: 9 | LJ57: jours | LK57: proies | LL57: 180 | LM57: g | LN57: 12 | LO57: % | LP57: du poids | LR57: Jusqu'à | LS57: 1600 | LT57: g | LU57: 9 | LV57: jours | LW57: proies | LX57: 192 | LY57: g | LZ57: 12 | MA57: % | MB57: du poids | MD57: Jusqu'à | ME57: 1700 | MF57: g | MG57: 9 | MH57: jours | MI57: proies | MJ57: 204 | MK57: g | ML57: 12 | MM57: % | MN57: du poids | MP57: Jusqu'à | MQ57: 1800 | MR57: g | MS57: 9 | MT57: jours | MU57: proies | MV57: 216 | MW57: g | MX57: 12 | MY57: % | MZ57: du poids | NB57: Jusqu'à | NC57: 1900 | ND57: g | NE57: 9 | NF57: jours | NG57: proies | NH57: 228 | NI57: g | NJ57: 12 | NK57: % | NL57: du poids | NN57: Jusqu'à | NO57: 2000 | NP57: g | NQ57: 9 | NR57: jours | NS57: proies | NT57: 240 | NU57: g | NV57: 12 | NW57: % | NX57: du poids | NZ57: Jusqu'à | OA57: 2100 | OB57: g | OC57: 9 | OD57: jours | OE57: proies | OF57: 252 | OG57: g | OH57: 12 | OI57: % | OJ57: du poids | OL57: Jusqu'à | OM57: 2200 | ON57: g | OO57: 9 | OP57: jours | OQ57: proies | OR57: 242 | OS57: g | OT57: 11 | OU57: % | OV57: du poids | OX57: Jusqu'à | OY57: 2300 | OZ57: g | PA57: 9 | PB57: jours | PC57: proies | PD57: 230 | PE57: g | PF57: 10 | PG57: % | PH57: du poids | PJ57: Jusqu'à | PK57: 2400 | PL57: g | PM57: 9 | PN57: jours | PO57: proies | PP57: 240 | PQ57: g | PR57: 10 | PS57: % | PT57: du poids | PV57: Jusqu'à | PW57: 2500 | PX57: g | PY57: 9 | PZ57: jours | QA57: proies | QB57: 250 | QC57: g | QD57: 10 | QE57: % | QF57: du poids | QH57: Jusqu'à | QI57: 2600 | QJ57: g | QK57: 9 | QL57: jours | QM57: proies | QN57: 260 | QO57: g | QP57: 10 | QQ57: % | QR57: du poids | QT57: Jusqu'à | QU57: 2700 | QV57: g | QW57: 9 | QX57: jours | QY57: proies | QZ57: 270 | RA57: g | RB57: 10 | RC57: % | RD57: du poids | RF57: Jusqu'à | RG57: 2800 | RH57: g | RI57: 9 | RJ57: jours | RK57: proies | RL57: 280 | RM57: g | RN57: 10 | RO57: % | RP57: du poids | RR57: Jusqu'à | RS57: 2900 | RT57: g | RU57: 9 | RV57: jours | RW57: proies | RX57: 290 | RY57: g | RZ57: 10 | SA57: % | SB57: du poids | SD57: Jusqu'à | SE57: 3000 | SF57: g | SG57: 9 | SH57: jours | SI57: proies | SJ57: 300 | SK57: g | SL57: 10 | SM57: % | SN57: du poids
B58: jours | G58: g | I58: g | K58: g | P58: j | U58: g | V58: 0 | X58: g | AA58: cm | AB58: 0 | AD58: cm | BB58: Jusqu'à | BC58: 80 | BD58: g | BE58: 4 | BF58: jours | BG58: proies | BH58: 9.6 | BI58: g | BJ58: 12 | BK58: % | BL58: du poids | BN58: Jusqu'à | BO58: 100 | BP58: g | BQ58: 6 | BR58: jours | BS58: proies | BT58: 12 | BU58: g | BV58: 12 | BW58: % | BX58: du poids | BZ58: Jusqu'à | CA58: 150 | CB58: g | CC58: 6 | CD58: jours | CE58: proies | CF58: 18 | CG58: g | CH58: 12 | CI58: % | CJ58: du poids | CL58: Jusqu'à | CM58: 200 | CN58: g | CO58: 6 | CP58: jours | CQ58: proies | CR58: 24 | CS58: g | CT58: 12 | CU58: % | CV58: du poids | CX58: Jusqu'à | CY58: 250 | CZ58: 508 | DA58: 6 | DB58: jours | DC58: proies | DD58: 30 | DE58: g | DF58: 12 | DG58: % | DH58: du poids | DJ58: Jusqu'à | DK58: 300 | DL58: g | DM58: 7 | DN58: jours | DO58: proies | DP58: 36 | DQ58: g | DR58: 12 | DS58: % | DT58: du poids | DV58: Jusqu'à | DW58: 350 | DX58: g | DY58: 7 | DZ58: jours | EA58: proies | EB58: 42 | EC58: g | ED58: 12 | EE58: % | EF58: du poids | EH58: Jusqu'à | EI58: 400 | EJ58: g | EK58: 8 | EL58: jours | EM58: proies | EN58: 48 | EO58: g | EP58: 12 | EQ58: % | ER58: du poids | ET58: Jusqu'à | EU58: 450 | EV58: g | EW58: 8 | EX58: jours | EY58: proies | EZ58: 54 | FA58: g | FB58: 12 | FC58: % | FD58: du poids | FF58: Jusqu'à | FG58: 500 | FH58: g | FI58: 8 | FJ58: jours | FK58: proies | FL58: 60 | FM58: g | FN58: 12 | FO58: % | FP58: du poids | FR58: Jusqu'à | FS58: 550 | FT58: g | FU58: 8 | FV58: jours | FW58: proies | FX58: 66 | FY58: g | FZ58: 12 | GA58: % | GB58: du poids | GD58: Jusqu'à | GE58: 600 | GF58: g | GG58: 8 | GH58: jours | GI58: proies | GJ58: 72 | GK58: g | GL58: 12 | GM58: % | GN58: du poids | GP58: Jusqu'à | GQ58: 650 | GR58: g | GS58: 9 | GT58: jours | GU58: proies | GV58: 78 | GW58: g | GX58: 12 | GY58: % | GZ58: du poids | HB58: Jusqu'à | HC58: 700 | HD58: g | HE58: 9 | HF58: jours | HG58: proies | HH58: 84 | HI58: g | HJ58: 12 | HK58: % | HL58: du poids | HN58: Jusqu'à | HO58: 750 | HP58: g | HQ58: 9 | HR58: jours | HS58: proies | HT58: 90 | HU58: g | HV58: 12 | HW58: % | HX58: du poids | HZ58: Jusqu'à | IA58: 800 | IB58: g | IC58: 9 | ID58: jours | IE58: proies | IF58: 96 | IG58: g | IH58: 12 | II58: % | IJ58: du poids | IL58: Jusqu'à | IM58: 900 | IN58: g | IO58: 9 | IP58: jours | IQ58: proies | IR58: 108 | IS58: g | IT58: 12 | IU58: % | IV58: du poids | IX58: Jusqu'à | IY58: 1000 | IZ58: g | JA58: 9 | JB58: jours | JC58: proies | JD58: 120 | JE58: g | JF58: 12 | JG58: % | JH58: du poids | JJ58: Jusqu'à | JK58: 1100 | JL58: g | JM58: 9 | JN58: jours | JO58: proies | JP58: 132 | JQ58: g | JR58: 12 | JS58: % | JT58: du poids | JV58: Jusqu'à | JW58: 1200 | JX58: g | JY58: 9 | JZ58: jours | KA58: proies | KB58: 144 | KC58: g | KD58: 12 | KE58: % | KF58: du poids | KH58: Jusqu'à | KI58: 1300 | KJ58: g | KK58: 9 | KL58: jours | KM58: proies | KN58: 156 | KO58: g | KP58: 12 | KQ58: % | KR58: du poids | KT58: Jusqu'à | KU58: 1400 | KV58: g | KW58: 9 | KX58: jours | KY58: proies | KZ58: 168 | LA58: g | LB58: 12 | LC58: % | LD58: du poids | LF58: Jusqu'à | LG58: 1500 | LH58: g | LI58: 9 | LJ58: jours | LK58: proies | LL58: 180 | LM58: g | LN58: 12 | LO58: % | LP58: du poids | LR58: Jusqu'à | LS58: 1600 | LT58: g | LU58: 9 | LV58: jours | LW58: proies | LX58: 192 | LY58: g | LZ58: 12 | MA58: % | MB58: du poids | MD58: Jusqu'à | ME58: 1700 | MF58: g | MG58: 9 | MH58: jours | MI58: proies | MJ58: 204 | MK58: g | ML58: 12 | MM58: % | MN58: du poids | MP58: Jusqu'à | MQ58: 1800 | MR58: g | MS58: 9 | MT58: jours | MU58: proies | MV58: 216 | MW58: g | MX58: 12 | MY58: % | MZ58: du poids | NB58: Jusqu'à | NC58: 1900 | ND58: g | NE58: 9 | NF58: jours | NG58: proies | NH58: 228 | NI58: g | NJ58: 12 | NK58: % | NL58: du poids | NN58: Jusqu'à | NO58: 2000 | NP58: g | NQ58: 9 | NR58: jours | NS58: proies | NT58: 240 | NU58: g | NV58: 12 | NW58: % | NX58: du poids | NZ58: Jusqu'à | OA58: 2100 | OB58: g | OC58: 9 | OD58: jours | OE58: proies | OF58: 252 | OG58: g | OH58: 12 | OI58: % | OJ58: du poids | OL58: Jusqu'à | OM58: 2200 | ON58: g | OO58: 9 | OP58: jours | OQ58: proies | OR58: 242 | OS58: g | OT58: 11 | OU58: % | OV58: du poids | OX58: Jusqu'à | OY58: 2300 | OZ58: g | PA58: 9 | PB58: jours | PC58: proies | PD58: 230 | PE58: g | PF58: 10 | PG58: % | PH58: du poids | PJ58: Jusqu'à | PK58: 2400 | PL58: g | PM58: 9 | PN58: jours | PO58: proies | PP58: 240 | PQ58: g | PR58: 10 | PS58: % | PT58: du poids | PV58: Jusqu'à | PW58: 2500 | PX58: g | PY58: 9 | PZ58: jours | QA58: proies | QB58: 250 | QC58: g | QD58: 10 | QE58: % | QF58: du poids | QH58: Jusqu'à | QI58: 2600 | QJ58: g | QK58: 9 | QL58: jours | QM58: proies | QN58: 260 | QO58: g | QP58: 10 | QQ58: % | QR58: du poids | QT58: Jusqu'à | QU58: 2700 | QV58: g | QW58: 9 | QX58: jours | QY58: proies | QZ58: 270 | RA58: g | RB58: 10 | RC58: % | RD58: du poids | RF58: Jusqu'à | RG58: 2800 | RH58: g | RI58: 9 | RJ58: jours | RK58: proies | RL58: 280 | RM58: g | RN58: 10 | RO58: % | RP58: du poids | RR58: Jusqu'à | RS58: 2900 | RT58: g | RU58: 9 | RV58: jours | RW58: proies | RX58: 290 | RY58: g | RZ58: 10 | SA58: % | SB58: du poids | SD58: Jusqu'à | SE58: 3000 | SF58: g | SG58: 9 | SH58: jours | SI58: proies | SJ58: 300 | SK58: g | SL58: 10 | SM58: % | SN58: du poids
B59: jours | G59: g | I59: g | K59: g | P59: j | U59: g | V59: 0 | X59: g | AA59: cm | AB59: 0 | AD59: cm | BB59: Jusqu'à | BC59: 80 | BD59: g | BE59: 4 | BF59: jours | BG59: proies | BH59: 9.6 | BI59: g | BJ59: 12 | BK59: % | BL59: du poids | BN59: Jusqu'à | BO59: 100 | BP59: g | BQ59: 6 | BR59: jours | BS59: proies | BT59: 12 | BU59: g | BV59: 12 | BW59: % | BX59: du poids | BZ59: Jusqu'à | CA59: 150 | CB59: g | CC59: 6 | CD59: jours | CE59: proies | CF59: 18 | CG59: g | CH59: 12 | CI59: % | CJ59: du poids | CL59: Jusqu'à | CM59: 200 | CN59: g | CO59: 6 | CP59: jours | CQ59: proies | CR59: 24 | CS59: g | CT59: 12 | CU59: % | CV59: du poids | CX59: Jusqu'à | CY59: 250 | CZ59: 509 | DA59: 6 | DB59: jours | DC59: proies | DD59: 30 | DE59: g | DF59: 12 | DG59: % | DH59: du poids | DJ59: Jusqu'à | DK59: 300 | DL59: g | DM59: 7 | DN59: jours | DO59: proies | DP59: 36 | DQ59: g | DR59: 12 | DS59: % | DT59: du poids | DV59: Jusqu'à | DW59: 350 | DX59: g | DY59: 7 | DZ59: jours | EA59: proies | EB59: 42 | EC59: g | ED59: 12 | EE59: % | EF59: du poids | EH59: Jusqu'à | EI59: 400 | EJ59: g | EK59: 8 | EL59: jours | EM59: proies | EN59: 48 | EO59: g | EP59: 12 | EQ59: % | ER59: du poids | ET59: Jusqu'à | EU59: 450 | EV59: g | EW59: 8 | EX59: jours | EY59: proies | EZ59: 54 | FA59: g | FB59: 12 | FC59: % | FD59: du poids | FF59: Jusqu'à | FG59: 500 | FH59: g | FI59: 8 | FJ59: jours | FK59: proies | FL59: 60 | FM59: g | FN59: 12 | FO59: % | FP59: du poids | FR59: Jusqu'à | FS59: 550 | FT59: g | FU59: 8 | FV59: jours | FW59: proies | FX59: 66 | FY59: g | FZ59: 12 | GA59: % | GB59: du poids | GD59: Jusqu'à | GE59: 600 | GF59: g | GG59: 8 | GH59: jours | GI59: proies | GJ59: 72 | GK59: g | GL59: 12 | GM59: % | GN59: du poids | GP59: Jusqu'à | GQ59: 650 | GR59: g | GS59: 9 | GT59: jours | GU59: proies | GV59: 78 | GW59: g | GX59: 12 | GY59: % | GZ59: du poids | HB59: Jusqu'à | HC59: 700 | HD59: g | HE59: 9 | HF59: jours | HG59: proies | HH59: 84 | HI59: g | HJ59: 12 | HK59: % | HL59: du poids | HN59: Jusqu'à | HO59: 750 | HP59: g | HQ59: 9 | HR59: jours | HS59: proies | HT59: 90 | HU59: g | HV59: 12 | HW59: % | HX59: du poids | HZ59: Jusqu'à | IA59: 800 | IB59: g | IC59: 9 | ID59: jours | IE59: proies | IF59: 96 | IG59: g | IH59: 12 | II59: % | IJ59: du poids | IL59: Jusqu'à | IM59: 900 | IN59: g | IO59: 9 | IP59: jours | IQ59: proies | IR59: 108 | IS59: g | IT59: 12 | IU59: % | IV59: du poids | IX59: Jusqu'à | IY59: 1000 | IZ59: g | JA59: 9 | JB59: jours | JC59: proies | JD59: 120 | JE59: g | JF59: 12 | JG59: % | JH59: du poids | JJ59: Jusqu'à | JK59: 1100 | JL59: g | JM59: 9 | JN59: jours | JO59: proies | JP59: 132 | JQ59: g | JR59: 12 | JS59: % | JT59: du poids | JV59: Jusqu'à | JW59: 1200 | JX59: g | JY59: 9 | JZ59: jours | KA59: proies | KB59: 144 | KC59: g | KD59: 12 | KE59: % | KF59: du poids | KH59: Jusqu'à | KI59: 1300 | KJ59: g | KK59: 9 | KL59: jours | KM59: proies | KN59: 156 | KO59: g | KP59: 12 | KQ59: % | KR59: du poids | KT59: Jusqu'à | KU59: 1400 | KV59: g | KW59: 9 | KX59: jours | KY59: proies | KZ59: 168 | LA59: g | LB59: 12 | LC59: % | LD59: du poids | LF59: Jusqu'à | LG59: 1500 | LH59: g | LI59: 9 | LJ59: jours | LK59: proies | LL59: 180 | LM59: g | LN59: 12 | LO59: % | LP59: du poids | LR59: Jusqu'à | LS59: 1600 | LT59: g | LU59: 9 | LV59: jours | LW59: proies | LX59: 192 | LY59: g | LZ59: 12 | MA59: % | MB59: du poids | MD59: Jusqu'à | ME59: 1700 | MF59: g | MG59: 9 | MH59: jours | MI59: proies | MJ59: 204 | MK59: g | ML59: 12 | MM59: % | MN59: du poids | MP59: Jusqu'à | MQ59: 1800 | MR59: g | MS59: 9 | MT59: jours | MU59: proies | MV59: 216 | MW59: g | MX59: 12 | MY59: % | MZ59: du poids | NB59: Jusqu'à | NC59: 1900 | ND59: g | NE59: 9 | NF59: jours | NG59: proies | NH59: 228 | NI59: g | NJ59: 12 | NK59: % | NL59: du poids | NN59: Jusqu'à | NO59: 2000 | NP59: g | NQ59: 9 | NR59: jours | NS59: proies | NT59: 240 | NU59: g | NV59: 12 | NW59: % | NX59: du poids | NZ59: Jusqu'à | OA59: 2100 | OB59: g | OC59: 9 | OD59: jours | OE59: proies | OF59: 252 | OG59: g | OH59: 12 | OI59: % | OJ59: du poids | OL59: Jusqu'à | OM59: 2200 | ON59: g | OO59: 9 | OP59: jours | OQ59: proies | OR59: 242 | OS59: g | OT59: 11 | OU59: % | OV59: du poids | OX59: Jusqu'à | OY59: 2300 | OZ59: g | PA59: 9 | PB59: jours | PC59: proies | PD59: 230 | PE59: g | PF59: 10 | PG59: % | PH59: du poids | PJ59: Jusqu'à | PK59: 2400 | PL59: g | PM59: 9 | PN59: jours | PO59: proies | PP59: 240 | PQ59: g | PR59: 10 | PS59: % | PT59: du poids | PV59: Jusqu'à | PW59: 2500 | PX59: g | PY59: 9 | PZ59: jours | QA59: proies | QB59: 250 | QC59: g | QD59: 10 | QE59: % | QF59: du poids | QH59: Jusqu'à | QI59: 2600 | QJ59: g | QK59: 9 | QL59: jours | QM59: proies | QN59: 260 | QO59: g | QP59: 10 | QQ59: % | QR59: du poids | QT59: Jusqu'à | QU59: 2700 | QV59: g | QW59: 9 | QX59: jours | QY59: proies | QZ59: 270 | RA59: g | RB59: 10 | RC59: % | RD59: du poids | RF59: Jusqu'à | RG59: 2800 | RH59: g | RI59: 9 | RJ59: jours | RK59: proies | RL59: 280 | RM59: g | RN59: 10 | RO59: % | RP59: du poids | RR59: Jusqu'à | RS59: 2900 | RT59: g | RU59: 9 | RV59: jours | RW59: proies | RX59: 290 | RY59: g | RZ59: 10 | SA59: % | SB59: du poids | SD59: Jusqu'à | SE59: 3000 | SF59: g | SG59: 9 | SH59: jours | SI59: proies | SJ59: 300 | SK59: g | SL59: 10 | SM59: % | SN59: du poids
B60: jours | G60: g | I60: g | K60: g | P60: j | U60: g | V60: 0 | X60: g | AA60: cm | AB60: 0 | AD60: cm | BB60: Jusqu'à | BC60: 80 | BD60: g | BE60: 4 | BF60: jours | BG60: proies | BH60: 9.6 | BI60: g | BJ60: 12 | BK60: % | BL60: du poids | BN60: Jusqu'à | BO60: 100 | BP60: g | BQ60: 6 | BR60: jours | BS60: proies | BT60: 12 | BU60: g | BV60: 12 | BW60: % | BX60: du poids | BZ60: Jusqu'à | CA60: 150 | CB60: g | CC60: 6 | CD60: jours | CE60: proies | CF60: 18 | CG60: g | CH60: 12 | CI60: % | CJ60: du poids | CL60: Jusqu'à | CM60: 200 | CN60: g | CO60: 6 | CP60: jours | CQ60: proies | CR60: 24 | CS60: g | CT60: 12 | CU60: % | CV60: du poids | CX60: Jusqu'à | CY60: 250 | CZ60: 510 | DA60: 6 | DB60: jours | DC60: proies | DD60: 30 | DE60: g | DF60: 12 | DG60: % | DH60: du poids | DJ60: Jusqu'à | DK60: 300 | DL60: g | DM60: 7 | DN60: jours | DO60: proies | DP60: 36 | DQ60: g | DR60: 12 | DS60: % | DT60: du poids | DV60: Jusqu'à | DW60: 350 | DX60: g | DY60: 7 | DZ60: jours | EA60: proies | EB60: 42 | EC60: g | ED60: 12 | EE60: % | EF60: du poids | EH60: Jusqu'à | EI60: 400 | EJ60: g | EK60: 8 | EL60: jours | EM60: proies | EN60: 48 | EO60: g | EP60: 12 | EQ60: % | ER60: du poids | ET60: Jusqu'à | EU60: 450 | EV60: g | EW60: 8 | EX60: jours | EY60: proies | EZ60: 54 | FA60: g | FB60: 12 | FC60: % | FD60: du poids | FF60: Jusqu'à | FG60: 500 | FH60: g | FI60: 8 | FJ60: jours | FK60: proies | FL60: 60 | FM60: g | FN60: 12 | FO60: % | FP60: du poids | FR60: Jusqu'à | FS60: 550 | FT60: g | FU60: 8 | FV60: jours | FW60: proies | FX60: 66 | FY60: g | FZ60: 12 | GA60: % | GB60: du poids | GD60: Jusqu'à | GE60: 600 | GF60: g | GG60: 8 | GH60: jours | GI60: proies | GJ60: 72 | GK60: g | GL60: 12 | GM60: % | GN60: du poids | GP60: Jusqu'à | GQ60: 650 | GR60: g | GS60: 9 | GT60: jours | GU60: proies | GV60: 78 | GW60: g | GX60: 12 | GY60: % | GZ60: du poids | HB60: Jusqu'à | HC60: 700 | HD60: g | HE60: 9 | HF60: jours | HG60: proies | HH60: 84 | HI60: g | HJ60: 12 | HK60: % | HL60: du poids | HN60: Jusqu'à | HO60: 750 | HP60: g | HQ60: 9 | HR60: jours | HS60: proies | HT60: 90 | HU60: g | HV60: 12 | HW60: % | HX60: du poids | HZ60: Jusqu'à | IA60: 800 | IB60: g | IC60: 9 | ID60: jours | IE60: proies | IF60: 96 | IG60: g | IH60: 12 | II60: % | IJ60: du poids | IL60: Jusqu'à | IM60: 900 | IN60: g | IO60: 9 | IP60: jours | IQ60: proies | IR60: 108 | IS60: g | IT60: 12 | IU60: % | IV60: du poids | IX60: Jusqu'à | IY60: 1000 | IZ60: g | JA60: 9 | JB60: jours | JC60: proies | JD60: 120 | JE60: g | JF60: 12 | JG60: % | JH60: du poids | JJ60: Jusqu'à | JK60: 1100 | JL60: g | JM60: 9 | JN60: jours | JO60: proies | JP60: 132 | JQ60: g | JR60: 12 | JS60: % | JT60: du poids | JV60: Jusqu'à | JW60: 1200 | JX60: g | JY60: 9 | JZ60: jours | KA60: proies | KB60: 144 | KC60: g | KD60: 12 | KE60: % | KF60: du poids | KH60: Jusqu'à | KI60: 1300 | KJ60: g | KK60: 9 | KL60: jours | KM60: proies | KN60: 156 | KO60: g | KP60: 12 | KQ60: % | KR60: du poids | KT60: Jusqu'à | KU60: 1400 | KV60: g | KW60: 9 | KX60: jours | KY60: proies | KZ60: 168 | LA60: g | LB60: 12 | LC60: % | LD60: du poids | LF60: Jusqu'à | LG60: 1500 | LH60: g | LI60: 9 | LJ60: jours | LK60: proies | LL60: 180 | LM60: g | LN60: 12 | LO60: % | LP60: du poids | LR60: Jusqu'à | LS60: 1600 | LT60: g | LU60: 9 | LV60: jours | LW60: proies | LX60: 192 | LY60: g | LZ60: 12 | MA60: % | MB60: du poids | MD60: Jusqu'à | ME60: 1700 | MF60: g | MG60: 9 | MH60: jours | MI60: proies | MJ60: 204 | MK60: g | ML60: 12 | MM60: % | MN60: du poids | MP60: Jusqu'à | MQ60: 1800 | MR60: g | MS60: 9 | MT60: jours | MU60: proies | MV60: 216 | MW60: g | MX60: 12 | MY60: % | MZ60: du poids | NB60: Jusqu'à | NC60: 1900 | ND60: g | NE60: 9 | NF60: jours | NG60: proies | NH60: 228 | NI60: g | NJ60: 12 | NK60: % | NL60: du poids | NN60: Jusqu'à | NO60: 2000 | NP60: g | NQ60: 9 | NR60: jours | NS60: proies | NT60: 240 | NU60: g | NV60: 12 | NW60: % | NX60: du poids | NZ60: Jusqu'à | OA60: 2100 | OB60: g | OC60: 9 | OD60: jours | OE60: proies | OF60: 252 | OG60: g | OH60: 12 | OI60: % | OJ60: du poids | OL60: Jusqu'à | OM60: 2200 | ON60: g | OO60: 9 | OP60: jours | OQ60: proies | OR60: 242 | OS60: g | OT60: 11 | OU60: % | OV60: du poids | OX60: Jusqu'à | OY60: 2300 | OZ60: g | PA60: 9 | PB60: jours | PC60: proies | PD60: 230 | PE60: g | PF60: 10 | PG60: % | PH60: du poids | PJ60: Jusqu'à | PK60: 2400 | PL60: g | PM60: 9 | PN60: jours | PO60: proies | PP60: 240 | PQ60: g | PR60: 10 | PS60: % | PT60: du poids | PV60: Jusqu'à | PW60: 2500 | PX60: g | PY60: 9 | PZ60: jours | QA60: proies | QB60: 250 | QC60: g | QD60: 10 | QE60: % | QF60: du poids | QH60: Jusqu'à | QI60: 2600 | QJ60: g | QK60: 9 | QL60: jours | QM60: proies | QN60: 260 | QO60: g | QP60: 10 | QQ60: % | QR60: du poids | QT60: Jusqu'à | QU60: 2700 | QV60: g | QW60: 9 | QX60: jours | QY60: proies | QZ60: 270 | RA60: g | RB60: 10 | RC60: % | RD60: du poids | RF60: Jusqu'à | RG60: 2800 | RH60: g | RI60: 9 | RJ60: jours | RK60: proies | RL60: 280 | RM60: g | RN60: 10 | RO60: % | RP60: du poids | RR60: Jusqu'à | RS60: 2900 | RT60: g | RU60: 9 | RV60: jours | RW60: proies | RX60: 290 | RY60: g | RZ60: 10 | SA60: % | SB60: du poids | SD60: Jusqu'à | SE60: 3000 | SF60: g | SG60: 9 | SH60: jours | SI60: proies | SJ60: 300 | SK60: g | SL60: 10 | SM60: % | SN60: du poids
B61: jours | G61: g | I61: g | K61: g | P61: j | U61: g | V61: 0 | X61: g | AA61: cm | AB61: 0 | AD61: cm | BB61: Jusqu'à | BC61: 80 | BD61: g | BE61: 4 | BF61: jours | BG61: proies | BH61: 9.6 | BI61: g | BJ61: 12 | BK61: % | BL61: du poids | BN61: Jusqu'à | BO61: 100 | BP61: g | BQ61: 6 | BR61: jours | BS61: proies | BT61: 12 | BU61: g | BV61: 12 | BW61: % | BX61: du poids | BZ61: Jusqu'à | CA61: 150 | CB61: g | CC61: 6 | CD61: jours | CE61: proies | CF61: 18 | CG61: g | CH61: 12 | CI61: % | CJ61: du poids | CL61: Jusqu'à | CM61: 200 | CN61: g | CO61: 6 | CP61: jours | CQ61: proies | CR61: 24 | CS61: g | CT61: 12 | CU61: % | CV61: du poids | CX61: Jusqu'à | CY61: 250 | CZ61: 511 | DA61: 6 | DB61: jours | DC61: proies | DD61: 30 | DE61: g | DF61: 12 | DG61: % | DH61: du poids | DJ61: Jusqu'à | DK61: 300 | DL61: g | DM61: 7 | DN61: jours | DO61: proies | DP61: 36 | DQ61: g | DR61: 12 | DS61: % | DT61: du poids | DV61: Jusqu'à | DW61: 350 | DX61: g | DY61: 7 | DZ61: jours | EA61: proies | EB61: 42 | EC61: g | ED61: 12 | EE61: % | EF61: du poids | EH61: Jusqu'à | EI61: 400 | EJ61: g | EK61: 8 | EL61: jours | EM61: proies | EN61: 48 | EO61: g | EP61: 12 | EQ61: % | ER61: du poids | ET61: Jusqu'à | EU61: 450 | EV61: g | EW61: 8 | EX61: jours | EY61: proies | EZ61: 54 | FA61: g | FB61: 12 | FC61: % | FD61: du poids | FF61: Jusqu'à | FG61: 500 | FH61: g | FI61: 8 | FJ61: jours | FK61: proies | FL61: 60 | FM61: g | FN61: 12 | FO61: % | FP61: du poids | FR61: Jusqu'à | FS61: 550 | FT61: g | FU61: 8 | FV61: jours | FW61: proies | FX61: 66 | FY61: g | FZ61: 12 | GA61: % | GB61: du poids | GD61: Jusqu'à | GE61: 600 | GF61: g | GG61: 8 | GH61: jours | GI61: proies | GJ61: 72 | GK61: g | GL61: 12 | GM61: % | GN61: du poids | GP61: Jusqu'à | GQ61: 650 | GR61: g | GS61: 9 | GT61: jours | GU61: proies | GV61: 78 | GW61: g | GX61: 12 | GY61: % | GZ61: du poids | HB61: Jusqu'à | HC61: 700 | HD61: g | HE61: 9 | HF61: jours | HG61: proies | HH61: 84 | HI61: g | HJ61: 12 | HK61: % | HL61: du poids | HN61: Jusqu'à | HO61: 750 | HP61: g | HQ61: 9 | HR61: jours | HS61: proies | HT61: 90 | HU61: g | HV61: 12 | HW61: % | HX61: du poids | HZ61: Jusqu'à | IA61: 800 | IB61: g | IC61: 9 | ID61: jours | IE61: proies | IF61: 96 | IG61: g | IH61: 12 | II61: % | IJ61: du poids | IL61: Jusqu'à | IM61: 900 | IN61: g | IO61: 9 | IP61: jours | IQ61: proies | IR61: 108 | IS61: g | IT61: 12 | IU61: % | IV61: du poids | IX61: Jusqu'à | IY61: 1000 | IZ61: g | JA61: 9 | JB61: jours | JC61: proies | JD61: 120 | JE61: g | JF61: 12 | JG61: % | JH61: du poids | JJ61: Jusqu'à | JK61: 1100 | JL61: g | JM61: 9 | JN61: jours | JO61: proies | JP61: 132 | JQ61: g | JR61: 12 | JS61: % | JT61: du poids | JV61: Jusqu'à | JW61: 1200 | JX61: g | JY61: 9 | JZ61: jours | KA61: proies | KB61: 144 | KC61: g | KD61: 12 | KE61: % | KF61: du poids | KH61: Jusqu'à | KI61: 1300 | KJ61: g | KK61: 9 | KL61: jours | KM61: proies | KN61: 156 | KO61: g | KP61: 12 | KQ61: % | KR61: du poids | KT61: Jusqu'à | KU61: 1400 | KV61: g | KW61: 9 | KX61: jours | KY61: proies | KZ61: 168 | LA61: g | LB61: 12 | LC61: % | LD61: du poids | LF61: Jusqu'à | LG61: 1500 | LH61: g | LI61: 9 | LJ61: jours | LK61: proies | LL61: 180 | LM61: g | LN61: 12 | LO61: % | LP61: du poids | LR61: Jusqu'à | LS61: 1600 | LT61: g | LU61: 9 | LV61: jours | LW61: proies | LX61: 192 | LY61: g | LZ61: 12 | MA61: % | MB61: du poids | MD61: Jusqu'à | ME61: 1700 | MF61: g | MG61: 9 | MH61: jours | MI61: proies | MJ61: 204 | MK61: g | ML61: 12 | MM61: % | MN61: du poids | MP61: Jusqu'à | MQ61: 1800 | MR61: g | MS61: 9 | MT61: jours | MU61: proies | MV61: 216 | MW61: g | MX61: 12 | MY61: % | MZ61: du poids | NB61: Jusqu'à | NC61: 1900 | ND61: g | NE61: 9 | NF61: jours | NG61: proies | NH61: 228 | NI61: g | NJ61: 12 | NK61: % | NL61: du poids | NN61: Jusqu'à | NO61: 2000 | NP61: g | NQ61: 9 | NR61: jours | NS61: proies | NT61: 240 | NU61: g | NV61: 12 | NW61: % | NX61: du poids | NZ61: Jusqu'à | OA61: 2100 | OB61: g | OC61: 9 | OD61: jours | OE61: proies | OF61: 252 | OG61: g | OH61: 12 | OI61: % | OJ61: du poids | OL61: Jusqu'à | OM61: 2200 | ON61: g | OO61: 9 | OP61: jours | OQ61: proies | OR61: 242 | OS61: g | OT61: 11 | OU61: % | OV61: du poids | OX61: Jusqu'à | OY61: 2300 | OZ61: g | PA61: 9 | PB61: jours | PC61: proies | PD61: 230 | PE61: g | PF61: 10 | PG61: % | PH61: du poids | PJ61: Jusqu'à | PK61: 2400 | PL61: g | PM61: 9 | PN61: jours | PO61: proies | PP61: 240 | PQ61: g | PR61: 10 | PS61: % | PT61: du poids | PV61: Jusqu'à | PW61: 2500 | PX61: g | PY61: 9 | PZ61: jours | QA61: proies | QB61: 250 | QC61: g | QD61: 10 | QE61: % | QF61: du poids | QH61: Jusqu'à | QI61: 2600 | QJ61: g | QK61: 9 | QL61: jours | QM61: proies | QN61: 260 | QO61: g | QP61: 10 | QQ61: % | QR61: du poids | QT61: Jusqu'à | QU61: 2700 | QV61: g | QW61: 9 | QX61: jours | QY61: proies | QZ61: 270 | RA61: g | RB61: 10 | RC61: % | RD61: du poids | RF61: Jusqu'à | RG61: 2800 | RH61: g | RI61: 9 | RJ61: jours | RK61: proies | RL61: 280 | RM61: g | RN61: 10 | RO61: % | RP61: du poids | RR61: Jusqu'à | RS61: 2900 | RT61: g | RU61: 9 | RV61: jours | RW61: proies | RX61: 290 | RY61: g | RZ61: 10 | SA61: % | SB61: du poids | SD61: Jusqu'à | SE61: 3000 | SF61: g | SG61: 9 | SH61: jours | SI61: proies | SJ61: 300 | SK61: g | SL61: 10 | SM61: % | SN61: du poids
B62: jours | G62: g | I62: g | K62: g | P62: j | U62: g | V62: 0 | X62: g | AA62: cm | AB62: 0 | AD62: cm | BB62: Jusqu'à | BC62: 80 | BD62: g | BE62: 4 | BF62: jours | BG62: proies | BH62: 9.6 | BI62: g | BJ62: 12 | BK62: % | BL62: du poids | BN62: Jusqu'à | BO62: 100 | BP62: g | BQ62: 6 | BR62: jours | BS62: proies | BT62: 12 | BU62: g | BV62: 12 | BW62: % | BX62: du poids | BZ62: Jusqu'à | CA62: 150 | CB62: g | CC62: 6 | CD62: jours | CE62: proies | CF62: 18 | CG62: g | CH62: 12 | CI62: % | CJ62: du poids | CL62: Jusqu'à | CM62: 200 | CN62: g | CO62: 6 | CP62: jours | CQ62: proies | CR62: 24 | CS62: g | CT62: 12 | CU62: % | CV62: du poids | CX62: Jusqu'à | CY62: 250 | CZ62: 512 | DA62: 6 | DB62: jours | DC62: proies | DD62: 30 | DE62: g | DF62: 12 | DG62: % | DH62: du poids | DJ62: Jusqu'à | DK62: 300 | DL62: g | DM62: 7 | DN62: jours | DO62: proies | DP62: 36 | DQ62: g | DR62: 12 | DS62: % | DT62: du poids | DV62: Jusqu'à | DW62: 350 | DX62: g | DY62: 7 | DZ62: jours | EA62: proies | EB62: 42 | EC62: g | ED62: 12 | EE62: % | EF62: du poids | EH62: Jusqu'à | EI62: 400 | EJ62: g | EK62: 8 | EL62: jours | EM62: proies | EN62: 48 | EO62: g | EP62: 12 | EQ62: % | ER62: du poids | ET62: Jusqu'à | EU62: 450 | EV62: g | EW62: 8 | EX62: jours | EY62: proies | EZ62: 54 | FA62: g | FB62: 12 | FC62: % | FD62: du poids | FF62: Jusqu'à | FG62: 500 | FH62: g | FI62: 8 | FJ62: jours | FK62: proies | FL62: 60 | FM62: g | FN62: 12 | FO62: % | FP62: du poids | FR62: Jusqu'à | FS62: 550 | FT62: g | FU62: 8 | FV62: jours | FW62: proies | FX62: 66 | FY62: g | FZ62: 12 | GA62: % | GB62: du poids | GD62: Jusqu'à | GE62: 600 | GF62: g | GG62: 8 | GH62: jours | GI62: proies | GJ62: 72 | GK62: g | GL62: 12 | GM62: % | GN62: du poids | GP62: Jusqu'à | GQ62: 650 | GR62: g | GS62: 9 | GT62: jours | GU62: proies | GV62: 78 | GW62: g | GX62: 12 | GY62: % | GZ62: du poids | HB62: Jusqu'à | HC62: 700 | HD62: g | HE62: 9 | HF62: jours | HG62: proies | HH62: 84 | HI62: g | HJ62: 12 | HK62: % | HL62: du poids | HN62: Jusqu'à | HO62: 750 | HP62: g | HQ62: 9 | HR62: jours | HS62: proies | HT62: 90 | HU62: g | HV62: 12 | HW62: % | HX62: du poids | HZ62: Jusqu'à | IA62: 800 | IB62: g | IC62: 9 | ID62: jours | IE62: proies | IF62: 96 | IG62: g | IH62: 12 | II62: % | IJ62: du poids | IL62: Jusqu'à | IM62: 900 | IN62: g | IO62: 9 | IP62: jours | IQ62: proies | IR62: 108 | IS62: g | IT62: 12 | IU62: % | IV62: du poids | IX62: Jusqu'à | IY62: 1000 | IZ62: g | JA62: 9 | JB62: jours | JC62: proies | JD62: 120 | JE62: g | JF62: 12 | JG62: % | JH62: du poids | JJ62: Jusqu'à | JK62: 1100 | JL62: g | JM62: 9 | JN62: jours | JO62: proies | JP62: 132 | JQ62: g | JR62: 12 | JS62: % | JT62: du poids | JV62: Jusqu'à | JW62: 1200 | JX62: g | JY62: 9 | JZ62: jours | KA62: proies | KB62: 144 | KC62: g | KD62: 12 | KE62: % | KF62: du poids | KH62: Jusqu'à | KI62: 1300 | KJ62: g | KK62: 9 | KL62: jours | KM62: proies | KN62: 156 | KO62: g | KP62: 12 | KQ62: % | KR62: du poids | KT62: Jusqu'à | KU62: 1400 | KV62: g | KW62: 9 | KX62: jours | KY62: proies | KZ62: 168 | LA62: g | LB62: 12 | LC62: % | LD62: du poids | LF62: Jusqu'à | LG62: 1500 | LH62: g | LI62: 9 | LJ62: jours | LK62: proies | LL62: 180 | LM62: g | LN62: 12 | LO62: % | LP62: du poids | LR62: Jusqu'à | LS62: 1600 | LT62: g | LU62: 9 | LV62: jours | LW62: proies | LX62: 192 | LY62: g | LZ62: 12 | MA62: % | MB62: du poids | MD62: Jusqu'à | ME62: 1700 | MF62: g | MG62: 9 | MH62: jours | MI62: proies | MJ62: 204 | MK62: g | ML62: 12 | MM62: % | MN62: du poids | MP62: Jusqu'à | MQ62: 1800 | MR62: g | MS62: 9 | MT62: jours | MU62: proies | MV62: 216 | MW62: g | MX62: 12 | MY62: % | MZ62: du poids | NB62: Jusqu'à | NC62: 1900 | ND62: g | NE62: 9 | NF62: jours | NG62: proies | NH62: 228 | NI62: g | NJ62: 12 | NK62: % | NL62: du poids | NN62: Jusqu'à | NO62: 2000 | NP62: g | NQ62: 9 | NR62: jours | NS62: proies | NT62: 240 | NU62: g | NV62: 12 | NW62: % | NX62: du poids | NZ62: Jusqu'à | OA62: 2100 | OB62: g | OC62: 9 | OD62: jours | OE62: proies | OF62: 252 | OG62: g | OH62: 12 | OI62: % | OJ62: du poids | OL62: Jusqu'à | OM62: 2200 | ON62: g | OO62: 9 | OP62: jours | OQ62: proies | OR62: 242 | OS62: g | OT62: 11 | OU62: % | OV62: du poids | OX62: Jusqu'à | OY62: 2300 | OZ62: g | PA62: 9 | PB62: jours | PC62: proies | PD62: 230 | PE62: g | PF62: 10 | PG62: % | PH62: du poids | PJ62: Jusqu'à | PK62: 2400 | PL62: g | PM62: 9 | PN62: jours | PO62: proies | PP62: 240 | PQ62: g | PR62: 10 | PS62: % | PT62: du poids | PV62: Jusqu'à | PW62: 2500 | PX62: g | PY62: 9 | PZ62: jours | QA62: proies | QB62: 250 | QC62: g | QD62: 10 | QE62: % | QF62: du poids | QH62: Jusqu'à | QI62: 2600 | QJ62: g | QK62: 9 | QL62: jours | QM62: proies | QN62: 260 | QO62: g | QP62: 10 | QQ62: % | QR62: du poids | QT62: Jusqu'à | QU62: 2700 | QV62: g | QW62: 9 | QX62: jours | QY62: proies | QZ62: 270 | RA62: g | RB62: 10 | RC62: % | RD62: du poids | RF62: Jusqu'à | RG62: 2800 | RH62: g | RI62: 9 | RJ62: jours | RK62: proies | RL62: 280 | RM62: g | RN62: 10 | RO62: % | RP62: du poids | RR62: Jusqu'à | RS62: 2900 | RT62: g | RU62: 9 | RV62: jours | RW62: proies | RX62: 290 | RY62: g | RZ62: 10 | SA62: % | SB62: du poids | SD62: Jusqu'à | SE62: 3000 | SF62: g | SG62: 9 | SH62: jours | SI62: proies | SJ62: 300 | SK62: g | SL62: 10 | SM62: % | SN62: du poids
B63: jours | G63: g | I63: g | K63: g | P63: j | U63: g | V63: 0 | X63: g | AA63: cm | AB63: 0 | AD63: cm | BB63: Jusqu'à | BC63: 80 | BD63: g | BE63: 4 | BF63: jours | BG63: proies | BH63: 9.6 | BI63: g | BJ63: 12 | BK63: % | BL63: du poids | BN63: Jusqu'à | BO63: 100 | BP63: g | BQ63: 6 | BR63: jours | BS63: proies | BT63: 12 | BU63: g | BV63: 12 | BW63: % | BX63: du poids | BZ63: Jusqu'à | CA63: 150 | CB63: g | CC63: 6 | CD63: jours | CE63: proies | CF63: 18 | CG63: g | CH63: 12 | CI63: % | CJ63: du poids | CL63: Jusqu'à | CM63: 200 | CN63: g | CO63: 6 | CP63: jours | CQ63: proies | CR63: 24 | CS63: g | CT63: 12 | CU63: % | CV63: du poids | CX63: Jusqu'à | CY63: 250 | CZ63: 513 | DA63: 6 | DB63: jours | DC63: proies | DD63: 30 | DE63: g | DF63: 12 | DG63: % | DH63: du poids | DJ63: Jusqu'à | DK63: 300 | DL63: g | DM63: 7 | DN63: jours | DO63: proies | DP63: 36 | DQ63: g | DR63: 12 | DS63: % | DT63: du poids | DV63: Jusqu'à | DW63: 350 | DX63: g | DY63: 7 | DZ63: jours | EA63: proies | EB63: 42 | EC63: g | ED63: 12 | EE63: % | EF63: du poids | EH63: Jusqu'à | EI63: 400 | EJ63: g | EK63: 8 | EL63: jours | EM63: proies | EN63: 48 | EO63: g | EP63: 12 | EQ63: % | ER63: du poids | ET63: Jusqu'à | EU63: 450 | EV63: g | EW63: 8 | EX63: jours | EY63: proies | EZ63: 54 | FA63: g | FB63: 12 | FC63: % | FD63: du poids | FF63: Jusqu'à | FG63: 500 | FH63: g | FI63: 8 | FJ63: jours | FK63: proies | FL63: 60 | FM63: g | FN63: 12 | FO63: % | FP63: du poids | FR63: Jusqu'à | FS63: 550 | FT63: g | FU63: 8 | FV63: jours | FW63: proies | FX63: 66 | FY63: g | FZ63: 12 | GA63: % | GB63: du poids | GD63: Jusqu'à | GE63: 600 | GF63: g | GG63: 8 | GH63: jours | GI63: proies | GJ63: 72 | GK63: g | GL63: 12 | GM63: % | GN63: du poids | GP63: Jusqu'à | GQ63: 650 | GR63: g | GS63: 9 | GT63: jours | GU63: proies | GV63: 78 | GW63: g | GX63: 12 | GY63: % | GZ63: du poids | HB63: Jusqu'à | HC63: 700 | HD63: g | HE63: 9 | HF63: jours | HG63: proies | HH63: 84 | HI63: g | HJ63: 12 | HK63: % | HL63: du poids | HN63: Jusqu'à | HO63: 750 | HP63: g | HQ63: 9 | HR63: jours | HS63: proies | HT63: 90 | HU63: g | HV63: 12 | HW63: % | HX63: du poids | HZ63: Jusqu'à | IA63: 800 | IB63: g | IC63: 9 | ID63: jours | IE63: proies | IF63: 96 | IG63: g | IH63: 12 | II63: % | IJ63: du poids | IL63: Jusqu'à | IM63: 900 | IN63: g | IO63: 9 | IP63: jours | IQ63: proies | IR63: 108 | IS63: g | IT63: 12 | IU63: % | IV63: du poids | IX63: Jusqu'à | IY63: 1000 | IZ63: g | JA63: 9 | JB63: jours | JC63: proies | JD63: 120 | JE63: g | JF63: 12 | JG63: % | JH63: du poids | JJ63: Jusqu'à | JK63: 1100 | JL63: g | JM63: 9 | JN63: jours | JO63: proies | JP63: 132 | JQ63: g | JR63: 12 | JS63: % | JT63: du poids | JV63: Jusqu'à | JW63: 1200 | JX63: g | JY63: 9 | JZ63: jours | KA63: proies | KB63: 144 | KC63: g | KD63: 12 | KE63: % | KF63: du poids | KH63: Jusqu'à | KI63: 1300 | KJ63: g | KK63: 9 | KL63: jours | KM63: proies | KN63: 156 | KO63: g | KP63: 12 | KQ63: % | KR63: du poids | KT63: Jusqu'à | KU63: 1400 | KV63: g | KW63: 9 | KX63: jours | KY63: proies | KZ63: 168 | LA63: g | LB63: 12 | LC63: % | LD63: du poids | LF63: Jusqu'à | LG63: 1500 | LH63: g | LI63: 9 | LJ63: jours | LK63: proies | LL63: 180 | LM63: g | LN63: 12 | LO63: % | LP63: du poids | LR63: Jusqu'à | LS63: 1600 | LT63: g | LU63: 9 | LV63: jours | LW63: proies | LX63: 192 | LY63: g | LZ63: 12 | MA63: % | MB63: du poids | MD63: Jusqu'à | ME63: 1700 | MF63: g | MG63: 9 | MH63: jours | MI63: proies | MJ63: 204 | MK63: g | ML63: 12 | MM63: % | MN63: du poids | MP63: Jusqu'à | MQ63: 1800 | MR63: g | MS63: 9 | MT63: jours | MU63: proies | MV63: 216 | MW63: g | MX63: 12 | MY63: % | MZ63: du poids | NB63: Jusqu'à | NC63: 1900 | ND63: g | NE63: 9 | NF63: jours | NG63: proies | NH63: 228 | NI63: g | NJ63: 12 | NK63: % | NL63: du poids | NN63: Jusqu'à | NO63: 2000 | NP63: g | NQ63: 9 | NR63: jours | NS63: proies | NT63: 240 | NU63: g | NV63: 12 | NW63: % | NX63: du poids | NZ63: Jusqu'à | OA63: 2100 | OB63: g | OC63: 9 | OD63: jours | OE63: proies | OF63: 252 | OG63: g | OH63: 12 | OI63: % | OJ63: du poids | OL63: Jusqu'à | OM63: 2200 | ON63: g | OO63: 9 | OP63: jours | OQ63: proies | OR63: 242 | OS63: g | OT63: 11 | OU63: % | OV63: du poids | OX63: Jusqu'à | OY63: 2300 | OZ63: g | PA63: 9 | PB63: jours | PC63: proies | PD63: 230 | PE63: g | PF63: 10 | PG63: % | PH63: du poids | PJ63: Jusqu'à | PK63: 2400 | PL63: g | PM63: 9 | PN63: jours | PO63: proies | PP63: 240 | PQ63: g | PR63: 10 | PS63: % | PT63: du poids | PV63: Jusqu'à | PW63: 2500 | PX63: g | PY63: 9 | PZ63: jours | QA63: proies | QB63: 250 | QC63: g | QD63: 10 | QE63: % | QF63: du poids | QH63: Jusqu'à | QI63: 2600 | QJ63: g | QK63: 9 | QL63: jours | QM63: proies | QN63: 260 | QO63: g | QP63: 10 | QQ63: % | QR63: du poids | QT63: Jusqu'à | QU63: 2700 | QV63: g | QW63: 9 | QX63: jours | QY63: proies | QZ63: 270 | RA63: g | RB63: 10 | RC63: % | RD63: du poids | RF63: Jusqu'à | RG63: 2800 | RH63: g | RI63: 9 | RJ63: jours | RK63: proies | RL63: 280 | RM63: g | RN63: 10 | RO63: % | RP63: du poids | RR63: Jusqu'à | RS63: 2900 | RT63: g | RU63: 9 | RV63: jours | RW63: proies | RX63: 290 | RY63: g | RZ63: 10 | SA63: % | SB63: du poids | SD63: Jusqu'à | SE63: 3000 | SF63: g | SG63: 9 | SH63: jours | SI63: proies | SJ63: 300 | SK63: g | SL63: 10 | SM63: % | SN63: du poids
B64: jours | G64: g | I64: g | K64: g | P64: j | U64: g | V64: 0 | X64: g | AA64: cm | AB64: 0 | AD64: cm | BB64: Jusqu'à | BC64: 80 | BD64: g | BE64: 4 | BF64: jours | BG64: proies | BH64: 9.6 | BI64: g | BJ64: 12 | BK64: % | BL64: du poids | BN64: Jusqu'à | BO64: 100 | BP64: g | BQ64: 6 | BR64: jours | BS64: proies | BT64: 12 | BU64: g | BV64: 12 | BW64: % | BX64: du poids | BZ64: Jusqu'à | CA64: 150 | CB64: g | CC64: 6 | CD64: jours | CE64: proies | CF64: 18 | CG64: g | CH64: 12 | CI64: % | CJ64: du poids | CL64: Jusqu'à | CM64: 200 | CN64: g | CO64: 6 | CP64: jours | CQ64: proies | CR64: 24 | CS64: g | CT64: 12 | CU64: % | CV64: du poids | CX64: Jusqu'à | CY64: 250 | CZ64: 509 | DA64: 6 | DB64: jours | DC64: proies | DD64: 30 | DE64: g | DF64: 12 | DG64: % | DH64: du poids | DJ64: Jusqu'à | DK64: 300 | DL64: g | DM64: 7 | DN64: jours | DO64: proies | DP64: 36 | DQ64: g | DR64: 12 | DS64: % | DT64: du poids | DV64: Jusqu'à | DW64: 350 | DX64: g | DY64: 7 | DZ64: jours | EA64: proies | EB64: 42 | EC64: g | ED64: 12 | EE64: % | EF64: du poids | EH64: Jusqu'à | EI64: 400 | EJ64: g | EK64: 8 | EL64: jours | EM64: proies | EN64: 48 | EO64: g | EP64: 12 | EQ64: % | ER64: du poids | ET64: Jusqu'à | EU64: 450 | EV64: g | EW64: 8 | EX64: jours | EY64: proies | EZ64: 54 | FA64: g | FB64: 12 | FC64: % | FD64: du poids | FF64: Jusqu'à | FG64: 500 | FH64: g | FI64: 8 | FJ64: jours | FK64: proies | FL64: 60 | FM64: g | FN64: 12 | FO64: % | FP64: du poids | FR64: Jusqu'à | FS64: 550 | FT64: g | FU64: 8 | FV64: jours | FW64: proies | FX64: 66 | FY64: g | FZ64: 12 | GA64: % | GB64: du poids | GD64: Jusqu'à | GE64: 600 | GF64: g | GG64: 8 | GH64: jours | GI64: proies | GJ64: 72 | GK64: g | GL64: 12 | GM64: % | GN64: du poids | GP64: Jusqu'à | GQ64: 650 | GR64: g | GS64: 9 | GT64: jours | GU64: proies | GV64: 78 | GW64: g | GX64: 12 | GY64: % | GZ64: du poids | HB64: Jusqu'à | HC64: 700 | HD64: g | HE64: 9 | HF64: jours | HG64: proies | HH64: 84 | HI64: g | HJ64: 12 | HK64: % | HL64: du poids | HN64: Jusqu'à | HO64: 750 | HP64: g | HQ64: 9 | HR64: jours | HS64: proies | HT64: 90 | HU64: g | HV64: 12 | HW64: % | HX64: du poids | HZ64: Jusqu'à | IA64: 800 | IB64: g | IC64: 9 | ID64: jours | IE64: proies | IF64: 96 | IG64: g | IH64: 12 | II64: % | IJ64: du poids | IL64: Jusqu'à | IM64: 900 | IN64: g | IO64: 9 | IP64: jours | IQ64: proies | IR64: 108 | IS64: g | IT64: 12 | IU64: % | IV64: du poids | IX64: Jusqu'à | IY64: 1000 | IZ64: g | JA64: 9 | JB64: jours | JC64: proies | JD64: 120 | JE64: g | JF64: 12 | JG64: % | JH64: du poids | JJ64: Jusqu'à | JK64: 1100 | JL64: g | JM64: 9 | JN64: jours | JO64: proies | JP64: 132 | JQ64: g | JR64: 12 | JS64: % | JT64: du poids | JV64: Jusqu'à | JW64: 1200 | JX64: g | JY64: 9 | JZ64: jours | KA64: proies | KB64: 144 | KC64: g | KD64: 12 | KE64: % | KF64: du poids | KH64: Jusqu'à | KI64: 1300 | KJ64: g | KK64: 9 | KL64: jours | KM64: proies | KN64: 156 | KO64: g | KP64: 12 | KQ64: % | KR64: du poids | KT64: Jusqu'à | KU64: 1400 | KV64: g | KW64: 9 | KX64: jours | KY64: proies | KZ64: 168 | LA64: g | LB64: 12 | LC64: % | LD64: du poids | LF64: Jusqu'à | LG64: 1500 | LH64: g | LI64: 9 | LJ64: jours | LK64: proies | LL64: 180 | LM64: g | LN64: 12 | LO64: % | LP64: du poids | LR64: Jusqu'à | LS64: 1600 | LT64: g | LU64: 9 | LV64: jours | LW64: proies | LX64: 192 | LY64: g | LZ64: 12 | MA64: % | MB64: du poids | MD64: Jusqu'à | ME64: 1700 | MF64: g | MG64: 9 | MH64: jours | MI64: proies | MJ64: 204 | MK64: g | ML64: 12 | MM64: % | MN64: du poids | MP64: Jusqu'à | MQ64: 1800 | MR64: g | MS64: 9 | MT64: jours | MU64: proies | MV64: 216 | MW64: g | MX64: 12 | MY64: % | MZ64: du poids | NB64: Jusqu'à | NC64: 1900 | ND64: g | NE64: 9 | NF64: jours | NG64: proies | NH64: 228 | NI64: g | NJ64: 12 | NK64: % | NL64: du poids | NN64: Jusqu'à | NO64: 2000 | NP64: g | NQ64: 9 | NR64: jours | NS64: proies | NT64: 240 | NU64: g | NV64: 12 | NW64: % | NX64: du poids | NZ64: Jusqu'à | OA64: 2100 | OB64: g | OC64: 9 | OD64: jours | OE64: proies | OF64: 252 | OG64: g | OH64: 12 | OI64: % | OJ64: du poids | OL64: Jusqu'à | OM64: 2200 | ON64: g | OO64: 9 | OP64: jours | OQ64: proies | OR64: 242 | OS64: g | OT64: 11 | OU64: % | OV64: du poids | OX64: Jusqu'à | OY64: 2300 | OZ64: g | PA64: 9 | PB64: jours | PC64: proies | PD64: 230 | PE64: g | PF64: 10 | PG64: % | PH64: du poids | PJ64: Jusqu'à | PK64: 2400 | PL64: g | PM64: 9 | PN64: jours | PO64: proies | PP64: 240 | PQ64: g | PR64: 10 | PS64: % | PT64: du poids | PV64: Jusqu'à | PW64: 2500 | PX64: g | PY64: 9 | PZ64: jours | QA64: proies | QB64: 250 | QC64: g | QD64: 10 | QE64: % | QF64: du poids | QH64: Jusqu'à | QI64: 2600 | QJ64: g | QK64: 9 | QL64: jours | QM64: proies | QN64: 260 | QO64: g | QP64: 10 | QQ64: % | QR64: du poids | QT64: Jusqu'à | QU64: 2700 | QV64: g | QW64: 9 | QX64: jours | QY64: proies | QZ64: 270 | RA64: g | RB64: 10 | RC64: % | RD64: du poids | RF64: Jusqu'à | RG64: 2800 | RH64: g | RI64: 9 | RJ64: jours | RK64: proies | RL64: 280 | RM64: g | RN64: 10 | RO64: % | RP64: du poids | RR64: Jusqu'à | RS64: 2900 | RT64: g | RU64: 9 | RV64: jours | RW64: proies | RX64: 290 | RY64: g | RZ64: 10 | SA64: % | SB64: du poids | SD64: Jusqu'à | SE64: 3000 | SF64: g | SG64: 9 | SH64: jours | SI64: proies | SJ64: 300 | SK64: g | SL64: 10 | SM64: % | SN64: du poids
B65: jours | G65: g | I65: g | K65: g | P65: j | U65: g | V65: 0 | X65: g | AA65: cm | AB65: 0 | AD65: cm | BB65: Jusqu'à | BC65: 80 | BD65: g | BE65: 4 | BF65: jours | BG65: proies | BH65: 9.6 | BI65: g | BJ65: 12 | BK65: % | BL65: du poids | BN65: Jusqu'à | BO65: 100 | BP65: g | BQ65: 6 | BR65: jours | BS65: proies | BT65: 12 | BU65: g | BV65: 12 | BW65: % | BX65: du poids | BZ65: Jusqu'à | CA65: 150 | CB65: g | CC65: 6 | CD65: jours | CE65: proies | CF65: 18 | CG65: g | CH65: 12 | CI65: % | CJ65: du poids | CL65: Jusqu'à | CM65: 200 | CN65: g | CO65: 6 | CP65: jours | CQ65: proies | CR65: 24 | CS65: g | CT65: 12 | CU65: % | CV65: du poids | CX65: Jusqu'à | CY65: 250 | CZ65: 510 | DA65: 6 | DB65: jours | DC65: proies | DD65: 30 | DE65: g | DF65: 12 | DG65: % | DH65: du poids | DJ65: Jusqu'à | DK65: 300 | DL65: g | DM65: 7 | DN65: jours | DO65: proies | DP65: 36 | DQ65: g | DR65: 12 | DS65: % | DT65: du poids | DV65: Jusqu'à | DW65: 350 | DX65: g | DY65: 7 | DZ65: jours | EA65: proies | EB65: 42 | EC65: g | ED65: 12 | EE65: % | EF65: du poids | EH65: Jusqu'à | EI65: 400 | EJ65: g | EK65: 8 | EL65: jours | EM65: proies | EN65: 48 | EO65: g | EP65: 12 | EQ65: % | ER65: du poids | ET65: Jusqu'à | EU65: 450 | EV65: g | EW65: 8 | EX65: jours | EY65: proies | EZ65: 54 | FA65: g | FB65: 12 | FC65: % | FD65: du poids | FF65: Jusqu'à | FG65: 500 | FH65: g | FI65: 8 | FJ65: jours | FK65: proies | FL65: 60 | FM65: g | FN65: 12 | FO65: % | FP65: du poids | FR65: Jusqu'à | FS65: 550 | FT65: g | FU65: 8 | FV65: jours | FW65: proies | FX65: 66 | FY65: g | FZ65: 12 | GA65: % | GB65: du poids | GD65: Jusqu'à | GE65: 600 | GF65: g | GG65: 8 | GH65: jours | GI65: proies | GJ65: 72 | GK65: g | GL65: 12 | GM65: % | GN65: du poids | GP65: Jusqu'à | GQ65: 650 | GR65: g | GS65: 9 | GT65: jours | GU65: proies | GV65: 78 | GW65: g | GX65: 12 | GY65: % | GZ65: du poids | HB65: Jusqu'à | HC65: 700 | HD65: g | HE65: 9 | HF65: jours | HG65: proies | HH65: 84 | HI65: g | HJ65: 12 | HK65: % | HL65: du poids | HN65: Jusqu'à | HO65: 750 | HP65: g | HQ65: 9 | HR65: jours | HS65: proies | HT65: 90 | HU65: g | HV65: 12 | HW65: % | HX65: du poids | HZ65: Jusqu'à | IA65: 800 | IB65: g | IC65: 9 | ID65: jours | IE65: proies | IF65: 96 | IG65: g | IH65: 12 | II65: % | IJ65: du poids | IL65: Jusqu'à | IM65: 900 | IN65: g | IO65: 9 | IP65: jours | IQ65: proies | IR65: 108 | IS65: g | IT65: 12 | IU65: % | IV65: du poids | IX65: Jusqu'à | IY65: 1000 | IZ65: g | JA65: 9 | JB65: jours | JC65: proies | JD65: 120 | JE65: g | JF65: 12 | JG65: % | JH65: du poids | JJ65: Jusqu'à | JK65: 1100 | JL65: g | JM65: 9 | JN65: jours | JO65: proies | JP65: 132 | JQ65: g | JR65: 12 | JS65: % | JT65: du poids | JV65: Jusqu'à | JW65: 1200 | JX65: g | JY65: 9 | JZ65: jours | KA65: proies | KB65: 144 | KC65: g | KD65: 12 | KE65: % | KF65: du poids | KH65: Jusqu'à | KI65: 1300 | KJ65: g | KK65: 9 | KL65: jours | KM65: proies | KN65: 156 | KO65: g | KP65: 12 | KQ65: % | KR65: du poids | KT65: Jusqu'à | KU65: 1400 | KV65: g | KW65: 9 | KX65: jours | KY65: proies | KZ65: 168 | LA65: g | LB65: 12 | LC65: % | LD65: du poids | LF65: Jusqu'à | LG65: 1500 | LH65: g | LI65: 9 | LJ65: jours | LK65: proies | LL65: 180 | LM65: g | LN65: 12 | LO65: % | LP65: du poids | LR65: Jusqu'à | LS65: 1600 | LT65: g | LU65: 9 | LV65: jours | LW65: proies | LX65: 192 | LY65: g | LZ65: 12 | MA65: % | MB65: du poids | MD65: Jusqu'à | ME65: 1700 | MF65: g | MG65: 9 | MH65: jours | MI65: proies | MJ65: 204 | MK65: g | ML65: 12 | MM65: % | MN65: du poids | MP65: Jusqu'à | MQ65: 1800 | MR65: g | MS65: 9 | MT65: jours | MU65: proies | MV65: 216 | MW65: g | MX65: 12 | MY65: % | MZ65: du poids | NB65: Jusqu'à | NC65: 1900 | ND65: g | NE65: 9 | NF65: jours | NG65: proies | NH65: 228 | NI65: g | NJ65: 12 | NK65: % | NL65: du poids | NN65: Jusqu'à | NO65: 2000 | NP65: g | NQ65: 9 | NR65: jours | NS65: proies | NT65: 240 | NU65: g | NV65: 12 | NW65: % | NX65: du poids | NZ65: Jusqu'à | OA65: 2100 | OB65: g | OC65: 9 | OD65: jours | OE65: proies | OF65: 252 | OG65: g | OH65: 12 | OI65: % | OJ65: du poids | OL65: Jusqu'à | OM65: 2200 | ON65: g | OO65: 9 | OP65: jours | OQ65: proies | OR65: 242 | OS65: g | OT65: 11 | OU65: % | OV65: du poids | OX65: Jusqu'à | OY65: 2300 | OZ65: g | PA65: 9 | PB65: jours | PC65: proies | PD65: 230 | PE65: g | PF65: 10 | PG65: % | PH65: du poids | PJ65: Jusqu'à | PK65: 2400 | PL65: g | PM65: 9 | PN65: jours | PO65: proies | PP65: 240 | PQ65: g | PR65: 10 | PS65: % | PT65: du poids | PV65: Jusqu'à | PW65: 2500 | PX65: g | PY65: 9 | PZ65: jours | QA65: proies | QB65: 250 | QC65: g | QD65: 10 | QE65: % | QF65: du poids | QH65: Jusqu'à | QI65: 2600 | QJ65: g | QK65: 9 | QL65: jours | QM65: proies | QN65: 260 | QO65: g | QP65: 10 | QQ65: % | QR65: du poids | QT65: Jusqu'à | QU65: 2700 | QV65: g | QW65: 9 | QX65: jours | QY65: proies | QZ65: 270 | RA65: g | RB65: 10 | RC65: % | RD65: du poids | RF65: Jusqu'à | RG65: 2800 | RH65: g | RI65: 9 | RJ65: jours | RK65: proies | RL65: 280 | RM65: g | RN65: 10 | RO65: % | RP65: du poids | RR65: Jusqu'à | RS65: 2900 | RT65: g | RU65: 9 | RV65: jours | RW65: proies | RX65: 290 | RY65: g | RZ65: 10 | SA65: % | SB65: du poids | SD65: Jusqu'à | SE65: 3000 | SF65: g | SG65: 9 | SH65: jours | SI65: proies | SJ65: 300 | SK65: g | SL65: 10 | SM65: % | SN65: du poids
B66: jours | G66: g | I66: g | K66: g | P66: j | U66: g | V66: 0 | X66: g | AA66: cm | AB66: 0 | AD66: cm | BB66: Jusqu'à | BC66: 80 | BD66: g | BE66: 4 | BF66: jours | BG66: proies | BH66: 9.6 | BI66: g | BJ66: 12 | BK66: % | BL66: du poids | BN66: Jusqu'à | BO66: 100 | BP66: g | BQ66: 6 | BR66: jours | BS66: proies | BT66: 12 | BU66: g | BV66: 12 | BW66: % | BX66: du poids | BZ66: Jusqu'à | CA66: 150 | CB66: g | CC66: 6 | CD66: jours | CE66: proies | CF66: 18 | CG66: g | CH66: 12 | CI66: % | CJ66: du poids | CL66: Jusqu'à | CM66: 200 | CN66: g | CO66: 6 | CP66: jours | CQ66: proies | CR66: 24 | CS66: g | CT66: 12 | CU66: % | CV66: du poids | CX66: Jusqu'à | CY66: 250 | CZ66: 511 | DA66: 6 | DB66: jours | DC66: proies | DD66: 30 | DE66: g | DF66: 12 | DG66: % | DH66: du poids | DJ66: Jusqu'à | DK66: 300 | DL66: g | DM66: 7 | DN66: jours | DO66: proies | DP66: 36 | DQ66: g | DR66: 12 | DS66: % | DT66: du poids | DV66: Jusqu'à | DW66: 350 | DX66: g | DY66: 7 | DZ66: jours | EA66: proies | EB66: 42 | EC66: g | ED66: 12 | EE66: % | EF66: du poids | EH66: Jusqu'à | EI66: 400 | EJ66: g | EK66: 8 | EL66: jours | EM66: proies | EN66: 48 | EO66: g | EP66: 12 | EQ66: % | ER66: du poids | ET66: Jusqu'à | EU66: 450 | EV66: g | EW66: 8 | EX66: jours | EY66: proies | EZ66: 54 | FA66: g | FB66: 12 | FC66: % | FD66: du poids | FF66: Jusqu'à | FG66: 500 | FH66: g | FI66: 8 | FJ66: jours | FK66: proies | FL66: 60 | FM66: g | FN66: 12 | FO66: % | FP66: du poids | FR66: Jusqu'à | FS66: 550 | FT66: g | FU66: 8 | FV66: jours | FW66: proies | FX66: 66 | FY66: g | FZ66: 12 | GA66: % | GB66: du poids | GD66: Jusqu'à | GE66: 600 | GF66: g | GG66: 8 | GH66: jours | GI66: proies | GJ66: 72 | GK66: g | GL66: 12 | GM66: % | GN66: du poids | GP66: Jusqu'à | GQ66: 650 | GR66: g | GS66: 9 | GT66: jours | GU66: proies | GV66: 78 | GW66: g | GX66: 12 | GY66: % | GZ66: du poids | HB66: Jusqu'à | HC66: 700 | HD66: g | HE66: 9 | HF66: jours | HG66: proies | HH66: 84 | HI66: g | HJ66: 12 | HK66: % | HL66: du poids | HN66: Jusqu'à | HO66: 750 | HP66: g | HQ66: 9 | HR66: jours | HS66: proies | HT66: 90 | HU66: g | HV66: 12 | HW66: % | HX66: du poids | HZ66: Jusqu'à | IA66: 800 | IB66: g | IC66: 9 | ID66: jours | IE66: proies | IF66: 96 | IG66: g | IH66: 12 | II66: % | IJ66: du poids | IL66: Jusqu'à | IM66: 900 | IN66: g | IO66: 9 | IP66: jours | IQ66: proies | IR66: 108 | IS66: g | IT66: 12 | IU66: % | IV66: du poids | IX66: Jusqu'à | IY66: 1000 | IZ66: g | JA66: 9 | JB66: jours | JC66: proies | JD66: 120 | JE66: g | JF66: 12 | JG66: % | JH66: du poids | JJ66: Jusqu'à | JK66: 1100 | JL66: g | JM66: 9 | JN66: jours | JO66: proies | JP66: 132 | JQ66: g | JR66: 12 | JS66: % | JT66: du poids | JV66: Jusqu'à | JW66: 1200 | JX66: g | JY66: 9 | JZ66: jours | KA66: proies | KB66: 144 | KC66: g | KD66: 12 | KE66: % | KF66: du poids | KH66: Jusqu'à | KI66: 1300 | KJ66: g | KK66: 9 | KL66: jours | KM66: proies | KN66: 156 | KO66: g | KP66: 12 | KQ66: % | KR66: du poids | KT66: Jusqu'à | KU66: 1400 | KV66: g | KW66: 9 | KX66: jours | KY66: proies | KZ66: 168 | LA66: g | LB66: 12 | LC66: % | LD66: du poids | LF66: Jusqu'à | LG66: 1500 | LH66: g | LI66: 9 | LJ66: jours | LK66: proies | LL66: 180 | LM66: g | LN66: 12 | LO66: % | LP66: du poids | LR66: Jusqu'à | LS66: 1600 | LT66: g | LU66: 9 | LV66: jours | LW66: proies | LX66: 192 | LY66: g | LZ66: 12 | MA66: % | MB66: du poids | MD66: Jusqu'à | ME66: 1700 | MF66: g | MG66: 9 | MH66: jours | MI66: proies | MJ66: 204 | MK66: g | ML66: 12 | MM66: % | MN66: du poids | MP66: Jusqu'à | MQ66: 1800 | MR66: g | MS66: 9 | MT66: jours | MU66: proies | MV66: 216 | MW66: g | MX66: 12 | MY66: % | MZ66: du poids | NB66: Jusqu'à | NC66: 1900 | ND66: g | NE66: 9 | NF66: jours | NG66: proies | NH66: 228 | NI66: g | NJ66: 12 | NK66: % | NL66: du poids | NN66: Jusqu'à | NO66: 2000 | NP66: g | NQ66: 9 | NR66: jours | NS66: proies | NT66: 240 | NU66: g | NV66: 12 | NW66: % | NX66: du poids | NZ66: Jusqu'à | OA66: 2100 | OB66: g | OC66: 9 | OD66: jours | OE66: proies | OF66: 252 | OG66: g | OH66: 12 | OI66: % | OJ66: du poids | OL66: Jusqu'à | OM66: 2200 | ON66: g | OO66: 9 | OP66: jours | OQ66: proies | OR66: 242 | OS66: g | OT66: 11 | OU66: % | OV66: du poids | OX66: Jusqu'à | OY66: 2300 | OZ66: g | PA66: 9 | PB66: jours | PC66: proies | PD66: 230 | PE66: g | PF66: 10 | PG66: % | PH66: du poids | PJ66: Jusqu'à | PK66: 2400 | PL66: g | PM66: 9 | PN66: jours | PO66: proies | PP66: 240 | PQ66: g | PR66: 10 | PS66: % | PT66: du poids | PV66: Jusqu'à | PW66: 2500 | PX66: g | PY66: 9 | PZ66: jours | QA66: proies | QB66: 250 | QC66: g | QD66: 10 | QE66: % | QF66: du poids | QH66: Jusqu'à | QI66: 2600 | QJ66: g | QK66: 9 | QL66: jours | QM66: proies | QN66: 260 | QO66: g | QP66: 10 | QQ66: % | QR66: du poids | QT66: Jusqu'à | QU66: 2700 | QV66: g | QW66: 9 | QX66: jours | QY66: proies | QZ66: 270 | RA66: g | RB66: 10 | RC66: % | RD66: du poids | RF66: Jusqu'à | RG66: 2800 | RH66: g | RI66: 9 | RJ66: jours | RK66: proies | RL66: 280 | RM66: g | RN66: 10 | RO66: % | RP66: du poids | RR66: Jusqu'à | RS66: 2900 | RT66: g | RU66: 9 | RV66: jours | RW66: proies | RX66: 290 | RY66: g | RZ66: 10 | SA66: % | SB66: du poids | SD66: Jusqu'à | SE66: 3000 | SF66: g | SG66: 9 | SH66: jours | SI66: proies | SJ66: 300 | SK66: g | SL66: 10 | SM66: % | SN66: du poids
B67: jours | G67: g | I67: g | K67: g | P67: j | U67: g | V67: 0 | X67: g | AA67: cm | AB67: 0 | AD67: cm | BB67: Jusqu'à | BC67: 80 | BD67: g | BE67: 4 | BF67: jours | BG67: proies | BH67: 9.6 | BI67: g | BJ67: 12 | BK67: % | BL67: du poids | BN67: Jusqu'à | BO67: 100 | BP67: g | BQ67: 6 | BR67: jours | BS67: proies | BT67: 12 | BU67: g | BV67: 12 | BW67: % | BX67: du poids | BZ67: Jusqu'à | CA67: 150 | CB67: g | CC67: 6 | CD67: jours | CE67: proies | CF67: 18 | CG67: g | CH67: 12 | CI67: % | CJ67: du poids | CL67: Jusqu'à | CM67: 200 | CN67: g | CO67: 6 | CP67: jours | CQ67: proies | CR67: 24 | CS67: g | CT67: 12 | CU67: % | CV67: du poids | CX67: Jusqu'à | CY67: 250 | CZ67: 509 | DA67: 6 | DB67: jours | DC67: proies | DD67: 30 | DE67: g | DF67: 12 | DG67: % | DH67: du poids | DJ67: Jusqu'à | DK67: 300 | DL67: g | DM67: 7 | DN67: jours | DO67: proies | DP67: 36 | DQ67: g | DR67: 12 | DS67: % | DT67: du poids | DV67: Jusqu'à | DW67: 350 | DX67: g | DY67: 7 | DZ67: jours | EA67: proies | EB67: 42 | EC67: g | ED67: 12 | EE67: % | EF67: du poids | EH67: Jusqu'à | EI67: 400 | EJ67: g | EK67: 8 | EL67: jours | EM67: proies | EN67: 48 | EO67: g | EP67: 12 | EQ67: % | ER67: du poids | ET67: Jusqu'à | EU67: 450 | EV67: g | EW67: 8 | EX67: jours | EY67: proies | EZ67: 54 | FA67: g | FB67: 12 | FC67: % | FD67: du poids | FF67: Jusqu'à | FG67: 500 | FH67: g | FI67: 8 | FJ67: jours | FK67: proies | FL67: 60 | FM67: g | FN67: 12 | FO67: % | FP67: du poids | FR67: Jusqu'à | FS67: 550 | FT67: g | FU67: 8 | FV67: jours | FW67: proies | FX67: 66 | FY67: g | FZ67: 12 | GA67: % | GB67: du poids | GD67: Jusqu'à | GE67: 600 | GF67: g | GG67: 8 | GH67: jours | GI67: proies | GJ67: 72 | GK67: g | GL67: 12 | GM67: % | GN67: du poids | GP67: Jusqu'à | GQ67: 650 | GR67: g | GS67: 9 | GT67: jours | GU67: proies | GV67: 78 | GW67: g | GX67: 12 | GY67: % | GZ67: du poids | HB67: Jusqu'à | HC67: 700 | HD67: g | HE67: 9 | HF67: jours | HG67: proies | HH67: 84 | HI67: g | HJ67: 12 | HK67: % | HL67: du poids | HN67: Jusqu'à | HO67: 750 | HP67: g | HQ67: 9 | HR67: jours | HS67: proies | HT67: 90 | HU67: g | HV67: 12 | HW67: % | HX67: du poids | HZ67: Jusqu'à | IA67: 800 | IB67: g | IC67: 9 | ID67: jours | IE67: proies | IF67: 96 | IG67: g | IH67: 12 | II67: % | IJ67: du poids | IL67: Jusqu'à | IM67: 900 | IN67: g | IO67: 9 | IP67: jours | IQ67: proies | IR67: 108 | IS67: g | IT67: 12 | IU67: % | IV67: du poids | IX67: Jusqu'à | IY67: 1000 | IZ67: g | JA67: 9 | JB67: jours | JC67: proies | JD67: 120 | JE67: g | JF67: 12 | JG67: % | JH67: du poids | JJ67: Jusqu'à | JK67: 1100 | JL67: g | JM67: 9 | JN67: jours | JO67: proies | JP67: 132 | JQ67: g | JR67: 12 | JS67: % | JT67: du poids | JV67: Jusqu'à | JW67: 1200 | JX67: g | JY67: 9 | JZ67: jours | KA67: proies | KB67: 144 | KC67: g | KD67: 12 | KE67: % | KF67: du poids | KH67: Jusqu'à | KI67: 1300 | KJ67: g | KK67: 9 | KL67: jours | KM67: proies | KN67: 156 | KO67: g | KP67: 12 | KQ67: % | KR67: du poids | KT67: Jusqu'à | KU67: 1400 | KV67: g | KW67: 9 | KX67: jours | KY67: proies | KZ67: 168 | LA67: g | LB67: 12 | LC67: % | LD67: du poids | LF67: Jusqu'à | LG67: 1500 | LH67: g | LI67: 9 | LJ67: jours | LK67: proies | LL67: 180 | LM67: g | LN67: 12 | LO67: % | LP67: du poids | LR67: Jusqu'à | LS67: 1600 | LT67: g | LU67: 9 | LV67: jours | LW67: proies | LX67: 192 | LY67: g | LZ67: 12 | MA67: % | MB67: du poids | MD67: Jusqu'à | ME67: 1700 | MF67: g | MG67: 9 | MH67: jours | MI67: proies | MJ67: 204 | MK67: g | ML67: 12 | MM67: % | MN67: du poids | MP67: Jusqu'à | MQ67: 1800 | MR67: g | MS67: 9 | MT67: jours | MU67: proies | MV67: 216 | MW67: g | MX67: 12 | MY67: % | MZ67: du poids | NB67: Jusqu'à | NC67: 1900 | ND67: g | NE67: 9 | NF67: jours | NG67: proies | NH67: 228 | NI67: g | NJ67: 12 | NK67: % | NL67: du poids | NN67: Jusqu'à | NO67: 2000 | NP67: g | NQ67: 9 | NR67: jours | NS67: proies | NT67: 240 | NU67: g | NV67: 12 | NW67: % | NX67: du poids | NZ67: Jusqu'à | OA67: 2100 | OB67: g | OC67: 9 | OD67: jours | OE67: proies | OF67: 252 | OG67: g | OH67: 12 | OI67: % | OJ67: du poids | OL67: Jusqu'à | OM67: 2200 | ON67: g | OO67: 9 | OP67: jours | OQ67: proies | OR67: 242 | OS67: g | OT67: 11 | OU67: % | OV67: du poids | OX67: Jusqu'à | OY67: 2300 | OZ67: g | PA67: 9 | PB67: jours | PC67: proies | PD67: 230 | PE67: g | PF67: 10 | PG67: % | PH67: du poids | PJ67: Jusqu'à | PK67: 2400 | PL67: g | PM67: 9 | PN67: jours | PO67: proies | PP67: 240 | PQ67: g | PR67: 10 | PS67: % | PT67: du poids | PV67: Jusqu'à | PW67: 2500 | PX67: g | PY67: 9 | PZ67: jours | QA67: proies | QB67: 250 | QC67: g | QD67: 10 | QE67: % | QF67: du poids | QH67: Jusqu'à | QI67: 2600 | QJ67: g | QK67: 9 | QL67: jours | QM67: proies | QN67: 260 | QO67: g | QP67: 10 | QQ67: % | QR67: du poids | QT67: Jusqu'à | QU67: 2700 | QV67: g | QW67: 9 | QX67: jours | QY67: proies | QZ67: 270 | RA67: g | RB67: 10 | RC67: % | RD67: du poids | RF67: Jusqu'à | RG67: 2800 | RH67: g | RI67: 9 | RJ67: jours | RK67: proies | RL67: 280 | RM67: g | RN67: 10 | RO67: % | RP67: du poids | RR67: Jusqu'à | RS67: 2900 | RT67: g | RU67: 9 | RV67: jours | RW67: proies | RX67: 290 | RY67: g | RZ67: 10 | SA67: % | SB67: du poids | SD67: Jusqu'à | SE67: 3000 | SF67: g | SG67: 9 | SH67: jours | SI67: proies | SJ67: 300 | SK67: g | SL67: 10 | SM67: % | SN67: du poids
B68: jours | G68: g | I68: g | K68: g | P68: j | U68: g | V68: 0 | X68: g | AA68: cm | AB68: 0 | AD68: cm | BB68: Jusqu'à | BC68: 80 | BD68: g | BE68: 4 | BF68: jours | BG68: proies | BH68: 9.6 | BI68: g | BJ68: 12 | BK68: % | BL68: du poids | BN68: Jusqu'à | BO68: 100 | BP68: g | BQ68: 6 | BR68: jours | BS68: proies | BT68: 12 | BU68: g | BV68: 12 | BW68: % | BX68: du poids | BZ68: Jusqu'à | CA68: 150 | CB68: g | CC68: 6 | CD68: jours | CE68: proies | CF68: 18 | CG68: g | CH68: 12 | CI68: % | CJ68: du poids | CL68: Jusqu'à | CM68: 200 | CN68: g | CO68: 6 | CP68: jours | CQ68: proies | CR68: 24 | CS68: g | CT68: 12 | CU68: % | CV68: du poids | CX68: Jusqu'à | CY68: 250 | CZ68: 510 | DA68: 6 | DB68: jours | DC68: proies | DD68: 30 | DE68: g | DF68: 12 | DG68: % | DH68: du poids | DJ68: Jusqu'à | DK68: 300 | DL68: g | DM68: 7 | DN68: jours | DO68: proies | DP68: 36 | DQ68: g | DR68: 12 | DS68: % | DT68: du poids | DV68: Jusqu'à | DW68: 350 | DX68: g | DY68: 7 | DZ68: jours | EA68: proies | EB68: 42 | EC68: g | ED68: 12 | EE68: % | EF68: du poids | EH68: Jusqu'à | EI68: 400 | EJ68: g | EK68: 8 | EL68: jours | EM68: proies | EN68: 48 | EO68: g | EP68: 12 | EQ68: % | ER68: du poids | ET68: Jusqu'à | EU68: 450 | EV68: g | EW68: 8 | EX68: jours | EY68: proies | EZ68: 54 | FA68: g | FB68: 12 | FC68: % | FD68: du poids | FF68: Jusqu'à | FG68: 500 | FH68: g | FI68: 8 | FJ68: jours | FK68: proies | FL68: 60 | FM68: g | FN68: 12 | FO68: % | FP68: du poids | FR68: Jusqu'à | FS68: 550 | FT68: g | FU68: 8 | FV68: jours | FW68: proies | FX68: 66 | FY68: g | FZ68: 12 | GA68: % | GB68: du poids | GD68: Jusqu'à | GE68: 600 | GF68: g | GG68: 8 | GH68: jours | GI68: proies | GJ68: 72 | GK68: g | GL68: 12 | GM68: % | GN68: du poids | GP68: Jusqu'à | GQ68: 650 | GR68: g | GS68: 9 | GT68: jours | GU68: proies | GV68: 78 | GW68: g | GX68: 12 | GY68: % | GZ68: du poids | HB68: Jusqu'à | HC68: 700 | HD68: g | HE68: 9 | HF68: jours | HG68: proies | HH68: 84 | HI68: g | HJ68: 12 | HK68: % | HL68: du poids | HN68: Jusqu'à | HO68: 750 | HP68: g | HQ68: 9 | HR68: jours | HS68: proies | HT68: 90 | HU68: g | HV68: 12 | HW68: % | HX68: du poids | HZ68: Jusqu'à | IA68: 800 | IB68: g | IC68: 9 | ID68: jours | IE68: proies | IF68: 96 | IG68: g | IH68: 12 | II68: % | IJ68: du poids | IL68: Jusqu'à | IM68: 900 | IN68: g | IO68: 9 | IP68: jours | IQ68: proies | IR68: 108 | IS68: g | IT68: 12 | IU68: % | IV68: du poids | IX68: Jusqu'à | IY68: 1000 | IZ68: g | JA68: 9 | JB68: jours | JC68: proies | JD68: 120 | JE68: g | JF68: 12 | JG68: % | JH68: du poids | JJ68: Jusqu'à | JK68: 1100 | JL68: g | JM68: 9 | JN68: jours | JO68: proies | JP68: 132 | JQ68: g | JR68: 12 | JS68: % | JT68: du poids | JV68: Jusqu'à | JW68: 1200 | JX68: g | JY68: 9 | JZ68: jours | KA68: proies | KB68: 144 | KC68: g | KD68: 12 | KE68: % | KF68: du poids | KH68: Jusqu'à | KI68: 1300 | KJ68: g | KK68: 9 | KL68: jours | KM68: proies | KN68: 156 | KO68: g | KP68: 12 | KQ68: % | KR68: du poids | KT68: Jusqu'à | KU68: 1400 | KV68: g | KW68: 9 | KX68: jours | KY68: proies | KZ68: 168 | LA68: g | LB68: 12 | LC68: % | LD68: du poids | LF68: Jusqu'à | LG68: 1500 | LH68: g | LI68: 9 | LJ68: jours | LK68: proies | LL68: 180 | LM68: g | LN68: 12 | LO68: % | LP68: du poids | LR68: Jusqu'à | LS68: 1600 | LT68: g | LU68: 9 | LV68: jours | LW68: proies | LX68: 192 | LY68: g | LZ68: 12 | MA68: % | MB68: du poids | MD68: Jusqu'à | ME68: 1700 | MF68: g | MG68: 9 | MH68: jours | MI68: proies | MJ68: 204 | MK68: g | ML68: 12 | MM68: % | MN68: du poids | MP68: Jusqu'à | MQ68: 1800 | MR68: g | MS68: 9 | MT68: jours | MU68: proies | MV68: 216 | MW68: g | MX68: 12 | MY68: % | MZ68: du poids | NB68: Jusqu'à | NC68: 1900 | ND68: g | NE68: 9 | NF68: jours | NG68: proies | NH68: 228 | NI68: g | NJ68: 12 | NK68: % | NL68: du poids | NN68: Jusqu'à | NO68: 2000 | NP68: g | NQ68: 9 | NR68: jours | NS68: proies | NT68: 240 | NU68: g | NV68: 12 | NW68: % | NX68: du poids | NZ68: Jusqu'à | OA68: 2100 | OB68: g | OC68: 9 | OD68: jours | OE68: proies | OF68: 252 | OG68: g | OH68: 12 | OI68: % | OJ68: du poids | OL68: Jusqu'à | OM68: 2200 | ON68: g | OO68: 9 | OP68: jours | OQ68: proies | OR68: 242 | OS68: g | OT68: 11 | OU68: % | OV68: du poids | OX68: Jusqu'à | OY68: 2300 | OZ68: g | PA68: 9 | PB68: jours | PC68: proies | PD68: 230 | PE68: g | PF68: 10 | PG68: % | PH68: du poids | PJ68: Jusqu'à | PK68: 2400 | PL68: g | PM68: 9 | PN68: jours | PO68: proies | PP68: 240 | PQ68: g | PR68: 10 | PS68: % | PT68: du poids | PV68: Jusqu'à | PW68: 2500 | PX68: g | PY68: 9 | PZ68: jours | QA68: proies | QB68: 250 | QC68: g | QD68: 10 | QE68: % | QF68: du poids | QH68: Jusqu'à | QI68: 2600 | QJ68: g | QK68: 9 | QL68: jours | QM68: proies | QN68: 260 | QO68: g | QP68: 10 | QQ68: % | QR68: du poids | QT68: Jusqu'à | QU68: 2700 | QV68: g | QW68: 9 | QX68: jours | QY68: proies | QZ68: 270 | RA68: g | RB68: 10 | RC68: % | RD68: du poids | RF68: Jusqu'à | RG68: 2800 | RH68: g | RI68: 9 | RJ68: jours | RK68: proies | RL68: 280 | RM68: g | RN68: 10 | RO68: % | RP68: du poids | RR68: Jusqu'à | RS68: 2900 | RT68: g | RU68: 9 | RV68: jours | RW68: proies | RX68: 290 | RY68: g | RZ68: 10 | SA68: % | SB68: du poids | SD68: Jusqu'à | SE68: 3000 | SF68: g | SG68: 9 | SH68: jours | SI68: proies | SJ68: 300 | SK68: g | SL68: 10 | SM68: % | SN68: du poids
B69: jours | G69: g | I69: g | K69: g | P69: j | U69: g | V69: 0 | X69: g | AA69: cm | AB69: 0 | AD69: cm | BB69: Jusqu'à | BC69: 80 | BD69: g | BE69: 4 | BF69: jours | BG69: proies | BH69: 9.6 | BI69: g | BJ69: 12 | BK69: % | BL69: du poids | BN69: Jusqu'à | BO69: 100 | BP69: g | BQ69: 6 | BR69: jours | BS69: proies | BT69: 12 | BU69: g | BV69: 12 | BW69: % | BX69: du poids | BZ69: Jusqu'à | CA69: 150 | CB69: g | CC69: 6 | CD69: jours | CE69: proies | CF69: 18 | CG69: g | CH69: 12 | CI69: % | CJ69: du poids | CL69: Jusqu'à | CM69: 200 | CN69: g | CO69: 6 | CP69: jours | CQ69: proies | CR69: 24 | CS69: g | CT69: 12 | CU69: % | CV69: du poids | CX69: Jusqu'à | CY69: 250 | CZ69: 511 | DA69: 6 | DB69: jours | DC69: proies | DD69: 30 | DE69: g | DF69: 12 | DG69: % | DH69: du poids | DJ69: Jusqu'à | DK69: 300 | DL69: g | DM69: 7 | DN69: jours | DO69: proies | DP69: 36 | DQ69: g | DR69: 12 | DS69: % | DT69: du poids | DV69: Jusqu'à | DW69: 350 | DX69: g | DY69: 7 | DZ69: jours | EA69: proies | EB69: 42 | EC69: g | ED69: 12 | EE69: % | EF69: du poids | EH69: Jusqu'à | EI69: 400 | EJ69: g | EK69: 8 | EL69: jours | EM69: proies | EN69: 48 | EO69: g | EP69: 12 | EQ69: % | ER69: du poids | ET69: Jusqu'à | EU69: 450 | EV69: g | EW69: 8 | EX69: jours | EY69: proies | EZ69: 54 | FA69: g | FB69: 12 | FC69: % | FD69: du poids | FF69: Jusqu'à | FG69: 500 | FH69: g | FI69: 8 | FJ69: jours | FK69: proies | FL69: 60 | FM69: g | FN69: 12 | FO69: % | FP69: du poids | FR69: Jusqu'à | FS69: 550 | FT69: g | FU69: 8 | FV69: jours | FW69: proies | FX69: 66 | FY69: g | FZ69: 12 | GA69: % | GB69: du poids | GD69: Jusqu'à | GE69: 600 | GF69: g | GG69: 8 | GH69: jours | GI69: proies | GJ69: 72 | GK69: g | GL69: 12 | GM69: % | GN69: du poids | GP69: Jusqu'à | GQ69: 650 | GR69: g | GS69: 9 | GT69: jours | GU69: proies | GV69: 78 | GW69: g | GX69: 12 | GY69: % | GZ69: du poids | HB69: Jusqu'à | HC69: 700 | HD69: g | HE69: 9 | HF69: jours | HG69: proies | HH69: 84 | HI69: g | HJ69: 12 | HK69: % | HL69: du poids | HN69: Jusqu'à | HO69: 750 | HP69: g | HQ69: 9 | HR69: jours | HS69: proies | HT69: 90 | HU69: g | HV69: 12 | HW69: % | HX69: du poids | HZ69: Jusqu'à | IA69: 800 | IB69: g | IC69: 9 | ID69: jours | IE69: proies | IF69: 96 | IG69: g | IH69: 12 | II69: % | IJ69: du poids | IL69: Jusqu'à | IM69: 900 | IN69: g | IO69: 9 | IP69: jours | IQ69: proies | IR69: 108 | IS69: g | IT69: 12 | IU69: % | IV69: du poids | IX69: Jusqu'à | IY69: 1000 | IZ69: g | JA69: 9 | JB69: jours | JC69: proies | JD69: 120 | JE69: g | JF69: 12 | JG69: % | JH69: du poids | JJ69: Jusqu'à | JK69: 1100 | JL69: g | JM69: 9 | JN69: jours | JO69: proies | JP69: 132 | JQ69: g | JR69: 12 | JS69: % | JT69: du poids | JV69: Jusqu'à | JW69: 1200 | JX69: g | JY69: 9 | JZ69: jours | KA69: proies | KB69: 144 | KC69: g | KD69: 12 | KE69: % | KF69: du poids | KH69: Jusqu'à | KI69: 1300 | KJ69: g | KK69: 9 | KL69: jours | KM69: proies | KN69: 156 | KO69: g | KP69: 12 | KQ69: % | KR69: du poids | KT69: Jusqu'à | KU69: 1400 | KV69: g | KW69: 9 | KX69: jours | KY69: proies | KZ69: 168 | LA69: g | LB69: 12 | LC69: % | LD69: du poids | LF69: Jusqu'à | LG69: 1500 | LH69: g | LI69: 9 | LJ69: jours | LK69: proies | LL69: 180 | LM69: g | LN69: 12 | LO69: % | LP69: du poids | LR69: Jusqu'à | LS69: 1600 | LT69: g | LU69: 9 | LV69: jours | LW69: proies | LX69: 192 | LY69: g | LZ69: 12 | MA69: % | MB69: du poids | MD69: Jusqu'à | ME69: 1700 | MF69: g | MG69: 9 | MH69: jours | MI69: proies | MJ69: 204 | MK69: g | ML69: 12 | MM69: % | MN69: du poids | MP69: Jusqu'à | MQ69: 1800 | MR69: g | MS69: 9 | MT69: jours | MU69: proies | MV69: 216 | MW69: g | MX69: 12 | MY69: % | MZ69: du poids | NB69: Jusqu'à | NC69: 1900 | ND69: g | NE69: 9 | NF69: jours | NG69: proies | NH69: 228 | NI69: g | NJ69: 12 | NK69: % | NL69: du poids | NN69: Jusqu'à | NO69: 2000 | NP69: g | NQ69: 9 | NR69: jours | NS69: proies | NT69: 240 | NU69: g | NV69: 12 | NW69: % | NX69: du poids | NZ69: Jusqu'à | OA69: 2100 | OB69: g | OC69: 9 | OD69: jours | OE69: proies | OF69: 252 | OG69: g | OH69: 12 | OI69: % | OJ69: du poids | OL69: Jusqu'à | OM69: 2200 | ON69: g | OO69: 9 | OP69: jours | OQ69: proies | OR69: 242 | OS69: g | OT69: 11 | OU69: % | OV69: du poids | OX69: Jusqu'à | OY69: 2300 | OZ69: g | PA69: 9 | PB69: jours | PC69: proies | PD69: 230 | PE69: g | PF69: 10 | PG69: % | PH69: du poids | PJ69: Jusqu'à | PK69: 2400 | PL69: g | PM69: 9 | PN69: jours | PO69: proies | PP69: 240 | PQ69: g | PR69: 10 | PS69: % | PT69: du poids | PV69: Jusqu'à | PW69: 2500 | PX69: g | PY69: 9 | PZ69: jours | QA69: proies | QB69: 250 | QC69: g | QD69: 10 | QE69: % | QF69: du poids | QH69: Jusqu'à | QI69: 2600 | QJ69: g | QK69: 9 | QL69: jours | QM69: proies | QN69: 260 | QO69: g | QP69: 10 | QQ69: % | QR69: du poids | QT69: Jusqu'à | QU69: 2700 | QV69: g | QW69: 9 | QX69: jours | QY69: proies | QZ69: 270 | RA69: g | RB69: 10 | RC69: % | RD69: du poids | RF69: Jusqu'à | RG69: 2800 | RH69: g | RI69: 9 | RJ69: jours | RK69: proies | RL69: 280 | RM69: g | RN69: 10 | RO69: % | RP69: du poids | RR69: Jusqu'à | RS69: 2900 | RT69: g | RU69: 9 | RV69: jours | RW69: proies | RX69: 290 | RY69: g | RZ69: 10 | SA69: % | SB69: du poids | SD69: Jusqu'à | SE69: 3000 | SF69: g | SG69: 9 | SH69: jours | SI69: proies | SJ69: 300 | SK69: g | SL69: 10 | SM69: % | SN69: du poids
B70: jours | G70: g | I70: g | K70: g | P70: j | U70: g | V70: 0 | X70: g | AA70: cm | AB70: 0 | AD70: cm | BB70: Jusqu'à | BC70: 80 | BD70: g | BE70: 4 | BF70: jours | BG70: proies | BH70: 9.6 | BI70: g | BJ70: 12 | BK70: % | BL70: du poids | BN70: Jusqu'à | BO70: 100 | BP70: g | BQ70: 6 | BR70: jours | BS70: proies | BT70: 12 | BU70: g | BV70: 12 | BW70: % | BX70: du poids | BZ70: Jusqu'à | CA70: 150 | CB70: g | CC70: 6 | CD70: jours | CE70: proies | CF70: 18 | CG70: g | CH70: 12 | CI70: % | CJ70: du poids | CL70: Jusqu'à | CM70: 200 | CN70: g | CO70: 6 | CP70: jours | CQ70: proies | CR70: 24 | CS70: g | CT70: 12 | CU70: % | CV70: du poids | CX70: Jusqu'à | CY70: 250 | CZ70: 512 | DA70: 6 | DB70: jours | DC70: proies | DD70: 30 | DE70: g | DF70: 12 | DG70: % | DH70: du poids | DJ70: Jusqu'à | DK70: 300 | DL70: g | DM70: 7 | DN70: jours | DO70: proies | DP70: 36 | DQ70: g | DR70: 12 | DS70: % | DT70: du poids | DV70: Jusqu'à | DW70: 350 | DX70: g | DY70: 7 | DZ70: jours | EA70: proies | EB70: 42 | EC70: g | ED70: 12 | EE70: % | EF70: du poids | EH70: Jusqu'à | EI70: 400 | EJ70: g | EK70: 8 | EL70: jours | EM70: proies | EN70: 48 | EO70: g | EP70: 12 | EQ70: % | ER70: du poids | ET70: Jusqu'à | EU70: 450 | EV70: g | EW70: 8 | EX70: jours | EY70: proies | EZ70: 54 | FA70: g | FB70: 12 | FC70: % | FD70: du poids | FF70: Jusqu'à | FG70: 500 | FH70: g | FI70: 8 | FJ70: jours | FK70: proies | FL70: 60 | FM70: g | FN70: 12 | FO70: % | FP70: du poids | FR70: Jusqu'à | FS70: 550 | FT70: g | FU70: 8 | FV70: jours | FW70: proies | FX70: 66 | FY70: g | FZ70: 12 | GA70: % | GB70: du poids | GD70: Jusqu'à | GE70: 600 | GF70: g | GG70: 8 | GH70: jours | GI70: proies | GJ70: 72 | GK70: g | GL70: 12 | GM70: % | GN70: du poids | GP70: Jusqu'à | GQ70: 650 | GR70: g | GS70: 9 | GT70: jours | GU70: proies | GV70: 78 | GW70: g | GX70: 12 | GY70: % | GZ70: du poids | HB70: Jusqu'à | HC70: 700 | HD70: g | HE70: 9 | HF70: jours | HG70: proies | HH70: 84 | HI70: g | HJ70: 12 | HK70: % | HL70: du poids | HN70: Jusqu'à | HO70: 750 | HP70: g | HQ70: 9 | HR70: jours | HS70: proies | HT70: 90 | HU70: g | HV70: 12 | HW70: % | HX70: du poids | HZ70: Jusqu'à | IA70: 800 | IB70: g | IC70: 9 | ID70: jours | IE70: proies | IF70: 96 | IG70: g | IH70: 12 | II70: % | IJ70: du poids | IL70: Jusqu'à | IM70: 900 | IN70: g | IO70: 9 | IP70: jours | IQ70: proies | IR70: 108 | IS70: g | IT70: 12 | IU70: % | IV70: du poids | IX70: Jusqu'à | IY70: 1000 | IZ70: g | JA70: 9 | JB70: jours | JC70: proies | JD70: 120 | JE70: g | JF70: 12 | JG70: % | JH70: du poids | JJ70: Jusqu'à | JK70: 1100 | JL70: g | JM70: 9 | JN70: jours | JO70: proies | JP70: 132 | JQ70: g | JR70: 12 | JS70: % | JT70: du poids | JV70: Jusqu'à | JW70: 1200 | JX70: g | JY70: 9 | JZ70: jours | KA70: proies | KB70: 144 | KC70: g | KD70: 12 | KE70: % | KF70: du poids | KH70: Jusqu'à | KI70: 1300 | KJ70: g | KK70: 9 | KL70: jours | KM70: proies | KN70: 156 | KO70: g | KP70: 12 | KQ70: % | KR70: du poids | KT70: Jusqu'à | KU70: 1400 | KV70: g | KW70: 9 | KX70: jours | KY70: proies | KZ70: 168 | LA70: g | LB70: 12 | LC70: % | LD70: du poids | LF70: Jusqu'à | LG70: 1500 | LH70: g | LI70: 9 | LJ70: jours | LK70: proies | LL70: 180 | LM70: g | LN70: 12 | LO70: % | LP70: du poids | LR70: Jusqu'à | LS70: 1600 | LT70: g | LU70: 9 | LV70: jours | LW70: proies | LX70: 192 | LY70: g | LZ70: 12 | MA70: % | MB70: du poids | MD70: Jusqu'à | ME70: 1700 | MF70: g | MG70: 9 | MH70: jours | MI70: proies | MJ70: 204 | MK70: g | ML70: 12 | MM70: % | MN70: du poids | MP70: Jusqu'à | MQ70: 1800 | MR70: g | MS70: 9 | MT70: jours | MU70: proies | MV70: 216 | MW70: g | MX70: 12 | MY70: % | MZ70: du poids | NB70: Jusqu'à | NC70: 1900 | ND70: g | NE70: 9 | NF70: jours | NG70: proies | NH70: 228 | NI70: g | NJ70: 12 | NK70: % | NL70: du poids | NN70: Jusqu'à | NO70: 2000 | NP70: g | NQ70: 9 | NR70: jours | NS70: proies | NT70: 240 | NU70: g | NV70: 12 | NW70: % | NX70: du poids | NZ70: Jusqu'à | OA70: 2100 | OB70: g | OC70: 9 | OD70: jours | OE70: proies | OF70: 252 | OG70: g | OH70: 12 | OI70: % | OJ70: du poids | OL70: Jusqu'à | OM70: 2200 | ON70: g | OO70: 9 | OP70: jours | OQ70: proies | OR70: 242 | OS70: g | OT70: 11 | OU70: % | OV70: du poids | OX70: Jusqu'à | OY70: 2300 | OZ70: g | PA70: 9 | PB70: jours | PC70: proies | PD70: 230 | PE70: g | PF70: 10 | PG70: % | PH70: du poids | PJ70: Jusqu'à | PK70: 2400 | PL70: g | PM70: 9 | PN70: jours | PO70: proies | PP70: 240 | PQ70: g | PR70: 10 | PS70: % | PT70: du poids | PV70: Jusqu'à | PW70: 2500 | PX70: g | PY70: 9 | PZ70: jours | QA70: proies | QB70: 250 | QC70: g | QD70: 10 | QE70: % | QF70: du poids | QH70: Jusqu'à | QI70: 2600 | QJ70: g | QK70: 9 | QL70: jours | QM70: proies | QN70: 260 | QO70: g | QP70: 10 | QQ70: % | QR70: du poids | QT70: Jusqu'à | QU70: 2700 | QV70: g | QW70: 9 | QX70: jours | QY70: proies | QZ70: 270 | RA70: g | RB70: 10 | RC70: % | RD70: du poids | RF70: Jusqu'à | RG70: 2800 | RH70: g | RI70: 9 | RJ70: jours | RK70: proies | RL70: 280 | RM70: g | RN70: 10 | RO70: % | RP70: du poids | RR70: Jusqu'à | RS70: 2900 | RT70: g | RU70: 9 | RV70: jours | RW70: proies | RX70: 290 | RY70: g | RZ70: 10 | SA70: % | SB70: du poids | SD70: Jusqu'à | SE70: 3000 | SF70: g | SG70: 9 | SH70: jours | SI70: proies | SJ70: 300 | SK70: g | SL70: 10 | SM70: % | SN70: du poids
B71: jours | G71: g | I71: g | K71: g | P71: j | U71: g | V71: 0 | X71: g | AA71: cm | AB71: 0 | AD71: cm | BB71: Jusqu'à | BC71: 80 | BD71: g | BE71: 4 | BF71: jours | BG71: proies | BH71: 9.6 | BI71: g | BJ71: 12 | BK71: % | BL71: du poids | BN71: Jusqu'à | BO71: 100 | BP71: g | BQ71: 6 | BR71: jours | BS71: proies | BT71: 12 | BU71: g | BV71: 12 | BW71: % | BX71: du poids | BZ71: Jusqu'à | CA71: 150 | CB71: g | CC71: 6 | CD71: jours | CE71: proies | CF71: 18 | CG71: g | CH71: 12 | CI71: % | CJ71: du poids | CL71: Jusqu'à | CM71: 200 | CN71: g | CO71: 6 | CP71: jours | CQ71: proies | CR71: 24 | CS71: g | CT71: 12 | CU71: % | CV71: du poids | CX71: Jusqu'à | CY71: 250 | CZ71: 513 | DA71: 6 | DB71: jours | DC71: proies | DD71: 30 | DE71: g | DF71: 12 | DG71: % | DH71: du poids | DJ71: Jusqu'à | DK71: 300 | DL71: g | DM71: 7 | DN71: jours | DO71: proies | DP71: 36 | DQ71: g | DR71: 12 | DS71: % | DT71: du poids | DV71: Jusqu'à | DW71: 350 | DX71: g | DY71: 7 | DZ71: jours | EA71: proies | EB71: 42 | EC71: g | ED71: 12 | EE71: % | EF71: du poids | EH71: Jusqu'à | EI71: 400 | EJ71: g | EK71: 8 | EL71: jours | EM71: proies | EN71: 48 | EO71: g | EP71: 12 | EQ71: % | ER71: du poids | ET71: Jusqu'à | EU71: 450 | EV71: g | EW71: 8 | EX71: jours | EY71: proies | EZ71: 54 | FA71: g | FB71: 12 | FC71: % | FD71: du poids | FF71: Jusqu'à | FG71: 500 | FH71: g | FI71: 8 | FJ71: jours | FK71: proies | FL71: 60 | FM71: g | FN71: 12 | FO71: % | FP71: du poids | FR71: Jusqu'à | FS71: 550 | FT71: g | FU71: 8 | FV71: jours | FW71: proies | FX71: 66 | FY71: g | FZ71: 12 | GA71: % | GB71: du poids | GD71: Jusqu'à | GE71: 600 | GF71: g | GG71: 8 | GH71: jours | GI71: proies | GJ71: 72 | GK71: g | GL71: 12 | GM71: % | GN71: du poids | GP71: Jusqu'à | GQ71: 650 | GR71: g | GS71: 9 | GT71: jours | GU71: proies | GV71: 78 | GW71: g | GX71: 12 | GY71: % | GZ71: du poids | HB71: Jusqu'à | HC71: 700 | HD71: g | HE71: 9 | HF71: jours | HG71: proies | HH71: 84 | HI71: g | HJ71: 12 | HK71: % | HL71: du poids | HN71: Jusqu'à | HO71: 750 | HP71: g | HQ71: 9 | HR71: jours | HS71: proies | HT71: 90 | HU71: g | HV71: 12 | HW71: % | HX71: du poids | HZ71: Jusqu'à | IA71: 800 | IB71: g | IC71: 9 | ID71: jours | IE71: proies | IF71: 96 | IG71: g | IH71: 12 | II71: % | IJ71: du poids | IL71: Jusqu'à | IM71: 900 | IN71: g | IO71: 9 | IP71: jours | IQ71: proies | IR71: 108 | IS71: g | IT71: 12 | IU71: % | IV71: du poids | IX71: Jusqu'à | IY71: 1000 | IZ71: g | JA71: 9 | JB71: jours | JC71: proies | JD71: 120 | JE71: g | JF71: 12 | JG71: % | JH71: du poids | JJ71: Jusqu'à | JK71: 1100 | JL71: g | JM71: 9 | JN71: jours | JO71: proies | JP71: 132 | JQ71: g | JR71: 12 | JS71: % | JT71: du poids | JV71: Jusqu'à | JW71: 1200 | JX71: g | JY71: 9 | JZ71: jours | KA71: proies | KB71: 144 | KC71: g | KD71: 12 | KE71: % | KF71: du poids | KH71: Jusqu'à | KI71: 1300 | KJ71: g | KK71: 9 | KL71: jours | KM71: proies | KN71: 156 | KO71: g | KP71: 12 | KQ71: % | KR71: du poids | KT71: Jusqu'à | KU71: 1400 | KV71: g | KW71: 9 | KX71: jours | KY71: proies | KZ71: 168 | LA71: g | LB71: 12 | LC71: % | LD71: du poids | LF71: Jusqu'à | LG71: 1500 | LH71: g | LI71: 9 | LJ71: jours | LK71: proies | LL71: 180 | LM71: g | LN71: 12 | LO71: % | LP71: du poids | LR71: Jusqu'à | LS71: 1600 | LT71: g | LU71: 9 | LV71: jours | LW71: proies | LX71: 192 | LY71: g | LZ71: 12 | MA71: % | MB71: du poids | MD71: Jusqu'à | ME71: 1700 | MF71: g | MG71: 9 | MH71: jours | MI71: proies | MJ71: 204 | MK71: g | ML71: 12 | MM71: % | MN71: du poids | MP71: Jusqu'à | MQ71: 1800 | MR71: g | MS71: 9 | MT71: jours | MU71: proies | MV71: 216 | MW71: g | MX71: 12 | MY71: % | MZ71: du poids | NB71: Jusqu'à | NC71: 1900 | ND71: g | NE71: 9 | NF71: jours | NG71: proies | NH71: 228 | NI71: g | NJ71: 12 | NK71: % | NL71: du poids | NN71: Jusqu'à | NO71: 2000 | NP71: g | NQ71: 9 | NR71: jours | NS71: proies | NT71: 240 | NU71: g | NV71: 12 | NW71: % | NX71: du poids | NZ71: Jusqu'à | OA71: 2100 | OB71: g | OC71: 9 | OD71: jours | OE71: proies | OF71: 252 | OG71: g | OH71: 12 | OI71: % | OJ71: du poids | OL71: Jusqu'à | OM71: 2200 | ON71: g | OO71: 9 | OP71: jours | OQ71: proies | OR71: 242 | OS71: g | OT71: 11 | OU71: % | OV71: du poids | OX71: Jusqu'à | OY71: 2300 | OZ71: g | PA71: 9 | PB71: jours | PC71: proies | PD71: 230 | PE71: g | PF71: 10 | PG71: % | PH71: du poids | PJ71: Jusqu'à | PK71: 2400 | PL71: g | PM71: 9 | PN71: jours | PO71: proies | PP71: 240 | PQ71: g | PR71: 10 | PS71: % | PT71: du poids | PV71: Jusqu'à | PW71: 2500 | PX71: g | PY71: 9 | PZ71: jours | QA71: proies | QB71: 250 | QC71: g | QD71: 10 | QE71: % | QF71: du poids | QH71: Jusqu'à | QI71: 2600 | QJ71: g | QK71: 9 | QL71: jours | QM71: proies | QN71: 260 | QO71: g | QP71: 10 | QQ71: % | QR71: du poids | QT71: Jusqu'à | QU71: 2700 | QV71: g | QW71: 9 | QX71: jours | QY71: proies | QZ71: 270 | RA71: g | RB71: 10 | RC71: % | RD71: du poids | RF71: Jusqu'à | RG71: 2800 | RH71: g | RI71: 9 | RJ71: jours | RK71: proies | RL71: 280 | RM71: g | RN71: 10 | RO71: % | RP71: du poids | RR71: Jusqu'à | RS71: 2900 | RT71: g | RU71: 9 | RV71: jours | RW71: proies | RX71: 290 | RY71: g | RZ71: 10 | SA71: % | SB71: du poids | SD71: Jusqu'à | SE71: 3000 | SF71: g | SG71: 9 | SH71: jours | SI71: proies | SJ71: 300 | SK71: g | SL71: 10 | SM71: % | SN71: du poids
B72: jours | G72: g | I72: g | K72: g | P72: j | U72: g | V72: 0 | X72: g | AA72: cm | AB72: 0 | AD72: cm | BB72: Jusqu'à | BC72: 80 | BD72: g | BE72: 4 | BF72: jours | BG72: proies | BH72: 9.6 | BI72: g | BJ72: 12 | BK72: % | BL72: du poids | BN72: Jusqu'à | BO72: 100 | BP72: g | BQ72: 6 | BR72: jours | BS72: proies | BT72: 12 | BU72: g | BV72: 12 | BW72: % | BX72: du poids | BZ72: Jusqu'à | CA72: 150 | CB72: g | CC72: 6 | CD72: jours | CE72: proies | CF72: 18 | CG72: g | CH72: 12 | CI72: % | CJ72: du poids | CL72: Jusqu'à | CM72: 200 | CN72: g | CO72: 6 | CP72: jours | CQ72: proies | CR72: 24 | CS72: g | CT72: 12 | CU72: % | CV72: du poids | CX72: Jusqu'à | CY72: 250 | CZ72: 509 | DA72: 6 | DB72: jours | DC72: proies | DD72: 30 | DE72: g | DF72: 12 | DG72: % | DH72: du poids | DJ72: Jusqu'à | DK72: 300 | DL72: g | DM72: 7 | DN72: jours | DO72: proies | DP72: 36 | DQ72: g | DR72: 12 | DS72: % | DT72: du poids | DV72: Jusqu'à | DW72: 350 | DX72: g | DY72: 7 | DZ72: jours | EA72: proies | EB72: 42 | EC72: g | ED72: 12 | EE72: % | EF72: du poids | EH72: Jusqu'à | EI72: 400 | EJ72: g | EK72: 8 | EL72: jours | EM72: proies | EN72: 48 | EO72: g | EP72: 12 | EQ72: % | ER72: du poids | ET72: Jusqu'à | EU72: 450 | EV72: g | EW72: 8 | EX72: jours | EY72: proies | EZ72: 54 | FA72: g | FB72: 12 | FC72: % | FD72: du poids | FF72: Jusqu'à | FG72: 500 | FH72: g | FI72: 8 | FJ72: jours | FK72: proies | FL72: 60 | FM72: g | FN72: 12 | FO72: % | FP72: du poids | FR72: Jusqu'à | FS72: 550 | FT72: g | FU72: 8 | FV72: jours | FW72: proies | FX72: 66 | FY72: g | FZ72: 12 | GA72: % | GB72: du poids | GD72: Jusqu'à | GE72: 600 | GF72: g | GG72: 8 | GH72: jours | GI72: proies | GJ72: 72 | GK72: g | GL72: 12 | GM72: % | GN72: du poids | GP72: Jusqu'à | GQ72: 650 | GR72: g | GS72: 9 | GT72: jours | GU72: proies | GV72: 78 | GW72: g | GX72: 12 | GY72: % | GZ72: du poids | HB72: Jusqu'à | HC72: 700 | HD72: g | HE72: 9 | HF72: jours | HG72: proies | HH72: 84 | HI72: g | HJ72: 12 | HK72: % | HL72: du poids | HN72: Jusqu'à | HO72: 750 | HP72: g | HQ72: 9 | HR72: jours | HS72: proies | HT72: 90 | HU72: g | HV72: 12 | HW72: % | HX72: du poids | HZ72: Jusqu'à | IA72: 800 | IB72: g | IC72: 9 | ID72: jours | IE72: proies | IF72: 96 | IG72: g | IH72: 12 | II72: % | IJ72: du poids | IL72: Jusqu'à | IM72: 900 | IN72: g | IO72: 9 | IP72: jours | IQ72: proies | IR72: 108 | IS72: g | IT72: 12 | IU72: % | IV72: du poids | IX72: Jusqu'à | IY72: 1000 | IZ72: g | JA72: 9 | JB72: jours | JC72: proies | JD72: 120 | JE72: g | JF72: 12 | JG72: % | JH72: du poids | JJ72: Jusqu'à | JK72: 1100 | JL72: g | JM72: 9 | JN72: jours | JO72: proies | JP72: 132 | JQ72: g | JR72: 12 | JS72: % | JT72: du poids | JV72: Jusqu'à | JW72: 1200 | JX72: g | JY72: 9 | JZ72: jours | KA72: proies | KB72: 144 | KC72: g | KD72: 12 | KE72: % | KF72: du poids | KH72: Jusqu'à | KI72: 1300 | KJ72: g | KK72: 9 | KL72: jours | KM72: proies | KN72: 156 | KO72: g | KP72: 12 | KQ72: % | KR72: du poids | KT72: Jusqu'à | KU72: 1400 | KV72: g | KW72: 9 | KX72: jours | KY72: proies | KZ72: 168 | LA72: g | LB72: 12 | LC72: % | LD72: du poids | LF72: Jusqu'à | LG72: 1500 | LH72: g | LI72: 9 | LJ72: jours | LK72: proies | LL72: 180 | LM72: g | LN72: 12 | LO72: % | LP72: du poids | LR72: Jusqu'à | LS72: 1600 | LT72: g | LU72: 9 | LV72: jours | LW72: proies | LX72: 192 | LY72: g | LZ72: 12 | MA72: % | MB72: du poids | MD72: Jusqu'à | ME72: 1700 | MF72: g | MG72: 9 | MH72: jours | MI72: proies | MJ72: 204 | MK72: g | ML72: 12 | MM72: % | MN72: du poids | MP72: Jusqu'à | MQ72: 1800 | MR72: g | MS72: 9 | MT72: jours | MU72: proies | MV72: 216 | MW72: g | MX72: 12 | MY72: % | MZ72: du poids | NB72: Jusqu'à | NC72: 1900 | ND72: g | NE72: 9 | NF72: jours | NG72: proies | NH72: 228 | NI72: g | NJ72: 12 | NK72: % | NL72: du poids | NN72: Jusqu'à | NO72: 2000 | NP72: g | NQ72: 9 | NR72: jours | NS72: proies | NT72: 240 | NU72: g | NV72: 12 | NW72: % | NX72: du poids | NZ72: Jusqu'à | OA72: 2100 | OB72: g | OC72: 9 | OD72: jours | OE72: proies | OF72: 252 | OG72: g | OH72: 12 | OI72: % | OJ72: du poids | OL72: Jusqu'à | OM72: 2200 | ON72: g | OO72: 9 | OP72: jours | OQ72: proies | OR72: 242 | OS72: g | OT72: 11 | OU72: % | OV72: du poids | OX72: Jusqu'à | OY72: 2300 | OZ72: g | PA72: 9 | PB72: jours | PC72: proies | PD72: 230 | PE72: g | PF72: 10 | PG72: % | PH72: du poids | PJ72: Jusqu'à | PK72: 2400 | PL72: g | PM72: 9 | PN72: jours | PO72: proies | PP72: 240 | PQ72: g | PR72: 10 | PS72: % | PT72: du poids | PV72: Jusqu'à | PW72: 2500 | PX72: g | PY72: 9 | PZ72: jours | QA72: proies | QB72: 250 | QC72: g | QD72: 10 | QE72: % | QF72: du poids | QH72: Jusqu'à | QI72: 2600 | QJ72: g | QK72: 9 | QL72: jours | QM72: proies | QN72: 260 | QO72: g | QP72: 10 | QQ72: % | QR72: du poids | QT72: Jusqu'à | QU72: 2700 | QV72: g | QW72: 9 | QX72: jours | QY72: proies | QZ72: 270 | RA72: g | RB72: 10 | RC72: % | RD72: du poids | RF72: Jusqu'à | RG72: 2800 | RH72: g | RI72: 9 | RJ72: jours | RK72: proies | RL72: 280 | RM72: g | RN72: 10 | RO72: % | RP72: du poids | RR72: Jusqu'à | RS72: 2900 | RT72: g | RU72: 9 | RV72: jours | RW72: proies | RX72: 290 | RY72: g | RZ72: 10 | SA72: % | SB72: du poids | SD72: Jusqu'à | SE72: 3000 | SF72: g | SG72: 9 | SH72: jours | SI72: proies | SJ72: 300 | SK72: g | SL72: 10 | SM72: % | SN72: du poids
B73: jours | G73: g | I73: g | K73: g | P73: j | U73: g | V73: 0 | X73: g | AA73: cm | AB73: 0 | AD73: cm | BB73: Jusqu'à | BC73: 80 | BD73: g | BE73: 4 | BF73: jours | BG73: proies | BH73: 9.6 | BI73: g | BJ73: 12 | BK73: % | BL73: du poids | BN73: Jusqu'à | BO73: 100 | BP73: g | BQ73: 6 | BR73: jours | BS73: proies | BT73: 12 | BU73: g | BV73: 12 | BW73: % | BX73: du poids | BZ73: Jusqu'à | CA73: 150 | CB73: g | CC73: 6 | CD73: jours | CE73: proies | CF73: 18 | CG73: g | CH73: 12 | CI73: % | CJ73: du poids | CL73: Jusqu'à | CM73: 200 | CN73: g | CO73: 6 | CP73: jours | CQ73: proies | CR73: 24 | CS73: g | CT73: 12 | CU73: % | CV73: du poids | CX73: Jusqu'à | CY73: 250 | CZ73: 510 | DA73: 6 | DB73: jours | DC73: proies | DD73: 30 | DE73: g | DF73: 12 | DG73: % | DH73: du poids | DJ73: Jusqu'à | DK73: 300 | DL73: g | DM73: 7 | DN73: jours | DO73: proies | DP73: 36 | DQ73: g | DR73: 12 | DS73: % | DT73: du poids | DV73: Jusqu'à | DW73: 350 | DX73: g | DY73: 7 | DZ73: jours | EA73: proies | EB73: 42 | EC73: g | ED73: 12 | EE73: % | EF73: du poids | EH73: Jusqu'à | EI73: 400 | EJ73: g | EK73: 8 | EL73: jours | EM73: proies | EN73: 48 | EO73: g | EP73: 12 | EQ73: % | ER73: du poids | ET73: Jusqu'à | EU73: 450 | EV73: g | EW73: 8 | EX73: jours | EY73: proies | EZ73: 54 | FA73: g | FB73: 12 | FC73: % | FD73: du poids | FF73: Jusqu'à | FG73: 500 | FH73: g | FI73: 8 | FJ73: jours | FK73: proies | FL73: 60 | FM73: g | FN73: 12 | FO73: % | FP73: du poids | FR73: Jusqu'à | FS73: 550 | FT73: g | FU73: 8 | FV73: jours | FW73: proies | FX73: 66 | FY73: g | FZ73: 12 | GA73: % | GB73: du poids | GD73: Jusqu'à | GE73: 600 | GF73: g | GG73: 8 | GH73: jours | GI73: proies | GJ73: 72 | GK73: g | GL73: 12 | GM73: % | GN73: du poids | GP73: Jusqu'à | GQ73: 650 | GR73: g | GS73: 9 | GT73: jours | GU73: proies | GV73: 78 | GW73: g | GX73: 12 | GY73: % | GZ73: du poids | HB73: Jusqu'à | HC73: 700 | HD73: g | HE73: 9 | HF73: jours | HG73: proies | HH73: 84 | HI73: g | HJ73: 12 | HK73: % | HL73: du poids | HN73: Jusqu'à | HO73: 750 | HP73: g | HQ73: 9 | HR73: jours | HS73: proies | HT73: 90 | HU73: g | HV73: 12 | HW73: % | HX73: du poids | HZ73: Jusqu'à | IA73: 800 | IB73: g | IC73: 9 | ID73: jours | IE73: proies | IF73: 96 | IG73: g | IH73: 12 | II73: % | IJ73: du poids | IL73: Jusqu'à | IM73: 900 | IN73: g | IO73: 9 | IP73: jours | IQ73: proies | IR73: 108 | IS73: g | IT73: 12 | IU73: % | IV73: du poids | IX73: Jusqu'à | IY73: 1000 | IZ73: g | JA73: 9 | JB73: jours | JC73: proies | JD73: 120 | JE73: g | JF73: 12 | JG73: % | JH73: du poids | JJ73: Jusqu'à | JK73: 1100 | JL73: g | JM73: 9 | JN73: jours | JO73: proies | JP73: 132 | JQ73: g | JR73: 12 | JS73: % | JT73: du poids | JV73: Jusqu'à | JW73: 1200 | JX73: g | JY73: 9 | JZ73: jours | KA73: proies | KB73: 144 | KC73: g | KD73: 12 | KE73: % | KF73: du poids | KH73: Jusqu'à | KI73: 1300 | KJ73: g | KK73: 9 | KL73: jours | KM73: proies | KN73: 156 | KO73: g | KP73: 12 | KQ73: % | KR73: du poids | KT73: Jusqu'à | KU73: 1400 | KV73: g | KW73: 9 | KX73: jours | KY73: proies | KZ73: 168 | LA73: g | LB73: 12 | LC73: % | LD73: du poids | LF73: Jusqu'à | LG73: 1500 | LH73: g | LI73: 9 | LJ73: jours | LK73: proies | LL73: 180 | LM73: g | LN73: 12 | LO73: % | LP73: du poids | LR73: Jusqu'à | LS73: 1600 | LT73: g | LU73: 9 | LV73: jours | LW73: proies | LX73: 192 | LY73: g | LZ73: 12 | MA73: % | MB73: du poids | MD73: Jusqu'à | ME73: 1700 | MF73: g | MG73: 9 | MH73: jours | MI73: proies | MJ73: 204 | MK73: g | ML73: 12 | MM73: % | MN73: du poids | MP73: Jusqu'à | MQ73: 1800 | MR73: g | MS73: 9 | MT73: jours | MU73: proies | MV73: 216 | MW73: g | MX73: 12 | MY73: % | MZ73: du poids | NB73: Jusqu'à | NC73: 1900 | ND73: g | NE73: 9 | NF73: jours | NG73: proies | NH73: 228 | NI73: g | NJ73: 12 | NK73: % | NL73: du poids | NN73: Jusqu'à | NO73: 2000 | NP73: g | NQ73: 9 | NR73: jours | NS73: proies | NT73: 240 | NU73: g | NV73: 12 | NW73: % | NX73: du poids | NZ73: Jusqu'à | OA73: 2100 | OB73: g | OC73: 9 | OD73: jours | OE73: proies | OF73: 252 | OG73: g | OH73: 12 | OI73: % | OJ73: du poids | OL73: Jusqu'à | OM73: 2200 | ON73: g | OO73: 9 | OP73: jours | OQ73: proies | OR73: 242 | OS73: g | OT73: 11 | OU73: % | OV73: du poids | OX73: Jusqu'à | OY73: 2300 | OZ73: g | PA73: 9 | PB73: jours | PC73: proies | PD73: 230 | PE73: g | PF73: 10 | PG73: % | PH73: du poids | PJ73: Jusqu'à | PK73: 2400 | PL73: g | PM73: 9 | PN73: jours | PO73: proies | PP73: 240 | PQ73: g | PR73: 10 | PS73: % | PT73: du poids | PV73: Jusqu'à | PW73: 2500 | PX73: g | PY73: 9 | PZ73: jours | QA73: proies | QB73: 250 | QC73: g | QD73: 10 | QE73: % | QF73: du poids | QH73: Jusqu'à | QI73: 2600 | QJ73: g | QK73: 9 | QL73: jours | QM73: proies | QN73: 260 | QO73: g | QP73: 10 | QQ73: % | QR73: du poids | QT73: Jusqu'à | QU73: 2700 | QV73: g | QW73: 9 | QX73: jours | QY73: proies | QZ73: 270 | RA73: g | RB73: 10 | RC73: % | RD73: du poids | RF73: Jusqu'à | RG73: 2800 | RH73: g | RI73: 9 | RJ73: jours | RK73: proies | RL73: 280 | RM73: g | RN73: 10 | RO73: % | RP73: du poids | RR73: Jusqu'à | RS73: 2900 | RT73: g | RU73: 9 | RV73: jours | RW73: proies | RX73: 290 | RY73: g | RZ73: 10 | SA73: % | SB73: du poids | SD73: Jusqu'à | SE73: 3000 | SF73: g | SG73: 9 | SH73: jours | SI73: proies | SJ73: 300 | SK73: g | SL73: 10 | SM73: % | SN73: du poids
B74: jours | G74: g | I74: g | K74: g | P74: j | U74: g | V74: 0 | X74: g | AA74: cm | AB74: 0 | AD74: cm | BB74: Jusqu'à | BC74: 80 | BD74: g | BE74: 4 | BF74: jours | BG74: proies | BH74: 9.6 | BI74: g | BJ74: 12 | BK74: % | BL74: du poids | BN74: Jusqu'à | BO74: 100 | BP74: g | BQ74: 6 | BR74: jours | BS74: proies | BT74: 12 | BU74: g | BV74: 12 | BW74: % | BX74: du poids | BZ74: Jusqu'à | CA74: 150 | CB74: g | CC74: 6 | CD74: jours | CE74: proies | CF74: 18 | CG74: g | CH74: 12 | CI74: % | CJ74: du poids | CL74: Jusqu'à | CM74: 200 | CN74: g | CO74: 6 | CP74: jours | CQ74: proies | CR74: 24 | CS74: g | CT74: 12 | CU74: % | CV74: du poids | CX74: Jusqu'à | CY74: 250 | CZ74: 511 | DA74: 6 | DB74: jours | DC74: proies | DD74: 30 | DE74: g | DF74: 12 | DG74: % | DH74: du poids | DJ74: Jusqu'à | DK74: 300 | DL74: g | DM74: 7 | DN74: jours | DO74: proies | DP74: 36 | DQ74: g | DR74: 12 | DS74: % | DT74: du poids | DV74: Jusqu'à | DW74: 350 | DX74: g | DY74: 7 | DZ74: jours | EA74: proies | EB74: 42 | EC74: g | ED74: 12 | EE74: % | EF74: du poids | EH74: Jusqu'à | EI74: 400 | EJ74: g | EK74: 8 | EL74: jours | EM74: proies | EN74: 48 | EO74: g | EP74: 12 | EQ74: % | ER74: du poids | ET74: Jusqu'à | EU74: 450 | EV74: g | EW74: 8 | EX74: jours | EY74: proies | EZ74: 54 | FA74: g | FB74: 12 | FC74: % | FD74: du poids | FF74: Jusqu'à | FG74: 500 | FH74: g | FI74: 8 | FJ74: jours | FK74: proies | FL74: 60 | FM74: g | FN74: 12 | FO74: % | FP74: du poids | FR74: Jusqu'à | FS74: 550 | FT74: g | FU74: 8 | FV74: jours | FW74: proies | FX74: 66 | FY74: g | FZ74: 12 | GA74: % | GB74: du poids | GD74: Jusqu'à | GE74: 600 | GF74: g | GG74: 8 | GH74: jours | GI74: proies | GJ74: 72 | GK74: g | GL74: 12 | GM74: % | GN74: du poids | GP74: Jusqu'à | GQ74: 650 | GR74: g | GS74: 9 | GT74: jours | GU74: proies | GV74: 78 | GW74: g | GX74: 12 | GY74: % | GZ74: du poids | HB74: Jusqu'à | HC74: 700 | HD74: g | HE74: 9 | HF74: jours | HG74: proies | HH74: 84 | HI74: g | HJ74: 12 | HK74: % | HL74: du poids | HN74: Jusqu'à | HO74: 750 | HP74: g | HQ74: 9 | HR74: jours | HS74: proies | HT74: 90 | HU74: g | HV74: 12 | HW74: % | HX74: du poids | HZ74: Jusqu'à | IA74: 800 | IB74: g | IC74: 9 | ID74: jours | IE74: proies | IF74: 96 | IG74: g | IH74: 12 | II74: % | IJ74: du poids | IL74: Jusqu'à | IM74: 900 | IN74: g | IO74: 9 | IP74: jours | IQ74: proies | IR74: 108 | IS74: g | IT74: 12 | IU74: % | IV74: du poids | IX74: Jusqu'à | IY74: 1000 | IZ74: g | JA74: 9 | JB74: jours | JC74: proies | JD74: 120 | JE74: g | JF74: 12 | JG74: % | JH74: du poids | JJ74: Jusqu'à | JK74: 1100 | JL74: g | JM74: 9 | JN74: jours | JO74: proies | JP74: 132 | JQ74: g | JR74: 12 | JS74: % | JT74: du poids | JV74: Jusqu'à | JW74: 1200 | JX74: g | JY74: 9 | JZ74: jours | KA74: proies | KB74: 144 | KC74: g | KD74: 12 | KE74: % | KF74: du poids | KH74: Jusqu'à | KI74: 1300 | KJ74: g | KK74: 9 | KL74: jours | KM74: proies | KN74: 156 | KO74: g | KP74: 12 | KQ74: % | KR74: du poids | KT74: Jusqu'à | KU74: 1400 | KV74: g | KW74: 9 | KX74: jours | KY74: proies | KZ74: 168 | LA74: g | LB74: 12 | LC74: % | LD74: du poids | LF74: Jusqu'à | LG74: 1500 | LH74: g | LI74: 9 | LJ74: jours | LK74: proies | LL74: 180 | LM74: g | LN74: 12 | LO74: % | LP74: du poids | LR74: Jusqu'à | LS74: 1600 | LT74: g | LU74: 9 | LV74: jours | LW74: proies | LX74: 192 | LY74: g | LZ74: 12 | MA74: % | MB74: du poids | MD74: Jusqu'à | ME74: 1700 | MF74: g | MG74: 9 | MH74: jours | MI74: proies | MJ74: 204 | MK74: g | ML74: 12 | MM74: % | MN74: du poids | MP74: Jusqu'à | MQ74: 1800 | MR74: g | MS74: 9 | MT74: jours | MU74: proies | MV74: 216 | MW74: g | MX74: 12 | MY74: % | MZ74: du poids | NB74: Jusqu'à | NC74: 1900 | ND74: g | NE74: 9 | NF74: jours | NG74: proies | NH74: 228 | NI74: g | NJ74: 12 | NK74: % | NL74: du poids | NN74: Jusqu'à | NO74: 2000 | NP74: g | NQ74: 9 | NR74: jours | NS74: proies | NT74: 240 | NU74: g | NV74: 12 | NW74: % | NX74: du poids | NZ74: Jusqu'à | OA74: 2100 | OB74: g | OC74: 9 | OD74: jours | OE74: proies | OF74: 252 | OG74: g | OH74: 12 | OI74: % | OJ74: du poids | OL74: Jusqu'à | OM74: 2200 | ON74: g | OO74: 9 | OP74: jours | OQ74: proies | OR74: 242 | OS74: g | OT74: 11 | OU74: % | OV74: du poids | OX74: Jusqu'à | OY74: 2300 | OZ74: g | PA74: 9 | PB74: jours | PC74: proies | PD74: 230 | PE74: g | PF74: 10 | PG74: % | PH74: du poids | PJ74: Jusqu'à | PK74: 2400 | PL74: g | PM74: 9 | PN74: jours | PO74: proies | PP74: 240 | PQ74: g | PR74: 10 | PS74: % | PT74: du poids | PV74: Jusqu'à | PW74: 2500 | PX74: g | PY74: 9 | PZ74: jours | QA74: proies | QB74: 250 | QC74: g | QD74: 10 | QE74: % | QF74: du poids | QH74: Jusqu'à | QI74: 2600 | QJ74: g | QK74: 9 | QL74: jours | QM74: proies | QN74: 260 | QO74: g | QP74: 10 | QQ74: % | QR74: du poids | QT74: Jusqu'à | QU74: 2700 | QV74: g | QW74: 9 | QX74: jours | QY74: proies | QZ74: 270 | RA74: g | RB74: 10 | RC74: % | RD74: du poids | RF74: Jusqu'à | RG74: 2800 | RH74: g | RI74: 9 | RJ74: jours | RK74: proies | RL74: 280 | RM74: g | RN74: 10 | RO74: % | RP74: du poids | RR74: Jusqu'à | RS74: 2900 | RT74: g | RU74: 9 | RV74: jours | RW74: proies | RX74: 290 | RY74: g | RZ74: 10 | SA74: % | SB74: du poids | SD74: Jusqu'à | SE74: 3000 | SF74: g | SG74: 9 | SH74: jours | SI74: proies | SJ74: 300 | SK74: g | SL74: 10 | SM74: % | SN74: du poids
B75: jours | G75: g | I75: g | K75: g | P75: j | U75: g | V75: 0 | X75: g | AA75: cm | AB75: 0 | AD75: cm | BB75: Jusqu'à | BC75: 80 | BD75: g | BE75: 4 | BF75: jours | BG75: proies | BH75: 9.6 | BI75: g | BJ75: 12 | BK75: % | BL75: du poids | BN75: Jusqu'à | BO75: 100 | BP75: g | BQ75: 6 | BR75: jours | BS75: proies | BT75: 12 | BU75: g | BV75: 12 | BW75: % | BX75: du poids | BZ75: Jusqu'à | CA75: 150 | CB75: g | CC75: 6 | CD75: jours | CE75: proies | CF75: 18 | CG75: g | CH75: 12 | CI75: % | CJ75: du poids | CL75: Jusqu'à | CM75: 200 | CN75: g | CO75: 6 | CP75: jours | CQ75: proies | CR75: 24 | CS75: g | CT75: 12 | CU75: % | CV75: du poids | CX75: Jusqu'à | CY75: 250 | CZ75: 511 | DA75: 6 | DB75: jours | DC75: proies | DD75: 30 | DE75: g | DF75: 12 | DG75: % | DH75: du poids | DJ75: Jusqu'à | DK75: 300 | DL75: g | DM75: 7 | DN75: jours | DO75: proies | DP75: 36 | DQ75: g | DR75: 12 | DS75: % | DT75: du poids | DV75: Jusqu'à | DW75: 350 | DX75: g | DY75: 7 | DZ75: jours | EA75: proies | EB75: 42 | EC75: g | ED75: 12 | EE75: % | EF75: du poids | EH75: Jusqu'à | EI75: 400 | EJ75: g | EK75: 8 | EL75: jours | EM75: proies | EN75: 48 | EO75: g | EP75: 12 | EQ75: % | ER75: du poids | ET75: Jusqu'à | EU75: 450 | EV75: g | EW75: 8 | EX75: jours | EY75: proies | EZ75: 54 | FA75: g | FB75: 12 | FC75: % | FD75: du poids | FF75: Jusqu'à | FG75: 500 | FH75: g | FI75: 8 | FJ75: jours | FK75: proies | FL75: 60 | FM75: g | FN75: 12 | FO75: % | FP75: du poids | FR75: Jusqu'à | FS75: 550 | FT75: g | FU75: 8 | FV75: jours | FW75: proies | FX75: 66 | FY75: g | FZ75: 12 | GA75: % | GB75: du poids | GD75: Jusqu'à | GE75: 600 | GF75: g | GG75: 8 | GH75: jours | GI75: proies | GJ75: 72 | GK75: g | GL75: 12 | GM75: % | GN75: du poids | GP75: Jusqu'à | GQ75: 650 | GR75: g | GS75: 9 | GT75: jours | GU75: proies | GV75: 78 | GW75: g | GX75: 12 | GY75: % | GZ75: du poids | HB75: Jusqu'à | HC75: 700 | HD75: g | HE75: 9 | HF75: jours | HG75: proies | HH75: 84 | HI75: g | HJ75: 12 | HK75: % | HL75: du poids | HN75: Jusqu'à | HO75: 750 | HP75: g | HQ75: 9 | HR75: jours | HS75: proies | HT75: 90 | HU75: g | HV75: 12 | HW75: % | HX75: du poids | HZ75: Jusqu'à | IA75: 800 | IB75: g | IC75: 9 | ID75: jours | IE75: proies | IF75: 96 | IG75: g | IH75: 12 | II75: % | IJ75: du poids | IL75: Jusqu'à | IM75: 900 | IN75: g | IO75: 9 | IP75: jours | IQ75: proies | IR75: 108 | IS75: g | IT75: 12 | IU75: % | IV75: du poids | IX75: Jusqu'à | IY75: 1000 | IZ75: g | JA75: 9 | JB75: jours | JC75: proies | JD75: 120 | JE75: g | JF75: 12 | JG75: % | JH75: du poids | JJ75: Jusqu'à | JK75: 1100 | JL75: g | JM75: 9 | JN75: jours | JO75: proies | JP75: 132 | JQ75: g | JR75: 12 | JS75: % | JT75: du poids | JV75: Jusqu'à | JW75: 1200 | JX75: g | JY75: 9 | JZ75: jours | KA75: proies | KB75: 144 | KC75: g | KD75: 12 | KE75: % | KF75: du poids | KH75: Jusqu'à | KI75: 1300 | KJ75: g | KK75: 9 | KL75: jours | KM75: proies | KN75: 156 | KO75: g | KP75: 12 | KQ75: % | KR75: du poids | KT75: Jusqu'à | KU75: 1400 | KV75: g | KW75: 9 | KX75: jours | KY75: proies | KZ75: 168 | LA75: g | LB75: 12 | LC75: % | LD75: du poids | LF75: Jusqu'à | LG75: 1500 | LH75: g | LI75: 9 | LJ75: jours | LK75: proies | LL75: 180 | LM75: g | LN75: 12 | LO75: % | LP75: du poids | LR75: Jusqu'à | LS75: 1600 | LT75: g | LU75: 9 | LV75: jours | LW75: proies | LX75: 192 | LY75: g | LZ75: 12 | MA75: % | MB75: du poids | MD75: Jusqu'à | ME75: 1700 | MF75: g | MG75: 9 | MH75: jours | MI75: proies | MJ75: 204 | MK75: g | ML75: 12 | MM75: % | MN75: du poids | MP75: Jusqu'à | MQ75: 1800 | MR75: g | MS75: 9 | MT75: jours | MU75: proies | MV75: 216 | MW75: g | MX75: 12 | MY75: % | MZ75: du poids | NB75: Jusqu'à | NC75: 1900 | ND75: g | NE75: 9 | NF75: jours | NG75: proies | NH75: 228 | NI75: g | NJ75: 12 | NK75: % | NL75: du poids | NN75: Jusqu'à | NO75: 2000 | NP75: g | NQ75: 9 | NR75: jours | NS75: proies | NT75: 240 | NU75: g | NV75: 12 | NW75: % | NX75: du poids | NZ75: Jusqu'à | OA75: 2100 | OB75: g | OC75: 9 | OD75: jours | OE75: proies | OF75: 252 | OG75: g | OH75: 12 | OI75: % | OJ75: du poids | OL75: Jusqu'à | OM75: 2200 | ON75: g | OO75: 9 | OP75: jours | OQ75: proies | OR75: 242 | OS75: g | OT75: 11 | OU75: % | OV75: du poids | OX75: Jusqu'à | OY75: 2300 | OZ75: g | PA75: 9 | PB75: jours | PC75: proies | PD75: 230 | PE75: g | PF75: 10 | PG75: % | PH75: du poids | PJ75: Jusqu'à | PK75: 2400 | PL75: g | PM75: 9 | PN75: jours | PO75: proies | PP75: 240 | PQ75: g | PR75: 10 | PS75: % | PT75: du poids | PV75: Jusqu'à | PW75: 2500 | PX75: g | PY75: 9 | PZ75: jours | QA75: proies | QB75: 250 | QC75: g | QD75: 10 | QE75: % | QF75: du poids | QH75: Jusqu'à | QI75: 2600 | QJ75: g | QK75: 9 | QL75: jours | QM75: proies | QN75: 260 | QO75: g | QP75: 10 | QQ75: % | QR75: du poids | QT75: Jusqu'à | QU75: 2700 | QV75: g | QW75: 9 | QX75: jours | QY75: proies | QZ75: 270 | RA75: g | RB75: 10 | RC75: % | RD75: du poids | RF75: Jusqu'à | RG75: 2800 | RH75: g | RI75: 9 | RJ75: jours | RK75: proies | RL75: 280 | RM75: g | RN75: 10 | RO75: % | RP75: du poids | RR75: Jusqu'à | RS75: 2900 | RT75: g | RU75: 9 | RV75: jours | RW75: proies | RX75: 290 | RY75: g | RZ75: 10 | SA75: % | SB75: du poids | SD75: Jusqu'à | SE75: 3000 | SF75: g | SG75: 9 | SH75: jours | SI75: proies | SJ75: 300 | SK75: g | SL75: 10 | SM75: % | SN75: du poids
B76: jours | G76: g | I76: g | K76: g | P76: j | U76: g | V76: 0 | X76: g | AA76: cm | AB76: 0 | AD76: cm | BB76: Jusqu'à | BC76: 80 | BD76: g | BE76: 4 | BF76: jours | BG76: proies | BH76: 9.6 | BI76: g | BJ76: 12 | BK76: % | BL76: du poids | BN76: Jusqu'à | BO76: 100 | BP76: g | BQ76: 6 | BR76: jours | BS76: proies | BT76: 12 | BU76: g | BV76: 12 | BW76: % | BX76: du poids | BZ76: Jusqu'à | CA76: 150 | CB76: g | CC76: 6 | CD76: jours | CE76: proies | CF76: 18 | CG76: g | CH76: 12 | CI76: % | CJ76: du poids | CL76: Jusqu'à | CM76: 200 | CN76: g | CO76: 6 | CP76: jours | CQ76: proies | CR76: 24 | CS76: g | CT76: 12 | CU76: % | CV76: du poids | CX76: Jusqu'à | CY76: 250 | CZ76: 502 | DA76: 6 | DB76: jours | DC76: proies | DD76: 30 | DE76: g | DF76: 12 | DG76: % | DH76: du poids | DJ76: Jusqu'à | DK76: 300 | DL76: g | DM76: 7 | DN76: jours | DO76: proies | DP76: 36 | DQ76: g | DR76: 12 | DS76: % | DT76: du poids | DV76: Jusqu'à | DW76: 350 | DX76: g | DY76: 7 | DZ76: jours | EA76: proies | EB76: 42 | EC76: g | ED76: 12 | EE76: % | EF76: du poids | EH76: Jusqu'à | EI76: 400 | EJ76: g | EK76: 8 | EL76: jours | EM76: proies | EN76: 48 | EO76: g | EP76: 12 | EQ76: % | ER76: du poids | ET76: Jusqu'à | EU76: 450 | EV76: g | EW76: 8 | EX76: jours | EY76: proies | EZ76: 54 | FA76: g | FB76: 12 | FC76: % | FD76: du poids | FF76: Jusqu'à | FG76: 500 | FH76: g | FI76: 8 | FJ76: jours | FK76: proies | FL76: 60 | FM76: g | FN76: 12 | FO76: % | FP76: du poids | FR76: Jusqu'à | FS76: 550 | FT76: g | FU76: 8 | FV76: jours | FW76: proies | FX76: 66 | FY76: g | FZ76: 12 | GA76: % | GB76: du poids | GD76: Jusqu'à | GE76: 600 | GF76: g | GG76: 8 | GH76: jours | GI76: proies | GJ76: 72 | GK76: g | GL76: 12 | GM76: % | GN76: du poids | GP76: Jusqu'à | GQ76: 650 | GR76: g | GS76: 9 | GT76: jours | GU76: proies | GV76: 78 | GW76: g | GX76: 12 | GY76: % | GZ76: du poids | HB76: Jusqu'à | HC76: 700 | HD76: g | HE76: 9 | HF76: jours | HG76: proies | HH76: 84 | HI76: g | HJ76: 12 | HK76: % | HL76: du poids | HN76: Jusqu'à | HO76: 750 | HP76: g | HQ76: 9 | HR76: jours | HS76: proies | HT76: 90 | HU76: g | HV76: 12 | HW76: % | HX76: du poids | HZ76: Jusqu'à | IA76: 800 | IB76: g | IC76: 9 | ID76: jours | IE76: proies | IF76: 96 | IG76: g | IH76: 12 | II76: % | IJ76: du poids | IL76: Jusqu'à | IM76: 900 | IN76: g | IO76: 9 | IP76: jours | IQ76: proies | IR76: 108 | IS76: g | IT76: 12 | IU76: % | IV76: du poids | IX76: Jusqu'à | IY76: 1000 | IZ76: g | JA76: 9 | JB76: jours | JC76: proies | JD76: 120 | JE76: g | JF76: 12 | JG76: % | JH76: du poids | JJ76: Jusqu'à | JK76: 1100 | JL76: g | JM76: 9 | JN76: jours | JO76: proies | JP76: 132 | JQ76: g | JR76: 12 | JS76: % | JT76: du poids | JV76: Jusqu'à | JW76: 1200 | JX76: g | JY76: 9 | JZ76: jours | KA76: proies | KB76: 144 | KC76: g | KD76: 12 | KE76: % | KF76: du poids | KH76: Jusqu'à | KI76: 1300 | KJ76: g | KK76: 9 | KL76: jours | KM76: proies | KN76: 156 | KO76: g | KP76: 12 | KQ76: % | KR76: du poids | KT76: Jusqu'à | KU76: 1400 | KV76: g | KW76: 9 | KX76: jours | KY76: proies | KZ76: 168 | LA76: g | LB76: 12 | LC76: % | LD76: du poids | LF76: Jusqu'à | LG76: 1500 | LH76: g | LI76: 9 | LJ76: jours | LK76: proies | LL76: 180 | LM76: g | LN76: 12 | LO76: % | LP76: du poids | LR76: Jusqu'à | LS76: 1600 | LT76: g | LU76: 9 | LV76: jours | LW76: proies | LX76: 192 | LY76: g | LZ76: 12 | MA76: % | MB76: du poids | MD76: Jusqu'à | ME76: 1700 | MF76: g | MG76: 9 | MH76: jours | MI76: proies | MJ76: 204 | MK76: g | ML76: 12 | MM76: % | MN76: du poids | MP76: Jusqu'à | MQ76: 1800 | MR76: g | MS76: 9 | MT76: jours | MU76: proies | MV76: 216 | MW76: g | MX76: 12 | MY76: % | MZ76: du poids | NB76: Jusqu'à | NC76: 1900 | ND76: g | NE76: 9 | NF76: jours | NG76: proies | NH76: 228 | NI76: g | NJ76: 12 | NK76: % | NL76: du poids | NN76: Jusqu'à | NO76: 2000 | NP76: g | NQ76: 9 | NR76: jours | NS76: proies | NT76: 240 | NU76: g | NV76: 12 | NW76: % | NX76: du poids | NZ76: Jusqu'à | OA76: 2100 | OB76: g | OC76: 9 | OD76: jours | OE76: proies | OF76: 252 | OG76: g | OH76: 12 | OI76: % | OJ76: du poids | OL76: Jusqu'à | OM76: 2200 | ON76: g | OO76: 9 | OP76: jours | OQ76: proies | OR76: 242 | OS76: g | OT76: 11 | OU76: % | OV76: du poids | OX76: Jusqu'à | OY76: 2300 | OZ76: g | PA76: 9 | PB76: jours | PC76: proies | PD76: 230 | PE76: g | PF76: 10 | PG76: % | PH76: du poids | PJ76: Jusqu'à | PK76: 2400 | PL76: g | PM76: 9 | PN76: jours | PO76: proies | PP76: 240 | PQ76: g | PR76: 10 | PS76: % | PT76: du poids | PV76: Jusqu'à | PW76: 2500 | PX76: g | PY76: 9 | PZ76: jours | QA76: proies | QB76: 250 | QC76: g | QD76: 10 | QE76: % | QF76: du poids | QH76: Jusqu'à | QI76: 2600 | QJ76: g | QK76: 9 | QL76: jours | QM76: proies | QN76: 260 | QO76: g | QP76: 10 | QQ76: % | QR76: du poids | QT76: Jusqu'à | QU76: 2700 | QV76: g | QW76: 9 | QX76: jours | QY76: proies | QZ76: 270 | RA76: g | RB76: 10 | RC76: % | RD76: du poids | RF76: Jusqu'à | RG76: 2800 | RH76: g | RI76: 9 | RJ76: jours | RK76: proies | RL76: 280 | RM76: g | RN76: 10 | RO76: % | RP76: du poids | RR76: Jusqu'à | RS76: 2900 | RT76: g | RU76: 9 | RV76: jours | RW76: proies | RX76: 290 | RY76: g | RZ76: 10 | SA76: % | SB76: du poids | SD76: Jusqu'à | SE76: 3000 | SF76: g | SG76: 9 | SH76: jours | SI76: proies | SJ76: 300 | SK76: g | SL76: 10 | SM76: % | SN76: du poids
B77: jours | G77: g | I77: g | K77: g | P77: j | U77: g | V77: 0 | X77: g | AA77: cm | AB77: 0 | AD77: cm | BB77: Jusqu'à | BC77: 80 | BD77: g | BE77: 4 | BF77: jours | BG77: proies | BH77: 9.6 | BI77: g | BJ77: 12 | BK77: % | BL77: du poids | BN77: Jusqu'à | BO77: 100 | BP77: g | BQ77: 6 | BR77: jours | BS77: proies | BT77: 12 | BU77: g | BV77: 12 | BW77: % | BX77: du poids | BZ77: Jusqu'à | CA77: 150 | CB77: g | CC77: 6 | CD77: jours | CE77: proies | CF77: 18 | CG77: g | CH77: 12 | CI77: % | CJ77: du poids | CL77: Jusqu'à | CM77: 200 | CN77: g | CO77: 6 | CP77: jours | CQ77: proies | CR77: 24 | CS77: g | CT77: 12 | CU77: % | CV77: du poids | CX77: Jusqu'à | CY77: 250 | CZ77: 503 | DA77: 6 | DB77: jours | DC77: proies | DD77: 30 | DE77: g | DF77: 12 | DG77: % | DH77: du poids | DJ77: Jusqu'à | DK77: 300 | DL77: g | DM77: 7 | DN77: jours | DO77: proies | DP77: 36 | DQ77: g | DR77: 12 | DS77: % | DT77: du poids | DV77: Jusqu'à | DW77: 350 | DX77: g | DY77: 7 | DZ77: jours | EA77: proies | EB77: 42 | EC77: g | ED77: 12 | EE77: % | EF77: du poids | EH77: Jusqu'à | EI77: 400 | EJ77: g | EK77: 8 | EL77: jours | EM77: proies | EN77: 48 | EO77: g | EP77: 12 | EQ77: % | ER77: du poids | ET77: Jusqu'à | EU77: 450 | EV77: g | EW77: 8 | EX77: jours | EY77: proies | EZ77: 54 | FA77: g | FB77: 12 | FC77: % | FD77: du poids | FF77: Jusqu'à | FG77: 500 | FH77: g | FI77: 8 | FJ77: jours | FK77: proies | FL77: 60 | FM77: g | FN77: 12 | FO77: % | FP77: du poids | FR77: Jusqu'à | FS77: 550 | FT77: g | FU77: 8 | FV77: jours | FW77: proies | FX77: 66 | FY77: g | FZ77: 12 | GA77: % | GB77: du poids | GD77: Jusqu'à | GE77: 600 | GF77: g | GG77: 8 | GH77: jours | GI77: proies | GJ77: 72 | GK77: g | GL77: 12 | GM77: % | GN77: du poids | GP77: Jusqu'à | GQ77: 650 | GR77: g | GS77: 9 | GT77: jours | GU77: proies | GV77: 78 | GW77: g | GX77: 12 | GY77: % | GZ77: du poids | HB77: Jusqu'à | HC77: 700 | HD77: g | HE77: 9 | HF77: jours | HG77: proies | HH77: 84 | HI77: g | HJ77: 12 | HK77: % | HL77: du poids | HN77: Jusqu'à | HO77: 750 | HP77: g | HQ77: 9 | HR77: jours | HS77: proies | HT77: 90 | HU77: g | HV77: 12 | HW77: % | HX77: du poids | HZ77: Jusqu'à | IA77: 800 | IB77: g | IC77: 9 | ID77: jours | IE77: proies | IF77: 96 | IG77: g | IH77: 12 | II77: % | IJ77: du poids | IL77: Jusqu'à | IM77: 900 | IN77: g | IO77: 9 | IP77: jours | IQ77: proies | IR77: 108 | IS77: g | IT77: 12 | IU77: % | IV77: du poids | IX77: Jusqu'à | IY77: 1000 | IZ77: g | JA77: 9 | JB77: jours | JC77: proies | JD77: 120 | JE77: g | JF77: 12 | JG77: % | JH77: du poids | JJ77: Jusqu'à | JK77: 1100 | JL77: g | JM77: 9 | JN77: jours | JO77: proies | JP77: 132 | JQ77: g | JR77: 12 | JS77: % | JT77: du poids | JV77: Jusqu'à | JW77: 1200 | JX77: g | JY77: 9 | JZ77: jours | KA77: proies | KB77: 144 | KC77: g | KD77: 12 | KE77: % | KF77: du poids | KH77: Jusqu'à | KI77: 1300 | KJ77: g | KK77: 9 | KL77: jours | KM77: proies | KN77: 156 | KO77: g | KP77: 12 | KQ77: % | KR77: du poids | KT77: Jusqu'à | KU77: 1400 | KV77: g | KW77: 9 | KX77: jours | KY77: proies | KZ77: 168 | LA77: g | LB77: 12 | LC77: % | LD77: du poids | LF77: Jusqu'à | LG77: 1500 | LH77: g | LI77: 9 | LJ77: jours | LK77: proies | LL77: 180 | LM77: g | LN77: 12 | LO77: % | LP77: du poids | LR77: Jusqu'à | LS77: 1600 | LT77: g | LU77: 9 | LV77: jours | LW77: proies | LX77: 192 | LY77: g | LZ77: 12 | MA77: % | MB77: du poids | MD77: Jusqu'à | ME77: 1700 | MF77: g | MG77: 9 | MH77: jours | MI77: proies | MJ77: 204 | MK77: g | ML77: 12 | MM77: % | MN77: du poids | MP77: Jusqu'à | MQ77: 1800 | MR77: g | MS77: 9 | MT77: jours | MU77: proies | MV77: 216 | MW77: g | MX77: 12 | MY77: % | MZ77: du poids | NB77: Jusqu'à | NC77: 1900 | ND77: g | NE77: 9 | NF77: jours | NG77: proies | NH77: 228 | NI77: g | NJ77: 12 | NK77: % | NL77: du poids | NN77: Jusqu'à | NO77: 2000 | NP77: g | NQ77: 9 | NR77: jours | NS77: proies | NT77: 240 | NU77: g | NV77: 12 | NW77: % | NX77: du poids | NZ77: Jusqu'à | OA77: 2100 | OB77: g | OC77: 9 | OD77: jours | OE77: proies | OF77: 252 | OG77: g | OH77: 12 | OI77: % | OJ77: du poids | OL77: Jusqu'à | OM77: 2200 | ON77: g | OO77: 9 | OP77: jours | OQ77: proies | OR77: 242 | OS77: g | OT77: 11 | OU77: % | OV77: du poids | OX77: Jusqu'à | OY77: 2300 | OZ77: g | PA77: 9 | PB77: jours | PC77: proies | PD77: 230 | PE77: g | PF77: 10 | PG77: % | PH77: du poids | PJ77: Jusqu'à | PK77: 2400 | PL77: g | PM77: 9 | PN77: jours | PO77: proies | PP77: 240 | PQ77: g | PR77: 10 | PS77: % | PT77: du poids | PV77: Jusqu'à | PW77: 2500 | PX77: g | PY77: 9 | PZ77: jours | QA77: proies | QB77: 250 | QC77: g | QD77: 10 | QE77: % | QF77: du poids | QH77: Jusqu'à | QI77: 2600 | QJ77: g | QK77: 9 | QL77: jours | QM77: proies | QN77: 260 | QO77: g | QP77: 10 | QQ77: % | QR77: du poids | QT77: Jusqu'à | QU77: 2700 | QV77: g | QW77: 9 | QX77: jours | QY77: proies | QZ77: 270 | RA77: g | RB77: 10 | RC77: % | RD77: du poids | RF77: Jusqu'à | RG77: 2800 | RH77: g | RI77: 9 | RJ77: jours | RK77: proies | RL77: 280 | RM77: g | RN77: 10 | RO77: % | RP77: du poids | RR77: Jusqu'à | RS77: 2900 | RT77: g | RU77: 9 | RV77: jours | RW77: proies | RX77: 290 | RY77: g | RZ77: 10 | SA77: % | SB77: du poids | SD77: Jusqu'à | SE77: 3000 | SF77: g | SG77: 9 | SH77: jours | SI77: proies | SJ77: 300 | SK77: g | SL77: 10 | SM77: % | SN77: du poids
B78: jours | G78: g | I78: g | K78: g | P78: j | U78: g | V78: 0 | X78: g | AA78: cm | AB78: 0 | AD78: cm | BB78: Jusqu'à | BC78: 80 | BD78: g | BE78: 4 | BF78: jours | BG78: proies | BH78: 9.6 | BI78: g | BJ78: 12 | BK78: % | BL78: du poids | BN78: Jusqu'à | BO78: 100 | BP78: g | BQ78: 6 | BR78: jours | BS78: proies | BT78: 12 | BU78: g | BV78: 12 | BW78: % | BX78: du poids | BZ78: Jusqu'à | CA78: 150 | CB78: g | CC78: 6 | CD78: jours | CE78: proies | CF78: 18 | CG78: g | CH78: 12 | CI78: % | CJ78: du poids | CL78: Jusqu'à | CM78: 200 | CN78: g | CO78: 6 | CP78: jours | CQ78: proies | CR78: 24 | CS78: g | CT78: 12 | CU78: % | CV78: du poids | CX78: Jusqu'à | CY78: 250 | CZ78: 504 | DA78: 6 | DB78: jours | DC78: proies | DD78: 30 | DE78: g | DF78: 12 | DG78: % | DH78: du poids | DJ78: Jusqu'à | DK78: 300 | DL78: g | DM78: 7 | DN78: jours | DO78: proies | DP78: 36 | DQ78: g | DR78: 12 | DS78: % | DT78: du poids | DV78: Jusqu'à | DW78: 350 | DX78: g | DY78: 7 | DZ78: jours | EA78: proies | EB78: 42 | EC78: g | ED78: 12 | EE78: % | EF78: du poids | EH78: Jusqu'à | EI78: 400 | EJ78: g | EK78: 8 | EL78: jours | EM78: proies | EN78: 48 | EO78: g | EP78: 12 | EQ78: % | ER78: du poids | ET78: Jusqu'à | EU78: 450 | EV78: g | EW78: 8 | EX78: jours | EY78: proies | EZ78: 54 | FA78: g | FB78: 12 | FC78: % | FD78: du poids | FF78: Jusqu'à | FG78: 500 | FH78: g | FI78: 8 | FJ78: jours | FK78: proies | FL78: 60 | FM78: g | FN78: 12 | FO78: % | FP78: du poids | FR78: Jusqu'à | FS78: 550 | FT78: g | FU78: 8 | FV78: jours | FW78: proies | FX78: 66 | FY78: g | FZ78: 12 | GA78: % | GB78: du poids | GD78: Jusqu'à | GE78: 600 | GF78: g | GG78: 8 | GH78: jours | GI78: proies | GJ78: 72 | GK78: g | GL78: 12 | GM78: % | GN78: du poids | GP78: Jusqu'à | GQ78: 650 | GR78: g | GS78: 9 | GT78: jours | GU78: proies | GV78: 78 | GW78: g | GX78: 12 | GY78: % | GZ78: du poids | HB78: Jusqu'à | HC78: 700 | HD78: g | HE78: 9 | HF78: jours | HG78: proies | HH78: 84 | HI78: g | HJ78: 12 | HK78: % | HL78: du poids | HN78: Jusqu'à | HO78: 750 | HP78: g | HQ78: 9 | HR78: jours | HS78: proies | HT78: 90 | HU78: g | HV78: 12 | HW78: % | HX78: du poids | HZ78: Jusqu'à | IA78: 800 | IB78: g | IC78: 9 | ID78: jours | IE78: proies | IF78: 96 | IG78: g | IH78: 12 | II78: % | IJ78: du poids | IL78: Jusqu'à | IM78: 900 | IN78: g | IO78: 9 | IP78: jours | IQ78: proies | IR78: 108 | IS78: g | IT78: 12 | IU78: % | IV78: du poids | IX78: Jusqu'à | IY78: 1000 | IZ78: g | JA78: 9 | JB78: jours | JC78: proies | JD78: 120 | JE78: g | JF78: 12 | JG78: % | JH78: du poids | JJ78: Jusqu'à | JK78: 1100 | JL78: g | JM78: 9 | JN78: jours | JO78: proies | JP78: 132 | JQ78: g | JR78: 12 | JS78: % | JT78: du poids | JV78: Jusqu'à | JW78: 1200 | JX78: g | JY78: 9 | JZ78: jours | KA78: proies | KB78: 144 | KC78: g | KD78: 12 | KE78: % | KF78: du poids | KH78: Jusqu'à | KI78: 1300 | KJ78: g | KK78: 9 | KL78: jours | KM78: proies | KN78: 156 | KO78: g | KP78: 12 | KQ78: % | KR78: du poids | KT78: Jusqu'à | KU78: 1400 | KV78: g | KW78: 9 | KX78: jours | KY78: proies | KZ78: 168 | LA78: g | LB78: 12 | LC78: % | LD78: du poids | LF78: Jusqu'à | LG78: 1500 | LH78: g | LI78: 9 | LJ78: jours | LK78: proies | LL78: 180 | LM78: g | LN78: 12 | LO78: % | LP78: du poids | LR78: Jusqu'à | LS78: 1600 | LT78: g | LU78: 9 | LV78: jours | LW78: proies | LX78: 192 | LY78: g | LZ78: 12 | MA78: % | MB78: du poids | MD78: Jusqu'à | ME78: 1700 | MF78: g | MG78: 9 | MH78: jours | MI78: proies | MJ78: 204 | MK78: g | ML78: 12 | MM78: % | MN78: du poids | MP78: Jusqu'à | MQ78: 1800 | MR78: g | MS78: 9 | MT78: jours | MU78: proies | MV78: 216 | MW78: g | MX78: 12 | MY78: % | MZ78: du poids | NB78: Jusqu'à | NC78: 1900 | ND78: g | NE78: 9 | NF78: jours | NG78: proies | NH78: 228 | NI78: g | NJ78: 12 | NK78: % | NL78: du poids | NN78: Jusqu'à | NO78: 2000 | NP78: g | NQ78: 9 | NR78: jours | NS78: proies | NT78: 240 | NU78: g | NV78: 12 | NW78: % | NX78: du poids | NZ78: Jusqu'à | OA78: 2100 | OB78: g | OC78: 9 | OD78: jours | OE78: proies | OF78: 252 | OG78: g | OH78: 12 | OI78: % | OJ78: du poids | OL78: Jusqu'à | OM78: 2200 | ON78: g | OO78: 9 | OP78: jours | OQ78: proies | OR78: 242 | OS78: g | OT78: 11 | OU78: % | OV78: du poids | OX78: Jusqu'à | OY78: 2300 | OZ78: g | PA78: 9 | PB78: jours | PC78: proies | PD78: 230 | PE78: g | PF78: 10 | PG78: % | PH78: du poids | PJ78: Jusqu'à | PK78: 2400 | PL78: g | PM78: 9 | PN78: jours | PO78: proies | PP78: 240 | PQ78: g | PR78: 10 | PS78: % | PT78: du poids | PV78: Jusqu'à | PW78: 2500 | PX78: g | PY78: 9 | PZ78: jours | QA78: proies | QB78: 250 | QC78: g | QD78: 10 | QE78: % | QF78: du poids | QH78: Jusqu'à | QI78: 2600 | QJ78: g | QK78: 9 | QL78: jours | QM78: proies | QN78: 260 | QO78: g | QP78: 10 | QQ78: % | QR78: du poids | QT78: Jusqu'à | QU78: 2700 | QV78: g | QW78: 9 | QX78: jours | QY78: proies | QZ78: 270 | RA78: g | RB78: 10 | RC78: % | RD78: du poids | RF78: Jusqu'à | RG78: 2800 | RH78: g | RI78: 9 | RJ78: jours | RK78: proies | RL78: 280 | RM78: g | RN78: 10 | RO78: % | RP78: du poids | RR78: Jusqu'à | RS78: 2900 | RT78: g | RU78: 9 | RV78: jours | RW78: proies | RX78: 290 | RY78: g | RZ78: 10 | SA78: % | SB78: du poids | SD78: Jusqu'à | SE78: 3000 | SF78: g | SG78: 9 | SH78: jours | SI78: proies | SJ78: 300 | SK78: g | SL78: 10 | SM78: % | SN78: du poids
B79: jours | G79: g | I79: g | K79: g | P79: j | U79: g | V79: 0 | X79: g | AA79: cm | AB79: 0 | AD79: cm | BB79: Jusqu'à | BC79: 80 | BD79: g | BE79: 4 | BF79: jours | BG79: proies | BH79: 9.6 | BI79: g | BJ79: 12 | BK79: % | BL79: du poids | BN79: Jusqu'à | BO79: 100 | BP79: g | BQ79: 6 | BR79: jours | BS79: proies | BT79: 12 | BU79: g | BV79: 12 | BW79: % | BX79: du poids | BZ79: Jusqu'à | CA79: 150 | CB79: g | CC79: 6 | CD79: jours | CE79: proies | CF79: 18 | CG79: g | CH79: 12 | CI79: % | CJ79: du poids | CL79: Jusqu'à | CM79: 200 | CN79: g | CO79: 6 | CP79: jours | CQ79: proies | CR79: 24 | CS79: g | CT79: 12 | CU79: % | CV79: du poids | CX79: Jusqu'à | CY79: 250 | CZ79: 505 | DA79: 6 | DB79: jours | DC79: proies | DD79: 30 | DE79: g | DF79: 12 | DG79: % | DH79: du poids | DJ79: Jusqu'à | DK79: 300 | DL79: g | DM79: 7 | DN79: jours | DO79: proies | DP79: 36 | DQ79: g | DR79: 12 | DS79: % | DT79: du poids | DV79: Jusqu'à | DW79: 350 | DX79: g | DY79: 7 | DZ79: jours | EA79: proies | EB79: 42 | EC79: g | ED79: 12 | EE79: % | EF79: du poids | EH79: Jusqu'à | EI79: 400 | EJ79: g | EK79: 8 | EL79: jours | EM79: proies | EN79: 48 | EO79: g | EP79: 12 | EQ79: % | ER79: du poids | ET79: Jusqu'à | EU79: 450 | EV79: g | EW79: 8 | EX79: jours | EY79: proies | EZ79: 54 | FA79: g | FB79: 12 | FC79: % | FD79: du poids | FF79: Jusqu'à | FG79: 500 | FH79: g | FI79: 8 | FJ79: jours | FK79: proies | FL79: 60 | FM79: g | FN79: 12 | FO79: % | FP79: du poids | FR79: Jusqu'à | FS79: 550 | FT79: g | FU79: 8 | FV79: jours | FW79: proies | FX79: 66 | FY79: g | FZ79: 12 | GA79: % | GB79: du poids | GD79: Jusqu'à | GE79: 600 | GF79: g | GG79: 8 | GH79: jours | GI79: proies | GJ79: 72 | GK79: g | GL79: 12 | GM79: % | GN79: du poids | GP79: Jusqu'à | GQ79: 650 | GR79: g | GS79: 9 | GT79: jours | GU79: proies | GV79: 78 | GW79: g | GX79: 12 | GY79: % | GZ79: du poids | HB79: Jusqu'à | HC79: 700 | HD79: g | HE79: 9 | HF79: jours | HG79: proies | HH79: 84 | HI79: g | HJ79: 12 | HK79: % | HL79: du poids | HN79: Jusqu'à | HO79: 750 | HP79: g | HQ79: 9 | HR79: jours | HS79: proies | HT79: 90 | HU79: g | HV79: 12 | HW79: % | HX79: du poids | HZ79: Jusqu'à | IA79: 800 | IB79: g | IC79: 9 | ID79: jours | IE79: proies | IF79: 96 | IG79: g | IH79: 12 | II79: % | IJ79: du poids | IL79: Jusqu'à | IM79: 900 | IN79: g | IO79: 9 | IP79: jours | IQ79: proies | IR79: 108 | IS79: g | IT79: 12 | IU79: % | IV79: du poids | IX79: Jusqu'à | IY79: 1000 | IZ79: g | JA79: 9 | JB79: jours | JC79: proies | JD79: 120 | JE79: g | JF79: 12 | JG79: % | JH79: du poids | JJ79: Jusqu'à | JK79: 1100 | JL79: g | JM79: 9 | JN79: jours | JO79: proies | JP79: 132 | JQ79: g | JR79: 12 | JS79: % | JT79: du poids | JV79: Jusqu'à | JW79: 1200 | JX79: g | JY79: 9 | JZ79: jours | KA79: proies | KB79: 144 | KC79: g | KD79: 12 | KE79: % | KF79: du poids | KH79: Jusqu'à | KI79: 1300 | KJ79: g | KK79: 9 | KL79: jours | KM79: proies | KN79: 156 | KO79: g | KP79: 12 | KQ79: % | KR79: du poids | KT79: Jusqu'à | KU79: 1400 | KV79: g | KW79: 9 | KX79: jours | KY79: proies | KZ79: 168 | LA79: g | LB79: 12 | LC79: % | LD79: du poids | LF79: Jusqu'à | LG79: 1500 | LH79: g | LI79: 9 | LJ79: jours | LK79: proies | LL79: 180 | LM79: g | LN79: 12 | LO79: % | LP79: du poids | LR79: Jusqu'à | LS79: 1600 | LT79: g | LU79: 9 | LV79: jours | LW79: proies | LX79: 192 | LY79: g | LZ79: 12 | MA79: % | MB79: du poids | MD79: Jusqu'à | ME79: 1700 | MF79: g | MG79: 9 | MH79: jours | MI79: proies | MJ79: 204 | MK79: g | ML79: 12 | MM79: % | MN79: du poids | MP79: Jusqu'à | MQ79: 1800 | MR79: g | MS79: 9 | MT79: jours | MU79: proies | MV79: 216 | MW79: g | MX79: 12 | MY79: % | MZ79: du poids | NB79: Jusqu'à | NC79: 1900 | ND79: g | NE79: 9 | NF79: jours | NG79: proies | NH79: 228 | NI79: g | NJ79: 12 | NK79: % | NL79: du poids | NN79: Jusqu'à | NO79: 2000 | NP79: g | NQ79: 9 | NR79: jours | NS79: proies | NT79: 240 | NU79: g | NV79: 12 | NW79: % | NX79: du poids | NZ79: Jusqu'à | OA79: 2100 | OB79: g | OC79: 9 | OD79: jours | OE79: proies | OF79: 252 | OG79: g | OH79: 12 | OI79: % | OJ79: du poids | OL79: Jusqu'à | OM79: 2200 | ON79: g | OO79: 9 | OP79: jours | OQ79: proies | OR79: 242 | OS79: g | OT79: 11 | OU79: % | OV79: du poids | OX79: Jusqu'à | OY79: 2300 | OZ79: g | PA79: 9 | PB79: jours | PC79: proies | PD79: 230 | PE79: g | PF79: 10 | PG79: % | PH79: du poids | PJ79: Jusqu'à | PK79: 2400 | PL79: g | PM79: 9 | PN79: jours | PO79: proies | PP79: 240 | PQ79: g | PR79: 10 | PS79: % | PT79: du poids | PV79: Jusqu'à | PW79: 2500 | PX79: g | PY79: 9 | PZ79: jours | QA79: proies | QB79: 250 | QC79: g | QD79: 10 | QE79: % | QF79: du poids | QH79: Jusqu'à | QI79: 2600 | QJ79: g | QK79: 9 | QL79: jours | QM79: proies | QN79: 260 | QO79: g | QP79: 10 | QQ79: % | QR79: du poids | QT79: Jusqu'à | QU79: 2700 | QV79: g | QW79: 9 | QX79: jours | QY79: proies | QZ79: 270 | RA79: g | RB79: 10 | RC79: % | RD79: du poids | RF79: Jusqu'à | RG79: 2800 | RH79: g | RI79: 9 | RJ79: jours | RK79: proies | RL79: 280 | RM79: g | RN79: 10 | RO79: % | RP79: du poids | RR79: Jusqu'à | RS79: 2900 | RT79: g | RU79: 9 | RV79: jours | RW79: proies | RX79: 290 | RY79: g | RZ79: 10 | SA79: % | SB79: du poids | SD79: Jusqu'à | SE79: 3000 | SF79: g | SG79: 9 | SH79: jours | SI79: proies | SJ79: 300 | SK79: g | SL79: 10 | SM79: % | SN79: du poids
B80: jours | G80: g | I80: g | K80: g | P80: j | U80: g | V80: 0 | X80: g | AA80: cm | AB80: 0 | AD80: cm | BB80: Jusqu'à | BC80: 80 | BD80: g | BE80: 4 | BF80: jours | BG80: proies | BH80: 9.6 | BI80: g | BJ80: 12 | BK80: % | BL80: du poids | BN80: Jusqu'à | BO80: 100 | BP80: g | BQ80: 6 | BR80: jours | BS80: proies | BT80: 12 | BU80: g | BV80: 12 | BW80: % | BX80: du poids | BZ80: Jusqu'à | CA80: 150 | CB80: g | CC80: 6 | CD80: jours | CE80: proies | CF80: 18 | CG80: g | CH80: 12 | CI80: % | CJ80: du poids | CL80: Jusqu'à | CM80: 200 | CN80: g | CO80: 6 | CP80: jours | CQ80: proies | CR80: 24 | CS80: g | CT80: 12 | CU80: % | CV80: du poids | CX80: Jusqu'à | CY80: 250 | CZ80: 506 | DA80: 6 | DB80: jours | DC80: proies | DD80: 30 | DE80: g | DF80: 12 | DG80: % | DH80: du poids | DJ80: Jusqu'à | DK80: 300 | DL80: g | DM80: 7 | DN80: jours | DO80: proies | DP80: 36 | DQ80: g | DR80: 12 | DS80: % | DT80: du poids | DV80: Jusqu'à | DW80: 350 | DX80: g | DY80: 7 | DZ80: jours | EA80: proies | EB80: 42 | EC80: g | ED80: 12 | EE80: % | EF80: du poids | EH80: Jusqu'à | EI80: 400 | EJ80: g | EK80: 8 | EL80: jours | EM80: proies | EN80: 48 | EO80: g | EP80: 12 | EQ80: % | ER80: du poids | ET80: Jusqu'à | EU80: 450 | EV80: g | EW80: 8 | EX80: jours | EY80: proies | EZ80: 54 | FA80: g | FB80: 12 | FC80: % | FD80: du poids | FF80: Jusqu'à | FG80: 500 | FH80: g | FI80: 8 | FJ80: jours | FK80: proies | FL80: 60 | FM80: g | FN80: 12 | FO80: % | FP80: du poids | FR80: Jusqu'à | FS80: 550 | FT80: g | FU80: 8 | FV80: jours | FW80: proies | FX80: 66 | FY80: g | FZ80: 12 | GA80: % | GB80: du poids | GD80: Jusqu'à | GE80: 600 | GF80: g | GG80: 8 | GH80: jours | GI80: proies | GJ80: 72 | GK80: g | GL80: 12 | GM80: % | GN80: du poids | GP80: Jusqu'à | GQ80: 650 | GR80: g | GS80: 9 | GT80: jours | GU80: proies | GV80: 78 | GW80: g | GX80: 12 | GY80: % | GZ80: du poids | HB80: Jusqu'à | HC80: 700 | HD80: g | HE80: 9 | HF80: jours | HG80: proies | HH80: 84 | HI80: g | HJ80: 12 | HK80: % | HL80: du poids | HN80: Jusqu'à | HO80: 750 | HP80: g | HQ80: 9 | HR80: jours | HS80: proies | HT80: 90 | HU80: g | HV80: 12 | HW80: % | HX80: du poids | HZ80: Jusqu'à | IA80: 800 | IB80: g | IC80: 9 | ID80: jours | IE80: proies | IF80: 96 | IG80: g | IH80: 12 | II80: % | IJ80: du poids | IL80: Jusqu'à | IM80: 900 | IN80: g | IO80: 9 | IP80: jours | IQ80: proies | IR80: 108 | IS80: g | IT80: 12 | IU80: % | IV80: du poids | IX80: Jusqu'à | IY80: 1000 | IZ80: g | JA80: 9 | JB80: jours | JC80: proies | JD80: 120 | JE80: g | JF80: 12 | JG80: % | JH80: du poids | JJ80: Jusqu'à | JK80: 1100 | JL80: g | JM80: 9 | JN80: jours | JO80: proies | JP80: 132 | JQ80: g | JR80: 12 | JS80: % | JT80: du poids | JV80: Jusqu'à | JW80: 1200 | JX80: g | JY80: 9 | JZ80: jours | KA80: proies | KB80: 144 | KC80: g | KD80: 12 | KE80: % | KF80: du poids | KH80: Jusqu'à | KI80: 1300 | KJ80: g | KK80: 9 | KL80: jours | KM80: proies | KN80: 156 | KO80: g | KP80: 12 | KQ80: % | KR80: du poids | KT80: Jusqu'à | KU80: 1400 | KV80: g | KW80: 9 | KX80: jours | KY80: proies | KZ80: 168 | LA80: g | LB80: 12 | LC80: % | LD80: du poids | LF80: Jusqu'à | LG80: 1500 | LH80: g | LI80: 9 | LJ80: jours | LK80: proies | LL80: 180 | LM80: g | LN80: 12 | LO80: % | LP80: du poids | LR80: Jusqu'à | LS80: 1600 | LT80: g | LU80: 9 | LV80: jours | LW80: proies | LX80: 192 | LY80: g | LZ80: 12 | MA80: % | MB80: du poids | MD80: Jusqu'à | ME80: 1700 | MF80: g | MG80: 9 | MH80: jours | MI80: proies | MJ80: 204 | MK80: g | ML80: 12 | MM80: % | MN80: du poids | MP80: Jusqu'à | MQ80: 1800 | MR80: g | MS80: 9 | MT80: jours | MU80: proies | MV80: 216 | MW80: g | MX80: 12 | MY80: % | MZ80: du poids | NB80: Jusqu'à | NC80: 1900 | ND80: g | NE80: 9 | NF80: jours | NG80: proies | NH80: 228 | NI80: g | NJ80: 12 | NK80: % | NL80: du poids | NN80: Jusqu'à | NO80: 2000 | NP80: g | NQ80: 9 | NR80: jours | NS80: proies | NT80: 240 | NU80: g | NV80: 12 | NW80: % | NX80: du poids | NZ80: Jusqu'à | OA80: 2100 | OB80: g | OC80: 9 | OD80: jours | OE80: proies | OF80: 252 | OG80: g | OH80: 12 | OI80: % | OJ80: du poids | OL80: Jusqu'à | OM80: 2200 | ON80: g | OO80: 9 | OP80: jours | OQ80: proies | OR80: 242 | OS80: g | OT80: 11 | OU80: % | OV80: du poids | OX80: Jusqu'à | OY80: 2300 | OZ80: g | PA80: 9 | PB80: jours | PC80: proies | PD80: 230 | PE80: g | PF80: 10 | PG80: % | PH80: du poids | PJ80: Jusqu'à | PK80: 2400 | PL80: g | PM80: 9 | PN80: jours | PO80: proies | PP80: 240 | PQ80: g | PR80: 10 | PS80: % | PT80: du poids | PV80: Jusqu'à | PW80: 2500 | PX80: g | PY80: 9 | PZ80: jours | QA80: proies | QB80: 250 | QC80: g | QD80: 10 | QE80: % | QF80: du poids | QH80: Jusqu'à | QI80: 2600 | QJ80: g | QK80: 9 | QL80: jours | QM80: proies | QN80: 260 | QO80: g | QP80: 10 | QQ80: % | QR80: du poids | QT80: Jusqu'à | QU80: 2700 | QV80: g | QW80: 9 | QX80: jours | QY80: proies | QZ80: 270 | RA80: g | RB80: 10 | RC80: % | RD80: du poids | RF80: Jusqu'à | RG80: 2800 | RH80: g | RI80: 9 | RJ80: jours | RK80: proies | RL80: 280 | RM80: g | RN80: 10 | RO80: % | RP80: du poids | RR80: Jusqu'à | RS80: 2900 | RT80: g | RU80: 9 | RV80: jours | RW80: proies | RX80: 290 | RY80: g | RZ80: 10 | SA80: % | SB80: du poids | SD80: Jusqu'à | SE80: 3000 | SF80: g | SG80: 9 | SH80: jours | SI80: proies | SJ80: 300 | SK80: g | SL80: 10 | SM80: % | SN80: du poids
B81: jours | G81: g | I81: g | K81: g | P81: j | U81: g | V81: 0 | X81: g | AA81: cm | AB81: 0 | AD81: cm | BB81: Jusqu'à | BC81: 80 | BD81: g | BE81: 4 | BF81: jours | BG81: proies | BH81: 9.6 | BI81: g | BJ81: 12 | BK81: % | BL81: du poids | BN81: Jusqu'à | BO81: 100 | BP81: g | BQ81: 6 | BR81: jours | BS81: proies | BT81: 12 | BU81: g | BV81: 12 | BW81: % | BX81: du poids | BZ81: Jusqu'à | CA81: 150 | CB81: g | CC81: 6 | CD81: jours | CE81: proies | CF81: 18 | CG81: g | CH81: 12 | CI81: % | CJ81: du poids | CL81: Jusqu'à | CM81: 200 | CN81: g | CO81: 6 | CP81: jours | CQ81: proies | CR81: 24 | CS81: g | CT81: 12 | CU81: % | CV81: du poids | CX81: Jusqu'à | CY81: 250 | CZ81: 507 | DA81: 6 | DB81: jours | DC81: proies | DD81: 30 | DE81: g | DF81: 12 | DG81: % | DH81: du poids | DJ81: Jusqu'à | DK81: 300 | DL81: g | DM81: 7 | DN81: jours | DO81: proies | DP81: 36 | DQ81: g | DR81: 12 | DS81: % | DT81: du poids | DV81: Jusqu'à | DW81: 350 | DX81: g | DY81: 7 | DZ81: jours | EA81: proies | EB81: 42 | EC81: g | ED81: 12 | EE81: % | EF81: du poids | EH81: Jusqu'à | EI81: 400 | EJ81: g | EK81: 8 | EL81: jours | EM81: proies | EN81: 48 | EO81: g | EP81: 12 | EQ81: % | ER81: du poids | ET81: Jusqu'à | EU81: 450 | EV81: g | EW81: 8 | EX81: jours | EY81: proies | EZ81: 54 | FA81: g | FB81: 12 | FC81: % | FD81: du poids | FF81: Jusqu'à | FG81: 500 | FH81: g | FI81: 8 | FJ81: jours | FK81: proies | FL81: 60 | FM81: g | FN81: 12 | FO81: % | FP81: du poids | FR81: Jusqu'à | FS81: 550 | FT81: g | FU81: 8 | FV81: jours | FW81: proies | FX81: 66 | FY81: g | FZ81: 12 | GA81: % | GB81: du poids | GD81: Jusqu'à | GE81: 600 | GF81: g | GG81: 8 | GH81: jours | GI81: proies | GJ81: 72 | GK81: g | GL81: 12 | GM81: % | GN81: du poids | GP81: Jusqu'à | GQ81: 650 | GR81: g | GS81: 9 | GT81: jours | GU81: proies | GV81: 78 | GW81: g | GX81: 12 | GY81: % | GZ81: du poids | HB81: Jusqu'à | HC81: 700 | HD81: g | HE81: 9 | HF81: jours | HG81: proies | HH81: 84 | HI81: g | HJ81: 12 | HK81: % | HL81: du poids | HN81: Jusqu'à | HO81: 750 | HP81: g | HQ81: 9 | HR81: jours | HS81: proies | HT81: 90 | HU81: g | HV81: 12 | HW81: % | HX81: du poids | HZ81: Jusqu'à | IA81: 800 | IB81: g | IC81: 9 | ID81: jours | IE81: proies | IF81: 96 | IG81: g | IH81: 12 | II81: % | IJ81: du poids | IL81: Jusqu'à | IM81: 900 | IN81: g | IO81: 9 | IP81: jours | IQ81: proies | IR81: 108 | IS81: g | IT81: 12 | IU81: % | IV81: du poids | IX81: Jusqu'à | IY81: 1000 | IZ81: g | JA81: 9 | JB81: jours | JC81: proies | JD81: 120 | JE81: g | JF81: 12 | JG81: % | JH81: du poids | JJ81: Jusqu'à | JK81: 1100 | JL81: g | JM81: 9 | JN81: jours | JO81: proies | JP81: 132 | JQ81: g | JR81: 12 | JS81: % | JT81: du poids | JV81: Jusqu'à | JW81: 1200 | JX81: g | JY81: 9 | JZ81: jours | KA81: proies | KB81: 144 | KC81: g | KD81: 12 | KE81: % | KF81: du poids | KH81: Jusqu'à | KI81: 1300 | KJ81: g | KK81: 9 | KL81: jours | KM81: proies | KN81: 156 | KO81: g | KP81: 12 | KQ81: % | KR81: du poids | KT81: Jusqu'à | KU81: 1400 | KV81: g | KW81: 9 | KX81: jours | KY81: proies | KZ81: 168 | LA81: g | LB81: 12 | LC81: % | LD81: du poids | LF81: Jusqu'à | LG81: 1500 | LH81: g | LI81: 9 | LJ81: jours | LK81: proies | LL81: 180 | LM81: g | LN81: 12 | LO81: % | LP81: du poids | LR81: Jusqu'à | LS81: 1600 | LT81: g | LU81: 9 | LV81: jours | LW81: proies | LX81: 192 | LY81: g | LZ81: 12 | MA81: % | MB81: du poids | MD81: Jusqu'à | ME81: 1700 | MF81: g | MG81: 9 | MH81: jours | MI81: proies | MJ81: 204 | MK81: g | ML81: 12 | MM81: % | MN81: du poids | MP81: Jusqu'à | MQ81: 1800 | MR81: g | MS81: 9 | MT81: jours | MU81: proies | MV81: 216 | MW81: g | MX81: 12 | MY81: % | MZ81: du poids | NB81: Jusqu'à | NC81: 1900 | ND81: g | NE81: 9 | NF81: jours | NG81: proies | NH81: 228 | NI81: g | NJ81: 12 | NK81: % | NL81: du poids | NN81: Jusqu'à | NO81: 2000 | NP81: g | NQ81: 9 | NR81: jours | NS81: proies | NT81: 240 | NU81: g | NV81: 12 | NW81: % | NX81: du poids | NZ81: Jusqu'à | OA81: 2100 | OB81: g | OC81: 9 | OD81: jours | OE81: proies | OF81: 252 | OG81: g | OH81: 12 | OI81: % | OJ81: du poids | OL81: Jusqu'à | OM81: 2200 | ON81: g | OO81: 9 | OP81: jours | OQ81: proies | OR81: 242 | OS81: g | OT81: 11 | OU81: % | OV81: du poids | OX81: Jusqu'à | OY81: 2300 | OZ81: g | PA81: 9 | PB81: jours | PC81: proies | PD81: 230 | PE81: g | PF81: 10 | PG81: % | PH81: du poids | PJ81: Jusqu'à | PK81: 2400 | PL81: g | PM81: 9 | PN81: jours | PO81: proies | PP81: 240 | PQ81: g | PR81: 10 | PS81: % | PT81: du poids | PV81: Jusqu'à | PW81: 2500 | PX81: g | PY81: 9 | PZ81: jours | QA81: proies | QB81: 250 | QC81: g | QD81: 10 | QE81: % | QF81: du poids | QH81: Jusqu'à | QI81: 2600 | QJ81: g | QK81: 9 | QL81: jours | QM81: proies | QN81: 260 | QO81: g | QP81: 10 | QQ81: % | QR81: du poids | QT81: Jusqu'à | QU81: 2700 | QV81: g | QW81: 9 | QX81: jours | QY81: proies | QZ81: 270 | RA81: g | RB81: 10 | RC81: % | RD81: du poids | RF81: Jusqu'à | RG81: 2800 | RH81: g | RI81: 9 | RJ81: jours | RK81: proies | RL81: 280 | RM81: g | RN81: 10 | RO81: % | RP81: du poids | RR81: Jusqu'à | RS81: 2900 | RT81: g | RU81: 9 | RV81: jours | RW81: proies | RX81: 290 | RY81: g | RZ81: 10 | SA81: % | SB81: du poids | SD81: Jusqu'à | SE81: 3000 | SF81: g | SG81: 9 | SH81: jours | SI81: proies | SJ81: 300 | SK81: g | SL81: 10 | SM81: % | SN81: du poids
B82: jours | G82: g | I82: g | K82: g | P82: j | U82: g | V82: 0 | X82: g | AA82: cm | AB82: 0 | AD82: cm | BB82: Jusqu'à | BC82: 80 | BD82: g | BE82: 4 | BF82: jours | BG82: proies | BH82: 9.6 | BI82: g | BJ82: 12 | BK82: % | BL82: du poids | BN82: Jusqu'à | BO82: 100 | BP82: g | BQ82: 6 | BR82: jours | BS82: proies | BT82: 12 | BU82: g | BV82: 12 | BW82: % | BX82: du poids | BZ82: Jusqu'à | CA82: 150 | CB82: g | CC82: 6 | CD82: jours | CE82: proies | CF82: 18 | CG82: g | CH82: 12 | CI82: % | CJ82: du poids | CL82: Jusqu'à | CM82: 200 | CN82: g | CO82: 6 | CP82: jours | CQ82: proies | CR82: 24 | CS82: g | CT82: 12 | CU82: % | CV82: du poids | CX82: Jusqu'à | CY82: 250 | CZ82: 508 | DA82: 6 | DB82: jours | DC82: proies | DD82: 30 | DE82: g | DF82: 12 | DG82: % | DH82: du poids | DJ82: Jusqu'à | DK82: 300 | DL82: g | DM82: 7 | DN82: jours | DO82: proies | DP82: 36 | DQ82: g | DR82: 12 | DS82: % | DT82: du poids | DV82: Jusqu'à | DW82: 350 | DX82: g | DY82: 7 | DZ82: jours | EA82: proies | EB82: 42 | EC82: g | ED82: 12 | EE82: % | EF82: du poids | EH82: Jusqu'à | EI82: 400 | EJ82: g | EK82: 8 | EL82: jours | EM82: proies | EN82: 48 | EO82: g | EP82: 12 | EQ82: % | ER82: du poids | ET82: Jusqu'à | EU82: 450 | EV82: g | EW82: 8 | EX82: jours | EY82: proies | EZ82: 54 | FA82: g | FB82: 12 | FC82: % | FD82: du poids | FF82: Jusqu'à | FG82: 500 | FH82: g | FI82: 8 | FJ82: jours | FK82: proies | FL82: 60 | FM82: g | FN82: 12 | FO82: % | FP82: du poids | FR82: Jusqu'à | FS82: 550 | FT82: g | FU82: 8 | FV82: jours | FW82: proies | FX82: 66 | FY82: g | FZ82: 12 | GA82: % | GB82: du poids | GD82: Jusqu'à | GE82: 600 | GF82: g | GG82: 8 | GH82: jours | GI82: proies | GJ82: 72 | GK82: g | GL82: 12 | GM82: % | GN82: du poids | GP82: Jusqu'à | GQ82: 650 | GR82: g | GS82: 9 | GT82: jours | GU82: proies | GV82: 78 | GW82: g | GX82: 12 | GY82: % | GZ82: du poids | HB82: Jusqu'à | HC82: 700 | HD82: g | HE82: 9 | HF82: jours | HG82: proies | HH82: 84 | HI82: g | HJ82: 12 | HK82: % | HL82: du poids | HN82: Jusqu'à | HO82: 750 | HP82: g | HQ82: 9 | HR82: jours | HS82: proies | HT82: 90 | HU82: g | HV82: 12 | HW82: % | HX82: du poids | HZ82: Jusqu'à | IA82: 800 | IB82: g | IC82: 9 | ID82: jours | IE82: proies | IF82: 96 | IG82: g | IH82: 12 | II82: % | IJ82: du poids | IL82: Jusqu'à | IM82: 900 | IN82: g | IO82: 9 | IP82: jours | IQ82: proies | IR82: 108 | IS82: g | IT82: 12 | IU82: % | IV82: du poids | IX82: Jusqu'à | IY82: 1000 | IZ82: g | JA82: 9 | JB82: jours | JC82: proies | JD82: 120 | JE82: g | JF82: 12 | JG82: % | JH82: du poids | JJ82: Jusqu'à | JK82: 1100 | JL82: g | JM82: 9 | JN82: jours | JO82: proies | JP82: 132 | JQ82: g | JR82: 12 | JS82: % | JT82: du poids | JV82: Jusqu'à | JW82: 1200 | JX82: g | JY82: 9 | JZ82: jours | KA82: proies | KB82: 144 | KC82: g | KD82: 12 | KE82: % | KF82: du poids | KH82: Jusqu'à | KI82: 1300 | KJ82: g | KK82: 9 | KL82: jours | KM82: proies | KN82: 156 | KO82: g | KP82: 12 | KQ82: % | KR82: du poids | KT82: Jusqu'à | KU82: 1400 | KV82: g | KW82: 9 | KX82: jours | KY82: proies | KZ82: 168 | LA82: g | LB82: 12 | LC82: % | LD82: du poids | LF82: Jusqu'à | LG82: 1500 | LH82: g | LI82: 9 | LJ82: jours | LK82: proies | LL82: 180 | LM82: g | LN82: 12 | LO82: % | LP82: du poids | LR82: Jusqu'à | LS82: 1600 | LT82: g | LU82: 9 | LV82: jours | LW82: proies | LX82: 192 | LY82: g | LZ82: 12 | MA82: % | MB82: du poids | MD82: Jusqu'à | ME82: 1700 | MF82: g | MG82: 9 | MH82: jours | MI82: proies | MJ82: 204 | MK82: g | ML82: 12 | MM82: % | MN82: du poids | MP82: Jusqu'à | MQ82: 1800 | MR82: g | MS82: 9 | MT82: jours | MU82: proies | MV82: 216 | MW82: g | MX82: 12 | MY82: % | MZ82: du poids | NB82: Jusqu'à | NC82: 1900 | ND82: g | NE82: 9 | NF82: jours | NG82: proies | NH82: 228 | NI82: g | NJ82: 12 | NK82: % | NL82: du poids | NN82: Jusqu'à | NO82: 2000 | NP82: g | NQ82: 9 | NR82: jours | NS82: proies | NT82: 240 | NU82: g | NV82: 12 | NW82: % | NX82: du poids | NZ82: Jusqu'à | OA82: 2100 | OB82: g | OC82: 9 | OD82: jours | OE82: proies | OF82: 252 | OG82: g | OH82: 12 | OI82: % | OJ82: du poids | OL82: Jusqu'à | OM82: 2200 | ON82: g | OO82: 9 | OP82: jours | OQ82: proies | OR82: 242 | OS82: g | OT82: 11 | OU82: % | OV82: du poids | OX82: Jusqu'à | OY82: 2300 | OZ82: g | PA82: 9 | PB82: jours | PC82: proies | PD82: 230 | PE82: g | PF82: 10 | PG82: % | PH82: du poids | PJ82: Jusqu'à | PK82: 2400 | PL82: g | PM82: 9 | PN82: jours | PO82: proies | PP82: 240 | PQ82: g | PR82: 10 | PS82: % | PT82: du poids | PV82: Jusqu'à | PW82: 2500 | PX82: g | PY82: 9 | PZ82: jours | QA82: proies | QB82: 250 | QC82: g | QD82: 10 | QE82: % | QF82: du poids | QH82: Jusqu'à | QI82: 2600 | QJ82: g | QK82: 9 | QL82: jours | QM82: proies | QN82: 260 | QO82: g | QP82: 10 | QQ82: % | QR82: du poids | QT82: Jusqu'à | QU82: 2700 | QV82: g | QW82: 9 | QX82: jours | QY82: proies | QZ82: 270 | RA82: g | RB82: 10 | RC82: % | RD82: du poids | RF82: Jusqu'à | RG82: 2800 | RH82: g | RI82: 9 | RJ82: jours | RK82: proies | RL82: 280 | RM82: g | RN82: 10 | RO82: % | RP82: du poids | RR82: Jusqu'à | RS82: 2900 | RT82: g | RU82: 9 | RV82: jours | RW82: proies | RX82: 290 | RY82: g | RZ82: 10 | SA82: % | SB82: du poids | SD82: Jusqu'à | SE82: 3000 | SF82: g | SG82: 9 | SH82: jours | SI82: proies | SJ82: 300 | SK82: g | SL82: 10 | SM82: % | SN82: du poids
B83: jours | G83: g | I83: g | K83: g | P83: j | U83: g | V83: 0 | X83: g | AA83: cm | AB83: 0 | AD83: cm | BB83: Jusqu'à | BC83: 80 | BD83: g | BE83: 4 | BF83: jours | BG83: proies | BH83: 9.6 | BI83: g | BJ83: 12 | BK83: % | BL83: du poids | BN83: Jusqu'à | BO83: 100 | BP83: g | BQ83: 6 | BR83: jours | BS83: proies | BT83: 12 | BU83: g | BV83: 12 | BW83: % | BX83: du poids | BZ83: Jusqu'à | CA83: 150 | CB83: g | CC83: 6 | CD83: jours | CE83: proies | CF83: 18 | CG83: g | CH83: 12 | CI83: % | CJ83: du poids | CL83: Jusqu'à | CM83: 200 | CN83: g | CO83: 6 | CP83: jours | CQ83: proies | CR83: 24 | CS83: g | CT83: 12 | CU83: % | CV83: du poids | CX83: Jusqu'à | CY83: 250 | CZ83: 509 | DA83: 6 | DB83: jours | DC83: proies | DD83: 30 | DE83: g | DF83: 12 | DG83: % | DH83: du poids | DJ83: Jusqu'à | DK83: 300 | DL83: g | DM83: 7 | DN83: jours | DO83: proies | DP83: 36 | DQ83: g | DR83: 12 | DS83: % | DT83: du poids | DV83: Jusqu'à | DW83: 350 | DX83: g | DY83: 7 | DZ83: jours | EA83: proies | EB83: 42 | EC83: g | ED83: 12 | EE83: % | EF83: du poids | EH83: Jusqu'à | EI83: 400 | EJ83: g | EK83: 8 | EL83: jours | EM83: proies | EN83: 48 | EO83: g | EP83: 12 | EQ83: % | ER83: du poids | ET83: Jusqu'à | EU83: 450 | EV83: g | EW83: 8 | EX83: jours | EY83: proies | EZ83: 54 | FA83: g | FB83: 12 | FC83: % | FD83: du poids | FF83: Jusqu'à | FG83: 500 | FH83: g | FI83: 8 | FJ83: jours | FK83: proies | FL83: 60 | FM83: g | FN83: 12 | FO83: % | FP83: du poids | FR83: Jusqu'à | FS83: 550 | FT83: g | FU83: 8 | FV83: jours | FW83: proies | FX83: 66 | FY83: g | FZ83: 12 | GA83: % | GB83: du poids | GD83: Jusqu'à | GE83: 600 | GF83: g | GG83: 8 | GH83: jours | GI83: proies | GJ83: 72 | GK83: g | GL83: 12 | GM83: % | GN83: du poids | GP83: Jusqu'à | GQ83: 650 | GR83: g | GS83: 9 | GT83: jours | GU83: proies | GV83: 78 | GW83: g | GX83: 12 | GY83: % | GZ83: du poids | HB83: Jusqu'à | HC83: 700 | HD83: g | HE83: 9 | HF83: jours | HG83: proies | HH83: 84 | HI83: g | HJ83: 12 | HK83: % | HL83: du poids | HN83: Jusqu'à | HO83: 750 | HP83: g | HQ83: 9 | HR83: jours | HS83: proies | HT83: 90 | HU83: g | HV83: 12 | HW83: % | HX83: du poids | HZ83: Jusqu'à | IA83: 800 | IB83: g | IC83: 9 | ID83: jours | IE83: proies | IF83: 96 | IG83: g | IH83: 12 | II83: % | IJ83: du poids | IL83: Jusqu'à | IM83: 900 | IN83: g | IO83: 9 | IP83: jours | IQ83: proies | IR83: 108 | IS83: g | IT83: 12 | IU83: % | IV83: du poids | IX83: Jusqu'à | IY83: 1000 | IZ83: g | JA83: 9 | JB83: jours | JC83: proies | JD83: 120 | JE83: g | JF83: 12 | JG83: % | JH83: du poids | JJ83: Jusqu'à | JK83: 1100 | JL83: g | JM83: 9 | JN83: jours | JO83: proies | JP83: 132 | JQ83: g | JR83: 12 | JS83: % | JT83: du poids | JV83: Jusqu'à | JW83: 1200 | JX83: g | JY83: 9 | JZ83: jours | KA83: proies | KB83: 144 | KC83: g | KD83: 12 | KE83: % | KF83: du poids | KH83: Jusqu'à | KI83: 1300 | KJ83: g | KK83: 9 | KL83: jours | KM83: proies | KN83: 156 | KO83: g | KP83: 12 | KQ83: % | KR83: du poids | KT83: Jusqu'à | KU83: 1400 | KV83: g | KW83: 9 | KX83: jours | KY83: proies | KZ83: 168 | LA83: g | LB83: 12 | LC83: % | LD83: du poids | LF83: Jusqu'à | LG83: 1500 | LH83: g | LI83: 9 | LJ83: jours | LK83: proies | LL83: 180 | LM83: g | LN83: 12 | LO83: % | LP83: du poids | LR83: Jusqu'à | LS83: 1600 | LT83: g | LU83: 9 | LV83: jours | LW83: proies | LX83: 192 | LY83: g | LZ83: 12 | MA83: % | MB83: du poids | MD83: Jusqu'à | ME83: 1700 | MF83: g | MG83: 9 | MH83: jours | MI83: proies | MJ83: 204 | MK83: g | ML83: 12 | MM83: % | MN83: du poids | MP83: Jusqu'à | MQ83: 1800 | MR83: g | MS83: 9 | MT83: jours | MU83: proies | MV83: 216 | MW83: g | MX83: 12 | MY83: % | MZ83: du poids | NB83: Jusqu'à | NC83: 1900 | ND83: g | NE83: 9 | NF83: jours | NG83: proies | NH83: 228 | NI83: g | NJ83: 12 | NK83: % | NL83: du poids | NN83: Jusqu'à | NO83: 2000 | NP83: g | NQ83: 9 | NR83: jours | NS83: proies | NT83: 240 | NU83: g | NV83: 12 | NW83: % | NX83: du poids | NZ83: Jusqu'à | OA83: 2100 | OB83: g | OC83: 9 | OD83: jours | OE83: proies | OF83: 252 | OG83: g | OH83: 12 | OI83: % | OJ83: du poids | OL83: Jusqu'à | OM83: 2200 | ON83: g | OO83: 9 | OP83: jours | OQ83: proies | OR83: 242 | OS83: g | OT83: 11 | OU83: % | OV83: du poids | OX83: Jusqu'à | OY83: 2300 | OZ83: g | PA83: 9 | PB83: jours | PC83: proies | PD83: 230 | PE83: g | PF83: 10 | PG83: % | PH83: du poids | PJ83: Jusqu'à | PK83: 2400 | PL83: g | PM83: 9 | PN83: jours | PO83: proies | PP83: 240 | PQ83: g | PR83: 10 | PS83: % | PT83: du poids | PV83: Jusqu'à | PW83: 2500 | PX83: g | PY83: 9 | PZ83: jours | QA83: proies | QB83: 250 | QC83: g | QD83: 10 | QE83: % | QF83: du poids | QH83: Jusqu'à | QI83: 2600 | QJ83: g | QK83: 9 | QL83: jours | QM83: proies | QN83: 260 | QO83: g | QP83: 10 | QQ83: % | QR83: du poids | QT83: Jusqu'à | QU83: 2700 | QV83: g | QW83: 9 | QX83: jours | QY83: proies | QZ83: 270 | RA83: g | RB83: 10 | RC83: % | RD83: du poids | RF83: Jusqu'à | RG83: 2800 | RH83: g | RI83: 9 | RJ83: jours | RK83: proies | RL83: 280 | RM83: g | RN83: 10 | RO83: % | RP83: du poids | RR83: Jusqu'à | RS83: 2900 | RT83: g | RU83: 9 | RV83: jours | RW83: proies | RX83: 290 | RY83: g | RZ83: 10 | SA83: % | SB83: du poids | SD83: Jusqu'à | SE83: 3000 | SF83: g | SG83: 9 | SH83: jours | SI83: proies | SJ83: 300 | SK83: g | SL83: 10 | SM83: % | SN83: du poids
B84: jours | G84: g | I84: g | K84: g | P84: j | U84: g | V84: 0 | X84: g | AA84: cm | AB84: 0 | AD84: cm | BB84: Jusqu'à | BC84: 80 | BD84: g | BE84: 4 | BF84: jours | BG84: proies | BH84: 9.6 | BI84: g | BJ84: 12 | BK84: % | BL84: du poids | BN84: Jusqu'à | BO84: 100 | BP84: g | BQ84: 6 | BR84: jours | BS84: proies | BT84: 12 | BU84: g | BV84: 12 | BW84: % | BX84: du poids | BZ84: Jusqu'à | CA84: 150 | CB84: g | CC84: 6 | CD84: jours | CE84: proies | CF84: 18 | CG84: g | CH84: 12 | CI84: % | CJ84: du poids | CL84: Jusqu'à | CM84: 200 | CN84: g | CO84: 6 | CP84: jours | CQ84: proies | CR84: 24 | CS84: g | CT84: 12 | CU84: % | CV84: du poids | CX84: Jusqu'à | CY84: 250 | CZ84: 510 | DA84: 6 | DB84: jours | DC84: proies | DD84: 30 | DE84: g | DF84: 12 | DG84: % | DH84: du poids | DJ84: Jusqu'à | DK84: 300 | DL84: g | DM84: 7 | DN84: jours | DO84: proies | DP84: 36 | DQ84: g | DR84: 12 | DS84: % | DT84: du poids | DV84: Jusqu'à | DW84: 350 | DX84: g | DY84: 7 | DZ84: jours | EA84: proies | EB84: 42 | EC84: g | ED84: 12 | EE84: % | EF84: du poids | EH84: Jusqu'à | EI84: 400 | EJ84: g | EK84: 8 | EL84: jours | EM84: proies | EN84: 48 | EO84: g | EP84: 12 | EQ84: % | ER84: du poids | ET84: Jusqu'à | EU84: 450 | EV84: g | EW84: 8 | EX84: jours | EY84: proies | EZ84: 54 | FA84: g | FB84: 12 | FC84: % | FD84: du poids | FF84: Jusqu'à | FG84: 500 | FH84: g | FI84: 8 | FJ84: jours | FK84: proies | FL84: 60 | FM84: g | FN84: 12 | FO84: % | FP84: du poids | FR84: Jusqu'à | FS84: 550 | FT84: g | FU84: 8 | FV84: jours | FW84: proies | FX84: 66 | FY84: g | FZ84: 12 | GA84: % | GB84: du poids | GD84: Jusqu'à | GE84: 600 | GF84: g | GG84: 8 | GH84: jours | GI84: proies | GJ84: 72 | GK84: g | GL84: 12 | GM84: % | GN84: du poids | GP84: Jusqu'à | GQ84: 650 | GR84: g | GS84: 9 | GT84: jours | GU84: proies | GV84: 78 | GW84: g | GX84: 12 | GY84: % | GZ84: du poids | HB84: Jusqu'à | HC84: 700 | HD84: g | HE84: 9 | HF84: jours | HG84: proies | HH84: 84 | HI84: g | HJ84: 12 | HK84: % | HL84: du poids | HN84: Jusqu'à | HO84: 750 | HP84: g | HQ84: 9 | HR84: jours | HS84: proies | HT84: 90 | HU84: g | HV84: 12 | HW84: % | HX84: du poids | HZ84: Jusqu'à | IA84: 800 | IB84: g | IC84: 9 | ID84: jours | IE84: proies | IF84: 96 | IG84: g | IH84: 12 | II84: % | IJ84: du poids | IL84: Jusqu'à | IM84: 900 | IN84: g | IO84: 9 | IP84: jours | IQ84: proies | IR84: 108 | IS84: g | IT84: 12 | IU84: % | IV84: du poids | IX84: Jusqu'à | IY84: 1000 | IZ84: g | JA84: 9 | JB84: jours | JC84: proies | JD84: 120 | JE84: g | JF84: 12 | JG84: % | JH84: du poids | JJ84: Jusqu'à | JK84: 1100 | JL84: g | JM84: 9 | JN84: jours | JO84: proies | JP84: 132 | JQ84: g | JR84: 12 | JS84: % | JT84: du poids | JV84: Jusqu'à | JW84: 1200 | JX84: g | JY84: 9 | JZ84: jours | KA84: proies | KB84: 144 | KC84: g | KD84: 12 | KE84: % | KF84: du poids | KH84: Jusqu'à | KI84: 1300 | KJ84: g | KK84: 9 | KL84: jours | KM84: proies | KN84: 156 | KO84: g | KP84: 12 | KQ84: % | KR84: du poids | KT84: Jusqu'à | KU84: 1400 | KV84: g | KW84: 9 | KX84: jours | KY84: proies | KZ84: 168 | LA84: g | LB84: 12 | LC84: % | LD84: du poids | LF84: Jusqu'à | LG84: 1500 | LH84: g | LI84: 9 | LJ84: jours | LK84: proies | LL84: 180 | LM84: g | LN84: 12 | LO84: % | LP84: du poids | LR84: Jusqu'à | LS84: 1600 | LT84: g | LU84: 9 | LV84: jours | LW84: proies | LX84: 192 | LY84: g | LZ84: 12 | MA84: % | MB84: du poids | MD84: Jusqu'à | ME84: 1700 | MF84: g | MG84: 9 | MH84: jours | MI84: proies | MJ84: 204 | MK84: g | ML84: 12 | MM84: % | MN84: du poids | MP84: Jusqu'à | MQ84: 1800 | MR84: g | MS84: 9 | MT84: jours | MU84: proies | MV84: 216 | MW84: g | MX84: 12 | MY84: % | MZ84: du poids | NB84: Jusqu'à | NC84: 1900 | ND84: g | NE84: 9 | NF84: jours | NG84: proies | NH84: 228 | NI84: g | NJ84: 12 | NK84: % | NL84: du poids | NN84: Jusqu'à | NO84: 2000 | NP84: g | NQ84: 9 | NR84: jours | NS84: proies | NT84: 240 | NU84: g | NV84: 12 | NW84: % | NX84: du poids | NZ84: Jusqu'à | OA84: 2100 | OB84: g | OC84: 9 | OD84: jours | OE84: proies | OF84: 252 | OG84: g | OH84: 12 | OI84: % | OJ84: du poids | OL84: Jusqu'à | OM84: 2200 | ON84: g | OO84: 9 | OP84: jours | OQ84: proies | OR84: 242 | OS84: g | OT84: 11 | OU84: % | OV84: du poids | OX84: Jusqu'à | OY84: 2300 | OZ84: g | PA84: 9 | PB84: jours | PC84: proies | PD84: 230 | PE84: g | PF84: 10 | PG84: % | PH84: du poids | PJ84: Jusqu'à | PK84: 2400 | PL84: g | PM84: 9 | PN84: jours | PO84: proies | PP84: 240 | PQ84: g | PR84: 10 | PS84: % | PT84: du poids | PV84: Jusqu'à | PW84: 2500 | PX84: g | PY84: 9 | PZ84: jours | QA84: proies | QB84: 250 | QC84: g | QD84: 10 | QE84: % | QF84: du poids | QH84: Jusqu'à | QI84: 2600 | QJ84: g | QK84: 9 | QL84: jours | QM84: proies | QN84: 260 | QO84: g | QP84: 10 | QQ84: % | QR84: du poids | QT84: Jusqu'à | QU84: 2700 | QV84: g | QW84: 9 | QX84: jours | QY84: proies | QZ84: 270 | RA84: g | RB84: 10 | RC84: % | RD84: du poids | RF84: Jusqu'à | RG84: 2800 | RH84: g | RI84: 9 | RJ84: jours | RK84: proies | RL84: 280 | RM84: g | RN84: 10 | RO84: % | RP84: du poids | RR84: Jusqu'à | RS84: 2900 | RT84: g | RU84: 9 | RV84: jours | RW84: proies | RX84: 290 | RY84: g | RZ84: 10 | SA84: % | SB84: du poids | SD84: Jusqu'à | SE84: 3000 | SF84: g | SG84: 9 | SH84: jours | SI84: proies | SJ84: 300 | SK84: g | SL84: 10 | SM84: % | SN84: du poids
B85: jours | G85: g | I85: g | K85: g | P85: j | U85: g | V85: 0 | X85: g | AA85: cm | AB85: 0 | AD85: cm | BB85: Jusqu'à | BC85: 80 | BD85: g | BE85: 4 | BF85: jours | BG85: proies | BH85: 9.6 | BI85: g | BJ85: 12 | BK85: % | BL85: du poids | BN85: Jusqu'à | BO85: 100 | BP85: g | BQ85: 6 | BR85: jours | BS85: proies | BT85: 12 | BU85: g | BV85: 12 | BW85: % | BX85: du poids | BZ85: Jusqu'à | CA85: 150 | CB85: g | CC85: 6 | CD85: jours | CE85: proies | CF85: 18 | CG85: g | CH85: 12 | CI85: % | CJ85: du poids | CL85: Jusqu'à | CM85: 200 | CN85: g | CO85: 6 | CP85: jours | CQ85: proies | CR85: 24 | CS85: g | CT85: 12 | CU85: % | CV85: du poids | CX85: Jusqu'à | CY85: 250 | CZ85: 511 | DA85: 6 | DB85: jours | DC85: proies | DD85: 30 | DE85: g | DF85: 12 | DG85: % | DH85: du poids | DJ85: Jusqu'à | DK85: 300 | DL85: g | DM85: 7 | DN85: jours | DO85: proies | DP85: 36 | DQ85: g | DR85: 12 | DS85: % | DT85: du poids | DV85: Jusqu'à | DW85: 350 | DX85: g | DY85: 7 | DZ85: jours | EA85: proies | EB85: 42 | EC85: g | ED85: 12 | EE85: % | EF85: du poids | EH85: Jusqu'à | EI85: 400 | EJ85: g | EK85: 8 | EL85: jours | EM85: proies | EN85: 48 | EO85: g | EP85: 12 | EQ85: % | ER85: du poids | ET85: Jusqu'à | EU85: 450 | EV85: g | EW85: 8 | EX85: jours | EY85: proies | EZ85: 54 | FA85: g | FB85: 12 | FC85: % | FD85: du poids | FF85: Jusqu'à | FG85: 500 | FH85: g | FI85: 8 | FJ85: jours | FK85: proies | FL85: 60 | FM85: g | FN85: 12 | FO85: % | FP85: du poids | FR85: Jusqu'à | FS85: 550 | FT85: g | FU85: 8 | FV85: jours | FW85: proies | FX85: 66 | FY85: g | FZ85: 12 | GA85: % | GB85: du poids | GD85: Jusqu'à | GE85: 600 | GF85: g | GG85: 8 | GH85: jours | GI85: proies | GJ85: 72 | GK85: g | GL85: 12 | GM85: % | GN85: du poids | GP85: Jusqu'à | GQ85: 650 | GR85: g | GS85: 9 | GT85: jours | GU85: proies | GV85: 78 | GW85: g | GX85: 12 | GY85: % | GZ85: du poids | HB85: Jusqu'à | HC85: 700 | HD85: g | HE85: 9 | HF85: jours | HG85: proies | HH85: 84 | HI85: g | HJ85: 12 | HK85: % | HL85: du poids | HN85: Jusqu'à | HO85: 750 | HP85: g | HQ85: 9 | HR85: jours | HS85: proies | HT85: 90 | HU85: g | HV85: 12 | HW85: % | HX85: du poids | HZ85: Jusqu'à | IA85: 800 | IB85: g | IC85: 9 | ID85: jours | IE85: proies | IF85: 96 | IG85: g | IH85: 12 | II85: % | IJ85: du poids | IL85: Jusqu'à | IM85: 900 | IN85: g | IO85: 9 | IP85: jours | IQ85: proies | IR85: 108 | IS85: g | IT85: 12 | IU85: % | IV85: du poids | IX85: Jusqu'à | IY85: 1000 | IZ85: g | JA85: 9 | JB85: jours | JC85: proies | JD85: 120 | JE85: g | JF85: 12 | JG85: % | JH85: du poids | JJ85: Jusqu'à | JK85: 1100 | JL85: g | JM85: 9 | JN85: jours | JO85: proies | JP85: 132 | JQ85: g | JR85: 12 | JS85: % | JT85: du poids | JV85: Jusqu'à | JW85: 1200 | JX85: g | JY85: 9 | JZ85: jours | KA85: proies | KB85: 144 | KC85: g | KD85: 12 | KE85: % | KF85: du poids | KH85: Jusqu'à | KI85: 1300 | KJ85: g | KK85: 9 | KL85: jours | KM85: proies | KN85: 156 | KO85: g | KP85: 12 | KQ85: % | KR85: du poids | KT85: Jusqu'à | KU85: 1400 | KV85: g | KW85: 9 | KX85: jours | KY85: proies | KZ85: 168 | LA85: g | LB85: 12 | LC85: % | LD85: du poids | LF85: Jusqu'à | LG85: 1500 | LH85: g | LI85: 9 | LJ85: jours | LK85: proies | LL85: 180 | LM85: g | LN85: 12 | LO85: % | LP85: du poids | LR85: Jusqu'à | LS85: 1600 | LT85: g | LU85: 9 | LV85: jours | LW85: proies | LX85: 192 | LY85: g | LZ85: 12 | MA85: % | MB85: du poids | MD85: Jusqu'à | ME85: 1700 | MF85: g | MG85: 9 | MH85: jours | MI85: proies | MJ85: 204 | MK85: g | ML85: 12 | MM85: % | MN85: du poids | MP85: Jusqu'à | MQ85: 1800 | MR85: g | MS85: 9 | MT85: jours | MU85: proies | MV85: 216 | MW85: g | MX85: 12 | MY85: % | MZ85: du poids | NB85: Jusqu'à | NC85: 1900 | ND85: g | NE85: 9 | NF85: jours | NG85: proies | NH85: 228 | NI85: g | NJ85: 12 | NK85: % | NL85: du poids | NN85: Jusqu'à | NO85: 2000 | NP85: g | NQ85: 9 | NR85: jours | NS85: proies | NT85: 240 | NU85: g | NV85: 12 | NW85: % | NX85: du poids | NZ85: Jusqu'à | OA85: 2100 | OB85: g | OC85: 9 | OD85: jours | OE85: proies | OF85: 252 | OG85: g | OH85: 12 | OI85: % | OJ85: du poids | OL85: Jusqu'à | OM85: 2200 | ON85: g | OO85: 9 | OP85: jours | OQ85: proies | OR85: 242 | OS85: g | OT85: 11 | OU85: % | OV85: du poids | OX85: Jusqu'à | OY85: 2300 | OZ85: g | PA85: 9 | PB85: jours | PC85: proies | PD85: 230 | PE85: g | PF85: 10 | PG85: % | PH85: du poids | PJ85: Jusqu'à | PK85: 2400 | PL85: g | PM85: 9 | PN85: jours | PO85: proies | PP85: 240 | PQ85: g | PR85: 10 | PS85: % | PT85: du poids | PV85: Jusqu'à | PW85: 2500 | PX85: g | PY85: 9 | PZ85: jours | QA85: proies | QB85: 250 | QC85: g | QD85: 10 | QE85: % | QF85: du poids | QH85: Jusqu'à | QI85: 2600 | QJ85: g | QK85: 9 | QL85: jours | QM85: proies | QN85: 260 | QO85: g | QP85: 10 | QQ85: % | QR85: du poids | QT85: Jusqu'à | QU85: 2700 | QV85: g | QW85: 9 | QX85: jours | QY85: proies | QZ85: 270 | RA85: g | RB85: 10 | RC85: % | RD85: du poids | RF85: Jusqu'à | RG85: 2800 | RH85: g | RI85: 9 | RJ85: jours | RK85: proies | RL85: 280 | RM85: g | RN85: 10 | RO85: % | RP85: du poids | RR85: Jusqu'à | RS85: 2900 | RT85: g | RU85: 9 | RV85: jours | RW85: proies | RX85: 290 | RY85: g | RZ85: 10 | SA85: % | SB85: du poids | SD85: Jusqu'à | SE85: 3000 | SF85: g | SG85: 9 | SH85: jours | SI85: proies | SJ85: 300 | SK85: g | SL85: 10 | SM85: % | SN85: du poids
B86: jours | G86: g | I86: g | K86: g | P86: j | U86: g | V86: 0 | X86: g | AA86: cm | AB86: 0 | AD86: cm | BB86: Jusqu'à | BC86: 80 | BD86: g | BE86: 4 | BF86: jours | BG86: proies | BH86: 9.6 | BI86: g | BJ86: 12 | BK86: % | BL86: du poids | BN86: Jusqu'à | BO86: 100 | BP86: g | BQ86: 6 | BR86: jours | BS86: proies | BT86: 12 | BU86: g | BV86: 12 | BW86: % | BX86: du poids | BZ86: Jusqu'à | CA86: 150 | CB86: g | CC86: 6 | CD86: jours | CE86: proies | CF86: 18 | CG86: g | CH86: 12 | CI86: % | CJ86: du poids | CL86: Jusqu'à | CM86: 200 | CN86: g | CO86: 6 | CP86: jours | CQ86: proies | CR86: 24 | CS86: g | CT86: 12 | CU86: % | CV86: du poids | CX86: Jusqu'à | CY86: 250 | CZ86: 512 | DA86: 6 | DB86: jours | DC86: proies | DD86: 30 | DE86: g | DF86: 12 | DG86: % | DH86: du poids | DJ86: Jusqu'à | DK86: 300 | DL86: g | DM86: 7 | DN86: jours | DO86: proies | DP86: 36 | DQ86: g | DR86: 12 | DS86: % | DT86: du poids | DV86: Jusqu'à | DW86: 350 | DX86: g | DY86: 7 | DZ86: jours | EA86: proies | EB86: 42 | EC86: g | ED86: 12 | EE86: % | EF86: du poids | EH86: Jusqu'à | EI86: 400 | EJ86: g | EK86: 8 | EL86: jours | EM86: proies | EN86: 48 | EO86: g | EP86: 12 | EQ86: % | ER86: du poids | ET86: Jusqu'à | EU86: 450 | EV86: g | EW86: 8 | EX86: jours | EY86: proies | EZ86: 54 | FA86: g | FB86: 12 | FC86: % | FD86: du poids | FF86: Jusqu'à | FG86: 500 | FH86: g | FI86: 8 | FJ86: jours | FK86: proies | FL86: 60 | FM86: g | FN86: 12 | FO86: % | FP86: du poids | FR86: Jusqu'à | FS86: 550 | FT86: g | FU86: 8 | FV86: jours | FW86: proies | FX86: 66 | FY86: g | FZ86: 12 | GA86: % | GB86: du poids | GD86: Jusqu'à | GE86: 600 | GF86: g | GG86: 8 | GH86: jours | GI86: proies | GJ86: 72 | GK86: g | GL86: 12 | GM86: % | GN86: du poids | GP86: Jusqu'à | GQ86: 650 | GR86: g | GS86: 9 | GT86: jours | GU86: proies | GV86: 78 | GW86: g | GX86: 12 | GY86: % | GZ86: du poids | HB86: Jusqu'à | HC86: 700 | HD86: g | HE86: 9 | HF86: jours | HG86: proies | HH86: 84 | HI86: g | HJ86: 12 | HK86: % | HL86: du poids | HN86: Jusqu'à | HO86: 750 | HP86: g | HQ86: 9 | HR86: jours | HS86: proies | HT86: 90 | HU86: g | HV86: 12 | HW86: % | HX86: du poids | HZ86: Jusqu'à | IA86: 800 | IB86: g | IC86: 9 | ID86: jours | IE86: proies | IF86: 96 | IG86: g | IH86: 12 | II86: % | IJ86: du poids | IL86: Jusqu'à | IM86: 900 | IN86: g | IO86: 9 | IP86: jours | IQ86: proies | IR86: 108 | IS86: g | IT86: 12 | IU86: % | IV86: du poids | IX86: Jusqu'à | IY86: 1000 | IZ86: g | JA86: 9 | JB86: jours | JC86: proies | JD86: 120 | JE86: g | JF86: 12 | JG86: % | JH86: du poids | JJ86: Jusqu'à | JK86: 1100 | JL86: g | JM86: 9 | JN86: jours | JO86: proies | JP86: 132 | JQ86: g | JR86: 12 | JS86: % | JT86: du poids | JV86: Jusqu'à | JW86: 1200 | JX86: g | JY86: 9 | JZ86: jours | KA86: proies | KB86: 144 | KC86: g | KD86: 12 | KE86: % | KF86: du poids | KH86: Jusqu'à | KI86: 1300 | KJ86: g | KK86: 9 | KL86: jours | KM86: proies | KN86: 156 | KO86: g | KP86: 12 | KQ86: % | KR86: du poids | KT86: Jusqu'à | KU86: 1400 | KV86: g | KW86: 9 | KX86: jours | KY86: proies | KZ86: 168 | LA86: g | LB86: 12 | LC86: % | LD86: du poids | LF86: Jusqu'à | LG86: 1500 | LH86: g | LI86: 9 | LJ86: jours | LK86: proies | LL86: 180 | LM86: g | LN86: 12 | LO86: % | LP86: du poids | LR86: Jusqu'à | LS86: 1600 | LT86: g | LU86: 9 | LV86: jours | LW86: proies | LX86: 192 | LY86: g | LZ86: 12 | MA86: % | MB86: du poids | MD86: Jusqu'à | ME86: 1700 | MF86: g | MG86: 9 | MH86: jours | MI86: proies | MJ86: 204 | MK86: g | ML86: 12 | MM86: % | MN86: du poids | MP86: Jusqu'à | MQ86: 1800 | MR86: g | MS86: 9 | MT86: jours | MU86: proies | MV86: 216 | MW86: g | MX86: 12 | MY86: % | MZ86: du poids | NB86: Jusqu'à | NC86: 1900 | ND86: g | NE86: 9 | NF86: jours | NG86: proies | NH86: 228 | NI86: g | NJ86: 12 | NK86: % | NL86: du poids | NN86: Jusqu'à | NO86: 2000 | NP86: g | NQ86: 9 | NR86: jours | NS86: proies | NT86: 240 | NU86: g | NV86: 12 | NW86: % | NX86: du poids | NZ86: Jusqu'à | OA86: 2100 | OB86: g | OC86: 9 | OD86: jours | OE86: proies | OF86: 252 | OG86: g | OH86: 12 | OI86: % | OJ86: du poids | OL86: Jusqu'à | OM86: 2200 | ON86: g | OO86: 9 | OP86: jours | OQ86: proies | OR86: 242 | OS86: g | OT86: 11 | OU86: % | OV86: du poids | OX86: Jusqu'à | OY86: 2300 | OZ86: g | PA86: 9 | PB86: jours | PC86: proies | PD86: 230 | PE86: g | PF86: 10 | PG86: % | PH86: du poids | PJ86: Jusqu'à | PK86: 2400 | PL86: g | PM86: 9 | PN86: jours | PO86: proies | PP86: 240 | PQ86: g | PR86: 10 | PS86: % | PT86: du poids | PV86: Jusqu'à | PW86: 2500 | PX86: g | PY86: 9 | PZ86: jours | QA86: proies | QB86: 250 | QC86: g | QD86: 10 | QE86: % | QF86: du poids | QH86: Jusqu'à | QI86: 2600 | QJ86: g | QK86: 9 | QL86: jours | QM86: proies | QN86: 260 | QO86: g | QP86: 10 | QQ86: % | QR86: du poids | QT86: Jusqu'à | QU86: 2700 | QV86: g | QW86: 9 | QX86: jours | QY86: proies | QZ86: 270 | RA86: g | RB86: 10 | RC86: % | RD86: du poids | RF86: Jusqu'à | RG86: 2800 | RH86: g | RI86: 9 | RJ86: jours | RK86: proies | RL86: 280 | RM86: g | RN86: 10 | RO86: % | RP86: du poids | RR86: Jusqu'à | RS86: 2900 | RT86: g | RU86: 9 | RV86: jours | RW86: proies | RX86: 290 | RY86: g | RZ86: 10 | SA86: % | SB86: du poids | SD86: Jusqu'à | SE86: 3000 | SF86: g | SG86: 9 | SH86: jours | SI86: proies | SJ86: 300 | SK86: g | SL86: 10 | SM86: % | SN86: du poids
